{"text_format":"1","workbook":"xlsx","n_sheets":15,"sheets":["Sheet1","Sheet2","Sheet3","Sheet4","Sheet5","Sheet6","Sheet7","Sheet8","Sheet9","Sheet10","移動設定","移動設定を登録","図形工房","データー","手作り画像を保存"],"not_rendered":{"charts":0,"images":1325,"macros":1,"external_links":0,"defined_names":0,"comments":0,"pivot_tables":0},"unopened":[],"bounds":{"document_bytes":16777216,"sheet_cells":100000,"rows_first":2000,"rows_last":500,"rows_between":2000,"halvings":0,"cell_chars":16384,"cell_head_chars":4096},"cells_cut":0,"cells_raw":0,"read":"whole","date_system":"1900"}

{"sheet":"Sheet1","index":0,"n_rows":1,"n_cols":1,"rows_kept":1,"cut":false,"hidden":false,"merged":[[0,0,4,11]]}
["開始"]

{"sheet":"Sheet2","index":1,"n_rows":1,"n_cols":1,"rows_kept":1,"cut":false,"hidden":false,"merged":[[0,0,4,11]]}
["開始"]

{"sheet":"Sheet3","index":2,"n_rows":1,"n_cols":1,"rows_kept":1,"cut":false,"hidden":false,"merged":[[0,0,4,11]]}
["開始"]

{"sheet":"Sheet4","index":3,"n_rows":1,"n_cols":1,"rows_kept":1,"cut":false,"hidden":false,"merged":[[0,0,4,11]]}
["開始"]

{"sheet":"Sheet5","index":4,"n_rows":1,"n_cols":1,"rows_kept":1,"cut":false,"hidden":false,"merged":[[0,0,4,11]]}
["開始"]

{"sheet":"Sheet6","index":5,"n_rows":1,"n_cols":1,"rows_kept":1,"cut":false,"hidden":false,"merged":[[0,0,4,11]]}
["開始"]

{"sheet":"Sheet7","index":6,"n_rows":1,"n_cols":1,"rows_kept":1,"cut":false,"hidden":false,"merged":[[0,0,4,11]]}
["開始"]

{"sheet":"Sheet8","index":7,"n_rows":1,"n_cols":1,"rows_kept":1,"cut":false,"hidden":false,"merged":[[0,0,4,11]]}
["開始"]

{"sheet":"Sheet9","index":8,"n_rows":1,"n_cols":1,"rows_kept":1,"cut":false,"hidden":false,"merged":[[0,0,4,11]]}
["開始"]

{"sheet":"Sheet10","index":9,"n_rows":1,"n_cols":1,"rows_kept":1,"cut":false,"hidden":false,"merged":[[0,0,4,11]]}
["開始"]

{"sheet":"移動設定","index":10,"n_rows":693,"n_cols":193,"rows_kept":693,"cut":false,"hidden":true,"merged":[[41,0,43,0],[41,1,43,1],[41,2,43,2],[8,1,8,19],[9,1,15,19],[2,0,15,0],[36,2,39,2],[36,1,39,1],[36,0,39,0],[16,3,16,19],[16,0,16,1],[94,1,94,5],[94,8,94,15],[21,2,22,2],[19,2,20,2],[69,0,69,20],[58,1,58,192],[59,1,59,3],[60,1,60,3],[61,1,61,3],[63,1,63,17],[64,1,64,3],[65,1,65,3],[66,1,66,3],[19,0,22,0],[23,0,24,0],[25,0,35,0],[637,4,637,15],[664,4,664,15],[692,4,692,15],[613,4,613,15],[614,4,614,15],[112,1,112,20],[130,1,130,20],[131,1,131,20],[132,1,132,20],[560,4,560,14],[1,1,1,19],[0,2,0,25],[28,1,29,1],[25,1,27,1],[2,1,2,17],[3,1,3,17],[4,1,4,17],[23,2,24,2],[25,2,35,2],[30,1,35,1],[5,1,5,19],[6,1,6,19],[7,1,7,19],[19,1,22,1],[23,1,24,1]]}
[null,null,"図　形　の　移　動　設　定　（作品を作る作業場になります。同時に２つ以上は不可です。）"]
[]
["各項目の説明","★　ここの”移動設定”シートで、設定できるのは１つのシートだけに限ります。ですから別のシート対して設定する場合は、一旦今のシートの設定を保存するか、シート設定のデーターをクリアしてからになります。\n★　ここでは、図形に対して、いろいろな設定をすることができます。　\"絵しばいマクロ選択メニュー\"の位置が邪魔になる場合は、\"絵しばいマクロ選択メニュー\"パネルの上端にカーソルを当てドラッグして移動して下さい。\n★　設定に関して、”注意”　があります。本システムはマクロが組まれており、位置をずらされると結果に不具合が生じるおそれがあります。ですから行、列の削除、追加挿入、または指定セル以外での修正等は行わないで下さい。\n"]
[]
[null,"①　”絵しばい”の名称（タイトル）：　作品の名称を決めます。複数の”絵しばい”が存在するとき、区別する必要があります。　重複しないように独自の名前を付けて下さい。\n②　図形の名前：　最初に移動対象になる図形名です。　”図形の登録、位置、幅、高さ”　ボタンをクリックした時に入力されます。図形の名前は事前に変更することができます。\n③　単体図形か複数図形か：　”絵しばい”の図形を１個だけ移動対象として扱うか、複数の図形を移動対象として扱うかを区別します。ちなみに複数図形は最大５個まで移動対象として扱われます。\n④　図形の存在するシート名：　図形はシート毎に存在が保持されます。　図形がシートに存在しないままマクロを実行しますとエラーになります。お勧めとしてシート名は作品の名称とした方が良いと思います。右クリックでシートの名前の変更で可能です。\n⑤　選択可非：　図形を移動させるのに、色々な設定が可能にするのと、設定できないのとに区別されます。\n⑥　第！節点：　移動させる範囲は各節点毎に分かれます。　”移動節点にする”　ボタンをクリックした時に入力されます。最大１５０節点まで可能です。\n⑦　図形の左右方向、上下方向の位置：　図形の左右方向の位置（Ｘ）は左端を０とし、そこからの位置をポイントで示されます。　図形の上下方向の位置（Ｙ）は上端を０とし、そこからの位置をポイントで示されます。基本的には手修正はダメですが、微調\n　　整の必要性がある時、自己責任で行って下さい。\n⑧　図形のスタート時点での幅（Ｗ）、高さ（Ｈ）：　図形のスタート時点での幅と高さは、その時、図形が持っている幅と高さで示されます。　この値を変えることはできます。\n⑨　図形を１回毎に左右方向移動させる移動量：　各節点間を繰り返しループ回数分だけ小刻みに移動させる量です。、左右方向の移動量、上下方向の移動量をポイントで表示されます。自動的に計算されます。\n⑩　図形を１回毎に幅と高さを変化させる量：　各節点間で図形の幅と高さを、繰り返しループ回数分だけ小刻みに大きくしたり小さくしたりする量をポイントで指定できます。値はプールダウンメニューで選択します。㉑の平均移動量と放物線移動の幅との\n　　関連で図形を１回毎に幅と高さを変化させる量は、㉑平均移動量と放物線移動の幅よりも、　常に小さくなければなりません。"]
[null,"⑪　図形の色を変える：　図形（オートシエイープ）に限り色を変えることができます。　色のインデックス番号を指定します。　インデックス番号が何色を表すかは下段の　”以下のColor Index 番号を指定することに依って色を選択することができます。”　を参照\n⑫　図形を１回毎に回転させる角度：　図形を回転させることができます。各節点間で繰り返しループ回数分だけ小刻みに回転させる量です。１度から３６０度まで、マイナス角度は逆回転になります。値はプールダウンメニューで選択します。\n⑬　図形を表示（TRUE）/非表示（FALSE）にする：　図形の表示を切り替えることができます。 \"TRUE\"を指定しますと図形が表示されます（常時はTRUE）です。 \"FALSE\"を指定しますと図形が表示されません。値はプールダウンメニューで選択します。\n⑭　図形の移動を一時的に送らせる待ち時間：　図形の移動状況が可視の状態で見えるのは、この待ち時間で処理を遅らせることに依り見える状況になるのです。　１３段階で指定できます。あまり遅くしますと進行に影響します。\n⑮　飛び出し演出用図形：　各節点で”演出用図形”が指定できます。　これは図形移動に依存しない独立した図形の表示です。　値はプールダウンメニューで選択します。\n"]
[null,"⑯　図形の向きを指定：　各節点から節点に変わる時、図形の向きが意に反した向きを示す場合があります。　この図形の向きを補正させるのがここの役割です。１度から３６０度まで指定できます。マイナス角度は逆回転になります。\n⑰　途中から図形を変える：　各節点で別の新しい図形を指定することができます。そのシートに存在する図形が対象になります。値はプールダウンメニューで選択します。\n⑱　特別指定図形：　図形本体の部分的な動きを持った図形を指定します。３_Ｄ回転を利用した図形の動きを利用できます。値はプールダウンメニューで選択します。\n⑲　図形を反転させる：　図形の向きを指定で補正してもできない状況があります。　反転させるとは鏡を参考にすると理解できそうです。そっくりひっくり返すことです。左右Ｔ対称図形、上下対称図形になります。\n⑳　特別指定図形で３-Ｄ回転対象の図形名を指定：　⑱項目での対象となる図形を指定します。指定するのは３-Ｄ回転で使用する図形だけです。３-Ｄ回転とは？　別項で説明します。"]
[null,"㉑　平均移動量と放物線移動の幅：　節点から節点までの距離を刻む移動量のことです。この数値により、ループ回数がきまります。待ち時間の指定でも時間調整はできますが、この平均移動量を変えることに依って時間の調整もできます。\n　　　但し大きくすると動きが荒くなります。小さくすると滑らかな動作になります。しかしまた放物線移動の時は放物線を作成する横幅となります。山型の図形が変化します。\n㉒　図形の拡大、縮小と図形の回転を同時に指定しますと、図形が節点間の起動から外れる場合があります。ご了承下さい。\n㉓　”登録複数図形の移動”では、演出用図形が指定されていても”演出用図形”は無視されます。\n㉔"]
[null,"㉔　放物線移動係数を指定します。：　係数を指定することによって放物線の形状が変わります。0.1 ～　2.0 の範囲で選択します。マイナスで入力しますと形状の向きが逆になります。\n㉕　背景移動する。（左右方向、上下方向）：　ＥＸＣＥＬの背景を移動します。スクロールの機能を利用したものです。左右方向と、上下方向に移動できます。\n㉖　アニメーション移動：　アニメーション移動とは、動画の様な分解写真を数枚並べ順次表示させることです。あたかも図形が動いている様に見える状況効果を利用したものです。最大１０個まで指定できます。節点が変われば別の分解画像を指定できます。\n㉗　セルの位置：　左右(X)と上下(Y)方向を示す座標値はパソコンの環境によって変わるのです。　その為、セルのアドレスを保持しておく必要があるのです。\n"]
[null,"㉘　３Ｄモデルの設定ができます。但しOffice2019以上から動作の確認ができます。Office2016までは普通の２Ｄ図形として扱われます。特別指定図形で３-Ｄ回転と３Ｄモデルは全く別のものです。特別指定図形で３-Ｄ回転で扱う図形は２Ｄ図形であり、あたかも\n　　 ３Ｄ図形のようにもみえます。３ＤモデルではＸ方向、Ｙ方向、Ｚ方向に都度、変化する回転角度を指定することができます。"]
[]
[]
[]
[]
[]
[]
["起動時に、ようこそ\"絵しばい\"劇場へ　のパネル表示を指定",null,"表示する"]
["図形を移動させる条件を色々指定できます"]
["　\"絵しばい\"　　の名称（タイトル）","図形の名前","選択可非","項目","第１節点","第２節点","第３節点","第４節点","第５節点","第６節点","第７節点","第８節点","第９節点","第１０節点","第１１節点","第１２節点","第１３節点","第１４節点","第１５節点","第１６節点","第１７節点","第１８節点","第１９節点","第２０節点","第２１節点","第２２節点","第２３節点","第２４節点","第２５節点","第２６節点","第２７節点","第２８節点","第２９節点","第３０節点","第３１節点","第３２節点","第３３節点","第３４節点","第３５節点","第３６節点","第３７節点","第３８節点","第３９節点","第４０節点","第４１節点","第４２節点","第４３節点","第４４節点","第４５節点","第４６節点","第４７節点","第４８節点","第４９節点","第５０節点","第５１節点","第５２節点","第５３節点","第５４節点","第５５節点","第５６節点","第５７節点","第５８節点","第５９節点","第６０節点","第６１節点","第６２節点","第６３節点","第６４節点","第６５節点","第６６節点","第６７節点","第６８節点","第６９節点","第７０節点","第７１節点","第７２節点","第７３節点","第７４節点","第７５節点","第７６節点","第７７節点","第７８節点","第７９節点","第８０節点","第８１節点","第８２節点","第８３節点","第８４節点","第８５節点","第８６節点","第８７節点","第８８節点","第８９節点","第９０節点","第９１節点","第９２節点","第９３節点","第９４節点","第９５節点","第９６節点","第９７節点","第９８節点","第９９節点","第１００節点","第１０１節点","第１０２節点","第１０３節点","第１０４節点","第１０５節点","第１０６節点","第１０７節点","第１０８節点","第１０９節点","第１１０節点","第１１１節点","第１１２節点","第１１３節点","第１１４節点","第１１５節点","第１１６節点","第１１７節点","第１１８節点","第１１９節点","第１２０節点","第１２１節点","第１２２節点","第１２３節点","第１２４節点","第１２５節点","第１２６節点","第１２７節点","第１２８節点","第１２９節点","第１３０節点","第１３１節点","第１３２節点","第１３３節点","第１３４節点","第１３５節点","第１３６節点","第１３７節点","第１３８節点","第１３９節点","第１４０節点","第１４１節点","第１４２節点","第１４３節点","第１４４節点","第１４５節点","第１４６節点","第１４７節点","第１４８節点","第１４９節点","第１５０節点"]
[null,null,"指定できない　　　　　　システムが計算します　　　　選ぶことはできません　　　　　　","図形の左右方向の位置（X）をポイントで示す"]
[null,null,null,"図形の上下方向の位置（Y）をポイントで示す"]
[null,null,"指定できる","図形のスタート時点での幅（W）です　幅の調整可能（ポイントで示す）"]
[null,null,null,"図形のスタート時点での高さ（H）です　高さの調整可能（ポイントで示す）"]
[null,"単体図形か複数図形か","指定できない　　　　　　システムが計算します　　　　選ぶことはできません　　　　　　","図形を１回毎に左右方向に移動させる量をポイントで示す。　マイナスは逆方向を意味します",null,{"$f":"IF(F20<>\"\", F37/F41,\"\")","v":""},{"$f":"IF(G20<>\"\", G37/G41,\"\")","v":""},"","","","","","","","","","","","","","","","","","","","","","","","","","","","","","","","","","","","","","","","","","","","","","","","","","","","","","","","","","","","","","","",{"$f":"IF(BS20<>\"\", BS37/BS41,\"\")","v":""},"","","","","","","","","","","","","","","","","","","","","","","","","","","","","","","","","","","","","","","","","","","","","","","","","","","","","","","","","","","","","","","",{"$f":"IF(EE20<>\"\", EE37/EE41,\"\")","v":""},"","","","","","","","","","","","","","","","","","",""]
[null,null,null,"図形を１回毎に上下方向に移動させる量をポイントで示す。　マイナスは逆方向を意味します",null,{"$f":"IF( F20<>\"\",F38/F41,\"\")","v":""},{"$f":"IF( G20<>\"\",G38/G41,\"\")","v":""},"","","","","","","","","","","","","","","","","","","","","","","","","","","","","","","","","","","","","","","","","","","","","","","","","","","","","","","","","","","","","","","",{"$f":"IF( BS20<>\"\",BS38/BS41,\"\")","v":""},"","","","","","","","","","","","","","","","","","","","","","","","","","","","","","","","","","","","","","","","","","","","","","","","","","","","","","","","","","","","","","","",{"$f":"IF( EE20<>\"\",EE38/EE41,\"\")","v":""},"","","","","","","","","","","","","","","","","","",""]
[null,null,"指定できる","図形を１回毎に幅を変化させる量をポイントで示す（0.1～15）　　プラス/マイナスは増減を意味します"]
[null,null,null,"図形を１回毎に高さを変化させる量をポイントで示す（0.1～15）　　プラス/マイナスは増減を意味します"]
[null,null,null,"図形（オートシエイープ）の色をインデクス番号で指定する　指定が無い場合は以前の色を継続します"]
[null,"図形の存在　すろシート名",null,"図形を１回毎に回転させる角度を指定できる 　　  （-360～360）　マイナスは逆回転を意味します"]
[null,null,null,"図形を 表示（TRUE）/非表示(FALSE) にすることを指定する ブランクは表示を意味します"]
[null,null,null,"図形の移動を一時的に遅らせる　待ち時間　を指定する（１秒以下を１３段階で）"]
[null,null,null,"飛び出し演出用図形を指定する。他に静止方アニメーションの様に組み合わせで使用"]
[null,null,null,"図形の向きを指定する                                  （-360～360）　マイナスは逆回転を意味します"]
[null,null,null,"途中から図形を変える"]
[null,null,null,"特別指定図形　回転型を選択、別項目と組合せ\nで設定する。"]
[null,null,null,"図形を反転させる"]
[null,null,"指定できない\n　　　　　　　　システムが計算します　　　　選ぶことはできません","節点から節点に変化した左右方向の移動量（X）ポイントで示す",null,{"$f":"IF(F20<>\"\",F20-E20,\"\")","v":""},{"$f":"IF(G20<>\"\",G20-F20,\"\")","v":""},{"$f":"IF(H20<>\"\",H20-G20,\"\")","v":""},{"$f":"IF(I20<>\"\",I20-H20,\"\")","v":""},{"$f":"IF(J20<>\"\",J20-I20,\"\")","v":""},{"$f":"IF(K20<>\"\",K20-J20,\"\")","v":""},{"$f":"IF(L20<>\"\",L20-K20,\"\")","v":""},{"$f":"IF(M20<>\"\",M20-L20,\"\")","v":""},{"$f":"IF(N20<>\"\",N20-M20,\"\")","v":""},{"$f":"IF(O20<>\"\",O20-N20,\"\")","v":""},{"$f":"IF(P20<>\"\",P20-O20,\"\")","v":""},{"$f":"IF(Q20<>\"\",Q20-P20,\"\")","v":""},{"$f":"IF(R20<>\"\",R20-Q20,\"\")","v":""},{"$f":"IF(S20<>\"\",S20-R20,\"\")","v":""},{"$f":"IF(T20<>\"\",T20-S20,\"\")","v":""},{"$f":"IF(U20<>\"\",U20-T20,\"\")","v":""},{"$f":"IF(V20<>\"\",V20-U20,\"\")","v":""},{"$f":"IF(W20<>\"\",W20-V20,\"\")","v":""},{"$f":"IF(X20<>\"\",X20-W20,\"\")","v":""},{"$f":"IF(Y20<>\"\",Y20-X20,\"\")","v":""},{"$f":"IF(Z20<>\"\",Z20-Y20,\"\")","v":""},{"$f":"IF(AA20<>\"\",AA20-Z20,\"\")","v":""},{"$f":"IF(AB20<>\"\",AB20-AA20,\"\")","v":""},{"$f":"IF(AC20<>\"\",AC20-AB20,\"\")","v":""},{"$f":"IF(AD20<>\"\",AD20-AC20,\"\")","v":""},{"$f":"IF(AE20<>\"\",AE20-AD20,\"\")","v":""},{"$f":"IF(AF20<>\"\",AF20-AE20,\"\")","v":""},{"$f":"IF(AG20<>\"\",AG20-AF20,\"\")","v":""},{"$f":"IF(AH20<>\"\",AH20-AG20,\"\")","v":""},{"$f":"IF(AI20<>\"\",AI20-AH20,\"\")","v":""},{"$f":"IF(AJ20<>\"\",AJ20-AI20,\"\")","v":""},{"$f":"IF(AK20<>\"\",AK20-AJ20,\"\")","v":""},{"$f":"IF(AL20<>\"\",AL20-AK20,\"\")","v":""},{"$f":"IF(AM20<>\"\",AM20-AL20,\"\")","v":""},{"$f":"IF(AN20<>\"\",AN20-AM20,\"\")","v":""},{"$f":"IF(AO20<>\"\",AO20-AN20,\"\")","v":""},{"$f":"IF(AP20<>\"\",AP20-AO20,\"\")","v":""},{"$f":"IF(AQ20<>\"\",AQ20-AP20,\"\")","v":""},{"$f":"IF(AR20<>\"\",AR20-AQ20,\"\")","v":""},{"$f":"IF(AS20<>\"\",AS20-AR20,\"\")","v":""},{"$f":"IF(AT20<>\"\",AT20-AS20,\"\")","v":""},{"$f":"IF(AU20<>\"\",AU20-AT20,\"\")","v":""},{"$f":"IF(AV20<>\"\",AV20-AU20,\"\")","v":""},{"$f":"IF(AW20<>\"\",AW20-AV20,\"\")","v":""},{"$f":"IF(AX20<>\"\",AX20-AW20,\"\")","v":""},{"$f":"IF(AY20<>\"\",AY20-AX20,\"\")","v":""},{"$f":"IF(AZ20<>\"\",AZ20-AY20,\"\")","v":""},{"$f":"IF(BA20<>\"\",BA20-AZ20,\"\")","v":""},{"$f":"IF(BB20<>\"\",BB20-BA20,\"\")","v":""},{"$f":"IF(BC20<>\"\",BC20-BB20,\"\")","v":""},{"$f":"IF(BD20<>\"\",BD20-BC20,\"\")","v":""},{"$f":"IF(BE20<>\"\",BE20-BD20,\"\")","v":""},{"$f":"IF(BF20<>\"\",BF20-BE20,\"\")","v":""},{"$f":"IF(BG20<>\"\",BG20-BF20,\"\")","v":""},{"$f":"IF(BH20<>\"\",BH20-BG20,\"\")","v":""},{"$f":"IF(BI20<>\"\",BI20-BH20,\"\")","v":""},{"$f":"IF(BJ20<>\"\",BJ20-BI20,\"\")","v":""},{"$f":"IF(BK20<>\"\",BK20-BJ20,\"\")","v":""},{"$f":"IF(BL20<>\"\",BL20-BK20,\"\")","v":""},{"$f":"IF(BM20<>\"\",BM20-BL20,\"\")","v":""},{"$f":"IF(BN20<>\"\",BN20-BM20,\"\")","v":""},{"$f":"IF(BO20<>\"\",BO20-BN20,\"\")","v":""},{"$f":"IF(BP20<>\"\",BP20-BO20,\"\")","v":""},{"$f":"IF(BQ20<>\"\",BQ20-BP20,\"\")","v":""},{"$f":"IF(BR20<>\"\",BR20-BQ20,\"\")","v":""},{"$f":"IF(BS20<>\"\",BS20-BR20,\"\")","v":""},{"$f":"IF(BT20<>\"\",BT20-BS20,\"\")","v":""},{"$f":"IF(BU20<>\"\",BU20-BT20,\"\")","v":""},{"$f":"IF(BV20<>\"\",BV20-BU20,\"\")","v":""},{"$f":"IF(BW20<>\"\",BW20-BV20,\"\")","v":""},{"$f":"IF(BX20<>\"\",BX20-BW20,\"\")","v":""},{"$f":"IF(BY20<>\"\",BY20-BX20,\"\")","v":""},{"$f":"IF(BZ20<>\"\",BZ20-BY20,\"\")","v":""},{"$f":"IF(CA20<>\"\",CA20-BZ20,\"\")","v":""},{"$f":"IF(CB20<>\"\",CB20-CA20,\"\")","v":""},{"$f":"IF(CC20<>\"\",CC20-CB20,\"\")","v":""},{"$f":"IF(CD20<>\"\",CD20-CC20,\"\")","v":""},{"$f":"IF(CE20<>\"\",CE20-CD20,\"\")","v":""},{"$f":"IF(CF20<>\"\",CF20-CE20,\"\")","v":""},{"$f":"IF(CG20<>\"\",CG20-CF20,\"\")","v":""},{"$f":"IF(CH20<>\"\",CH20-CG20,\"\")","v":""},{"$f":"IF(CI20<>\"\",CI20-CH20,\"\")","v":""},{"$f":"IF(CJ20<>\"\",CJ20-CI20,\"\")","v":""},{"$f":"IF(CK20<>\"\",CK20-CJ20,\"\")","v":""},{"$f":"IF(CL20<>\"\",CL20-CK20,\"\")","v":""},{"$f":"IF(CM20<>\"\",CM20-CL20,\"\")","v":""},{"$f":"IF(CN20<>\"\",CN20-CM20,\"\")","v":""},{"$f":"IF(CO20<>\"\",CO20-CN20,\"\")","v":""},{"$f":"IF(CP20<>\"\",CP20-CO20,\"\")","v":""},{"$f":"IF(CQ20<>\"\",CQ20-CP20,\"\")","v":""},{"$f":"IF(CR20<>\"\",CR20-CQ20,\"\")","v":""},{"$f":"IF(CS20<>\"\",CS20-CR20,\"\")","v":""},{"$f":"IF(CT20<>\"\",CT20-CS20,\"\")","v":""},{"$f":"IF(CU20<>\"\",CU20-CT20,\"\")","v":""},{"$f":"IF(CV20<>\"\",CV20-CU20,\"\")","v":""},{"$f":"IF(CW20<>\"\",CW20-CV20,\"\")","v":""},{"$f":"IF(CX20<>\"\",CX20-CW20,\"\")","v":""},{"$f":"IF(CY20<>\"\",CY20-CX20,\"\")","v":""},{"$f":"IF(CZ20<>\"\",CZ20-CY20,\"\")","v":""},{"$f":"IF(DA20<>\"\",DA20-CZ20,\"\")","v":""},{"$f":"IF(DB20<>\"\",DB20-DA20,\"\")","v":""},{"$f":"IF(DC20<>\"\",DC20-DB20,\"\")","v":""},{"$f":"IF(DD20<>\"\",DD20-DC20,\"\")","v":""},{"$f":"IF(DE20<>\"\",DE20-DD20,\"\")","v":""},{"$f":"IF(DF20<>\"\",DF20-DE20,\"\")","v":""},{"$f":"IF(DG20<>\"\",DG20-DF20,\"\")","v":""},{"$f":"IF(DH20<>\"\",DH20-DG20,\"\")","v":""},{"$f":"IF(DI20<>\"\",DI20-DH20,\"\")","v":""},{"$f":"IF(DJ20<>\"\",DJ20-DI20,\"\")","v":""},{"$f":"IF(DK20<>\"\",DK20-DJ20,\"\")","v":""},{"$f":"IF(DL20<>\"\",DL20-DK20,\"\")","v":""},{"$f":"IF(DM20<>\"\",DM20-DL20,\"\")","v":""},{"$f":"IF(DN20<>\"\",DN20-DM20,\"\")","v":""},{"$f":"IF(DO20<>\"\",DO20-DN20,\"\")","v":""},{"$f":"IF(DP20<>\"\",DP20-DO20,\"\")","v":""},{"$f":"IF(DQ20<>\"\",DQ20-DP20,\"\")","v":""},{"$f":"IF(DR20<>\"\",DR20-DQ20,\"\")","v":""},{"$f":"IF(DS20<>\"\",DS20-DR20,\"\")","v":""},{"$f":"IF(DT20<>\"\",DT20-DS20,\"\")","v":""},{"$f":"IF(DU20<>\"\",DU20-DT20,\"\")","v":""},{"$f":"IF(DV20<>\"\",DV20-DU20,\"\")","v":""},{"$f":"IF(DW20<>\"\",DW20-DV20,\"\")","v":""},{"$f":"IF(DX20<>\"\",DX20-DW20,\"\")","v":""},{"$f":"IF(DY20<>\"\",DY20-DX20,\"\")","v":""},{"$f":"IF(DZ20<>\"\",DZ20-DY20,\"\")","v":""},{"$f":"IF(EA20<>\"\",EA20-DZ20,\"\")","v":""},{"$f":"IF(EB20<>\"\",EB20-EA20,\"\")","v":""},{"$f":"IF(EC20<>\"\",EC20-EB20,\"\")","v":""},{"$f":"IF(ED20<>\"\",ED20-EC20,\"\")","v":""},{"$f":"IF(EE20<>\"\",EE20-ED20,\"\")","v":""},{"$f":"IF(EF20<>\"\",EF20-EE20,\"\")","v":""},{"$f":"IF(EG20<>\"\",EG20-EF20,\"\")","v":""},{"$f":"IF(EH20<>\"\",EH20-EG20,\"\")","v":""},{"$f":"IF(EI20<>\"\",EI20-EH20,\"\")","v":""},{"$f":"IF(EJ20<>\"\",EJ20-EI20,\"\")","v":""},{"$f":"IF(EK20<>\"\",EK20-EJ20,\"\")","v":""},{"$f":"IF(EL20<>\"\",EL20-EK20,\"\")","v":""},{"$f":"IF(EM20<>\"\",EM20-EL20,\"\")","v":""},{"$f":"IF(EN20<>\"\",EN20-EM20,\"\")","v":""},{"$f":"IF(EO20<>\"\",EO20-EN20,\"\")","v":""},{"$f":"IF(EP20<>\"\",EP20-EO20,\"\")","v":""},{"$f":"IF(EQ20<>\"\",EQ20-EP20,\"\")","v":""},{"$f":"IF(ER20<>\"\",ER20-EQ20,\"\")","v":""},{"$f":"IF(ES20<>\"\",ES20-ER20,\"\")","v":""},{"$f":"IF(ET20<>\"\",ET20-ES20,\"\")","v":""},{"$f":"IF(EU20<>\"\",EU20-ET20,\"\")","v":""},{"$f":"IF(EV20<>\"\",EV20-EU20,\"\")","v":""},{"$f":"IF(EW20<>\"\",EW20-EV20,\"\")","v":""},{"$f":"IF(EX20<>\"\",EX20-EW20,\"\")","v":""}]
[null,null,null,"節点から節点に変化した上下方向の移動量（Y）ポイントで示す",null,"","","","","","","","","","","","","","","","","","","","","","","","","","","","","","","","","","","","","","","","","","","","","","","","","","","","","","","","","","","","","","","","","","","","","","","","","","","","","","","","","","","","","","","","","","","","","","","","","","","","","","","","","","","","","","","","","","","","","","","","","","","","","","","","","","","","","","","","","","","","","","","","","","","","",""]
[null,null,null,"節点から節点に変化した斜辺方向の移動量ポイントで示す",null,{"$f":"IF(F20<>\"\",SQRT(F37^2+F38^2),\"\")","v":""},{"$f":"IF(G20<>\"\",SQRT(G37^2+G38^2),\"\")","v":""},"","","","","","","","","","","","","","","","","","","","","","","","","","","","","","","","","","","","","","","","","","","","","","","","","","","","","","","","","","","","","","","",{"$f":"IF(BS20<>\"\",SQRT(BS37^2+BS38^2),\"\")","v":""},"","","","","","","","","","","","","","","","","","","","","","","","","","","","","","","","","","","","","","","","","","","","","","","","","","","","","","","","","","","","","","","",{"$f":"IF(EE20<>\"\",SQRT(EE37^2+EE38^2),\"\")","v":""},"","","","","","","","","","","","","","","","","","",""]
[null,null,null,"節点から節点に変化した方向の角度を示す(360度表示)",null,{"$f":"IF(F20<>\"\",MOD(DEGREES(ATAN2(F37,F38)),360),\"\")","v":""},{"$f":"IF(G20<>\"\",MOD(DEGREES(ATAN2(G37,G38)),360),\"\")","v":""},"","","","","","","","","","","","","","","","","","","","","","","","","","","","","","","","","","","","","","","","","","","","","","","","","","","","","","","","","","","","","","","",{"$f":"IF(BS20<>\"\",MOD(DEGREES(ATAN2(BS37,BS38)),360),\"\")","v":""},"","","","","","","","","","","","","","","","","","","","","","","","","","","","","","","","","","","","","","","","","","","","","","","","","","","","","","","","","","","","","","","",{"$f":"IF(EE20<>\"\",MOD(DEGREES(ATAN2(EE37,EE38)),360),\"\")","v":""},"","","","","","","","","","","","","","","","","","",""]
[null,null,"指定できない","繰り返しループ回数（平均移動量を0.5～100で想定）平均移動量を変えると数値が変化します。",null,{"$f":"IF(F20<>\"\",ROUNDDOWN(F39/F43,),\"\")","v":""},{"$f":"IF(G20<>\"\",ROUNDDOWN(G39/G43,),\"\")","v":""},"","","","","","","","","","","","","","","","","","","","","","","","","","","","","","","","","","","","","","","","","","","","","","","","","","","","","","","","","","","","","","","",{"$f":"IF(BS20<>\"\",ROUNDDOWN(BS39/BS43,),\"\")","v":""},"","","","","","","","","","","","","","","","","","","","","","","","","","","","","","","","","","","","","","","","","","","","","","","","","","","","","","","","","","","","","","","",{"$f":"IF(EE20<>\"\",ROUNDDOWN(EE39/EE43,),\"\")","v":""},"","","","","","","","","","","","","","","","","","",""]
[null,null,"指定できる　　　　　　","特別指定図形で３-Ｄ回転でのみ対象の図形名を指定します（Ｘ軸、Ｙ軸、Ｚ軸）を基準に回転させる"]
[null,null,null,"平均移動量と放物線移動の横幅になります。　通常は５です。変える事によりループ回数が変化する　",null,5,5,5,5,5,5,5,5,5,5,5,5,5,5,5,5,5,5,5,5,5,5,5,5,5,5,5,5,5,5,5,5,5,5,5,5,5,5,5,5,5,5,5,5,5,5,5,5,5,5,5,5,5,5,5,5,5,5,5,5,5,5,5,5,5,5,5,5,5,5,5,5,5,5,5,5,5,5,5,5,5,5,5,5,5,5,5,5,5,5,5,5,5,5,5,5,5,5,5,5,5,5,5,5,5,5,5,5,5,5,5,5,5,5,5,5,5,5,5,5,5,5,5,5,5,5,5,5,5,5,5,5,5,5,5,5,5,5,5,5,5,5,5,5,5,5,5,5,5]
[null,null,null,"放物線移動係数を指定します。（0.01～15迄）形状が変化します。マイナス指定は反転します。"]
[null,null,null,"背景を移動する。（左右方向、上下方向　にスクロールする）"]
[null,null,null,"アニメーション移動、対象の図形を最大１０個まで指定できます。事前にシートでアニマーション移動対象に指定マクロを実行して対象図形を絞って下さい"]
[null,null,"指定できない","セルの位置"]
[null,null,"指定できる","３Ｄモデルで（Ｘ軸）を基準に回転、変移角度を指定",null,0,0,0,0,0,0,0,0,0,0,0,0,0,0,0,0,0,0,0,0,0,0,0,0,0,0,0,0,0,0,0,0,0,0,0,0,0,0,0,0,0,0,0,0,0,0,0,0,0,0,0,0,0,0,0,0,0,0,0,0,0,0,0,0,0,0,0,0,0,0,0,0,0,0,0,0,0,0,0,0,0,0,0,0,0,0,0,0,0,0,0,0,0,0,0,0,0,0,0,0,0,0,0,0,0,0,0,0,0,0,0,0,0,0,0,0,0,0,0,0,0,0,0,0,0,0,0,0,0,0,0,0,0,0,0,0,0,0,0,0,0,0,0,0,0,0,0,0,0]
[null,null,"指定できる","３Ｄモデルで（Ｙ軸）を基準に回転、変移角度を指定",null,0,0,0,0,0,0,0,0,0,0,0,0,0,0,0,0,0,0,0,0,0,0,0,0,0,0,0,0,0,0,0,0,0,0,0,0,0,0,0,0,0,0,0,0,0,0,0,0,0,0,0,0,0,0,0,0,0,0,0,0,0,0,0,0,0,0,0,0,0,0,0,0,0,0,0,0,0,0,0,0,0,0,0,0,0,0,0,0,0,0,0,0,0,0,0,0,0,0,0,0,0,0,0,0,0,0,0,0,0,0,0,0,0,0,0,0,0,0,0,0,0,0,0,0,0,0,0,0,0,0,0,0,0,0,0,0,0,0,0,0,0,0,0,0,0,0,0,0,0]
[null,null,"指定できる","３Ｄモデルで（Ｚ軸）を基準に回転、変移角度を指定",null,0,0,0,0,0,0,0,0,0,0,0,0,0,0,0,0,0,0,0,0,0,0,0,0,0,0,0,0,0,0,0,0,0,0,0,0,0,0,0,0,0,0,0,0,0,0,0,0,0,0,0,0,0,0,0,0,0,0,0,0,0,0,0,0,0,0,0,0,0,0,0,0,0,0,0,0,0,0,0,0,0,0,0,0,0,0,0,0,0,0,0,0,0,0,0,0,0,0,0,0,0,0,0,0,0,0,0,0,0,0,0,0,0,0,0,0,0,0,0,0,0,0,0,0,0,0,0,0,0,0,0,0,0,0,0,0,0,0,0,0,0,0,0,0,0,0,0,0,0]
[]
[]
[]
[]
[]
[]
[]
[]
[null,"以下のオートシエイプの番号はMicrosoftで決められた図形を表します。"]
[null,"オートシエイープの番号",null,null,1,2,3,4,5,6,7,8,9,10,11,12,13,14,15,16,17,18,19,20,21,22,23,24,25,26,27,28,29,30,31,32,33,34,35,36,37,38,39,40,41,42,43,44,45,46,47,48,49,50,51,52,53,54,55,56,57,58,59,60,61,62,63,64,65,66,67,68,69,70,71,72,73,74,75,76,77,78,79,80,81,82,83,84,85,86,87,88,89,90,91,92,93,94,95,96,97,98,99,100,101,102,103,104,105,106,107,108,109,110,111,112,113,114,115,116,117,118,119,120,121,122,123,124,125,126,127,128,129,130,131,132,133,134,135,136,137,138,139,140,141,142,143,144,145,146,147,148,149,150,152,153,154,155,156,157,158,159,160,161,162,163,164,165,166,167,168,169,170,171,172,173,174,175,176,177,178,179,180,181,182,183,184,185,186,187,188,189,190]
[null,"名称",null,null,"四角形","平行四辺形","台形","ひし形","角丸四角形","八角形","二等辺三角形","直角三角形","楕円","六角形","十字形","ホームベース","円柱","直方体","斜角","メモ","スマイル","ドーナツ","禁止","アーチ","ハート","稲妻","太陽","月","円弧","大かっこ","中かっこ","ブローチ","左大かっこ","右大かっこ","左中かっこ","右中かっこ","右向きブロック矢印","左向きブロック矢印","上向きブロック矢印","下向きブロック矢印","左右ブロック矢印","上下 2 方向ブロック矢印","4 方向ブロック矢印","左、右、および上の 3 方向ブロック矢印","90°の曲線に続くブロック矢印","U 字型のブロック矢印","左および上矢印の 2 方向ブロック矢印","90°の鋭角線に続くブロック矢印","右カーブ ブロック矢印","左カーブ ブロック矢印","上カーブ ブロック矢印","下カーブ ブロック矢印","先にストライプの付いた右向きのブロック矢印","右向きの V 字型矢印","ホームベース","山形","右矢印の付いた吹き出し","左矢印の付いた吹き出し","上矢印の付いた吹き出し","下矢印の付いた吹き出し","左右矢印の付いた吹き出し","上下のブロック矢印の付いた吹き出し","4 方向矢印の付いた吹き出し","180°の曲線に続くブロック矢印","処理フローチャート記号","代替処理フローチャート記号","判断フローチャート記号","データ フローチャート記号","定義済み処理フローチャート記号","内部記憶フローチャート記号","書類フローチャート記号","複数書類フローチャート記号","端子フローチャート記号","準備フローチャート記号","手操作入力フローチャート記号","手作業フローチャート記号","結合子フローチャート記号","他ページ結合子フローチャート記号","カード フローチャート記号","せん孔テープ フローチャート記号","和接合フローチャート記号","論理和フローチャート記号","照合フローチャート記号","分類フローチャート記号","抜き出しフローチャート記号","組み合わせフローチャート記号","記憶データ フローチャート記号","論理積ゲート フローチャート記号","順次アクセス記憶フローチャート記号","磁気ディスク フローチャート記号","直接アクセス記憶フローチャート記号","表示フローチャート記号","爆発","爆発","星 4","星 5","星 8","星 16","星 24","星 32","リボンの端よりも上に中央面があるリボン","リボンの端よりも下に中央面があるリボン","上カーブリボン","下カーブ リボン","縦巻き","横巻き","大波","小波","四角形吹き出し","角丸四角形吹き出し","円形吹き出し","雲形吹き出し","枠付きで、水平の吹き出し線の付いた吹き出し","斜めの直線の付いた吹き出し","折れ線の付いた吹き出し","U 字型の吹き出し線分の付いた吹き出","水平の強調線の付いた吹き出し","斜めの吹き出し線と強調線の付いた吹き出し","折れた吹き出し線と強調線の付いた吹き出し","強調線および U 字型の吹き出し線分の付いた吹き出し","水平線の付いた吹き出し","枠および斜めの吹き出し線のない吹き出し","枠および折れた吹き出し線のない吹き出し","枠線および U 字型の吹き出し線分のない呼び出し","枠付きで、水平の強調線の付いた吹き出し","枠、斜めの直線、および強調線の付いた吹き出し","枠、折れた吹き出し線、強調線の付いた吹き出し","枠線、強調線、および U 字型の吹き出し線分の付いた吹き出し","既定の画像またはテキストのないボタン","[ホーム] ボタン","[ヘルプ] ボタン","[情報] ボタン","[戻る] または [前へ] ボタン","[進む] または [次へ] ボタン","[上旬] ボタン","[終了] ボタン","[戻る] ボタン","[文書] ボタン","[サウンド] ボタン","[ビデオ] ボタン","吹き出し","サポートされていません",null,"図形 4206","斜め縞 4207","パイ　4208","図形 4209","十角形 4210","七角形 4211","十二角形 4212","星６　4213","星７　4214","星１０　4215","星１２　4216","片側の二つの角を丸めた四角形 4218","対角する２つの角を丸めた四角形 4219","１つの角を丸めた四角形 4220","１つの角を切り取った四角形 4221","片側の二つの角を切り取った四角形 4222","対角する２つの角を切り取った四角形 4223","フレーム 4224","フレーム（半分） 4225","涙形 4226","弦 4227","Ｌ字 4228","加算記号 4229","減算記号 4230","乗算記号 4231","除算記号 4232","等号 4233","不等号 4234",4235,4236,4237,"図形 4238","図形 4239","図形 4240","パイ 4241","図形 4242","図形 4243","図形 4244","雲 4245",4246,4247,4248,"直線コネクター 4249 "]
[null,"画像（オートシエイープ）"]
[]
[null,"以下のColor Index 番号を指定することに依って色を選択することができます。"]
[null,"Color Index 番号",null,null,1,2,3,4,5,6,7,8,9,10,11,12,13,14,15,16,17,18,19,20,21,22,23,24,25,26,27,28,29,30,31,32,33,34,35,36,37,38,39,40,41,42,43,44,45,46,47,48,49,50,51,52,53,54,55,56]
[null,"名称",null,null," 黒"," 白"," 赤"," 明るい緑"," 青"," 黄"," ﾋﾟﾝｸ"," 水色"," 濃い赤"," 緑"," 濃い青"," 濃い黄"," 紫"," 青緑"," 25%灰色"," 50%灰色"," ｸﾞﾚｰ"," ﾌﾟﾗﾑ"," ｱｲﾎﾞﾘｰ"," 薄い水色"," 濃い紫"," ｺｰﾗﾙ"," ｵｰｼｬﾝﾌﾞﾙｰ"," ｱｲｽﾌﾞﾙｰ"," 濃い青"," ﾋﾟﾝｸ"," 黄"," 水色"," 紫"," 濃い赤"," 青緑"," 青"," ｽｶｲﾌﾞﾙｰ"," 薄い水色"," 薄い緑"," 薄い黄"," ﾍﾟｰﾙﾌﾞﾙｰ"," ﾛｰｽﾞ"," ﾗﾍﾞﾝﾀﾞｰ"," ﾍﾞｰｼﾞｭ"," 薄い青"," ｱｸｱ"," ﾗｲﾑ"," ｺﾞｰﾙﾄﾞ"," 薄いｵﾚﾝｼﾞ"," ｵﾚﾝｼﾞ"," ﾌﾞﾙｰｸﾞﾚｰ"," 40%灰色"," 濃い青緑"," ｼｰｸｸﾞﾘｰﾝ"," 濃い緑"," ｵﾘｰﾌ"," 茶"," ﾌﾟﾗﾑ"," ｲﾝﾃﾞｨｺﾞ"," 80%灰色"]
[null,"色"]
[]
[]
["操　作　手　順　（各マクロボタンの説明も含む）"]
["[１]　シートのセルの大きさを設定します。「列幅、行高の変更」　ボタンをクリックしてセルの大きさを小さくします。既にシートのセルが小さくされている場合は必要ありません"]
["[２]　最初に何を移動対象にするか　図形　を決めます。　図形はツールバーのメニュー　「挿入」 ⇒ 「図形」　でオートシエプが選択できます。　また「挿入」 ⇒ 「図」　で外部からピクチュアーを選択できます。　また「挿入」 ⇒ 「ワードアート」　で文字列も挿入できます。　"]
["　　　また”手作り画像を保存”シートから図形をコピーして貼り付けします。配置した図形を移動させるにはパソコンに認識させなければなりません、「図形の登録、位置、高さを表示」ボタンをクリックして”移動設定”シートに登録書き込みします。"]
["　　　図形は挿入しますと、自動的に図形名と番号が付けられます。また図形はシート毎に保持されます。この図形名を自分の好きな名前に変更することができます。「図形の名前を変更する」ボタンをクリックして新しい図形名に変えられます。"]
["[３]　図形を移動させる経路を作成します。　まず移動させる位置のセルを選択します。次に「移動節点にする」ボタンをクリックします。各節点の番号を順に入力要求されるメニューが表示されます。番号を入力して節点を決めて行きます、以下順番に同様です"]
["[４]　図形の移動経路は矢印付き直線で確認することができます。　「移動経路に直線を引く」　ボタンをクリックすることに依り、表示され確認することができます。また必要でなくなった場合、「直線を削除する」ボタンをクリックすることに依り、直線を削除できます。"]
["[５]　この時点で図形を移動させることができます。　「図形移動」　ボタンをクリックしますと図形の移動が開始されます。　これとは別に　「図形の表示と非表示」ボタンをクリックし図形名を選択しますと、表示と非表示を切り替えることができます。"]
["[６]　この絵しばいの名称（タイトル）を決めます。　「絵しばいのタイトルを決める」　ボタンをクリックします、同じ名前は拒否されます、独自の名前を決めて下さい。　"]
["[７]　”移動設定”シートを開きます。　各選択指定できる項目を選んで移動させる図形の動きを考えながら設定して行きます。　何回も繰り返すことによって図形移動が完成します。また項目で”指定できる”は選択して変更することが可能です。"]
["[８]　移動図形以外の図形も周りに配置します。見栄えを良くします。このシートにどんな図形が存在するのかを知りたい時は、「シート上の図形名を表示」ボタンをクリックします。シート全体の図形名が表示されます。"]
["[９]　完成したら　”移動設定”シートの「この図形データーを保存します」　ボタンをクリックして、”移動設定を登録”シートに保存します。　保存されますと、「登録保存図形を移動」ボタンをクリックすることにより、図形移動を再現できます。この方法は”単体図形”として認識されます。"]
["[１０]　次に複数図形の移動について説明します。　複数図形移動とは複数の図形を同時に移動させることです。最大５個まで移動可能となります。　複数図形として認識させるため、「複数図形移動節点にする」ボタンをクリックして移動経路を順に作成して行きます。"]
["　　　　複数図形移動を作成する場合は最初が肝心です。マクロの制御構造上各節点間の距離は同じ程度にしなければなりません、全く同じである必要はありませんが移動する位置が想定したよりずれてしまうからです。ですから残りの４個の図形移動を考慮しなら決めて行きます。"]
["[１１]　複数図形移動の作成において、２つ目の複数図形移動を作成する時、移動節点を決める時”矢印付き直線”が表示されます。この”矢印付き直線”の長さは最初に作成した複数図形の長さと同じです。　　　"]
["　　　　この”矢印付き直線”を回転させながら節点を決めて行きます、また”矢印付き直線”を回転させる時、長さにズレが発生してしまいます。「直線の長さを戻す」ボタンをクリックすることにより長さが戻ります。この機能はこの時だけ通用します。"]
["[１２]　複数図形移動の操作は単体図形移動と同じ、「図形移動」ボタンをクリックすることにより図形移動が開始されます。"]
["[１３]　”移動設定”シートで各設定を行います。完成しましたら「この図形データーを登録保存します」ボタンをクリックして図形データーを保存します。　　"]
["[１４]　複数図形移動の実現は”移動設定を登録”シートに保存された複数図形データーを呼び出すことにより実現します。「登録複数図形の移動」ボタンをクリックして呼び出し複数図形の移動が開始されます。　　　"]
["　　　　複数図形移動については制限があります。図形は最大５個まで可能です。単体図形移動え実現していた”演出用図形”は反映されません。"]
["[１５]　”図形の向きを変える”と”図形を反転させる”の違いを説明します。　　　"]
[]
[]
[]
[]
[null,"図形の向きを変えるとは、図形を回転させることで分かると思います。",null,null,null,null,null,null,"図形の反転とは、Ｘ軸、Ｙ軸　を起点にひっくり返すことです。　左右反転、上下反転があります。"]
["[１６]　図形の表示と非表示で　図形の削除は勘違いしないで下さい。　図形を選択しキーボードの「Del」ボタンを押しますと図形は削除されますが図形の表示と非表示は図形は削除されません。　　"]
[]
[]
["図　形　編　集　の　方　法　　　及　び　　　操　作　テ　ク　ニ　ッ　ク"]
[]
["図形編集にはいろいろあります。考えられる要素を下記にまとめました。"]
["①　コピーと貼り付けと切り取り"]
["②　オートシエイープの挿入及び頂点編集"]
["③　オートシエイープのグループ編集"]
["④　オートシエイープの３_D編集"]
["⑤　スクリーンショットの操作"]
["⑥　外部からの図形挿入操作"]
["⑦　描画ツールの操作"]
["⑧　図ツールの操作"]
["⑨　ペイント機能を利用した図形編集操作"]
[]
[]
[]
[]
["①　コピーと貼り付けと切り取り"]
["(１)　コピー、貼り付け、切り取り、はパソコン操作の基本です。"]
["(２)　ツールバーの”ホーム”タブにあります。"]
["(３)　コピーを実行しますと、バックグランドで保持されるようになります。"]
["　　　貼り付けが可能状態になります。貼り付け先は他のアプリケーションでもできます。"]
["　　　別の方法で、コピー対象にマウスを当て、マウスの右クリックをしますとコピー機能が表示されます。"]
[]
[]
[]
[]
[]
[]
[]
[]
[]
[]
[]
[]
[]
["②　オートシエイープの挿入及び頂点編集"]
["(１)　ツールバーの挿入タブをクリックします。"]
["(２)　図形ボタンをクリックします。"]
["(３)　オートシエイープの図形の種類が表示されます。"]
["(４)　適当な図形を選択します（ここでは円）"]
["(５)　表示された図形をクリックします。"]
["(６)　描画ツール書式タブが表示されます。"]
["(７)　ここで図形の塗りつぶしで、塗りつぶしなしにします。"]
["(８)　枠線も黒にしました。"]
["(９)　図形にマウスを当て右クリックします。"]
["　　　別の方法で描画ツール書式メニューの ”図形の編集” ボタンをクリックしても同じです。"]
["(１０)　図形編集用メニューが表示されます。"]
["(１１)　ここで頂点の編集（E）項目をクリックします"]
["(１２)　頂点編集用図形が表示されます。頂点編集する場合は図形を拡大しておくと編集が容易です。"]
["(１３)　黒印にマウスを当てドラッグします。"]
["　　　　図形は変形します。また新しく黒印を追加して変形させることもできます。"]
["(１４)　この方法で好みの図形を作成します。"]
["(１５)　最も適した頂点編集用図形は”フリーフォーム”図形だと思います。"]
["（１６）　この”フリーフォーム”図形を利用して外部から挿入した図形を下敷きにして"]
["　　　　　トレースをするとリアルな図形が作成できます。"]
[]
[]
[]
[]
[]
[]
[]
[]
[]
[]
[]
[]
[]
[]
[]
[]
[]
[]
[]
[]
[]
[]
[]
[]
[]
[]
[]
[]
[]
[]
[]
[]
[]
[]
[]
[]
[]
[]
[]
[]
[]
[]
[]
[]
[]
[]
[]
[]
[]
[]
[]
[]
[]
[]
[]
[]
[]
[]
[]
[]
[]
[]
[]
[]
[]
[]
[]
[]
[]
[null,null,null,null,null,null,null,null,null,"　　(１)、(２)"]
["③　オートシエイープのグループ編集"]
["(１)　ツールバーの”挿入”タブから”図形”を選択します。"]
["(２)　複数の図形を選択します。（例、円、４角形、３角形）"]
["(３)　この３個の図形の塗りつぶしと枠線の色を変更します。（例　塗りつぶしなし、枠線の色を黒に）"]
["(４)　３個の図形をアクティブにします。　シフトキーを押したまま３個の図形をクリックします"]
["(５)　３個の図形がアクティブな状態で（シフトキーを押したまま）ツールバーの”書式”タブをクリックします。"]
["(６)　”書式”タブの中の”グループ化”ボタンをクリックします。"]
["(７)　グループ化メニューが表示されます。"]
["(８)　グループ化（Ｇ）メニューをクリックします。"]
["(９)　３個の図形がグループ化されました。"]
["(１０)　グループ化とは３個の図形が１個のかたまりの図形として扱われるのです。"]
["(１１)　グループ化された図形が複数あったとします、更にそれをまとめて１つのグループとして"]
["　　　　扱うこともできます。その場合グループとして扱われるのは１つです。"]
["(１２)　グループを再度構築したい場合、グループを一旦解除し、再度組みなおしすることもできます。"]
["(１３)　複数のグーループを重なる時、上下関係の位置を変える必要がある場合は"]
["　　　　”背面に移動”、”前面に移動”　のボタンで調整します。"]
["　　　　同様に一般の図形においても図形が重なる時、上下関係を調整する必要があります。"]
[]
[]
[]
[]
[]
[]
[]
[]
[]
[]
[]
["④　オートシエイープの３_D編集",null,null,null,null,null,null,null,"（２）、（３）"]
["(１)　オートシエイープの３_D編集とはどういうことか理解しましょう。"]
["(２)　ツールバーの”挿入”タブから”図形”を選択します。"]
["(３)　図形をクリックします。"]
["(４)　描画ツール書式が表示されます。"]
["(５)　”図形の効果”メニューをクリックします。"]
["(６)　図形の効果の種類が表示されます。ここの３－Ｄ回転（D）にカーソルを合わせますと",null,null,null,null,null,null,null,null,null,"（４）"]
["(７)　更に図形回転の種類が表示されます。"]
["(８)　この図形回転の種類の最終下段に３－D回転オプション（Ｒ）"]
["　　　をクリックしますと"]
["(９)　図形の書式設定のメニューが表示されます。"]
["(１０)　回転　Ｘ（Ｘ）、Ｙ（Ｙ）、Ｚ（Ｚ）項目の右側のアイコンを"]
["　　　　それぞれをクリックしてみて下さい。図形の回転様子が見られると思います。"]
["(１１)　これが図形の３－Ｄ回転です。”絵しばい”のマクロで利用しています。"]
["　　　　マクロで図形本体の微小な動作を３－Ｄ回転で与えます。"]
["　　　　実際に選択する場合は図形にマッチした動作に合わせる選択をします。"]
[]
[]
[]
[]
[]
[]
[]
[]
[]
[]
[]
[]
[]
[]
[]
[]
[]
[]
[]
[]
[]
[]
[]
[]
[]
[]
[]
["⑤　スクリーンショットの操作"]
["(１)　図形を加工する上で便利な機能があります。スクリーンショットの操作です。"]
["　　　必要な図形だけをカット加工して得ることです、この方法は他にもあります。別項で紹介"]
["(２)　ツールバーの”挿入”タブをクリックしますと　”スクリーンショット”という"]
["　　　メニューがあります。"]
["(３)　この操作を行う前に準備が必要です。只今現在開いているアプリケーションが"]
["　　　対象となるからです。インターネットから図形を取得する例で紹介します。"]
["(４)　インターネットを開きます。”金魚”という文字で検索した画面です。"]
["(５)　EXCELのスクリーンショットボタンをクリックします。"]
["(６)　スクリーンショット下段に”使用できるウインドウ”と”画面の領域”が表示されます。"]
["(７)　”使用できるウインドウ”欄に表示される項目をクリックしますとインターネットで"]
["　　　表示されている全域がコピーされ貼り付けされます。"]
["(８)　”画面の領域”欄に表示される項目をクリックしますとインターネットで表示されている"]
["　　　画面が半透明で表示されます。ここで必要な領域を範囲で囲みマウスを"]
["　　　離しますと、範囲で囲った領域がコピー貼り付けされます。"]
["(９)　これでスクリーンショットの操作は終わりですが、この図形を更に加工することが"]
["　　　できます。これは別項目で説明します。"]
[]
[]
[]
[]
[]
[]
[]
[]
[]
[]
[]
[]
[]
[]
[]
[]
[]
[]
[]
[]
[]
[]
[]
[]
[]
[]
[]
[]
[]
[]
[]
[]
[]
[]
[]
[]
[]
[]
[]
[]
[]
[]
[]
[]
[]
[]
[]
[]
[]
[]
[]
[]
[]
[]
[]
[]
[]
["⑥　外部からの図形挿入操作"]
["(１)　スクリーンショットの操作でも外部から図形を取得することができますが、"]
["　　　ここではファイルから図形を取得する方法を説明します。"]
["(２)　ツールメニューの挿入タブをクリックします。"]
["(３)　”図”ボタンをクリックします。"]
["(４)　ご自身のパソコンに保存されている図形の元となるデーターがあります。"]
["　　　ここでは年賀用のソフトから図形データーを取得します。"]
["　　　”図の挿入”ダイアログが表示されます。"]
["(５)　お好みの図形をクリックして”挿入”ボタンをクリックしますと、今開いている"]
["　　　シートにコピーされます。図形名は”Picture21”となりました。図形番号は"]
["　　　自動的に付けられるようです。お勧めは独自の名前に変更することです。"]
["(６)　図形データーとして、保存したいのであれば図形の名前を変え、”手作り画像を保存”"]
["　　　シートに再び貼り付けします。名前を変えるのには、マクロ”図形の名前を変更する”"]
["　　　でできます。"]
[]
[]
[]
[]
[]
[]
[]
[]
[]
[]
[]
[]
[]
[]
[]
[]
[]
[]
[]
[]
[]
[]
[]
[]
[]
[]
[]
[]
[]
[]
[]
["⑦　描画ツールの操作"]
["(１)　オートシエイ-プをクリックしますと、自動的に”描画ツール”が立ち上がります。"]
["(２)　ここではオートシエイ-プに関連する編集ができます。"]
["　　　個々の機能については省略します。"]
[]
[]
[]
[]
[]
[]
[]
[]
[]
[]
[]
[]
[]
[]
[]
[]
[]
[]
[]
[]
[]
[]
[]
["⑧　図ツールの操作"]
["(１)　外部から図形データーを取得し、図形データーをクリックしますと”図ツール”タブが"]
["　　　起動します。このツールで図形の加工ができます。スクリーンショットで得た図形も"]
["　　　加工できます。"]
["(２)　⑤のスクリーンショットの操作でインターネット画面から得た図形データーを加工"]
["　　　してみます。画面全体を得たので、そこから必要な図形を取り出す方法です。"]
["　　　まず右にある図形をクリックしますと”図ツール”タブが起動します。　"]
["(３)　必要な図形を取り出すにはトリミングをします。"]
["　　”図形ツール”タブの右端にある”トリミング”ボタンをクリックします。　"]
["(４)　図形の角に　￢　マークが表示されます。この　￢　マークを移動させて、必要な"]
["　　　図形に合わせます。図形以外のセルを選択しマウスを離した瞬間トリミングが完成です。　　"]
["　　　見た目は独立した図形に見えますが、まだバックでは全体図がくっついているのです。"]
["(５)　この後、図ツールの左側にある”図の圧縮”ボタンをクリックして完全な"]
["　　　独立した図形にします。"]
["(６)　更にこの後、図形の背景の削除と見え映えの調整を行います。"]
["　　　トリミングが終わった図形をクリックします。図ツールが起動します。"]
["(７)　図ツールの左端にある”背景の削除”ボタンをクリックします。"]
["(８)　背景削除のタブが表示されます。背景が赤紫色に表示されます。"]
["　　　必要な図形には完全になっていない為、修正が必要です。"]
["　　　４角で示される線をずらしながら必要な図形にします。"]
["　　　それぞれの修正機能を利用して微調整します。変更保持ボタン押して完成です。"]
["(９)　この後、図ツールの”修正”ボタン、”アート効果”ボタンなどで示される機能を"]
["　　　利用して図形の見え映えを良くします。"]
["　　　感想としてなるべく取り出しやすい図形を選ぶことが重要です。"]
[]
[]
[]
[]
[]
[]
[]
[]
[]
[]
[]
[]
[]
[]
[]
[]
[]
[]
[]
[]
[]
[]
[]
[]
[]
[]
[]
[]
[]
[]
[]
[]
[]
[]
[]
[]
[]
[]
[]
[]
[]
[]
[]
[]
[]
[]
[]
[]
[]
[]
[]
[]
[]
[]
[]
[]
[]
[]
[]
[]
[]
[]
[]
[]
[]
[]
[]
[]
[]
[]
[]
[]
[]
[]
[]
[]
[]
[]
[]
[]
[]
[]
[]
[]
[]
[]
[]
[]
[]
[]
[]
[]
[]
[]
[]
[]
["⑨　ペイント機能を利用した図形編集操作",null,null,null,"ペイントを起動させる手順"]
["(１)　スクリーンショットの操作と似ているのですが昔からある操作方法です。",null,null,null,null,"まずパソコが起動した最初の画面で、画面左下をクリックします。"]
["(２)　前準備が必要です。アプリケーションの”ペイント”を立ち上げましょう。"]
["　　　どのパソコンにも存在するはずです。"]
["　　　右図に”ペイント”を常時使用できるようにアプリケーションの起動手順を紹介します。"]
["(３)　次はキーボードの操作です。キーボードの上段にファンクションキーがあります。"]
["　　　その中で　”PrtScr”　というボタンがあるはずです。"]
["　　　これはプリントスクリーンという意味で、ボタンを押した時点で、今開いている画面が"]
["　　　そっくりコピー状態になるのです。スクリーンショットとにています。"]
["　　　ですから、インターネットで開いている状態でこのボタンを押しますと、その画面全部が",null,null,null,null,"下図の画面になります。左の一番上の”展開”をクリックします。"]
["　　　コピー状態になります。貼り付け先は、アプリケーションが異なっても可能です。"]
["(４)　一方でペイントのアプリケーションを起動しておいてペイントを開き上端にある"]
["　　　貼り付けボタンをクリックしますと貼り付けされます。"]
["(５)　キーボードの上端左にある”Eｓｃ”ボタンを押しで貼り付けモード解除します。"]
["　　　次に必要な部分を4角で囲みます。"]
["(６)　今度は必要な部分を囲った分を切り取りしましょう。切り取りボタンを押すと"]
["　　　切り取られ後が空白になります。切り取った後、ペイントから離れるのですが、"]
["　　　ペイントのアプリケーションは必要ないので、ペイントから抜ける時、保持するか否か　"]
["　　　を聞かれるので、”キャンセル” ボタンを押して回避します。"]
["(７)　次はExcelの画面に戻ります。　シートを開き貼り付けボタンを押しますと、貼り付けの"]
["　　　完了です。"]
["(８)　この後、図形を加工する手順は、⑧の図ツールの操作と同じです。"]
[]
[]
[]
[]
[]
[null,null,null,null,null,"下図の画面になります。　”すべてのアプリ”　をクリックします。"]
[]
[]
[]
[]
[]
[]
[]
[]
[]
[]
[]
[]
[]
[]
[]
[]
[]
[]
[]
[]
[]
[]
[]
[]
[]
[null,null,null,null,"下図の画面になります。　ここで　”ペイント”　というアプリケーションがあるはずです。この画面は個人個人によって異なります。"]
[null,null,null,null,"ペイントをクリックして、アプリケーションが立ちあがります。　常時使用できる様に最初の画面にアイコンを登録しておきましょう。"]
[]
[]
[]
[]
[]
[]
[]
[]
[]
[]
[]
[]
[]
[]
[]
[]
[]
[]
[]
[]
[]
[]
[null,null,null,null,"　”ペイント”　というアプリケーションが起動します。"]
[]
[]
[]
[]
[]
[]
[]
[]
[]
[]
[]
[]
[]
[]
[]
[]
[]
[]
[]
[]
[]
[]
[]
[]
[]
[]
[null,null,null,null,"　インターネット画面でキーボードの”PrtScr”ボタンをクリックしてハードコピーしました物をペイント、アプリケーションに貼り付けしました。"]
[]
[]
[]
[]
[]
[]
[]
[]
[]
[]
[]
[]
[]
[]
[]
[]
[]
[]
[]
[]
[]
[]
[]
[]
[]
[]
[]
[null,null,null,null,"　必要な部分を切り取り、Excelの画面に貼り付けしました。"]

{"sheet":"移動設定を登録","index":11,"n_rows":7,"n_cols":2,"rows_kept":7,"cut":false,"hidden":true,"merged":[[0,0,7,0],[0,1,0,17],[1,1,1,17],[2,1,2,17],[3,1,3,17],[4,1,4,17],[5,1,5,17],[6,1,6,17],[7,1,7,17]]}
[null,"”絵　し　ば　い”　を　登　録　保　存"]
[]
[null,"(１)　ここに　”移動設定”シートで創られた”絵しばい”が登録保存されます。"]
[null,"(２)　このシートで編集、修正する場合は自己責任で行って下さい。登録後の編集は可能です。\"絵しばい\"の作成を理解していればより良いでしょう。"]
[null,"(3)　行の削除、列の削除,又は挿入等は行わないで下さい。"]
[null,"(4)　左右方向と上下方向を示す座標値はパソコンの環境が変わると座標値は変わります。これはEXCELの機能によるものです。"]
[null,"(5)　座標値を手動で修正する場合はセルの位置を示す値は連動で変わりませんそのままです。整合性がとれません、注意が必要です。"]

{"sheet":"図形工房","index":12,"n_rows":183,"n_cols":449,"rows_kept":183,"cut":false,"hidden":true,"merged":[[0,1,2,41],[3,1,9,24],[12,1,18,24],[52,1,59,24],[21,1,28,24],[172,1,179,24],[182,1,189,24],[42,1,49,24],[32,1,39,24],[82,1,89,24],[72,1,79,24],[62,1,69,24],[132,1,139,24],[142,1,149,24],[152,1,159,24],[162,1,169,24],[92,1,99,24],[102,1,109,24],[112,1,119,24],[122,1,129,24]]}
[null,"以下のマクロをダブルクリックして下さい。"]
[]
[]
[]
[]
[]
[]
[]
[]
[]
[]
[]
[null,"一般図形をシステム型に配置します"]
[]
[]
[]
[]
[]
[]
[]
[]
[null,"一般図形をシステム放物線上に配置"]
[]
[]
[]
[]
[]
[]
[]
[]
[]
[]
[null,"一般図形を三角形上に配置"]
[]
[]
[]
[]
[]
[]
[]
[]
[]
[null,"一般図形を四角形上に配置"]
[]
[]
[]
[]
[]
[]
[]
[]
[]
[null,"一般図形をシステム円形状に配置"]
[]
[]
[]
[]
[]
[]
[]
[]
[]
[null,"オートシェイプ図形を円形状に配置"]
[]
[]
[]
[]
[]
[]
[]
[]
[]
[null,"オートシェイプ図形を変形回転形状に配置"]
[]
[]
[]
[null,null,null,null,null,null,null,null,null,null,null,null,null,null,null,null,null,null,null,null,null,null,null,null,null,null,null,null,null,null,null,null,null,null,null,null,"　"]
[]
[]
[]
[]
[]
[null,"フリーフォームを利用したアートラインを作成"]
[]
[]
[]
[]
[]
[]
[]
[]
[]
[null,"円形状の中に直線を配置します"]
[]
[]
[]
[]
[]
[]
[]
[]
[]
[null,"渦巻を作成します"]
[]
[]
[]
[]
[]
[]
[]
[]
[]
[null,"円形状の中に多角形を作成します"]
[]
[]
[]
[]
[]
[]
[]
[]
[]
[null,"バラ曲線を描く"]
[]
[null,null,null,null,null,null,null,null,null,null,null,null,null,null,null,null,null,null,null,null,null,null,null,null,null,null,null,null,null,null,null,null,null,null,null,null,null,null,null,null,null,null,null,null,null,null,null,null,null,null,null,null,null,null,null,null,null,null,null,null,null,null,null,null,null,null,null,null,null,null,null,null,null,null,null,null,null,null,null,null,null,null,null,null,null,null,null,null,null,null,null,null,null,null,null,null,null,null,null,null,null,null,null,null,null,null,null,null,null,null,null,null,null,null,null,null,null,null,null,null,null,null,null,null,null,null,null,null,null,null,null,null,null,null,null,null,null,null,null,null,null,null,null,null,null,null,null,null,null,null,null,null,null,null,null,null,null,null,null,null,null,null,null,null,null,null,null,null,null,null,null,null,null,null,null,null,null,null,null,null,null,null,null,null,null,null,null,null,null,null,null,null,null,null,null,null,null,null,null,null,null,null,null,null,null,null,null,null,null,null,null,null,null,null,null,null,null,null,null,null,null,null,null,null,null,null,null,null,null,null,null,null,null,null,null,null,null,null,null,null,null,null,null,null,null,null,null,null,null,null,null,null,null,null,null,null,null,null,null,null,null,null,null,null,null,null,null,null,null,null,null,null,null,null,null,null,null,null,null,null,null,null,null,null,null,null,null,null,null,null,null,null,null,null,null,null,null,null,null,null,null,null,null,null,null,null,null,null,null,null,null,null,null,null,null,null,null,null,null,null,null,null,null,null,null,null,null,null,null,null,null,null,null,null,null,null,null,null,null,null,null,null,null,null,null,null,null,null,null,null,null,null,null,null,null,null,null,null,null,null,null,null,null,null,null,null,null,null,null,null,null,null,null,null,null,null,null,null,null,null,null,null,null,null,null,null,null,null,null,null,null,null,null,null,null,null,null,null,null,null,null,null,null,null,null,null,null,null,null,null,null,null,null,null,null,null,null,null,null,null,null,null,null,null,null,null,null,null,null,null,null,null,null,null,null,null,null,null,null,null,null,null,null,null,null,null,null,null," "]
[]
[]
[]
[]
[]
[]
[]
[null,"リサージュ曲線を描く"]
[]
[]
[]
[]
[]
[]
[]
[]
[]
[null,"トコロイド＆サイクロイド曲線を描く"]
[]
[]
[]
[]
[]
[]
[]
[]
[]
[null,"アステロイド曲線を描く"]
[]
[]
[]
[]
[]
[]
[]
[]
[]
[null,"ハイポサイクロイド曲線を描く"]
[]
[]
[]
[]
[]
[]
[]
[]
[]
[null,"パスカルの蝸牛形曲線を描く"]
[]
[]
[]
[]
[]
[]
[]
[]
[]
[null,"エピサイクロイド曲線を描く"]

{"sheet":"データー","index":13,"n_rows":8599,"n_cols":56,"rows_kept":4500,"cut":true,"hidden":true,"merged":[],"bounds":{"rows_first":2000,"rows_last":500,"rows_between":2000,"halvings":0}}
[]
[]
[]
[]
[]
[]
[]
[]
[]
[null,"回転角度　　　　（－３６０～３６０）","左右移動量　　　（－３０～３０）","上下移動量　　　（－３０～３０）","高さ　　　　　　　（０．１～０．９）","幅　　　　　　　　（０．１～０．９）","待ち時間　　　　　　１秒～６０秒","待ち時間（秒以下）　　１０段階","オートシイープの色","オートシイープの表示/非表示","途中演出","特別指定図形","図形の向き（0～360）","図形の反転","平均移動量","シート上にある図形の名前","表示/非表示","絵しばいの名前","図形の名前","シートの名前","放物線移動係数（a）","放物線移動横幅（xx）","アニメーション移動対象図形名","アニメーション移動対象図形名選択順","背景の移動","３角形に配置する数","円の数","回転角度","図形の幅","図形の高さ","オートシイープの種類","オートシイープの色","基礎円の大きさ","直線の本数","直線の長さ","直線の太さ","節点の個数","多角形の数","半径","回数","角度","図形横移動","図形回転角度","放物線係数","オートシイープの色","オートシイープの種類","シート上にある図形名","シート上にある図形名の幅","シート上にある図形名の高さ","シート上にある図形名の色","シート上にある図形名の色、RGB","４角形に配置する数","節点の集中の個数","節点の集中の折り返しの遊び個数","ようこそ絵しばいのパネル表示を、するか、しないかを指定","vba のパスワードと初期の起動時のパスワード（共通）"]
[null,-360,-30,-30,-0.1,-0.1,1,1,1,true,"なし","X軸回転3_D大",0,"左右反転",0.1,null,null,null,null,null,0.01,5,null,null,null,null,null,null,null,null,null,null,null,null,null,null,null,null,null,null,null,null,null,null,null,null,null,null,null,null,null,null,null,null,"表示する"]
[null,-355,-29,-29,-0.2,-0.2,2,10,2,false,"ビックリ飛び出し","X軸回転3_D中",5,"上下反転",0.2,null,"非表示","testo2","3D Model 2497","Sheet10",0.02,6,"Picture 2","Picture 2","左に移動",3,1,90,10,10,1,1,50,1,50,1,10,3,0,0,0.25,0,0,0.5," 黒","四角形","3D Model 1",51.963150024414063,70.880867004394531,null,null,4,1,1,"表示しない"]
[null,-350,-28,-28,-0.3,-0.3,3,50,3,null,"曲線ジャンプ","X軸回転3_D小",10,null,0.3,null,"非表示","testo3","3D Model 3","Sheet10",0.03,7,"Picture 4",null,"右に移動",6,2,100,20,20,2,2,100,2,100,2,20,4,5,1,0.33329999999999999,1,0.1,0.6," 白","平行四辺形","3D Model 79",106.52629852294922,194.77078247070313,null,null,6,2,2]
[null,-345,-27,-27,-0.4,-0.4,4,100,4,null,"アートライン","Y軸回転3_D大",15,null,0.4,null,"非表示","testo4","3D Model 2","Sheet10",0.04,8,"Picture 7",null,"上に移動",9,3,110,30,30,3,3,150,3,150,3,30,5,10,2,0.5,2,0.2,0.70000000000000007," 赤","台形","3D Model 14",254.48684692382813,182.20149230957031,null,null,8,3,3]
[null,-340,-26,-26,-0.5,-0.5,5,200,5,null,"アートライン2","Y軸回転3_D中",20,null,0.5,null,"非表示","testo5","3D Model 2527","Sheet10",0.05,9,null,null,"下に移動",12,4,120,40,40,4,4,200,4,200,4,40,6,15,3,0.66669999999999996,3,0.3,0.8," 明るい緑","ひし形","Oval 8",59.766773223876953,49.505668640136719,15921906,"242,242,242",10,4,4]
[null,-335,-25,-25,-0.6,-0.6,6,300,6,null,"花火1","Y軸回転3_D小",25,null,1,null,"非表示","testo6","3D Model 232","Sheet10",0.06,10,null,null,"左上に移動",15,5,130,50,50,5,5,250,5,250,5,50,7,20,4,0.75,4,0.4,0.9," 青","角丸四角形","Isosceles Triangle 11",81.751182556152344,54,15921906,"242,242,242",12,5,5]
[null,-330,-24,-24,-0.7,-0.7,7,400,7,null,"花火2","Z軸回転3_D大",30,null,2,null,null,null,null,null,7.0000000000000007E-2,11,null,null,"左下に移動",18,6,140,60,60,6,6,300,6,300,6,60,8,25,5,1,5,0.5,1," 黄","八角形","3D Model 2497",45.130001068115234,70.485908508300781,null,null,14,6]
[null,-325,-23,-23,-0.8,-0.8,8,500,8,null,"花火3","Z軸回転3_D中",35,null,3,null,null,null,null,null,0.08,12,null,null,"右上に移動",21,7,150,70,70,7,7,350,7,350,7,70,9,30,6,1.25,6,0.6,1.1000000000000001," ﾋﾟﾝｸ","二等辺三角形","3D Model 194",103.26259613037109,88.041336059570313,null,null,16,7]
[null,-320,-22,-22,-0.9,-0.9,9,600,9,null,"図形回転1","Z軸回転3_D小",40,null,4,null,null,null,null,null,0.09,13,null,null,"右下に移動",24,8,160,80,80,8,8,400,8,400,8,80,10,35,7,1.3332999999999999,7,0.7,1.2000000000000002," 水色","直角三角形","3D Model 195",84.062759399414063,96.927398681640625,null,null,18,8]
[null,-315,-21,-21,-1,-1,10,700,10,null,"図形回転2","XYZ軸回転3_D大",45,null,5,null,null,null,null,null,0.1,14,null,null,"左に移動倍速",27,9,170,90,90,9,9,450,9,null,9,90,11,40,8,1.5,8,0.8,1.3000000000000003," 濃い赤","楕円","3D Model 220",113.00212860107422,126.45181274414063,null,null,20,9]
[null,-310,-20,-20,-1.1000000000000001,-1.1000000000000001,11,800,11,null,"直線アート","XYZ軸回転3_D中",50,null,6,null,null,null,null,null,0.2,15,null,null,"右に移動倍速",30,10,180,100,100,10,10,500,10,null,10,100,12,45,9,1.6667000000000001,9,0.9,1.4000000000000001," 緑","六角形","3D Model 221",91.019294738769531,93.804328918457031,null,null,22,10]
[null,-305,-19,-19,-1.2,-1.2,12,900,12,null,"子供散歩","XYZ軸回転3_D小",55,null,7,null,null,null,null,null,0.3,16,null,null,"上に移動倍速",33,11,190,110,110,11,11,null,11,null,11,110,13,50,10,2,10,1,1.5000000000000002," 濃い青","十字形","Flowchart: Magnetic Disk 2533",94.722122192382813,21.38897705078125,15921906,"242,242,242",24,11]
[null,-300,-18,-18,-1.3,-1.3,13,1000,13,null,"静止型アニメーション","XY軸回転3_D大",60,null,8,null,null,null,null,null,0.4,17,null,null,"下に移動倍速",36,12,200,120,120,12,12,null,12,null,12,120,14,55,null,2.5,11,2,1.6," 濃い黄","ホームベース","3D Model 3",52.058189392089844,42.596614837646484,null,null,26,12]
[null,-295,-17,-17,-1.4,-1.4,14,null,14,null,"待機時間5秒","XY軸回転3_D中",65,null,9,null,null,null,null,null,0.5,18,null,null,"左上に移動倍速",39,13,210,130,130,13,13,null,13,null,13,130,15,60,null,3,12,3,1.7000000000000002," 紫","円柱","3D Model 30",447.771484375,43.093387603759766,null,null,28,13]
[null,-290,-16,-16,-1.5,-1.5,15,null,15,null,"待機時間10秒","XY軸回転3_D小",70,null,10,null,null,null,null,null,0.6,19,null,null,"左下に移動倍速",42,14,220,140,140,14,14,null,14,null,14,140,16,65,null,4,13,4,1.8000000000000003," 青緑","直方体","3D Model 31",213.65873718261719,102.31716156005859,null,null,30,14]
[null,-285,-15,-15,-1.6,-1.6,16,null,16,null,"待機時間20秒","YZ軸回転3_D大",75,null,11,null,null,null,null,null,0.7,20,null,null,"右上に移動倍速",45,15,230,150,150,15,15,null,15,null,15,150,17,70,null,5,14,5,1.9000000000000001," 25%灰色","斜角","3D Model 2",53.038898468017578,104.19779205322266,null,null,32,15]
[null,-280,-14,-14,-1.7,-1.7,17,null,17,null,"待機時間30秒","YZ軸回転3_D中",80,null,12,null,null,null,null,null,0.8,21,null,null,"右下に移動倍速",48,16,240,160,160,16,16,null,16,null,16,160,18,75,null,6,15,6,2," 50%灰色","メモ","Line2",246.75,81,null,null,34]
[null,-275,-13,-13,-1.8,-1.8,18,null,18,null,"待機時間40秒","YZ軸回転3_D小",85,null,13,null,null,null,null,null,0.9,22,null,null,null,51,17,250,170,170,17,17,null,17,null,17,170,19,80,null,7,16,7,3," ｸﾞﾚｰ","スマイル","Line3",241.5,58.5,null,null,36]
[null,-270,-12,-12,-1.9,-1.9,19,null,19,null,"待機時間50秒","金魚遊泳2",90,null,14,null,null,null,null,null,1,23,null,null,null,54,18,260,180,180,18,18,null,18,null,18,180,20,85,null,8,17,8,4," ﾌﾟﾗﾑ","ドーナツ","Line4",94.5,175.5,null,null,38]
[null,-265,-11,-11,-2,-2,20,null,20,null,null,"金魚遊泳4",95,null,15,null,null,null,null,null,1.1000000000000001,24,null,null,null,57,19,270,190,190,19,19,null,19,null,19,200,21,90,null,9,18,9,5," ｱｲﾎﾞﾘｰ","禁止","3D Model 218",89.917320251464844,68.6845703125,null,null,40]
[null,-260,-10,-10,-3,-3,21,null,21,null,null,"スキー",100,null,16,null,null,null,null,null,1.2,25,null,null,null,60,20,280,200,200,20,20,null,20,null,20,null,22,95,null,10,19,10,6," 薄い水色","アーチ","3D Model 219",92.773704528808594,81.873855590820313,null,null,42]
[null,-255,-9,-9,-4,-4,22,null,22,null,null,"ちょう飛ぶ",105,null,17,null,null,null,null,null,1.3,26,null,null,null,null,21,290,210,210,21,21,null,21,null,21,null,23,100,null,11,20,11,7," 濃い紫","ハート","3D Model 222",76.708976745605469,106.55432891845703,null,null,44]
[null,-250,-8,-8,-5,-5,23,null,23,null,null,null,110,null,18,null,null,null,null,null,1.4,27,null,null,null,null,22,300,220,220,22,22,null,22,null,22,null,24,105,null,12,21,12,8," ｺｰﾗﾙ","稲妻","3D Model 2527",148.40589904785156,160.35337829589844,null,null,46]
[null,-245,-7,-7,-6,-6,24,null,24,null,null,null,115,null,19,null,null,null,null,null,1.5,28,null,null,null,null,23,310,230,230,23,23,null,23,null,23,null,25,110,null,13,22,13,9," ｵｰｼｬﾝﾌﾞﾙｰ","太陽","Line2",199.5,99,null,null,48]
[null,-240,-6,-6,-7,-7,25,null,-4142,null,null,null,120,null,20,null,null,null,null,null,1.6,29,null,null,null,null,24,320,240,240,24,24,null,24,null,24,null,26,115,null,14,23,14,10," ｱｲｽﾌﾞﾙｰ","月","Line3",246.75,117,null,null,50]
[null,-235,-5,-5,-8,-8,26,null,null,null,null,null,125,null,21,null,null,null,null,null,1.7,30,null,null,null,null,25,330,250,250,25,null,null,25,null,25,null,27,120,null,15,24,15,11,null,"円弧","3D Model 242",224.01495361328125,82.794174194335938,null,null,52]
[null,-230,-4,-4,-9,-9,27,null,null,null,null,null,130,null,22,null,null,null,null,null,1.8,null,null,null,null,null,26,340,260,260,26,null,null,26,null,26,null,28,125,null,16,25,16,12,null,"大かっこ","3D Model 232",71.662910461425781,64.496612548828125,null,null,54]
[null,-225,-3,-3,-10,-10,28,null,null,null,null,null,135,null,23,null,null,null,null,null,1.9,null,null,null,null,null,27,350,270,270,27,null,null,27,null,27,null,29,130,null,17,26,17,13,null,"中かっこ","Line2",309.75,243,null,null,56]
[null,-220,-2,-2,-11,-11,29,null,null,null,null,null,140,null,24,null,null,null,null,null,2,null,null,null,null,null,28,360,280,280,28,null,null,28,null,28,null,30,135,null,18,27,18,14,null,"ブローチ","Line3",147,9,null,null,58]
[null,-215,-1,-1,-12,-12,30,null,null,null,null,null,145,null,25,null,null,null,null,null,3,null,null,null,null,null,29,null,290,290,29,null,null,29,null,29,null,31,140,null,19,28,19,15,null,"左大かっこ","3D Model 258",146.198974609375,148.33401489257813,null,null,60]
[null,-210,0,0,-13,-13,31,null,null,null,null,null,150,null,26,null,null,null,null,null,4,null,null,null,null,null,30,null,300,300,30,null,null,30,null,30,null,32,145,null,20,29,20,-0.5,null,"右大かっこ",null,null,null,null,null,62]
[null,-205,1,1,-14,-14,32,null,null,null,null,null,155,null,27,null,null,null,null,null,5,null,null,null,null,null,31,null,310,310,31,null,null,31,null,31,null,33,150,null,21,30,21,-0.6,null,"左中かっこ",null,null,null,null,null,64]
[null,-200,2,2,-15,-15,33,null,null,null,null,null,160,null,28,null,null,null,null,null,6,null,null,null,null,null,32,null,320,320,32,null,null,32,null,32,null,34,155,null,22,31,22,-0.70000000000000007,null,"右中かっこ",null,null,null,null,null,66]
[null,-195,3,3,0.1,0.1,34,null,null,null,null,null,165,null,29,null,null,null,null,null,7,null,null,null,null,null,33,null,330,330,33,null,null,33,null,33,null,35,160,null,23,32,23,-0.8,null,"右向きブロック矢印",null,null,null,null,null,68]
[null,-190,4,4,0.2,0.2,35,null,null,null,null,null,170,null,30,null,null,null,null,null,8,null,null,null,null,null,34,null,340,340,34,null,null,34,null,34,null,36,165,null,24,33,24,-0.9,null,"左向きブロック矢印",null,null,null,null,null,70]
[null,-185,5,5,0.3,0.3,36,null,null,null,null,null,175,null,31,null,null,null,null,null,9,null,null,null,null,null,35,null,350,350,35,null,null,35,null,35,null,37,170,null,25,34,25,-1,null,"上向きブロック矢印",null,null,null,null,null,72]
[null,-180,6,6,0.4,0.4,37,null,null,null,null,null,180,null,32,null,null,null,null,null,10,null,null,null,null,null,36,null,360,360,36,null,null,36,null,36,null,38,175,null,26,35,26,-1.1000000000000001,null,"下向きブロック矢印",null,null,null,null,null,74]
[null,-175,7,7,0.5,0.5,38,null,null,null,null,null,185,null,33,null,null,null,null,null,11,null,null,null,null,null,37,null,370,370,37,null,null,37,null,37,null,39,180,null,27,36,27,-1.2000000000000002,null,"左右ブロック矢印",null,null,null,null,null,76]
[null,-170,8,8,0.6,0.6,39,null,null,null,null,null,190,null,34,null,null,null,null,null,12,null,null,null,null,null,38,null,380,380,38,null,null,38,null,38,null,40,185,null,28,37,28,-1.3000000000000003,null,"上下 2 方向ブロック矢印",null,null,null,null,null,78]
[null,-165,9,9,0.7,0.7,40,null,null,null,null,null,195,null,35,null,null,null,null,null,13,null,null,null,null,null,39,null,390,390,39,null,null,39,null,39,null,41,190,null,29,38,29,-1.4000000000000001,null,"4 方向ブロック矢印",null,null,null,null,null,80]
[null,-160,10,10,0.8,0.8,41,null,null,null,null,null,200,null,36,null,null,null,null,null,14,null,null,null,null,null,40,null,400,400,40,null,null,40,null,40,null,42,195,null,30,39,30,-1.5000000000000002,null,"左、右、および上の 3 方向ブロック矢印",null,null,null,null,null,82]
[null,-155,11,11,0.9,0.9,42,null,null,null,null,null,205,null,37,null,null,null,null,null,15,null,null,null,null,null,41,null,410,410,41,null,null,41,null,41,null,43,200,null,31,40,31,-1.6,null,"90°の曲線に続くブロック矢印",null,null,null,null,null,84]
[null,-150,12,12,1,1,43,null,null,null,null,null,210,null,38,null,null,null,null,null,-0.01,null,null,null,null,null,42,null,420,420,42,null,null,42,null,42,null,44,null,null,32,41,32,-1.7000000000000002,null,"U 字型のブロック矢印",null,null,null,null,null,86]
[null,-145,13,13,1.1000000000000001,1.1000000000000001,44,null,null,null,null,null,215,null,39,null,null,null,null,null,-0.02,null,null,null,null,null,43,null,430,430,43,null,null,43,null,43,null,45,null,null,33,42,33,-1.8000000000000003,null,"左および上矢印の 2 方向ブロック矢印",null,null,null,null,null,88]
[null,-140,14,14,1.2,1.2,45,null,null,null,null,null,220,null,40,null,null,null,null,null,-0.03,null,null,null,null,null,44,null,440,440,44,null,null,44,null,44,null,46,null,null,34,43,34,-1.9000000000000001,null,"90°の鋭角線に続くブロック矢印",null,null,null,null,null,90]
[null,-135,15,15,1.3,1.3,46,null,null,null,null,null,225,null,41,null,null,null,null,null,-0.04,null,null,null,null,null,45,null,450,450,45,null,null,45,null,45,null,47,null,null,35,44,35,-2,null,"右カーブ ブロック矢印",null,null,null,null,null,92]
[null,-130,16,16,1.4,1.4,47,null,null,null,null,null,230,null,42,null,null,null,null,null,-0.05,null,null,null,null,null,46,null,460,460,46,null,null,46,null,46,null,48,null,null,36,45,36,-3,null,"左カーブ ブロック矢印",null,null,null,null,null,94]
[null,-125,17,17,1.5,1.5,48,null,null,null,null,null,235,null,43,null,null,null,null,null,-0.06,null,null,null,null,null,47,null,470,470,47,null,null,47,null,47,null,49,null,null,37,46,37,-4,null,"上カーブ ブロック矢印",null,null,null,null,null,96]
[null,-120,18,18,1.6,1.6,49,null,null,null,null,null,240,null,44,null,null,null,null,null,-7.0000000000000007E-2,null,null,null,null,null,48,null,480,480,48,null,null,48,null,48,null,50,null,null,38,47,38,-5,null,"下カーブ ブロック矢印",null,null,null,null,null,98]
[null,-115,19,19,1.7,1.7,50,null,null,null,null,null,245,null,45,null,null,null,null,null,-0.08,null,null,null,null,null,49,null,490,490,49,null,null,49,null,49,null,51,null,null,39,48,39,-6,null,"先にストライプの付いた右向きのブロック矢印",null,null,null,null,null,100]
[null,-110,20,20,1.8,1.8,51,null,null,null,null,null,250,null,46,null,null,null,null,null,-0.09,null,null,null,null,null,50,null,500,500,50,null,null,50,null,50,null,52,null,null,40,49,40,-7,null,"右向きの V 字型矢印"]
[null,-105,21,21,1.9,1.9,52,null,null,null,null,null,255,null,47,null,null,null,null,null,-0.1,null,null,null,null,null,51,null,null,null,51,null,null,51,null,51,null,53,null,null,41,50,41,-8,null,"ホームベース"]
[null,-100,22,22,2,2,53,null,null,null,null,null,260,null,48,null,null,null,null,null,-0.2,null,null,null,null,null,52,null,null,null,52,null,null,52,null,52,null,54,null,null,42,51,42,-9,null,"山形"]
[null,-95,23,23,3,3,54,null,null,null,null,null,265,null,49,null,null,null,null,null,-0.3,null,null,null,null,null,53,null,null,null,53,null,null,53,null,53,null,55,null,null,43,52,43,-10,null,"右矢印の付いた吹き出し"]
[null,-90,24,24,4,4,55,null,null,null,null,null,270,null,50,null,null,null,null,null,-0.4,null,null,null,null,null,54,null,null,null,54,null,null,54,null,54,null,56,null,null,44,53,44,-11,null,"左矢印の付いた吹き出し"]
[null,-85,25,25,5,5,56,null,null,null,null,null,275,null,51,null,null,null,null,null,-0.5,null,null,null,null,null,55,null,null,null,55,null,null,55,null,55,null,57,null,null,45,54,45,-12,null,"上矢印の付いた吹き出し"]
[null,-80,26,26,6,6,57,null,null,null,null,null,280,null,52,null,null,null,null,null,-0.6,null,null,null,null,null,56,null,null,null,56,null,null,56,null,56,null,58,null,null,46,55,46,-13,null,"下矢印の付いた吹き出し"]
[null,-75,27,27,7,7,58,null,null,null,null,null,285,null,53,null,null,null,null,null,-0.7,null,null,null,null,null,57,null,null,null,57,null,null,57,null,57,null,59,null,null,47,56,47,-14,null,"左右矢印の付いた吹き出し"]
[null,-70,28,28,8,8,59,null,null,null,null,null,290,null,54,null,null,null,null,null,-0.8,null,null,null,null,null,58,null,null,null,58,null,null,58,null,58,null,60,null,null,48,57,48,-15,null,"上下のブロック矢印の付いた吹き出し"]
[null,-65,29,29,9,9,60,null,null,null,null,null,295,null,55,null,null,null,null,null,-0.9,null,null,null,null,null,59,null,null,null,59,null,null,59,null,59,null,61,null,null,49,58,49,null,null,"4 方向矢印の付いた吹き出し"]
[null,-60,30,30,10,10,null,null,null,null,null,null,300,null,56,null,null,null,null,null,-1,null,null,null,null,null,60,null,null,null,60,null,null,60,null,60,null,62,null,null,50,59,50,null,null,"180°の曲線に続くブロック矢印"]
[null,-55,null,null,11,11,null,null,null,null,null,null,305,null,57,null,null,null,null,null,-1.1000000000000001,null,null,null,null,null,61,null,null,null,61,null,null,61,null,61,null,63,null,null,51,60,51,null,null,"処理フローチャート記号"]
[null,-50,null,null,12,12,null,null,null,null,null,null,310,null,58,null,null,null,null,null,-1.2,null,null,null,null,null,62,null,null,null,62,null,null,62,null,62,null,64,null,null,52,61,52,null,null,"代替処理フローチャート記号"]
[null,-45,null,null,13,13,null,null,null,null,null,null,315,null,59,null,null,null,null,null,-1.3,null,null,null,null,null,63,null,null,null,63,null,null,63,null,63,null,65,null,null,53,62,53,null,null,"判断フローチャート記号"]
[null,-40,null,null,14,14,null,null,null,null,null,null,320,null,60,null,null,null,null,null,-1.4,null,null,null,null,null,64,null,null,null,64,null,null,64,null,64,null,66,null,null,54,63,54,null,null,"データ フローチャート記号"]
[null,-35,null,null,15,15,null,null,null,null,null,null,325,null,61,null,null,null,null,null,-1.5,null,null,null,null,null,65,null,null,null,65,null,null,65,null,65,null,67,null,null,55,64,55,null,null,"定義済み処理フローチャート記号"]
[null,-30,null,null,0,0,null,null,null,null,null,null,330,null,62,null,null,null,null,null,-1.6,null,null,null,null,null,66,null,null,null,66,null,null,66,null,66,null,68,null,null,56,65,56,null,null,"内部記憶フローチャート記号"]
[null,-25,null,null,null,null,null,null,null,null,null,null,335,null,63,null,null,null,null,null,-1.7,null,null,null,null,null,67,null,null,null,67,null,null,67,null,67,null,69,null,null,57,66,57,null,null,"書類フローチャート記号"]
[null,-20,null,null,null,null,null,null,null,null,null,null,340,null,64,null,null,null,null,null,-1.8,null,null,null,null,null,68,null,null,null,68,null,null,68,null,68,null,70,null,null,58,67,58,null,null,"複数書類フローチャート記号"]
[null,-15,null,null,null,null,null,null,null,null,null,null,345,null,65,null,null,null,null,null,-1.9,null,null,null,null,null,69,null,null,null,69,null,null,69,null,69,null,71,null,null,59,68,59,null,null,"端子フローチャート記号"]
[null,-10,null,null,null,null,null,null,null,null,null,null,350,null,66,null,null,null,null,null,-2,null,null,null,null,null,70,null,null,null,70,null,null,70,null,70,null,72,null,null,60,69,60,null,null,"準備フローチャート記号"]
[null,-5,null,null,null,null,null,null,null,null,null,null,355,null,67,null,null,null,null,null,-3,null,null,null,null,null,71,null,null,null,71,null,null,71,null,null,null,73,null,null,61,70,61,null,null,"手操作入力フローチャート記号"]
[null,-4,null,null,null,null,null,null,null,null,null,null,360,null,68,null,null,null,null,null,-4,null,null,null,null,null,72,null,null,null,72,null,null,72,null,null,null,74,null,null,62,71,62,null,null,"手作業フローチャート記号"]
[null,-3,null,null,null,null,null,null,null,null,null,null,-5,null,69,null,null,null,null,null,-5,null,null,null,null,null,73,null,null,null,73,null,null,73,null,null,null,75,null,null,63,72,63,null,null,"結合子フローチャート記号"]
[null,-2,null,null,null,null,null,null,null,null,null,null,-10,null,70,null,null,null,null,null,-6,null,null,null,null,null,74,null,null,null,74,null,null,74,null,null,null,76,null,null,64,73,64,null,null,"他ページ結合子フローチャート記号"]
[null,-1,null,null,null,null,null,null,null,null,null,null,-15,null,71,null,null,null,null,null,-7,null,null,null,null,null,75,null,null,null,75,null,null,75,null,null,null,77,null,null,65,74,65,null,null,"カード フローチャート記号"]
[null,-0.9,null,null,null,null,null,null,null,null,null,null,-20,null,72,null,null,null,null,null,-8,null,null,null,null,null,76,null,null,null,76,null,null,76,null,null,null,78,null,null,66,75,66,null,null,"せん孔テープ フローチャート記号"]
[null,-0.8,null,null,null,null,null,null,null,null,null,null,-25,null,73,null,null,null,null,null,-9,null,null,null,null,null,77,null,null,null,77,null,null,77,null,null,null,79,null,null,67,76,67,null,null,"和接合フローチャート記号"]
[null,-0.7,null,null,null,null,null,null,null,null,null,null,-30,null,74,null,null,null,null,null,-10,null,null,null,null,null,78,null,null,null,78,null,null,78,null,null,null,80,null,null,68,77,68,null,null,"論理和フローチャート記号"]
[null,-0.6,null,null,null,null,null,null,null,null,null,null,-35,null,75,null,null,null,null,null,-11,null,null,null,null,null,79,null,null,null,79,null,null,79,null,null,null,81,null,null,69,78,69,null,null,"照合フローチャート記号"]
[null,-0.5,null,null,null,null,null,null,null,null,null,null,-40,null,76,null,null,null,null,null,-12,null,null,null,null,null,80,null,null,null,80,null,null,80,null,null,null,82,null,null,70,79,70,null,null,"分類フローチャート記号"]
[null,-0.4,null,null,null,null,null,null,null,null,null,null,-45,null,77,null,null,null,null,null,-13,null,null,null,null,null,81,null,null,null,81,null,null,81,null,null,null,83,null,null,71,80,71,null,null,"抜き出しフローチャート記号"]
[null,-0.3,null,null,null,null,null,null,null,null,null,null,-50,null,78,null,null,null,null,null,-14,null,null,null,null,null,82,null,null,null,82,null,null,82,null,null,null,84,null,null,72,81,72,null,null,"組み合わせフローチャート記号"]
[null,-0.2,null,null,null,null,null,null,null,null,null,null,-55,null,79,null,null,null,null,null,-15,null,null,null,null,null,83,null,null,null,83,null,null,83,null,null,null,85,null,null,73,82,73,null,null,"記憶データ フローチャート記号"]
[null,-0.1,null,null,null,null,null,null,null,null,null,null,-60,null,80,null,null,null,null,null,null,null,null,null,null,null,84,null,null,null,84,null,null,84,null,null,null,86,null,null,74,83,74,null,null,"論理積ゲート フローチャート記号"]
[null,0,null,null,null,null,null,null,null,null,null,null,-65,null,81,null,null,null,null,null,null,null,null,null,null,null,85,null,null,null,85,null,null,85,null,null,null,87,null,null,75,84,75,null,null,"順次アクセス記憶フローチャート記号"]
[null,0.1,null,null,null,null,null,null,null,null,null,null,-70,null,82,null,null,null,null,null,null,null,null,null,null,null,86,null,null,null,86,null,null,86,null,null,null,88,null,null,76,85,76,null,null,"磁気ディスク フローチャート記号"]
[null,0.2,null,null,null,null,null,null,null,null,null,null,-75,null,83,null,null,null,null,null,null,null,null,null,null,null,87,null,null,null,87,null,null,87,null,null,null,89,null,null,77,86,77,null,null,"直接アクセス記憶フローチャート記号"]
[null,0.3,null,null,null,null,null,null,null,null,null,null,-80,null,84,null,null,null,null,null,null,null,null,null,null,null,88,null,null,null,88,null,null,88,null,null,null,90,null,null,78,87,78,null,null,"表示フローチャート記号"]
[null,0.4,null,null,null,null,null,null,null,null,null,null,-85,null,85,null,null,null,null,null,null,null,null,null,null,null,89,null,null,null,89,null,null,89,null,null,null,91,null,null,79,88,79,null,null,"爆発"]
[null,0.5,null,null,null,null,null,null,null,null,null,null,-90,null,86,null,null,null,null,null,null,null,null,null,null,null,90,null,null,null,90,null,null,90,null,null,null,92,null,null,80,89,80,null,null,"爆発"]
[null,0.6,null,null,null,null,null,null,null,null,null,null,-95,null,87,null,null,null,null,null,null,null,null,null,null,null,91,null,null,null,91,null,null,91,null,null,null,93,null,null,81,90,81,null,null,"星 4"]
[null,0.7,null,null,null,null,null,null,null,null,null,null,-100,null,88,null,null,null,null,null,null,null,null,null,null,null,92,null,null,null,92,null,null,92,null,null,null,94,null,null,82,91,82,null,null,"星 5"]
[null,0.8,null,null,null,null,null,null,null,null,null,null,-105,null,89,null,null,null,null,null,null,null,null,null,null,null,93,null,null,null,93,null,null,93,null,null,null,95,null,null,83,92,83,null,null,"星 8"]
[null,0.9,null,null,null,null,null,null,null,null,null,null,-110,null,90,null,null,null,null,null,null,null,null,null,null,null,94,null,null,null,94,null,null,94,null,null,null,96,null,null,84,93,84,null,null,"星 16"]
[null,1,null,null,null,null,null,null,null,null,null,null,-115,null,91,null,null,null,null,null,null,null,null,null,null,null,95,null,null,null,95,null,null,95,null,null,null,97,null,null,85,94,85,null,null,"星 24"]
[null,2,null,null,null,null,null,null,null,null,null,null,-120,null,92,null,null,null,null,null,null,null,null,null,null,null,96,null,null,null,96,null,null,96,null,null,null,98,null,null,86,95,86,null,null,"星 32"]
[null,3,null,null,null,null,null,null,null,null,null,null,-125,null,93,null,null,null,null,null,null,null,null,null,null,null,97,null,null,null,97,null,null,97,null,null,null,99,null,null,87,96,87,null,null,"リボンの端よりも上に中央面があるリボン"]
[null,4,null,null,null,null,null,null,null,null,null,null,-130,null,94,null,null,null,null,null,null,null,null,null,null,null,98,null,null,null,98,null,null,98,null,null,null,100,null,null,88,97,88,null,null,"リボンの端よりも下に中央面があるリボン"]
[null,5,null,null,null,null,null,null,null,null,null,null,-135,null,95,null,null,null,null,null,null,null,null,null,null,null,99,null,null,null,99,null,null,99,null,null,null,101,null,null,89,98,89,null,null,"上カーブリボン"]
[null,10,null,null,null,null,null,null,null,null,null,null,-140,null,96,null,null,null,null,null,null,null,null,null,null,null,100,null,null,null,100,null,null,100,null,null,null,102,null,null,90,99,90,null,null,"下カーブ リボン"]
[null,15,null,null,null,null,null,null,null,null,null,null,-145,null,97,null,null,null,null,null,null,null,null,null,null,null,null,null,null,null,101,null,null,101,null,null,null,103,null,null,91,100,-0.1,null,null,"縦巻き"]
[null,20,null,null,null,null,null,null,null,null,null,null,-150,null,98,null,null,null,null,null,null,null,null,null,null,null,null,null,null,null,102,null,null,102,null,null,null,104,null,null,92,-1,-0.2,null,null,"横巻き"]
[null,25,null,null,null,null,null,null,null,null,null,null,-155,null,99,null,null,null,null,null,null,null,null,null,null,null,null,null,null,null,103,null,null,103,null,null,null,105,null,null,93,-2,-0.3,null,null,"大波"]
[null,30,null,null,null,null,null,null,null,null,null,null,-160,null,100,null,null,null,null,null,null,null,null,null,null,null,null,null,null,null,104,null,null,104,null,null,null,106,null,null,94,-3,-0.4,null,null,"小波"]
[null,35,null,null,null,null,null,null,null,null,null,null,-165,null,null,null,null,null,null,null,null,null,null,null,null,null,null,null,null,null,105,null,null,105,null,null,null,107,null,null,95,-4,-0.5,null,null,"四角形吹き出し"]
[null,40,null,null,null,null,null,null,null,null,null,null,-170,null,null,null,null,null,null,null,null,null,null,null,null,null,null,null,null,null,106,null,null,106,null,null,null,108,null,null,96,-5,-0.6,null,null,"角丸四角形吹き出し"]
[null,45,null,null,null,null,null,null,null,null,null,null,-175,null,null,null,null,null,null,null,null,null,null,null,null,null,null,null,null,null,107,null,null,107,null,null,null,109,null,null,97,-6,-0.7,null,null,"円形吹き出し"]
[null,50,null,null,null,null,null,null,null,null,null,null,-180,null,null,null,null,null,null,null,null,null,null,null,null,null,null,null,null,null,108,null,null,108,null,null,null,110,null,null,98,-7,-0.8,null,null,"雲形吹き出し"]
[null,55,null,null,null,null,null,null,null,null,null,null,-185,null,null,null,null,null,null,null,null,null,null,null,null,null,null,null,null,null,109,null,null,109,null,null,null,111,null,null,99,-8,-0.9,null,null,"枠付きで、水平の吹き出し線の付いた吹き出し"]
[null,60,null,null,null,null,null,null,null,null,null,null,-190,null,null,null,null,null,null,null,null,null,null,null,null,null,null,null,null,null,110,null,null,110,null,null,null,112,null,null,100,-9,-1,null,null,"斜めの直線の付いた吹き出し"]
[null,65,null,null,null,null,null,null,null,null,null,null,-195,null,null,null,null,null,null,null,null,null,null,null,null,null,null,null,null,null,111,null,null,111,null,null,null,113,null,null,null,-10,-2,null,null,"折れ線の付いた吹き出し"]
[null,70,null,null,null,null,null,null,null,null,null,null,-200,null,null,null,null,null,null,null,null,null,null,null,null,null,null,null,null,null,112,null,null,112,null,null,null,114,null,null,null,-11,-3,null,null,"U 字型の吹き出し線分の付いた吹き出"]
[null,75,null,null,null,null,null,null,null,null,null,null,-205,null,null,null,null,null,null,null,null,null,null,null,null,null,null,null,null,null,113,null,null,113,null,null,null,115,null,null,null,-12,-4,null,null,"水平の強調線の付いた吹き出し"]
[null,80,null,null,null,null,null,null,null,null,null,null,-210,null,null,null,null,null,null,null,null,null,null,null,null,null,null,null,null,null,114,null,null,114,null,null,null,116,null,null,null,-13,-5,null,null,"斜めの吹き出し線と強調線の付いた吹き出し"]
[null,85,null,null,null,null,null,null,null,null,null,null,-215,null,null,null,null,null,null,null,null,null,null,null,null,null,null,null,null,null,115,null,null,115,null,null,null,117,null,null,null,-14,-6,null,null,"折れた吹き出し線と強調線の付いた吹き出し"]
[null,90,null,null,null,null,null,null,null,null,null,null,-220,null,null,null,null,null,null,null,null,null,null,null,null,null,null,null,null,null,116,null,null,116,null,null,null,118,null,null,null,-15,-7,null,null,"強調線および U 字型の吹き出し線分の付いた吹き出し"]
[null,95,null,null,null,null,null,null,null,null,null,null,-225,null,null,null,null,null,null,null,null,null,null,null,null,null,null,null,null,null,117,null,null,117,null,null,null,119,null,null,null,-16,-8,null,null,"水平線の付いた吹き出し"]
[null,100,null,null,null,null,null,null,null,null,null,null,-230,null,null,null,null,null,null,null,null,null,null,null,null,null,null,null,null,null,118,null,null,118,null,null,null,120,null,null,null,-17,-9,null,null,"枠および斜めの吹き出し線のない吹き出し"]
[null,105,null,null,null,null,null,null,null,null,null,null,-235,null,null,null,null,null,null,null,null,null,null,null,null,null,null,null,null,null,119,null,null,119,null,null,null,121,null,null,null,-18,-10,null,null,"枠および折れた吹き出し線のない吹き出し"]
[null,110,null,null,null,null,null,null,null,null,null,null,-240,null,null,null,null,null,null,null,null,null,null,null,null,null,null,null,null,null,120,null,null,120,null,null,null,122,null,null,null,-19,-11,null,null,"枠線および U 字型の吹き出し線分のない呼び出し"]
[null,115,null,null,null,null,null,null,null,null,null,null,-245,null,null,null,null,null,null,null,null,null,null,null,null,null,null,null,null,null,121,null,null,121,null,null,null,123,null,null,null,-20,-12,null,null,"枠付きで、水平の強調線の付いた吹き出し"]
[null,120,null,null,null,null,null,null,null,null,null,null,-250,null,null,null,null,null,null,null,null,null,null,null,null,null,null,null,null,null,122,null,null,122,null,null,null,124,null,null,null,-21,-13,null,null,"枠、斜めの直線、および強調線の付いた吹き出し"]
[null,125,null,null,null,null,null,null,null,null,null,null,-255,null,null,null,null,null,null,null,null,null,null,null,null,null,null,null,null,null,123,null,null,123,null,null,null,125,null,null,null,-22,-14,null,null,"枠、折れた吹き出し線、強調線の付いた吹き出し"]
[null,130,null,null,null,null,null,null,null,null,null,null,-260,null,null,null,null,null,null,null,null,null,null,null,null,null,null,null,null,null,124,null,null,124,null,null,null,126,null,null,null,-23,-15,null,null,"枠線、強調線、および U 字型の吹き出し線分の付いた吹き出し"]
[null,135,null,null,null,null,null,null,null,null,null,null,-265,null,null,null,null,null,null,null,null,null,null,null,null,null,null,null,null,null,125,null,null,125,null,null,null,127,null,null,null,-24,-16,null,null,"既定の画像またはテキストのないボタン"]
[null,140,null,null,null,null,null,null,null,null,null,null,-270,null,null,null,null,null,null,null,null,null,null,null,null,null,null,null,null,null,126,null,null,126,null,null,null,128,null,null,null,-25,-17,null,null,"[ホーム] ボタン"]
[null,145,null,null,null,null,null,null,null,null,null,null,-275,null,null,null,null,null,null,null,null,null,null,null,null,null,null,null,null,null,127,null,null,127,null,null,null,129,null,null,null,-26,-18,null,null,"[ヘルプ] ボタン"]
[null,150,null,null,null,null,null,null,null,null,null,null,-280,null,null,null,null,null,null,null,null,null,null,null,null,null,null,null,null,null,128,null,null,128,null,null,null,130,null,null,null,-27,-19,null,null,"[情報] ボタン"]
[null,155,null,null,null,null,null,null,null,null,null,null,-285,null,null,null,null,null,null,null,null,null,null,null,null,null,null,null,null,null,129,null,null,129,null,null,null,131,null,null,null,-28,-20,null,null,"[戻る] または [前へ] ボタン"]
[null,160,null,null,null,null,null,null,null,null,null,null,-290,null,null,null,null,null,null,null,null,null,null,null,null,null,null,null,null,null,130,null,null,130,null,null,null,132,null,null,null,-29,-21,null,null,"[進む] または [次へ] ボタン"]
[null,165,null,null,null,null,null,null,null,null,null,null,-295,null,null,null,null,null,null,null,null,null,null,null,null,null,null,null,null,null,131,null,null,131,null,null,null,133,null,null,null,-30,-22,null,null,"[上旬] ボタン"]
[null,170,null,null,null,null,null,null,null,null,null,null,-300,null,null,null,null,null,null,null,null,null,null,null,null,null,null,null,null,null,132,null,null,132,null,null,null,134,null,null,null,-31,-23,null,null,"[終了] ボタン"]
[null,175,null,null,null,null,null,null,null,null,null,null,-305,null,null,null,null,null,null,null,null,null,null,null,null,null,null,null,null,null,133,null,null,133,null,null,null,135,null,null,null,-32,-24,null,null,"[戻る] ボタン"]
[null,180,null,null,null,null,null,null,null,null,null,null,-310,null,null,null,null,null,null,null,null,null,null,null,null,null,null,null,null,null,134,null,null,134,null,null,null,136,null,null,null,-33,-25,null,null,"[文書] ボタン"]
[null,185,null,null,null,null,null,null,null,null,null,null,-315,null,null,null,null,null,null,null,null,null,null,null,null,null,null,null,null,null,135,null,null,135,null,null,null,137,null,null,null,-34,-26,null,null,"[サウンド] ボタン"]
[null,190,null,null,null,null,null,null,null,null,null,null,-320,null,null,null,null,null,null,null,null,null,null,null,null,null,null,null,null,null,136,null,null,136,null,null,null,138,null,null,null,-35,-27,null,null,"[ビデオ] ボタン"]
[null,195,null,null,null,null,null,null,null,null,null,null,-325,null,null,null,null,null,null,null,null,null,null,null,null,null,null,null,null,null,137,null,null,137,null,null,null,139,null,null,null,-36,-28,null,null,"吹き出し"]
[null,200,null,null,null,null,null,null,null,null,null,null,-330,null,null,null,null,null,null,null,null,null,null,null,null,null,null,null,null,null,138,null,null,138,null,null,null,140,null,null,null,-37,-29,null,null,"サポートされていません"]
[null,205,null,null,null,null,null,null,null,null,null,null,-335,null,null,null,null,null,null,null,null,null,null,null,null,null,null,null,null,null,139,null,null,139,null,null,null,141,null,null,null,-38,-30]
[null,210,null,null,null,null,null,null,null,null,null,null,-340,null,null,null,null,null,null,null,null,null,null,null,null,null,null,null,null,null,140,null,null,140,null,null,null,142,null,null,null,-39,-31,null,null,"図形 4206"]
[null,215,null,null,null,null,null,null,null,null,null,null,-345,null,null,null,null,null,null,null,null,null,null,null,null,null,null,null,null,null,141,null,null,141,null,null,null,143,null,null,null,-40,-32,null,null,"斜め縞 4207"]
[null,220,null,null,null,null,null,null,null,null,null,null,-350,null,null,null,null,null,null,null,null,null,null,null,null,null,null,null,null,null,142,null,null,142,null,null,null,144,null,null,null,-41,-33,null,null,"パイ　4208"]
[null,225,null,null,null,null,null,null,null,null,null,null,-355,null,null,null,null,null,null,null,null,null,null,null,null,null,null,null,null,null,143,null,null,143,null,null,null,145,null,null,null,-42,-34,null,null,"図形 4209"]
[null,230,null,null,null,null,null,null,null,null,null,null,-360,null,null,null,null,null,null,null,null,null,null,null,null,null,null,null,null,null,144,null,null,144,null,null,null,146,null,null,null,-43,-35,null,null,"十角形 4210"]
[null,235,null,null,null,null,null,null,null,null,null,null,null,null,null,null,null,null,null,null,null,null,null,null,null,null,null,null,null,null,145,null,null,145,null,null,null,147,null,null,null,-44,-36,null,null,"七角形 4211"]
[null,240,null,null,null,null,null,null,null,null,null,null,null,null,null,null,null,null,null,null,null,null,null,null,null,null,null,null,null,null,146,null,null,146,null,null,null,148,null,null,null,-45,-37,null,null,"十二角形 4212"]
[null,245,null,null,null,null,null,null,null,null,null,null,null,null,null,null,null,null,null,null,null,null,null,null,null,null,null,null,null,null,147,null,null,147,null,null,null,149,null,null,null,-46,-38,null,null,"星６　4213"]
[null,250,null,null,null,null,null,null,null,null,null,null,null,null,null,null,null,null,null,null,null,null,null,null,null,null,null,null,null,null,148,null,null,148,null,null,null,150,null,null,null,-47,-39,null,null,"星７　4214"]
[null,255,null,null,null,null,null,null,null,null,null,null,null,null,null,null,null,null,null,null,null,null,null,null,null,null,null,null,null,null,149,null,null,149,null,null,null,151,null,null,null,-48,-40,null,null,"星１０　4215"]
[null,260,null,null,null,null,null,null,null,null,null,null,null,null,null,null,null,null,null,null,null,null,null,null,null,null,null,null,null,null,150,null,null,150,null,null,null,152,null,null,null,-49,-41,null,null,"星１２　4216"]
[null,265,null,null,null,null,null,null,null,null,null,null,null,null,null,null,null,null,null,null,null,null,null,null,null,null,null,null,null,null,151,null,null,151,null,null,null,153,null,null,null,-50,-42,null,null,"片側の二つの角を丸めた四角形 4218"]
[null,270,null,null,null,null,null,null,null,null,null,null,null,null,null,null,null,null,null,null,null,null,null,null,null,null,null,null,null,null,152,null,null,152,null,null,null,154,null,null,null,-51,-43,null,null,"対角する２つの角を丸めた四角形 4219"]
[null,275,null,null,null,null,null,null,null,null,null,null,null,null,null,null,null,null,null,null,null,null,null,null,null,null,null,null,null,null,153,null,null,153,null,null,null,155,null,null,null,-52,-44,null,null,"１つの角を丸めた四角形 4220"]
[null,280,null,null,null,null,null,null,null,null,null,null,null,null,null,null,null,null,null,null,null,null,null,null,null,null,null,null,null,null,154,null,null,154,null,null,null,156,null,null,null,-53,-45,null,null,"１つの角を切り取った四角形 4221"]
[null,285,null,null,null,null,null,null,null,null,null,null,null,null,null,null,null,null,null,null,null,null,null,null,null,null,null,null,null,null,155,null,null,155,null,null,null,157,null,null,null,-54,-46,null,null,"片側の二つの角を切り取った四角形 4222"]
[null,290,null,null,null,null,null,null,null,null,null,null,null,null,null,null,null,null,null,null,null,null,null,null,null,null,null,null,null,null,156,null,null,156,null,null,null,158,null,null,null,-55,-47,null,null,"対角する２つの角を切り取った四角形 4223"]
[null,295,null,null,null,null,null,null,null,null,null,null,null,null,null,null,null,null,null,null,null,null,null,null,null,null,null,null,null,null,157,null,null,157,null,null,null,159,null,null,null,-56,-48,null,null,"フレーム 4224"]
[null,300,null,null,null,null,null,null,null,null,null,null,null,null,null,null,null,null,null,null,null,null,null,null,null,null,null,null,null,null,158,null,null,158,null,null,null,160,null,null,null,-57,-49,null,null,"フレーム（半分） 4225"]
[null,305,null,null,null,null,null,null,null,null,null,null,null,null,null,null,null,null,null,null,null,null,null,null,null,null,null,null,null,null,159,null,null,159,null,null,null,161,null,null,null,-58,-50,null,null,"涙形 4226"]
[null,310,null,null,null,null,null,null,null,null,null,null,null,null,null,null,null,null,null,null,null,null,null,null,null,null,null,null,null,null,160,null,null,160,null,null,null,162,null,null,null,-59,-51,null,null,"弦 4227"]
[null,315,null,null,null,null,null,null,null,null,null,null,null,null,null,null,null,null,null,null,null,null,null,null,null,null,null,null,null,null,161,null,null,161,null,null,null,163,null,null,null,-60,-52,null,null,"Ｌ字 4228"]
[null,320,null,null,null,null,null,null,null,null,null,null,null,null,null,null,null,null,null,null,null,null,null,null,null,null,null,null,null,null,162,null,null,162,null,null,null,164,null,null,null,-61,-53,null,null,"加算記号 4229"]
[null,325,null,null,null,null,null,null,null,null,null,null,null,null,null,null,null,null,null,null,null,null,null,null,null,null,null,null,null,null,163,null,null,163,null,null,null,165,null,null,null,-62,-54,null,null,"減算記号 4230"]
[null,330,null,null,null,null,null,null,null,null,null,null,null,null,null,null,null,null,null,null,null,null,null,null,null,null,null,null,null,null,164,null,null,164,null,null,null,166,null,null,null,-63,-55,null,null,"乗算記号 4231"]
[null,335,null,null,null,null,null,null,null,null,null,null,null,null,null,null,null,null,null,null,null,null,null,null,null,null,null,null,null,null,165,null,null,165,null,null,null,167,null,null,null,-64,-56,null,null,"除算記号 4232"]
[null,340,null,null,null,null,null,null,null,null,null,null,null,null,null,null,null,null,null,null,null,null,null,null,null,null,null,null,null,null,166,null,null,166,null,null,null,168,null,null,null,-65,-57,null,null,"等号 4233"]
[null,345,null,null,null,null,null,null,null,null,null,null,null,null,null,null,null,null,null,null,null,null,null,null,null,null,null,null,null,null,167,null,null,167,null,null,null,169,null,null,null,-66,-58,null,null,"不等号 4234"]
[null,350,null,null,null,null,null,null,null,null,null,null,null,null,null,null,null,null,null,null,null,null,null,null,null,null,null,null,null,null,168,null,null,168,null,null,null,170,null,null,null,-67,-59,null,null,4235]
[null,355,null,null,null,null,null,null,null,null,null,null,null,null,null,null,null,null,null,null,null,null,null,null,null,null,null,null,null,null,169,null,null,169,null,null,null,171,null,null,null,-68,-60,null,null,4236]
[null,360,null,null,null,null,null,null,null,null,null,null,null,null,null,null,null,null,null,null,null,null,null,null,null,null,null,null,null,null,170,null,null,170,null,null,null,172,null,null,null,-69,-61,null,null,4237]
[null,null,null,null,null,null,null,null,null,null,null,null,null,null,null,null,null,null,null,null,null,null,null,null,null,null,null,null,null,null,171,null,null,171,null,null,null,173,null,null,null,-70,-62,null,null,"図形 4238"]
[null,null,null,null,null,null,null,null,null,null,null,null,null,null,null,null,null,null,null,null,null,null,null,null,null,null,null,null,null,null,172,null,null,172,null,null,null,174,null,null,null,-71,-63,null,null,"図形 4239"]
[null,null,null,null,null,null,null,null,null,null,null,null,null,null,null,null,null,null,null,null,null,null,null,null,null,null,null,null,null,null,173,null,null,173,null,null,null,175,null,null,null,-72,-64,null,null,"図形 4240"]
[null,null,null,null,null,null,null,null,null,null,null,null,null,null,null,null,null,null,null,null,null,null,null,null,null,null,null,null,null,null,174,null,null,174,null,null,null,176,null,null,null,-73,-65,null,null,"パイ 4241"]
[null,null,null,null,null,null,null,null,null,null,null,null,null,null,null,null,null,null,null,null,null,null,null,null,null,null,null,null,null,null,175,null,null,175,null,null,null,177,null,null,null,-74,-66,null,null,"図形 4242"]
[null,null,null,null,null,null,null,null,null,null,null,null,null,null,null,null,null,null,null,null,null,null,null,null,null,null,null,null,null,null,176,null,null,176,null,null,null,178,null,null,null,-75,-67,null,null,"図形 4243"]
[null,null,null,null,null,null,null,null,null,null,null,null,null,null,null,null,null,null,null,null,null,null,null,null,null,null,null,null,null,null,177,null,null,177,null,null,null,179,null,null,null,-76,-68,null,null,"図形 4244"]
[null,null,null,null,null,null,null,null,null,null,null,null,null,null,null,null,null,null,null,null,null,null,null,null,null,null,null,null,null,null,178,null,null,178,null,null,null,180,null,null,null,-77,-69,null,null,"雲 4245"]
[null,null,null,null,null,null,null,null,null,null,null,null,null,null,null,null,null,null,null,null,null,null,null,null,null,null,null,null,null,null,179,null,null,179,null,null,null,181,null,null,null,-78,-70,null,null,4246]
[null,null,null,null,null,null,null,null,null,null,null,null,null,null,null,null,null,null,null,null,null,null,null,null,null,null,null,null,null,null,180,null,null,180,null,null,null,182,null,null,null,-79,-71,null,null,4247]
[null,null,null,null,null,null,null,null,null,null,null,null,null,null,null,null,null,null,null,null,null,null,null,null,null,null,null,null,null,null,181,null,null,181,null,null,null,183,null,null,null,-80,-72,null,null,4248]
[null,null,null,null,null,null,null,null,null,null,null,null,null,null,null,null,null,null,null,null,null,null,null,null,null,null,null,null,null,null,182,null,null,182,null,null,null,184,null,null,null,-81,-73,null,null,"直線コネクター 4249 "]
[null,null,null,null,null,null,null,null,null,null,null,null,null,null,null,null,null,null,null,null,null,null,null,null,null,null,null,null,null,null,183,null,null,183,null,null,null,185,null,null,null,-82,-74]
[null,null,null,null,null,null,null,null,null,null,null,null,null,null,null,null,null,null,null,null,null,null,null,null,null,null,null,null,null,null,null,null,null,184,null,null,null,186,null,null,null,-83,-75]
[null,null,null,null,null,null,null,null,null,null,null,null,null,null,null,null,null,null,null,null,null,null,null,null,null,null,null,null,null,null,null,null,null,185,null,null,null,187,null,null,null,-84,-76]
[null,null,null,null,null,null,null,null,null,null,null,null,null,null,null,null,null,null,null,null,null,null,null,null,null,null,null,null,null,null,null,null,null,186,null,null,null,188,null,null,null,-85,-77]
[null,null,null,null,null,null,null,null,null,null,null,null,null,null,null,null,null,null,null,null,null,null,null,null,null,null,null,null,null,null,null,null,null,187,null,null,null,189,null,null,null,-86,-78]
[null,null,null,null,null,null,null,null,null,null,null,null,null,null,null,null,null,null,null,null,null,null,null,null,null,null,null,null,null,null,null,null,null,188,null,null,null,190,null,null,null,-87,-79]
[null,null,null,null,null,null,null,null,null,null,null,null,null,null,null,null,null,null,null,null,null,null,null,null,null,null,null,null,null,null,null,null,null,189,null,null,null,191,null,null,null,-88,-80]
[null,null,null,null,null,null,null,null,null,null,null,null,null,null,null,null,null,null,null,null,null,null,null,null,null,null,null,null,null,null,null,null,null,190,null,null,null,192,null,null,null,-89,-81]
[null,null,null,null,null,null,null,null,null,null,null,null,null,null,null,null,null,null,null,null,null,null,null,null,null,null,null,null,null,null,null,null,null,191,null,null,null,193,null,null,null,-90,-82]
[null,null,null,null,null,null,null,null,null,null,null,null,null,null,null,null,null,null,null,null,null,null,null,null,null,null,null,null,null,null,null,null,null,192,null,null,null,194,null,null,null,-91,-83]
[null,null,null,null,null,null,null,null,null,null,null,null,null,null,null,null,null,null,null,null,null,null,null,null,null,null,null,null,null,null,null,null,null,193,null,null,null,195,null,null,null,-92,-84]
[null,null,null,null,null,null,null,null,null,null,null,null,null,null,null,null,null,null,null,null,null,null,null,null,null,null,null,null,null,null,null,null,null,194,null,null,null,196,null,null,null,-93,-85]
[null,null,null,null,null,null,null,null,null,null,null,null,null,null,null,null,null,null,null,null,null,null,null,null,null,null,null,null,null,null,null,null,null,195,null,null,null,197,null,null,null,-94,-86]
[null,null,null,null,null,null,null,null,null,null,null,null,null,null,null,null,null,null,null,null,null,null,null,null,null,null,null,null,null,null,null,null,null,196,null,null,null,198,null,null,null,-95,-87]
[null,null,null,null,null,null,null,null,null,null,null,null,null,null,null,null,null,null,null,null,null,null,null,null,null,null,null,null,null,null,null,null,null,197,null,null,null,199,null,null,null,-96,-88]
[null,null,null,null,null,null,null,null,null,null,null,null,null,null,null,null,null,null,null,null,null,null,null,null,null,null,null,null,null,null,null,null,null,198,null,null,null,200,null,null,null,-97,-89]
[null,null,null,null,null,null,null,null,null,null,null,null,null,null,null,null,null,null,null,null,null,null,null,null,null,null,null,null,null,null,null,null,null,199,null,null,null,201,null,null,null,-98,-90]
[null,null,null,null,null,null,null,null,null,null,null,null,null,null,null,null,null,null,null,null,null,null,null,null,null,null,null,null,null,null,null,null,null,200,null,null,null,202,null,null,null,-99]
[null,null,null,null,null,null,null,null,null,null,null,null,null,null,null,null,null,null,null,null,null,null,null,null,null,null,null,null,null,null,null,null,null,201,null,null,null,203,null,null,null,-100]
[null,null,null,null,null,null,null,null,null,null,null,null,null,null,null,null,null,null,null,null,null,null,null,null,null,null,null,null,null,null,null,null,null,202,null,null,null,204]
[null,null,null,null,null,null,null,null,null,null,null,null,null,null,null,null,null,null,null,null,null,null,null,null,null,null,null,null,null,null,null,null,null,203,null,null,null,205]
[null,null,null,null,null,null,null,null,null,null,null,null,null,null,null,null,null,null,null,null,null,null,null,null,null,null,null,null,null,null,null,null,null,204,null,null,null,206]
[null,null,null,null,null,null,null,null,null,null,null,null,null,null,null,null,null,null,null,null,null,null,null,null,null,null,null,null,null,null,null,null,null,205,null,null,null,207]
[null,null,null,null,null,null,null,null,null,null,null,null,null,null,null,null,null,null,null,null,null,null,null,null,null,null,null,null,null,null,null,null,null,206,null,null,null,208]
[null,null,null,null,null,null,null,null,null,null,null,null,null,null,null,null,null,null,null,null,null,null,null,null,null,null,null,null,null,null,null,null,null,207,null,null,null,209]
[null,null,null,null,null,null,null,null,null,null,null,null,null,null,null,null,null,null,null,null,null,null,null,null,null,null,null,null,null,null,null,null,null,208,null,null,null,210]
[null,null,null,null,null,null,null,null,null,null,null,null,null,null,null,null,null,null,null,null,null,null,null,null,null,null,null,null,null,null,null,null,null,209,null,null,null,211]
[null,null,null,null,null,null,null,null,null,null,null,null,null,null,null,null,null,null,null,null,null,null,null,null,null,null,null,null,null,null,null,null,null,210,null,null,null,212]
[null,null,null,null,null,null,null,null,null,null,null,null,null,null,null,null,null,null,null,null,null,null,null,null,null,null,null,null,null,null,null,null,null,211,null,null,null,213]
[null,null,null,null,null,null,null,null,null,null,null,null,null,null,null,null,null,null,null,null,null,null,null,null,null,null,null,null,null,null,null,null,null,212,null,null,null,214]
[null,null,null,null,null,null,null,null,null,null,null,null,null,null,null,null,null,null,null,null,null,null,null,null,null,null,null,null,null,null,null,null,null,213,null,null,null,215]
[null,null,null,null,null,null,null,null,null,null,null,null,null,null,null,null,null,null,null,null,null,null,null,null,null,null,null,null,null,null,null,null,null,214,null,null,null,216]
[null,null,null,null,null,null,null,null,null,null,null,null,null,null,null,null,null,null,null,null,null,null,null,null,null,null,null,null,null,null,null,null,null,215,null,null,null,217]
[null,null,null,null,null,null,null,null,null,null,null,null,null,null,null,null,null,null,null,null,null,null,null,null,null,null,null,null,null,null,null,null,null,216,null,null,null,218]
[null,null,null,null,null,null,null,null,null,null,null,null,null,null,null,null,null,null,null,null,null,null,null,null,null,null,null,null,null,null,null,null,null,217,null,null,null,219]
[null,null,null,null,null,null,null,null,null,null,null,null,null,null,null,null,null,null,null,null,null,null,null,null,null,null,null,null,null,null,null,null,null,218,null,null,null,220]
[null,null,null,null,null,null,null,null,null,null,null,null,null,null,null,null,null,null,null,null,null,null,null,null,null,null,null,null,null,null,null,null,null,219,null,null,null,221]
[null,null,null,null,null,null,null,null,null,null,null,null,null,null,null,null,null,null,null,null,null,null,null,null,null,null,null,null,null,null,null,null,null,220,null,null,null,222]
[null,null,null,null,null,null,null,null,null,null,null,null,null,null,null,null,null,null,null,null,null,null,null,null,null,null,null,null,null,null,null,null,null,221,null,null,null,223]
[null,null,null,null,null,null,null,null,null,null,null,null,null,null,null,null,null,null,null,null,null,null,null,null,null,null,null,null,null,null,null,null,null,222,null,null,null,224]
[null,null,null,null,null,null,null,null,null,null,null,null,null,null,null,null,null,null,null,null,null,null,null,null,null,null,null,null,null,null,null,null,null,223,null,null,null,225]
[null,null,null,null,null,null,null,null,null,null,null,null,null,null,null,null,null,null,null,null,null,null,null,null,null,null,null,null,null,null,null,null,null,224,null,null,null,226]
[null,null,null,null,null,null,null,null,null,null,null,null,null,null,null,null,null,null,null,null,null,null,null,null,null,null,null,null,null,null,null,null,null,225,null,null,null,227]
[null,null,null,null,null,null,null,null,null,null,null,null,null,null,null,null,null,null,null,null,null,null,null,null,null,null,null,null,null,null,null,null,null,226,null,null,null,228]
[null,null,null,null,null,null,null,null,null,null,null,null,null,null,null,null,null,null,null,null,null,null,null,null,null,null,null,null,null,null,null,null,null,227,null,null,null,229]
[null,null,null,null,null,null,null,null,null,null,null,null,null,null,null,null,null,null,null,null,null,null,null,null,null,null,null,null,null,null,null,null,null,228,null,null,null,230]
[null,null,null,null,null,null,null,null,null,null,null,null,null,null,null,null,null,null,null,null,null,null,null,null,null,null,null,null,null,null,null,null,null,229,null,null,null,231]
[null,null,null,null,null,null,null,null,null,null,null,null,null,null,null,null,null,null,null,null,null,null,null,null,null,null,null,null,null,null,null,null,null,230,null,null,null,232]
[null,null,null,null,null,null,null,null,null,null,null,null,null,null,null,null,null,null,null,null,null,null,null,null,null,null,null,null,null,null,null,null,null,231,null,null,null,233]
[null,null,null,null,null,null,null,null,null,null,null,null,null,null,null,null,null,null,null,null,null,null,null,null,null,null,null,null,null,null,null,null,null,232,null,null,null,234]
[null,null,null,null,null,null,null,null,null,null,null,null,null,null,null,null,null,null,null,null,null,null,null,null,null,null,null,null,null,null,null,null,null,233,null,null,null,235]
[null,null,null,null,null,null,null,null,null,null,null,null,null,null,null,null,null,null,null,null,null,null,null,null,null,null,null,null,null,null,null,null,null,234,null,null,null,236]
[null,null,null,null,null,null,null,null,null,null,null,null,null,null,null,null,null,null,null,null,null,null,null,null,null,null,null,null,null,null,null,null,null,235,null,null,null,237]
[null,null,null,null,null,null,null,null,null,null,null,null,null,null,null,null,null,null,null,null,null,null,null,null,null,null,null,null,null,null,null,null,null,236,null,null,null,238]
[null,null,null,null,null,null,null,null,null,null,null,null,null,null,null,null,null,null,null,null,null,null,null,null,null,null,null,null,null,null,null,null,null,237,null,null,null,239]
[null,null,null,null,null,null,null,null,null,null,null,null,null,null,null,null,null,null,null,null,null,null,null,null,null,null,null,null,null,null,null,null,null,238,null,null,null,240]
[null,null,null,null,null,null,null,null,null,null,null,null,null,null,null,null,null,null,null,null,null,null,null,null,null,null,null,null,null,null,null,null,null,239,null,null,null,241]
[null,null,null,null,null,null,null,null,null,null,null,null,null,null,null,null,null,null,null,null,null,null,null,null,null,null,null,null,null,null,null,null,null,240,null,null,null,242]
[null,null,null,null,null,null,null,null,null,null,null,null,null,null,null,null,null,null,null,null,null,null,null,null,null,null,null,null,null,null,null,null,null,241,null,null,null,243]
[null,null,null,null,null,null,null,null,null,null,null,null,null,null,null,null,null,null,null,null,null,null,null,null,null,null,null,null,null,null,null,null,null,242,null,null,null,244]
[null,null,null,null,null,null,null,null,null,null,null,null,null,null,null,null,null,null,null,null,null,null,null,null,null,null,null,null,null,null,null,null,null,243,null,null,null,245]
[null,null,null,null,null,null,null,null,null,null,null,null,null,null,null,null,null,null,null,null,null,null,null,null,null,null,null,null,null,null,null,null,null,244,null,null,null,246]
[null,null,null,null,null,null,null,null,null,null,null,null,null,null,null,null,null,null,null,null,null,null,null,null,null,null,null,null,null,null,null,null,null,245,null,null,null,247]
[null,null,null,null,null,null,null,null,null,null,null,null,null,null,null,null,null,null,null,null,null,null,null,null,null,null,null,null,null,null,null,null,null,246,null,null,null,248]
[null,null,null,null,null,null,null,null,null,null,null,null,null,null,null,null,null,null,null,null,null,null,null,null,null,null,null,null,null,null,null,null,null,247,null,null,null,249]
[null,null,null,null,null,null,null,null,null,null,null,null,null,null,null,null,null,null,null,null,null,null,null,null,null,null,null,null,null,null,null,null,null,248,null,null,null,250]
[null,null,null,null,null,null,null,null,null,null,null,null,null,null,null,null,null,null,null,null,null,null,null,null,null,null,null,null,null,null,null,null,null,249,null,null,null,251]
[null,null,null,null,null,null,null,null,null,null,null,null,null,null,null,null,null,null,null,null,null,null,null,null,null,null,null,null,null,null,null,null,null,250,null,null,null,252]
[null,null,null,null,null,null,null,null,null,null,null,null,null,null,null,null,null,null,null,null,null,null,null,null,null,null,null,null,null,null,null,null,null,251,null,null,null,253]
[null,null,null,null,null,null,null,null,null,null,null,null,null,null,null,null,null,null,null,null,null,null,null,null,null,null,null,null,null,null,null,null,null,252,null,null,null,254]
[null,null,null,null,null,null,null,null,null,null,null,null,null,null,null,null,null,null,null,null,null,null,null,null,null,null,null,null,null,null,null,null,null,253,null,null,null,255]
[null,null,null,null,null,null,null,null,null,null,null,null,null,null,null,null,null,null,null,null,null,null,null,null,null,null,null,null,null,null,null,null,null,254,null,null,null,256]
[null,null,null,null,null,null,null,null,null,null,null,null,null,null,null,null,null,null,null,null,null,null,null,null,null,null,null,null,null,null,null,null,null,255,null,null,null,257]
[null,null,null,null,null,null,null,null,null,null,null,null,null,null,null,null,null,null,null,null,null,null,null,null,null,null,null,null,null,null,null,null,null,256,null,null,null,258]
[null,null,null,null,null,null,null,null,null,null,null,null,null,null,null,null,null,null,null,null,null,null,null,null,null,null,null,null,null,null,null,null,null,257,null,null,null,259]
[null,null,null,null,null,null,null,null,null,null,null,null,null,null,null,null,null,null,null,null,null,null,null,null,null,null,null,null,null,null,null,null,null,258,null,null,null,260]
[null,null,null,null,null,null,null,null,null,null,null,null,null,null,null,null,null,null,null,null,null,null,null,null,null,null,null,null,null,null,null,null,null,259,null,null,null,261]
[null,null,null,null,null,null,null,null,null,null,null,null,null,null,null,null,null,null,null,null,null,null,null,null,null,null,null,null,null,null,null,null,null,260,null,null,null,262]
[null,null,null,null,null,null,null,null,null,null,null,null,null,null,null,null,null,null,null,null,null,null,null,null,null,null,null,null,null,null,null,null,null,261,null,null,null,263]
[null,null,null,null,null,null,null,null,null,null,null,null,null,null,null,null,null,null,null,null,null,null,null,null,null,null,null,null,null,null,null,null,null,262,null,null,null,264]
[null,null,null,null,null,null,null,null,null,null,null,null,null,null,null,null,null,null,null,null,null,null,null,null,null,null,null,null,null,null,null,null,null,263,null,null,null,265]
[null,null,null,null,null,null,null,null,null,null,null,null,null,null,null,null,null,null,null,null,null,null,null,null,null,null,null,null,null,null,null,null,null,264,null,null,null,266]
[null,null,null,null,null,null,null,null,null,null,null,null,null,null,null,null,null,null,null,null,null,null,null,null,null,null,null,null,null,null,null,null,null,265,null,null,null,267]
[null,null,null,null,null,null,null,null,null,null,null,null,null,null,null,null,null,null,null,null,null,null,null,null,null,null,null,null,null,null,null,null,null,266,null,null,null,268]
[null,null,null,null,null,null,null,null,null,null,null,null,null,null,null,null,null,null,null,null,null,null,null,null,null,null,null,null,null,null,null,null,null,267,null,null,null,269]
[null,null,null,null,null,null,null,null,null,null,null,null,null,null,null,null,null,null,null,null,null,null,null,null,null,null,null,null,null,null,null,null,null,268,null,null,null,270]
[null,null,null,null,null,null,null,null,null,null,null,null,null,null,null,null,null,null,null,null,null,null,null,null,null,null,null,null,null,null,null,null,null,269,null,null,null,271]
[null,null,null,null,null,null,null,null,null,null,null,null,null,null,null,null,null,null,null,null,null,null,null,null,null,null,null,null,null,null,null,null,null,270,null,null,null,272]
[null,null,null,null,null,null,null,null,null,null,null,null,null,null,null,null,null,null,null,null,null,null,null,null,null,null,null,null,null,null,null,null,null,271,null,null,null,273]
[null,null,null,null,null,null,null,null,null,null,null,null,null,null,null,null,null,null,null,null,null,null,null,null,null,null,null,null,null,null,null,null,null,272,null,null,null,274]
[null,null,null,null,null,null,null,null,null,null,null,null,null,null,null,null,null,null,null,null,null,null,null,null,null,null,null,null,null,null,null,null,null,273,null,null,null,275]
[null,null,null,null,null,null,null,null,null,null,null,null,null,null,null,null,null,null,null,null,null,null,null,null,null,null,null,null,null,null,null,null,null,274,null,null,null,276]
[null,null,null,null,null,null,null,null,null,null,null,null,null,null,null,null,null,null,null,null,null,null,null,null,null,null,null,null,null,null,null,null,null,275,null,null,null,277]
[null,null,null,null,null,null,null,null,null,null,null,null,null,null,null,null,null,null,null,null,null,null,null,null,null,null,null,null,null,null,null,null,null,276,null,null,null,278]
[null,null,null,null,null,null,null,null,null,null,null,null,null,null,null,null,null,null,null,null,null,null,null,null,null,null,null,null,null,null,null,null,null,277,null,null,null,279]
[null,null,null,null,null,null,null,null,null,null,null,null,null,null,null,null,null,null,null,null,null,null,null,null,null,null,null,null,null,null,null,null,null,278,null,null,null,280]
[null,null,null,null,null,null,null,null,null,null,null,null,null,null,null,null,null,null,null,null,null,null,null,null,null,null,null,null,null,null,null,null,null,279,null,null,null,281]
[null,null,null,null,null,null,null,null,null,null,null,null,null,null,null,null,null,null,null,null,null,null,null,null,null,null,null,null,null,null,null,null,null,280,null,null,null,282]
[null,null,null,null,null,null,null,null,null,null,null,null,null,null,null,null,null,null,null,null,null,null,null,null,null,null,null,null,null,null,null,null,null,281,null,null,null,283]
[null,null,null,null,null,null,null,null,null,null,null,null,null,null,null,null,null,null,null,null,null,null,null,null,null,null,null,null,null,null,null,null,null,282,null,null,null,284]
[null,null,null,null,null,null,null,null,null,null,null,null,null,null,null,null,null,null,null,null,null,null,null,null,null,null,null,null,null,null,null,null,null,283,null,null,null,285]
[null,null,null,null,null,null,null,null,null,null,null,null,null,null,null,null,null,null,null,null,null,null,null,null,null,null,null,null,null,null,null,null,null,284,null,null,null,286]
[null,null,null,null,null,null,null,null,null,null,null,null,null,null,null,null,null,null,null,null,null,null,null,null,null,null,null,null,null,null,null,null,null,285,null,null,null,287]
[null,null,null,null,null,null,null,null,null,null,null,null,null,null,null,null,null,null,null,null,null,null,null,null,null,null,null,null,null,null,null,null,null,286,null,null,null,288]
[null,null,null,null,null,null,null,null,null,null,null,null,null,null,null,null,null,null,null,null,null,null,null,null,null,null,null,null,null,null,null,null,null,287,null,null,null,289]
[null,null,null,null,null,null,null,null,null,null,null,null,null,null,null,null,null,null,null,null,null,null,null,null,null,null,null,null,null,null,null,null,null,288,null,null,null,290]
[null,null,null,null,null,null,null,null,null,null,null,null,null,null,null,null,null,null,null,null,null,null,null,null,null,null,null,null,null,null,null,null,null,289,null,null,null,291]
[null,null,null,null,null,null,null,null,null,null,null,null,null,null,null,null,null,null,null,null,null,null,null,null,null,null,null,null,null,null,null,null,null,290,null,null,null,292]
[null,null,null,null,null,null,null,null,null,null,null,null,null,null,null,null,null,null,null,null,null,null,null,null,null,null,null,null,null,null,null,null,null,291,null,null,null,293]
[null,null,null,null,null,null,null,null,null,null,null,null,null,null,null,null,null,null,null,null,null,null,null,null,null,null,null,null,null,null,null,null,null,292,null,null,null,294]
[null,null,null,null,null,null,null,null,null,null,null,null,null,null,null,null,null,null,null,null,null,null,null,null,null,null,null,null,null,null,null,null,null,293,null,null,null,295]
[null,null,null,null,null,null,null,null,null,null,null,null,null,null,null,null,null,null,null,null,null,null,null,null,null,null,null,null,null,null,null,null,null,294,null,null,null,296]
[null,null,null,null,null,null,null,null,null,null,null,null,null,null,null,null,null,null,null,null,null,null,null,null,null,null,null,null,null,null,null,null,null,295,null,null,null,297]
[null,null,null,null,null,null,null,null,null,null,null,null,null,null,null,null,null,null,null,null,null,null,null,null,null,null,null,null,null,null,null,null,null,296,null,null,null,298]
[null,null,null,null,null,null,null,null,null,null,null,null,null,null,null,null,null,null,null,null,null,null,null,null,null,null,null,null,null,null,null,null,null,297,null,null,null,299]
[null,null,null,null,null,null,null,null,null,null,null,null,null,null,null,null,null,null,null,null,null,null,null,null,null,null,null,null,null,null,null,null,null,298,null,null,null,300]
[null,null,null,null,null,null,null,null,null,null,null,null,null,null,null,null,null,null,null,null,null,null,null,null,null,null,null,null,null,null,null,null,null,299,null,null,null,301]
[null,null,null,null,null,null,null,null,null,null,null,null,null,null,null,null,null,null,null,null,null,null,null,null,null,null,null,null,null,null,null,null,null,300,null,null,null,302]
[null,null,null,null,null,null,null,null,null,null,null,null,null,null,null,null,null,null,null,null,null,null,null,null,null,null,null,null,null,null,null,null,null,301,null,null,null,303]
[null,null,null,null,null,null,null,null,null,null,null,null,null,null,null,null,null,null,null,null,null,null,null,null,null,null,null,null,null,null,null,null,null,302,null,null,null,304]
[null,null,null,null,null,null,null,null,null,null,null,null,null,null,null,null,null,null,null,null,null,null,null,null,null,null,null,null,null,null,null,null,null,303,null,null,null,305]
[null,null,null,null,null,null,null,null,null,null,null,null,null,null,null,null,null,null,null,null,null,null,null,null,null,null,null,null,null,null,null,null,null,304,null,null,null,306]
[null,null,null,null,null,null,null,null,null,null,null,null,null,null,null,null,null,null,null,null,null,null,null,null,null,null,null,null,null,null,null,null,null,305,null,null,null,307]
[null,null,null,null,null,null,null,null,null,null,null,null,null,null,null,null,null,null,null,null,null,null,null,null,null,null,null,null,null,null,null,null,null,306,null,null,null,308]
[null,null,null,null,null,null,null,null,null,null,null,null,null,null,null,null,null,null,null,null,null,null,null,null,null,null,null,null,null,null,null,null,null,307,null,null,null,309]
[null,null,null,null,null,null,null,null,null,null,null,null,null,null,null,null,null,null,null,null,null,null,null,null,null,null,null,null,null,null,null,null,null,308,null,null,null,310]
[null,null,null,null,null,null,null,null,null,null,null,null,null,null,null,null,null,null,null,null,null,null,null,null,null,null,null,null,null,null,null,null,null,309,null,null,null,311]
[null,null,null,null,null,null,null,null,null,null,null,null,null,null,null,null,null,null,null,null,null,null,null,null,null,null,null,null,null,null,null,null,null,310,null,null,null,312]
[null,null,null,null,null,null,null,null,null,null,null,null,null,null,null,null,null,null,null,null,null,null,null,null,null,null,null,null,null,null,null,null,null,311,null,null,null,313]
[null,null,null,null,null,null,null,null,null,null,null,null,null,null,null,null,null,null,null,null,null,null,null,null,null,null,null,null,null,null,null,null,null,312,null,null,null,314]
[null,null,null,null,null,null,null,null,null,null,null,null,null,null,null,null,null,null,null,null,null,null,null,null,null,null,null,null,null,null,null,null,null,313,null,null,null,315]
[null,null,null,null,null,null,null,null,null,null,null,null,null,null,null,null,null,null,null,null,null,null,null,null,null,null,null,null,null,null,null,null,null,314,null,null,null,316]
[null,null,null,null,null,null,null,null,null,null,null,null,null,null,null,null,null,null,null,null,null,null,null,null,null,null,null,null,null,null,null,null,null,315,null,null,null,317]
[null,null,null,null,null,null,null,null,null,null,null,null,null,null,null,null,null,null,null,null,null,null,null,null,null,null,null,null,null,null,null,null,null,316,null,null,null,318]
[null,null,null,null,null,null,null,null,null,null,null,null,null,null,null,null,null,null,null,null,null,null,null,null,null,null,null,null,null,null,null,null,null,317,null,null,null,319]
[null,null,null,null,null,null,null,null,null,null,null,null,null,null,null,null,null,null,null,null,null,null,null,null,null,null,null,null,null,null,null,null,null,318,null,null,null,320]
[null,null,null,null,null,null,null,null,null,null,null,null,null,null,null,null,null,null,null,null,null,null,null,null,null,null,null,null,null,null,null,null,null,319,null,null,null,321]
[null,null,null,null,null,null,null,null,null,null,null,null,null,null,null,null,null,null,null,null,null,null,null,null,null,null,null,null,null,null,null,null,null,320,null,null,null,322]
[null,null,null,null,null,null,null,null,null,null,null,null,null,null,null,null,null,null,null,null,null,null,null,null,null,null,null,null,null,null,null,null,null,321,null,null,null,323]
[null,null,null,null,null,null,null,null,null,null,null,null,null,null,null,null,null,null,null,null,null,null,null,null,null,null,null,null,null,null,null,null,null,322,null,null,null,324]
[null,null,null,null,null,null,null,null,null,null,null,null,null,null,null,null,null,null,null,null,null,null,null,null,null,null,null,null,null,null,null,null,null,323,null,null,null,325]
[null,null,null,null,null,null,null,null,null,null,null,null,null,null,null,null,null,null,null,null,null,null,null,null,null,null,null,null,null,null,null,null,null,324,null,null,null,326]
[null,null,null,null,null,null,null,null,null,null,null,null,null,null,null,null,null,null,null,null,null,null,null,null,null,null,null,null,null,null,null,null,null,325,null,null,null,327]
[null,null,null,null,null,null,null,null,null,null,null,null,null,null,null,null,null,null,null,null,null,null,null,null,null,null,null,null,null,null,null,null,null,326,null,null,null,328]
[null,null,null,null,null,null,null,null,null,null,null,null,null,null,null,null,null,null,null,null,null,null,null,null,null,null,null,null,null,null,null,null,null,327,null,null,null,329]
[null,null,null,null,null,null,null,null,null,null,null,null,null,null,null,null,null,null,null,null,null,null,null,null,null,null,null,null,null,null,null,null,null,328,null,null,null,330]
[null,null,null,null,null,null,null,null,null,null,null,null,null,null,null,null,null,null,null,null,null,null,null,null,null,null,null,null,null,null,null,null,null,329,null,null,null,331]
[null,null,null,null,null,null,null,null,null,null,null,null,null,null,null,null,null,null,null,null,null,null,null,null,null,null,null,null,null,null,null,null,null,330,null,null,null,332]
[null,null,null,null,null,null,null,null,null,null,null,null,null,null,null,null,null,null,null,null,null,null,null,null,null,null,null,null,null,null,null,null,null,331,null,null,null,333]
[null,null,null,null,null,null,null,null,null,null,null,null,null,null,null,null,null,null,null,null,null,null,null,null,null,null,null,null,null,null,null,null,null,332,null,null,null,334]
[null,null,null,null,null,null,null,null,null,null,null,null,null,null,null,null,null,null,null,null,null,null,null,null,null,null,null,null,null,null,null,null,null,333,null,null,null,335]
[null,null,null,null,null,null,null,null,null,null,null,null,null,null,null,null,null,null,null,null,null,null,null,null,null,null,null,null,null,null,null,null,null,334,null,null,null,336]
[null,null,null,null,null,null,null,null,null,null,null,null,null,null,null,null,null,null,null,null,null,null,null,null,null,null,null,null,null,null,null,null,null,335,null,null,null,337]
[null,null,null,null,null,null,null,null,null,null,null,null,null,null,null,null,null,null,null,null,null,null,null,null,null,null,null,null,null,null,null,null,null,336,null,null,null,338]
[null,null,null,null,null,null,null,null,null,null,null,null,null,null,null,null,null,null,null,null,null,null,null,null,null,null,null,null,null,null,null,null,null,337,null,null,null,339]
[null,null,null,null,null,null,null,null,null,null,null,null,null,null,null,null,null,null,null,null,null,null,null,null,null,null,null,null,null,null,null,null,null,338,null,null,null,340]
[null,null,null,null,null,null,null,null,null,null,null,null,null,null,null,null,null,null,null,null,null,null,null,null,null,null,null,null,null,null,null,null,null,339,null,null,null,341]
[null,null,null,null,null,null,null,null,null,null,null,null,null,null,null,null,null,null,null,null,null,null,null,null,null,null,null,null,null,null,null,null,null,340,null,null,null,342]
[null,null,null,null,null,null,null,null,null,null,null,null,null,null,null,null,null,null,null,null,null,null,null,null,null,null,null,null,null,null,null,null,null,341,null,null,null,343]
[null,null,null,null,null,null,null,null,null,null,null,null,null,null,null,null,null,null,null,null,null,null,null,null,null,null,null,null,null,null,null,null,null,342,null,null,null,344]
[null,null,null,null,null,null,null,null,null,null,null,null,null,null,null,null,null,null,null,null,null,null,null,null,null,null,null,null,null,null,null,null,null,343,null,null,null,345]
[null,null,null,null,null,null,null,null,null,null,null,null,null,null,null,null,null,null,null,null,null,null,null,null,null,null,null,null,null,null,null,null,null,344,null,null,null,346]
[null,null,null,null,null,null,null,null,null,null,null,null,null,null,null,null,null,null,null,null,null,null,null,null,null,null,null,null,null,null,null,null,null,345,null,null,null,347]
[null,null,null,null,null,null,null,null,null,null,null,null,null,null,null,null,null,null,null,null,null,null,null,null,null,null,null,null,null,null,null,null,null,346,null,null,null,348]
[null,null,null,null,null,null,null,null,null,null,null,null,null,null,null,null,null,null,null,null,null,null,null,null,null,null,null,null,null,null,null,null,null,347,null,null,null,349]
[null,null,null,null,null,null,null,null,null,null,null,null,null,null,null,null,null,null,null,null,null,null,null,null,null,null,null,null,null,null,null,null,null,348,null,null,null,350]
[null,null,null,null,null,null,null,null,null,null,null,null,null,null,null,null,null,null,null,null,null,null,null,null,null,null,null,null,null,null,null,null,null,349,null,null,null,351]
[null,null,null,null,null,null,null,null,null,null,null,null,null,null,null,null,null,null,null,null,null,null,null,null,null,null,null,null,null,null,null,null,null,350,null,null,null,352]
[null,null,null,null,null,null,null,null,null,null,null,null,null,null,null,null,null,null,null,null,null,null,null,null,null,null,null,null,null,null,null,null,null,351,null,null,null,353]
[null,null,null,null,null,null,null,null,null,null,null,null,null,null,null,null,null,null,null,null,null,null,null,null,null,null,null,null,null,null,null,null,null,352,null,null,null,354]
[null,null,null,null,null,null,null,null,null,null,null,null,null,null,null,null,null,null,null,null,null,null,null,null,null,null,null,null,null,null,null,null,null,353,null,null,null,355]
[null,null,null,null,null,null,null,null,null,null,null,null,null,null,null,null,null,null,null,null,null,null,null,null,null,null,null,null,null,null,null,null,null,354,null,null,null,356]
[null,null,null,null,null,null,null,null,null,null,null,null,null,null,null,null,null,null,null,null,null,null,null,null,null,null,null,null,null,null,null,null,null,355,null,null,null,357]
[null,null,null,null,null,null,null,null,null,null,null,null,null,null,null,null,null,null,null,null,null,null,null,null,null,null,null,null,null,null,null,null,null,356,null,null,null,358]
[null,null,null,null,null,null,null,null,null,null,null,null,null,null,null,null,null,null,null,null,null,null,null,null,null,null,null,null,null,null,null,null,null,357,null,null,null,359]
[null,null,null,null,null,null,null,null,null,null,null,null,null,null,null,null,null,null,null,null,null,null,null,null,null,null,null,null,null,null,null,null,null,358,null,null,null,360]
[null,null,null,null,null,null,null,null,null,null,null,null,null,null,null,null,null,null,null,null,null,null,null,null,null,null,null,null,null,null,null,null,null,359]
[null,null,null,null,null,null,null,null,null,null,null,null,null,null,null,null,null,null,null,null,null,null,null,null,null,null,null,null,null,null,null,null,null,360]
[]
[]
[]
[]
[]
[]
[]
[]
[]
[]
[]
[]
[]
[]
[]
[]
[]
[]
[]
[]
[]
[]
[]
[]
[]
[]
[]
[]
[]
[]
[]
[]
[]
[]
[]
[]
[]
[]
[]
[]
[]
[]
[]
[]
[]
[]
[]
[]
[]
[]
[]
[]
[]
[]
[]
[]
[]
[]
[]
[]
[]
[]
[]
[]
[]
[]
[]
[]
[]
[]
[]
[]
[]
[]
[]
[]
[]
[]
[]
[]
[]
[]
[]
[]
[]
[]
[]
[]
[]
[]
[]
[]
[]
[]
[]
[]
[]
[]
[]
[]
[]
[]
[]
[]
[]
[]
[]
[]
[]
[]
[]
[]
[]
[]
[]
[]
[]
[]
[]
[]
[]
[]
[]
[]
[]
[]
[]
[]
[]
[]
[]
[]
[]
[]
[]
[]
[]
[]
[]
[]
[]
[]
[]
[]
[]
[]
[]
[]
[]
[]
[]
[]
[]
[]
[]
[]
[]
[]
[]
[]
[]
[]
[]
[]
[]
[]
[]
[]
[]
[]
[]
[]
[]
[]
[]
[]
[]
[]
[]
[]
[]
[]
[]
[]
[]
[]
[]
[]
[]
[]
[]
[]
[]
[]
[]
[]
[]
[]
[]
[]
[]
[]
[]
[]
[]
[]
[]
[]
[]
[]
[]
[]
[]
[]
[]
[]
[]
[]
[]
[]
[]
[]
[]
[]
[]
[]
[]
[]
[]
[]
[]
[]
[]
[]
[]
[]
[]
[]
[]
[]
[]
[]
[]
[]
[]
[]
[]
[]
[]
[]
[]
[]
[]
[]
[]
[]
[]
[]
[]
[]
[]
[]
[]
[]
[]
[]
[]
[]
[]
[]
[]
[]
[]
[]
[]
[]
[]
[]
[]
[]
[]
[]
[]
[]
[]
[]
[]
[]
[]
[]
[]
[]
[]
[]
[]
[]
[]
[]
[]
[]
[]
[]
[]
[]
[]
[]
[]
[]
[]
[]
[]
[]
[]
[]
[]
[]
[]
[]
[]
[]
[]
[]
[]
[]
[]
[]
[]
[]
[]
[]
[]
[]
[]
[]
[]
[]
[]
[]
[]
[]
[]
[]
[]
[]
[]
[]
[]
[]
[]
[]
[]
[]
[]
[]
[]
[]
[]
[]
[]
[]
[]
[]
[]
[]
[]
[]
[]
[]
[]
[]
[]
[]
[]
[]
[]
[]
[]
[]
[]
[]
[]
[]
[]
[]
[]
[]
[]
[]
[]
[]
[]
[]
[]
[]
[]
[]
[]
[]
[]
[]
[]
[]
[]
[]
[]
[]
[]
[]
[]
[]
[]
[]
[]
[]
[]
[]
[]
[]
[]
[]
[]
[]
[]
[]
[]
[]
[]
[]
[]
[]
[]
[]
[]
[]
[]
[]
[]
[]
[]
[]
[]
[]
[]
[]
[]
[]
[]
[]
[]
[]
[]
[]
[]
[]
[]
[]
[]
[]
[]
[]
[]
[]
[]
[]
[]
[]
[]
[]
[]
[]
[]
[]
[]
[]
[]
[]
[]
[]
[]
[]
[]
[]
[]
[]
[]
[]
[]
[]
[]
[]
[]
[]
[]
[]
[]
[]
[]
[]
[]
[]
[]
[]
[]
[]
[]
[]
[]
[]
[]
[]
[]
[]
[]
[]
[]
[]
[]
[]
[]
[]
[]
[]
[]
[]
[]
[]
[]
[]
[]
[]
[]
[]
[]
[]
[]
[]
[]
[]
[]
[]
[]
[]
[]
[]
[]
[]
[]
[]
[]
[]
[]
[]
[]
[]
[]
[]
[]
[]
[]
[]
[]
[]
[]
[]
[]
[]
[]
[]
[]
[]
[]
[]
[]
[]
[]
[]
[]
[]
[]
[]
[]
[]
[]
[]
[]
[]
[]
[]
[]
[]
[]
[]
[]
[]
[]
[]
[]
[]
[]
[]
[]
[]
[]
[]
[]
[]
[]
[]
[]
[]
[]
[]
[]
[]
[]
[]
[]
[]
[]
[]
[]
[]
[]
[]
[]
[]
[]
[]
[]
[]
[]
[]
[]
[]
[]
[]
[]
[]
[]
[]
[]
[]
[]
[]
[]
[]
[]
[]
[]
[]
[]
[]
[]
[]
[]
[]
[]
[]
[]
[]
[]
[]
[]
[]
[]
[]
[]
[]
[]
[]
[]
[]
[]
[]
[]
[]
[]
[]
[]
[]
[]
[]
[]
[]
[]
[]
[]
[]
[]
[]
[]
[]
[]
[]
[]
[]
[]
[]
[]
[]
[]
[]
[]
[]
[]
[]
[]
[]
[]
[]
[]
[]
[]
[]
[]
[]
[]
[]
[]
[]
[]
[]
[]
[]
[]
[]
[]
[]
[]
[]
[]
[]
[]
[]
[]
[]
[]
[]
[]
[]
[]
[]
[]
[]
[]
[]
[]
[]
[]
[]
[]
[]
[]
[]
[]
[]
[]
[]
[]
[]
[]
[]
[]
[]
[]
[]
[]
[]
[]
[]
[]
[]
[]
[]
[]
[]
[]
[]
[]
[]
[]
[]
[]
[]
[]
[]
[]
[]
[]
[]
[]
[]
[]
[]
[]
[]
[]
[]
[]
[]
[]
[]
[]
[]
[]
[]
[]
[]
[]
[]
[]
[]
[]
[]
[]
[]
[]
[]
[]
[]
[]
[]
[]
[]
[]
[]
[]
[]
[]
[]
[]
[]
[]
[]
[]
[]
[]
[]
[]
[]
[]
[]
[]
[]
[]
[]
[]
[]
[]
[]
[]
[]
[]
[]
[]
[]
[]
[]
[]
[]
[]
[]
[]
[]
[]
[]
[]
[]
[]
[]
[]
[]
[]
[]
[]
[]
[]
[]
[]
[]
[]
[]
[]
[]
[]
[]
[]
[]
[]
[]
[]
[]
[]
[]
[]
[]
[]
[]
[]
[]
[]
[]
[]
[]
[]
[]
[]
[]
[]
[]
[]
[]
[]
[]
[]
[]
[]
[]
[]
[]
[]
[]
[]
[]
[]
[]
[]
[]
[]
[]
[]
[]
[]
[]
[]
[]
[]
[]
[]
[]
[]
[]
[]
[]
[]
[]
[]
[]
[]
[]
[]
[]
[]
[]
[]
[]
[]
[]
[]
[]
[]
[]
[]
[]
[]
[]
[]
[]
[]
[]
[]
[]
[]
[]
[]
[]
[]
[]
[]
[]
[]
[]
[]
[]
[]
[]
[]
[]
[]
[]
[]
[]
[]
[]
[]
[]
[]
[]
[]
[]
[]
[]
[]
[]
[]
[]
[]
[]
[]
[]
[]
[]
[]
[]
[]
[]
[]
[]
[]
[]
[]
[]
[]
[]
[]
[]
[]
[]
[]
[]
[]
[]
[]
[]
[]
[]
[]
[]
[]
[]
[]
[]
[]
[]
[]
[]
[]
[]
[]
[]
[]
[]
[]
[]
[]
[]
[]
[]
[]
[]
[]
[]
[]
[]
[]
[]
[]
[]
[]
[]
[]
[]
[]
[]
[]
[]
[]
[]
[]
[]
[]
[]
[]
[]
[]
[]
[]
[]
[]
[]
[]
[]
[]
[]
[]
[]
[]
[]
[]
[]
[]
[]
[]
[]
[]
[]
[]
[]
[]
[]
[]
[]
[]
[]
[]
[]
[]
[]
[]
[]
[]
[]
[]
[]
[]
[]
[]
[]
[]
[null,null,null,null,null,null,null,null,null,null,null,null,null,null,null,"Line1115"]
[null,null,null,null,null,null,null,null,null,null,null,null,null,null,null,"Line1116"]
[null,null,null,null,null,null,null,null,null,null,null,null,null,null,null,"Line1117"]
[null,null,null,null,null,null,null,null,null,null,null,null,null,null,null,"Line1118"]
[null,null,null,null,null,null,null,null,null,null,null,null,null,null,null,"Line1119"]
[null,null,null,null,null,null,null,null,null,null,null,null,null,null,null,"Line1120"]
[null,null,null,null,null,null,null,null,null,null,null,null,null,null,null,"Line1121"]
[null,null,null,null,null,null,null,null,null,null,null,null,null,null,null,"Line1122"]
[null,null,null,null,null,null,null,null,null,null,null,null,null,null,null,"Line1123"]
[null,null,null,null,null,null,null,null,null,null,null,null,null,null,null,"Line1124"]
[null,null,null,null,null,null,null,null,null,null,null,null,null,null,null,"Line1125"]
[null,null,null,null,null,null,null,null,null,null,null,null,null,null,null,"Line1126"]
[null,null,null,null,null,null,null,null,null,null,null,null,null,null,null,"Line1127"]
[null,null,null,null,null,null,null,null,null,null,null,null,null,null,null,"Line1128"]
[null,null,null,null,null,null,null,null,null,null,null,null,null,null,null,"Line1129"]
[null,null,null,null,null,null,null,null,null,null,null,null,null,null,null,"Line1130"]
[null,null,null,null,null,null,null,null,null,null,null,null,null,null,null,"Line1131"]
[null,null,null,null,null,null,null,null,null,null,null,null,null,null,null,"Line1132"]
[null,null,null,null,null,null,null,null,null,null,null,null,null,null,null,"Line1133"]
[null,null,null,null,null,null,null,null,null,null,null,null,null,null,null,"Line1134"]
[null,null,null,null,null,null,null,null,null,null,null,null,null,null,null,"Line1135"]
[null,null,null,null,null,null,null,null,null,null,null,null,null,null,null,"Line1136"]
[null,null,null,null,null,null,null,null,null,null,null,null,null,null,null,"Line1137"]
[null,null,null,null,null,null,null,null,null,null,null,null,null,null,null,"Line1138"]
[null,null,null,null,null,null,null,null,null,null,null,null,null,null,null,"Line1139"]
[null,null,null,null,null,null,null,null,null,null,null,null,null,null,null,"Line1140"]
[null,null,null,null,null,null,null,null,null,null,null,null,null,null,null,"Line1141"]
[null,null,null,null,null,null,null,null,null,null,null,null,null,null,null,"Line1142"]
[null,null,null,null,null,null,null,null,null,null,null,null,null,null,null,"Line1143"]
[null,null,null,null,null,null,null,null,null,null,null,null,null,null,null,"Line1144"]
[null,null,null,null,null,null,null,null,null,null,null,null,null,null,null,"Line1145"]
[null,null,null,null,null,null,null,null,null,null,null,null,null,null,null,"Line1146"]
[null,null,null,null,null,null,null,null,null,null,null,null,null,null,null,"Line1147"]
[null,null,null,null,null,null,null,null,null,null,null,null,null,null,null,"Line1148"]
[null,null,null,null,null,null,null,null,null,null,null,null,null,null,null,"Line1149"]
[null,null,null,null,null,null,null,null,null,null,null,null,null,null,null,"Line1150"]
[null,null,null,null,null,null,null,null,null,null,null,null,null,null,null,"Line1151"]
[null,null,null,null,null,null,null,null,null,null,null,null,null,null,null,"Line1152"]
[null,null,null,null,null,null,null,null,null,null,null,null,null,null,null,"Line1153"]
[null,null,null,null,null,null,null,null,null,null,null,null,null,null,null,"Line1154"]
[null,null,null,null,null,null,null,null,null,null,null,null,null,null,null,"Line1155"]
[null,null,null,null,null,null,null,null,null,null,null,null,null,null,null,"Line1156"]
[null,null,null,null,null,null,null,null,null,null,null,null,null,null,null,"Line1157"]
[null,null,null,null,null,null,null,null,null,null,null,null,null,null,null,"Line1158"]
[null,null,null,null,null,null,null,null,null,null,null,null,null,null,null,"Line1159"]
[null,null,null,null,null,null,null,null,null,null,null,null,null,null,null,"Line1160"]
[null,null,null,null,null,null,null,null,null,null,null,null,null,null,null,"Line1161"]
[null,null,null,null,null,null,null,null,null,null,null,null,null,null,null,"Line1162"]
[null,null,null,null,null,null,null,null,null,null,null,null,null,null,null,"Line1163"]
[null,null,null,null,null,null,null,null,null,null,null,null,null,null,null,"Line1164"]
[null,null,null,null,null,null,null,null,null,null,null,null,null,null,null,"Line1165"]
[null,null,null,null,null,null,null,null,null,null,null,null,null,null,null,"Line1166"]
[null,null,null,null,null,null,null,null,null,null,null,null,null,null,null,"Line1167"]
[null,null,null,null,null,null,null,null,null,null,null,null,null,null,null,"Line1168"]
[null,null,null,null,null,null,null,null,null,null,null,null,null,null,null,"Line1169"]
[null,null,null,null,null,null,null,null,null,null,null,null,null,null,null,"Line1170"]
[null,null,null,null,null,null,null,null,null,null,null,null,null,null,null,"Line1171"]
[null,null,null,null,null,null,null,null,null,null,null,null,null,null,null,"Line1172"]
[null,null,null,null,null,null,null,null,null,null,null,null,null,null,null,"Line1173"]
[null,null,null,null,null,null,null,null,null,null,null,null,null,null,null,"Line1174"]
[null,null,null,null,null,null,null,null,null,null,null,null,null,null,null,"Line1175"]
[null,null,null,null,null,null,null,null,null,null,null,null,null,null,null,"Line1176"]
[null,null,null,null,null,null,null,null,null,null,null,null,null,null,null,"Line1177"]
[null,null,null,null,null,null,null,null,null,null,null,null,null,null,null,"Line1178"]
[null,null,null,null,null,null,null,null,null,null,null,null,null,null,null,"Line110"]
[null,null,null,null,null,null,null,null,null,null,null,null,null,null,null,"Line111"]
[null,null,null,null,null,null,null,null,null,null,null,null,null,null,null,"Line112"]
[null,null,null,null,null,null,null,null,null,null,null,null,null,null,null,"Line11"]
[null,null,null,null,null,null,null,null,null,null,null,null,null,null,null,"Line12"]
[null,null,null,null,null,null,null,null,null,null,null,null,null,null,null,"Line13"]
[null,null,null,null,null,null,null,null,null,null,null,null,null,null,null,"Line14"]
[null,null,null,null,null,null,null,null,null,null,null,null,null,null,null,"Line15"]
[null,null,null,null,null,null,null,null,null,null,null,null,null,null,null,"Line16"]
[null,null,null,null,null,null,null,null,null,null,null,null,null,null,null,"Line17"]
[null,null,null,null,null,null,null,null,null,null,null,null,null,null,null,"Line18"]
[null,null,null,null,null,null,null,null,null,null,null,null,null,null,null,"Line19"]
[null,null,null,null,null,null,null,null,null,null,null,null,null,null,null,"Line110"]
[null,null,null,null,null,null,null,null,null,null,null,null,null,null,null,"Line111"]
[null,null,null,null,null,null,null,null,null,null,null,null,null,null,null,"Line112"]
[null,null,null,null,null,null,null,null,null,null,null,null,null,null,null,"Line113"]
[null,null,null,null,null,null,null,null,null,null,null,null,null,null,null,"Line114"]
[null,null,null,null,null,null,null,null,null,null,null,null,null,null,null,"Line115"]
[null,null,null,null,null,null,null,null,null,null,null,null,null,null,null,"Line116"]
[null,null,null,null,null,null,null,null,null,null,null,null,null,null,null,"Line117"]
[null,null,null,null,null,null,null,null,null,null,null,null,null,null,null,"Line118"]
[null,null,null,null,null,null,null,null,null,null,null,null,null,null,null,"Line119"]
[null,null,null,null,null,null,null,null,null,null,null,null,null,null,null,"Line120"]
[null,null,null,null,null,null,null,null,null,null,null,null,null,null,null,"Line121"]
[null,null,null,null,null,null,null,null,null,null,null,null,null,null,null,"Line122"]
[null,null,null,null,null,null,null,null,null,null,null,null,null,null,null,"Line123"]
[null,null,null,null,null,null,null,null,null,null,null,null,null,null,null,"Line124"]
[null,null,null,null,null,null,null,null,null,null,null,null,null,null,null,"Line125"]
[null,null,null,null,null,null,null,null,null,null,null,null,null,null,null,"Line126"]
[null,null,null,null,null,null,null,null,null,null,null,null,null,null,null,"Line127"]
[null,null,null,null,null,null,null,null,null,null,null,null,null,null,null,"Line128"]
[null,null,null,null,null,null,null,null,null,null,null,null,null,null,null,"Line129"]
[null,null,null,null,null,null,null,null,null,null,null,null,null,null,null,"Line130"]
[null,null,null,null,null,null,null,null,null,null,null,null,null,null,null,"Line131"]
[null,null,null,null,null,null,null,null,null,null,null,null,null,null,null,"Line132"]
[null,null,null,null,null,null,null,null,null,null,null,null,null,null,null,"Line133"]
[null,null,null,null,null,null,null,null,null,null,null,null,null,null,null,"Line134"]
[null,null,null,null,null,null,null,null,null,null,null,null,null,null,null,"Line135"]
[null,null,null,null,null,null,null,null,null,null,null,null,null,null,null,"Line136"]
[null,null,null,null,null,null,null,null,null,null,null,null,null,null,null,"Line137"]
[null,null,null,null,null,null,null,null,null,null,null,null,null,null,null,"Line138"]
[null,null,null,null,null,null,null,null,null,null,null,null,null,null,null,"Line139"]
[null,null,null,null,null,null,null,null,null,null,null,null,null,null,null,"Line140"]
[null,null,null,null,null,null,null,null,null,null,null,null,null,null,null,"Line141"]
[null,null,null,null,null,null,null,null,null,null,null,null,null,null,null,"Line142"]
[null,null,null,null,null,null,null,null,null,null,null,null,null,null,null,"Line143"]
[null,null,null,null,null,null,null,null,null,null,null,null,null,null,null,"Line144"]
[null,null,null,null,null,null,null,null,null,null,null,null,null,null,null,"Line145"]
[null,null,null,null,null,null,null,null,null,null,null,null,null,null,null,"Line146"]
[null,null,null,null,null,null,null,null,null,null,null,null,null,null,null,"Line147"]
[null,null,null,null,null,null,null,null,null,null,null,null,null,null,null,"Line148"]
[null,null,null,null,null,null,null,null,null,null,null,null,null,null,null,"Line149"]
[null,null,null,null,null,null,null,null,null,null,null,null,null,null,null,"Line150"]
[null,null,null,null,null,null,null,null,null,null,null,null,null,null,null,"Line151"]
[null,null,null,null,null,null,null,null,null,null,null,null,null,null,null,"Line152"]
[null,null,null,null,null,null,null,null,null,null,null,null,null,null,null,"Line153"]
[null,null,null,null,null,null,null,null,null,null,null,null,null,null,null,"Line154"]
[null,null,null,null,null,null,null,null,null,null,null,null,null,null,null,"Line155"]
[null,null,null,null,null,null,null,null,null,null,null,null,null,null,null,"Line156"]
[null,null,null,null,null,null,null,null,null,null,null,null,null,null,null,"Line157"]
[null,null,null,null,null,null,null,null,null,null,null,null,null,null,null,"Line158"]
[null,null,null,null,null,null,null,null,null,null,null,null,null,null,null,"Line159"]
[null,null,null,null,null,null,null,null,null,null,null,null,null,null,null,"Line160"]
[null,null,null,null,null,null,null,null,null,null,null,null,null,null,null,"Line161"]
[null,null,null,null,null,null,null,null,null,null,null,null,null,null,null,"Line162"]
[null,null,null,null,null,null,null,null,null,null,null,null,null,null,null,"Line163"]
[null,null,null,null,null,null,null,null,null,null,null,null,null,null,null,"Line164"]
[null,null,null,null,null,null,null,null,null,null,null,null,null,null,null,"Line165"]
[null,null,null,null,null,null,null,null,null,null,null,null,null,null,null,"Line166"]
[null,null,null,null,null,null,null,null,null,null,null,null,null,null,null,"Line167"]
[null,null,null,null,null,null,null,null,null,null,null,null,null,null,null,"Line168"]
[null,null,null,null,null,null,null,null,null,null,null,null,null,null,null,"Line169"]
[null,null,null,null,null,null,null,null,null,null,null,null,null,null,null,"Line170"]
[null,null,null,null,null,null,null,null,null,null,null,null,null,null,null,"Line171"]
[null,null,null,null,null,null,null,null,null,null,null,null,null,null,null,"Line172"]
[null,null,null,null,null,null,null,null,null,null,null,null,null,null,null,"Line173"]
[null,null,null,null,null,null,null,null,null,null,null,null,null,null,null,"Line174"]
[null,null,null,null,null,null,null,null,null,null,null,null,null,null,null,"Line175"]
[null,null,null,null,null,null,null,null,null,null,null,null,null,null,null,"Line176"]
[null,null,null,null,null,null,null,null,null,null,null,null,null,null,null,"Line177"]
[null,null,null,null,null,null,null,null,null,null,null,null,null,null,null,"Line178"]
[null,null,null,null,null,null,null,null,null,null,null,null,null,null,null,"Line179"]
[null,null,null,null,null,null,null,null,null,null,null,null,null,null,null,"Line180"]
[null,null,null,null,null,null,null,null,null,null,null,null,null,null,null,"Line181"]
[null,null,null,null,null,null,null,null,null,null,null,null,null,null,null,"Line182"]
[null,null,null,null,null,null,null,null,null,null,null,null,null,null,null,"Line183"]
[null,null,null,null,null,null,null,null,null,null,null,null,null,null,null,"Line184"]
[null,null,null,null,null,null,null,null,null,null,null,null,null,null,null,"Line185"]
[null,null,null,null,null,null,null,null,null,null,null,null,null,null,null,"Line186"]
[null,null,null,null,null,null,null,null,null,null,null,null,null,null,null,"Line187"]
[null,null,null,null,null,null,null,null,null,null,null,null,null,null,null,"Line188"]
[null,null,null,null,null,null,null,null,null,null,null,null,null,null,null,"Line189"]
[null,null,null,null,null,null,null,null,null,null,null,null,null,null,null,"Line190"]
[null,null,null,null,null,null,null,null,null,null,null,null,null,null,null,"Line191"]
[null,null,null,null,null,null,null,null,null,null,null,null,null,null,null,"Line192"]
[null,null,null,null,null,null,null,null,null,null,null,null,null,null,null,"Line193"]
[null,null,null,null,null,null,null,null,null,null,null,null,null,null,null,"Line194"]
[null,null,null,null,null,null,null,null,null,null,null,null,null,null,null,"Line195"]
[null,null,null,null,null,null,null,null,null,null,null,null,null,null,null,"Line196"]
[null,null,null,null,null,null,null,null,null,null,null,null,null,null,null,"Line197"]
[null,null,null,null,null,null,null,null,null,null,null,null,null,null,null,"Line198"]
[null,null,null,null,null,null,null,null,null,null,null,null,null,null,null,"Line199"]
[null,null,null,null,null,null,null,null,null,null,null,null,null,null,null,"Line1100"]
[null,null,null,null,null,null,null,null,null,null,null,null,null,null,null,"Line1101"]
[null,null,null,null,null,null,null,null,null,null,null,null,null,null,null,"Line1102"]
[null,null,null,null,null,null,null,null,null,null,null,null,null,null,null,"Line1103"]
[null,null,null,null,null,null,null,null,null,null,null,null,null,null,null,"Line1104"]
[null,null,null,null,null,null,null,null,null,null,null,null,null,null,null,"Line1105"]
[null,null,null,null,null,null,null,null,null,null,null,null,null,null,null,"Line1106"]
[null,null,null,null,null,null,null,null,null,null,null,null,null,null,null,"Line1107"]
[null,null,null,null,null,null,null,null,null,null,null,null,null,null,null,"Line1108"]
[null,null,null,null,null,null,null,null,null,null,null,null,null,null,null,"Line1109"]
[null,null,null,null,null,null,null,null,null,null,null,null,null,null,null,"Line1110"]
[null,null,null,null,null,null,null,null,null,null,null,null,null,null,null,"Line1111"]
[null,null,null,null,null,null,null,null,null,null,null,null,null,null,null,"Line1112"]
[null,null,null,null,null,null,null,null,null,null,null,null,null,null,null,"Line1113"]
[null,null,null,null,null,null,null,null,null,null,null,null,null,null,null,"Line1114"]
[null,null,null,null,null,null,null,null,null,null,null,null,null,null,null,"Line1115"]
[null,null,null,null,null,null,null,null,null,null,null,null,null,null,null,"Line1116"]
[null,null,null,null,null,null,null,null,null,null,null,null,null,null,null,"Line1117"]
[null,null,null,null,null,null,null,null,null,null,null,null,null,null,null,"Line1118"]
[null,null,null,null,null,null,null,null,null,null,null,null,null,null,null,"Line1119"]
[null,null,null,null,null,null,null,null,null,null,null,null,null,null,null,"Line1120"]
[null,null,null,null,null,null,null,null,null,null,null,null,null,null,null,"Line1121"]
[null,null,null,null,null,null,null,null,null,null,null,null,null,null,null,"Line1122"]
[null,null,null,null,null,null,null,null,null,null,null,null,null,null,null,"Line1123"]
[null,null,null,null,null,null,null,null,null,null,null,null,null,null,null,"Line1124"]
[null,null,null,null,null,null,null,null,null,null,null,null,null,null,null,"Line1125"]
[null,null,null,null,null,null,null,null,null,null,null,null,null,null,null,"Line1126"]
[null,null,null,null,null,null,null,null,null,null,null,null,null,null,null,"Line1127"]
[null,null,null,null,null,null,null,null,null,null,null,null,null,null,null,"Line1128"]
[null,null,null,null,null,null,null,null,null,null,null,null,null,null,null,"Line1129"]
[null,null,null,null,null,null,null,null,null,null,null,null,null,null,null,"Line1130"]
[null,null,null,null,null,null,null,null,null,null,null,null,null,null,null,"Line1131"]
[null,null,null,null,null,null,null,null,null,null,null,null,null,null,null,"Line1132"]
[null,null,null,null,null,null,null,null,null,null,null,null,null,null,null,"Line1133"]
[null,null,null,null,null,null,null,null,null,null,null,null,null,null,null,"Line1134"]
[null,null,null,null,null,null,null,null,null,null,null,null,null,null,null,"Line1135"]
[null,null,null,null,null,null,null,null,null,null,null,null,null,null,null,"Line1136"]
[null,null,null,null,null,null,null,null,null,null,null,null,null,null,null,"Line1137"]
[null,null,null,null,null,null,null,null,null,null,null,null,null,null,null,"Line1138"]
[null,null,null,null,null,null,null,null,null,null,null,null,null,null,null,"Line1139"]
[null,null,null,null,null,null,null,null,null,null,null,null,null,null,null,"Line1140"]
[null,null,null,null,null,null,null,null,null,null,null,null,null,null,null,"Line1141"]
[null,null,null,null,null,null,null,null,null,null,null,null,null,null,null,"Line1142"]
[null,null,null,null,null,null,null,null,null,null,null,null,null,null,null,"Line1143"]
[null,null,null,null,null,null,null,null,null,null,null,null,null,null,null,"Line1144"]
[null,null,null,null,null,null,null,null,null,null,null,null,null,null,null,"Line1145"]
[null,null,null,null,null,null,null,null,null,null,null,null,null,null,null,"Line1146"]
[null,null,null,null,null,null,null,null,null,null,null,null,null,null,null,"Line1147"]
[null,null,null,null,null,null,null,null,null,null,null,null,null,null,null,"Line1148"]
[null,null,null,null,null,null,null,null,null,null,null,null,null,null,null,"Line1149"]
[null,null,null,null,null,null,null,null,null,null,null,null,null,null,null,"Line1150"]
[null,null,null,null,null,null,null,null,null,null,null,null,null,null,null,"Line1151"]
[null,null,null,null,null,null,null,null,null,null,null,null,null,null,null,"Line1152"]
[null,null,null,null,null,null,null,null,null,null,null,null,null,null,null,"Line1153"]
[null,null,null,null,null,null,null,null,null,null,null,null,null,null,null,"Line1154"]
[null,null,null,null,null,null,null,null,null,null,null,null,null,null,null,"Line1155"]
[null,null,null,null,null,null,null,null,null,null,null,null,null,null,null,"Line1156"]
[null,null,null,null,null,null,null,null,null,null,null,null,null,null,null,"Line1157"]
[null,null,null,null,null,null,null,null,null,null,null,null,null,null,null,"Line1158"]
[null,null,null,null,null,null,null,null,null,null,null,null,null,null,null,"Line1159"]
[null,null,null,null,null,null,null,null,null,null,null,null,null,null,null,"Line1160"]
[null,null,null,null,null,null,null,null,null,null,null,null,null,null,null,"Line1161"]
[null,null,null,null,null,null,null,null,null,null,null,null,null,null,null,"Line1162"]
[null,null,null,null,null,null,null,null,null,null,null,null,null,null,null,"Line1163"]
[null,null,null,null,null,null,null,null,null,null,null,null,null,null,null,"Line1164"]
[null,null,null,null,null,null,null,null,null,null,null,null,null,null,null,"Line1165"]
[null,null,null,null,null,null,null,null,null,null,null,null,null,null,null,"Line1166"]
[null,null,null,null,null,null,null,null,null,null,null,null,null,null,null,"Line1167"]
[null,null,null,null,null,null,null,null,null,null,null,null,null,null,null,"Line1168"]
[null,null,null,null,null,null,null,null,null,null,null,null,null,null,null,"Line1169"]
[null,null,null,null,null,null,null,null,null,null,null,null,null,null,null,"Line1170"]
[null,null,null,null,null,null,null,null,null,null,null,null,null,null,null,"Line1171"]
[null,null,null,null,null,null,null,null,null,null,null,null,null,null,null,"Line1172"]
[null,null,null,null,null,null,null,null,null,null,null,null,null,null,null,"Line1173"]
[null,null,null,null,null,null,null,null,null,null,null,null,null,null,null,"Line1174"]
[null,null,null,null,null,null,null,null,null,null,null,null,null,null,null,"Line1175"]
[null,null,null,null,null,null,null,null,null,null,null,null,null,null,null,"Line1176"]
[null,null,null,null,null,null,null,null,null,null,null,null,null,null,null,"Line1177"]
[null,null,null,null,null,null,null,null,null,null,null,null,null,null,null,"Line1178"]
[null,null,null,null,null,null,null,null,null,null,null,null,null,null,null,"Line114"]
[null,null,null,null,null,null,null,null,null,null,null,null,null,null,null,"Line11"]
[null,null,null,null,null,null,null,null,null,null,null,null,null,null,null,"Line12"]
[null,null,null,null,null,null,null,null,null,null,null,null,null,null,null,"Line13"]
[null,null,null,null,null,null,null,null,null,null,null,null,null,null,null,"Line14"]
[null,null,null,null,null,null,null,null,null,null,null,null,null,null,null,"Line15"]
[null,null,null,null,null,null,null,null,null,null,null,null,null,null,null,"Line16"]
[null,null,null,null,null,null,null,null,null,null,null,null,null,null,null,"Line17"]
[null,null,null,null,null,null,null,null,null,null,null,null,null,null,null,"Line18"]
[null,null,null,null,null,null,null,null,null,null,null,null,null,null,null,"Line19"]
[null,null,null,null,null,null,null,null,null,null,null,null,null,null,null,"Line110"]
[null,null,null,null,null,null,null,null,null,null,null,null,null,null,null,"Line111"]
[null,null,null,null,null,null,null,null,null,null,null,null,null,null,null,"Line112"]
[null,null,null,null,null,null,null,null,null,null,null,null,null,null,null,"Line113"]
[null,null,null,null,null,null,null,null,null,null,null,null,null,null,null,"Line114"]
[null,null,null,null,null,null,null,null,null,null,null,null,null,null,null,"Line115"]
[null,null,null,null,null,null,null,null,null,null,null,null,null,null,null,"Line116"]
[null,null,null,null,null,null,null,null,null,null,null,null,null,null,null,"Line117"]
[null,null,null,null,null,null,null,null,null,null,null,null,null,null,null,"Line118"]
[null,null,null,null,null,null,null,null,null,null,null,null,null,null,null,"Line119"]
[null,null,null,null,null,null,null,null,null,null,null,null,null,null,null,"Line120"]
[null,null,null,null,null,null,null,null,null,null,null,null,null,null,null,"Line121"]
[null,null,null,null,null,null,null,null,null,null,null,null,null,null,null,"Line122"]
[null,null,null,null,null,null,null,null,null,null,null,null,null,null,null,"Line123"]
[null,null,null,null,null,null,null,null,null,null,null,null,null,null,null,"Line124"]
[null,null,null,null,null,null,null,null,null,null,null,null,null,null,null,"Line125"]
[null,null,null,null,null,null,null,null,null,null,null,null,null,null,null,"Line126"]
[null,null,null,null,null,null,null,null,null,null,null,null,null,null,null,"Line127"]
[null,null,null,null,null,null,null,null,null,null,null,null,null,null,null,"Line128"]
[null,null,null,null,null,null,null,null,null,null,null,null,null,null,null,"Line129"]
[null,null,null,null,null,null,null,null,null,null,null,null,null,null,null,"Line130"]
[null,null,null,null,null,null,null,null,null,null,null,null,null,null,null,"Line131"]
[null,null,null,null,null,null,null,null,null,null,null,null,null,null,null,"Line132"]
[null,null,null,null,null,null,null,null,null,null,null,null,null,null,null,"Line133"]
[null,null,null,null,null,null,null,null,null,null,null,null,null,null,null,"Line134"]
[null,null,null,null,null,null,null,null,null,null,null,null,null,null,null,"Line135"]
[null,null,null,null,null,null,null,null,null,null,null,null,null,null,null,"Line136"]
[null,null,null,null,null,null,null,null,null,null,null,null,null,null,null,"Line137"]
[null,null,null,null,null,null,null,null,null,null,null,null,null,null,null,"Line138"]
[null,null,null,null,null,null,null,null,null,null,null,null,null,null,null,"Line139"]
[null,null,null,null,null,null,null,null,null,null,null,null,null,null,null,"Line140"]
[null,null,null,null,null,null,null,null,null,null,null,null,null,null,null,"Line141"]
[null,null,null,null,null,null,null,null,null,null,null,null,null,null,null,"Line142"]
[null,null,null,null,null,null,null,null,null,null,null,null,null,null,null,"Line143"]
[null,null,null,null,null,null,null,null,null,null,null,null,null,null,null,"Line144"]
[null,null,null,null,null,null,null,null,null,null,null,null,null,null,null,"Line145"]
[null,null,null,null,null,null,null,null,null,null,null,null,null,null,null,"Line146"]
[null,null,null,null,null,null,null,null,null,null,null,null,null,null,null,"Line147"]
[null,null,null,null,null,null,null,null,null,null,null,null,null,null,null,"Line148"]
[null,null,null,null,null,null,null,null,null,null,null,null,null,null,null,"Line149"]
[null,null,null,null,null,null,null,null,null,null,null,null,null,null,null,"Line150"]
[null,null,null,null,null,null,null,null,null,null,null,null,null,null,null,"Line151"]
[null,null,null,null,null,null,null,null,null,null,null,null,null,null,null,"Line152"]
[null,null,null,null,null,null,null,null,null,null,null,null,null,null,null,"Line153"]
[null,null,null,null,null,null,null,null,null,null,null,null,null,null,null,"Line154"]
[null,null,null,null,null,null,null,null,null,null,null,null,null,null,null,"Line155"]
[null,null,null,null,null,null,null,null,null,null,null,null,null,null,null,"Line156"]
[null,null,null,null,null,null,null,null,null,null,null,null,null,null,null,"Line157"]
[null,null,null,null,null,null,null,null,null,null,null,null,null,null,null,"Line158"]
[null,null,null,null,null,null,null,null,null,null,null,null,null,null,null,"Line159"]
[null,null,null,null,null,null,null,null,null,null,null,null,null,null,null,"Line160"]
[null,null,null,null,null,null,null,null,null,null,null,null,null,null,null,"Line161"]
[null,null,null,null,null,null,null,null,null,null,null,null,null,null,null,"Line162"]
[null,null,null,null,null,null,null,null,null,null,null,null,null,null,null,"Line163"]
[null,null,null,null,null,null,null,null,null,null,null,null,null,null,null,"Line164"]
[null,null,null,null,null,null,null,null,null,null,null,null,null,null,null,"Line165"]
[null,null,null,null,null,null,null,null,null,null,null,null,null,null,null,"Line166"]
[null,null,null,null,null,null,null,null,null,null,null,null,null,null,null,"Line167"]
[null,null,null,null,null,null,null,null,null,null,null,null,null,null,null,"Line168"]
[null,null,null,null,null,null,null,null,null,null,null,null,null,null,null,"Line169"]
[null,null,null,null,null,null,null,null,null,null,null,null,null,null,null,"Line170"]
[null,null,null,null,null,null,null,null,null,null,null,null,null,null,null,"Line171"]
[null,null,null,null,null,null,null,null,null,null,null,null,null,null,null,"Line172"]
[null,null,null,null,null,null,null,null,null,null,null,null,null,null,null,"Line173"]
[null,null,null,null,null,null,null,null,null,null,null,null,null,null,null,"Line174"]
[null,null,null,null,null,null,null,null,null,null,null,null,null,null,null,"Line175"]
[null,null,null,null,null,null,null,null,null,null,null,null,null,null,null,"Line176"]
[null,null,null,null,null,null,null,null,null,null,null,null,null,null,null,"Line177"]
[null,null,null,null,null,null,null,null,null,null,null,null,null,null,null,"Line178"]
[null,null,null,null,null,null,null,null,null,null,null,null,null,null,null,"Line179"]
[null,null,null,null,null,null,null,null,null,null,null,null,null,null,null,"Line180"]
[null,null,null,null,null,null,null,null,null,null,null,null,null,null,null,"Line181"]
[null,null,null,null,null,null,null,null,null,null,null,null,null,null,null,"Line182"]
[null,null,null,null,null,null,null,null,null,null,null,null,null,null,null,"Line183"]
[null,null,null,null,null,null,null,null,null,null,null,null,null,null,null,"Line184"]
[null,null,null,null,null,null,null,null,null,null,null,null,null,null,null,"Line185"]
[null,null,null,null,null,null,null,null,null,null,null,null,null,null,null,"Line186"]
[null,null,null,null,null,null,null,null,null,null,null,null,null,null,null,"Line187"]
[null,null,null,null,null,null,null,null,null,null,null,null,null,null,null,"Line188"]
[null,null,null,null,null,null,null,null,null,null,null,null,null,null,null,"Line189"]
[null,null,null,null,null,null,null,null,null,null,null,null,null,null,null,"Line190"]
[null,null,null,null,null,null,null,null,null,null,null,null,null,null,null,"Line191"]
[null,null,null,null,null,null,null,null,null,null,null,null,null,null,null,"Line192"]
[null,null,null,null,null,null,null,null,null,null,null,null,null,null,null,"Line193"]
[null,null,null,null,null,null,null,null,null,null,null,null,null,null,null,"Line194"]
[null,null,null,null,null,null,null,null,null,null,null,null,null,null,null,"Line195"]
[null,null,null,null,null,null,null,null,null,null,null,null,null,null,null,"Line196"]
[null,null,null,null,null,null,null,null,null,null,null,null,null,null,null,"Line197"]
[null,null,null,null,null,null,null,null,null,null,null,null,null,null,null,"Line198"]
[null,null,null,null,null,null,null,null,null,null,null,null,null,null,null,"Line199"]
[null,null,null,null,null,null,null,null,null,null,null,null,null,null,null,"Line1100"]
[null,null,null,null,null,null,null,null,null,null,null,null,null,null,null,"Line1101"]
[null,null,null,null,null,null,null,null,null,null,null,null,null,null,null,"Line1102"]
[null,null,null,null,null,null,null,null,null,null,null,null,null,null,null,"Line1103"]
[null,null,null,null,null,null,null,null,null,null,null,null,null,null,null,"Line1104"]
[null,null,null,null,null,null,null,null,null,null,null,null,null,null,null,"Line1105"]
[null,null,null,null,null,null,null,null,null,null,null,null,null,null,null,"Line1106"]
[null,null,null,null,null,null,null,null,null,null,null,null,null,null,null,"Line1107"]
[null,null,null,null,null,null,null,null,null,null,null,null,null,null,null,"Line1108"]
[null,null,null,null,null,null,null,null,null,null,null,null,null,null,null,"Line1109"]
[null,null,null,null,null,null,null,null,null,null,null,null,null,null,null,"Line1110"]
[null,null,null,null,null,null,null,null,null,null,null,null,null,null,null,"Line1111"]
[null,null,null,null,null,null,null,null,null,null,null,null,null,null,null,"Line1112"]
[null,null,null,null,null,null,null,null,null,null,null,null,null,null,null,"Line1113"]
[null,null,null,null,null,null,null,null,null,null,null,null,null,null,null,"Line1114"]
[null,null,null,null,null,null,null,null,null,null,null,null,null,null,null,"Line1115"]
[null,null,null,null,null,null,null,null,null,null,null,null,null,null,null,"Line1116"]
[null,null,null,null,null,null,null,null,null,null,null,null,null,null,null,"Line1117"]
[null,null,null,null,null,null,null,null,null,null,null,null,null,null,null,"Line1118"]
[null,null,null,null,null,null,null,null,null,null,null,null,null,null,null,"Line1119"]
[null,null,null,null,null,null,null,null,null,null,null,null,null,null,null,"Line1120"]
[null,null,null,null,null,null,null,null,null,null,null,null,null,null,null,"Line1121"]
[null,null,null,null,null,null,null,null,null,null,null,null,null,null,null,"Line1122"]
[null,null,null,null,null,null,null,null,null,null,null,null,null,null,null,"Line1123"]
[null,null,null,null,null,null,null,null,null,null,null,null,null,null,null,"Line1124"]
[null,null,null,null,null,null,null,null,null,null,null,null,null,null,null,"Line1125"]
[null,null,null,null,null,null,null,null,null,null,null,null,null,null,null,"Line1126"]
[null,null,null,null,null,null,null,null,null,null,null,null,null,null,null,"Line1127"]
[null,null,null,null,null,null,null,null,null,null,null,null,null,null,null,"Line1128"]
[null,null,null,null,null,null,null,null,null,null,null,null,null,null,null,"Line1129"]
[null,null,null,null,null,null,null,null,null,null,null,null,null,null,null,"Line1130"]
[null,null,null,null,null,null,null,null,null,null,null,null,null,null,null,"Line1131"]
[null,null,null,null,null,null,null,null,null,null,null,null,null,null,null,"Line1132"]
[null,null,null,null,null,null,null,null,null,null,null,null,null,null,null,"Line1133"]
[null,null,null,null,null,null,null,null,null,null,null,null,null,null,null,"Line1134"]
[null,null,null,null,null,null,null,null,null,null,null,null,null,null,null,"Line1135"]
[null,null,null,null,null,null,null,null,null,null,null,null,null,null,null,"Line1136"]
[null,null,null,null,null,null,null,null,null,null,null,null,null,null,null,"Line1137"]
[null,null,null,null,null,null,null,null,null,null,null,null,null,null,null,"Line1138"]
[null,null,null,null,null,null,null,null,null,null,null,null,null,null,null,"Line1139"]
[null,null,null,null,null,null,null,null,null,null,null,null,null,null,null,"Line1140"]
[null,null,null,null,null,null,null,null,null,null,null,null,null,null,null,"Line1141"]
[null,null,null,null,null,null,null,null,null,null,null,null,null,null,null,"Line1142"]
[null,null,null,null,null,null,null,null,null,null,null,null,null,null,null,"Line1143"]
[null,null,null,null,null,null,null,null,null,null,null,null,null,null,null,"Line1144"]
[null,null,null,null,null,null,null,null,null,null,null,null,null,null,null,"Line1145"]
[null,null,null,null,null,null,null,null,null,null,null,null,null,null,null,"Line1146"]
[null,null,null,null,null,null,null,null,null,null,null,null,null,null,null,"Line1147"]
[null,null,null,null,null,null,null,null,null,null,null,null,null,null,null,"Line1148"]
[null,null,null,null,null,null,null,null,null,null,null,null,null,null,null,"Line1149"]
[null,null,null,null,null,null,null,null,null,null,null,null,null,null,null,"Line1150"]
[null,null,null,null,null,null,null,null,null,null,null,null,null,null,null,"Line1151"]
[null,null,null,null,null,null,null,null,null,null,null,null,null,null,null,"Line1152"]
[null,null,null,null,null,null,null,null,null,null,null,null,null,null,null,"Line1153"]
[null,null,null,null,null,null,null,null,null,null,null,null,null,null,null,"Line1154"]
[null,null,null,null,null,null,null,null,null,null,null,null,null,null,null,"Line1155"]
[null,null,null,null,null,null,null,null,null,null,null,null,null,null,null,"Line1156"]
[null,null,null,null,null,null,null,null,null,null,null,null,null,null,null,"Line1157"]
[null,null,null,null,null,null,null,null,null,null,null,null,null,null,null,"Line1158"]
[null,null,null,null,null,null,null,null,null,null,null,null,null,null,null,"Line1159"]
[null,null,null,null,null,null,null,null,null,null,null,null,null,null,null,"Line1160"]
[null,null,null,null,null,null,null,null,null,null,null,null,null,null,null,"Line1161"]
[null,null,null,null,null,null,null,null,null,null,null,null,null,null,null,"Line1162"]
[null,null,null,null,null,null,null,null,null,null,null,null,null,null,null,"Line1163"]
[null,null,null,null,null,null,null,null,null,null,null,null,null,null,null,"Line1164"]
[null,null,null,null,null,null,null,null,null,null,null,null,null,null,null,"Line1165"]
[null,null,null,null,null,null,null,null,null,null,null,null,null,null,null,"Line1166"]
[null,null,null,null,null,null,null,null,null,null,null,null,null,null,null,"Line1167"]
[null,null,null,null,null,null,null,null,null,null,null,null,null,null,null,"Line1168"]
[null,null,null,null,null,null,null,null,null,null,null,null,null,null,null,"Line1169"]
[null,null,null,null,null,null,null,null,null,null,null,null,null,null,null,"Line1170"]
[null,null,null,null,null,null,null,null,null,null,null,null,null,null,null,"Line1171"]
[null,null,null,null,null,null,null,null,null,null,null,null,null,null,null,"Line1172"]
[null,null,null,null,null,null,null,null,null,null,null,null,null,null,null,"Line1173"]
[null,null,null,null,null,null,null,null,null,null,null,null,null,null,null,"Line1174"]
[null,null,null,null,null,null,null,null,null,null,null,null,null,null,null,"Line1175"]
[null,null,null,null,null,null,null,null,null,null,null,null,null,null,null,"Line1176"]
[null,null,null,null,null,null,null,null,null,null,null,null,null,null,null,"Line1177"]
[null,null,null,null,null,null,null,null,null,null,null,null,null,null,null,"Line1178"]
[null,null,null,null,null,null,null,null,null,null,null,null,null,null,null,"Line116"]
[null,null,null,null,null,null,null,null,null,null,null,null,null,null,null,"Line117"]
[null,null,null,null,null,null,null,null,null,null,null,null,null,null,null,"Line118"]
[null,null,null,null,null,null,null,null,null,null,null,null,null,null,null,"Line11"]
[null,null,null,null,null,null,null,null,null,null,null,null,null,null,null,"Line12"]
[null,null,null,null,null,null,null,null,null,null,null,null,null,null,null,"Line13"]
[null,null,null,null,null,null,null,null,null,null,null,null,null,null,null,"Line14"]
[null,null,null,null,null,null,null,null,null,null,null,null,null,null,null,"Line15"]
[null,null,null,null,null,null,null,null,null,null,null,null,null,null,null,"Line16"]
[null,null,null,null,null,null,null,null,null,null,null,null,null,null,null,"Line17"]
[null,null,null,null,null,null,null,null,null,null,null,null,null,null,null,"Line18"]
[null,null,null,null,null,null,null,null,null,null,null,null,null,null,null,"Line19"]
[null,null,null,null,null,null,null,null,null,null,null,null,null,null,null,"Line110"]
[null,null,null,null,null,null,null,null,null,null,null,null,null,null,null,"Line111"]
[null,null,null,null,null,null,null,null,null,null,null,null,null,null,null,"Line112"]
[null,null,null,null,null,null,null,null,null,null,null,null,null,null,null,"Line113"]
[null,null,null,null,null,null,null,null,null,null,null,null,null,null,null,"Line114"]
[null,null,null,null,null,null,null,null,null,null,null,null,null,null,null,"Line115"]
[null,null,null,null,null,null,null,null,null,null,null,null,null,null,null,"Line116"]
[null,null,null,null,null,null,null,null,null,null,null,null,null,null,null,"Line117"]
[null,null,null,null,null,null,null,null,null,null,null,null,null,null,null,"Line118"]
[null,null,null,null,null,null,null,null,null,null,null,null,null,null,null,"Line119"]
[null,null,null,null,null,null,null,null,null,null,null,null,null,null,null,"Line120"]
[null,null,null,null,null,null,null,null,null,null,null,null,null,null,null,"Line121"]
[null,null,null,null,null,null,null,null,null,null,null,null,null,null,null,"Line122"]
[null,null,null,null,null,null,null,null,null,null,null,null,null,null,null,"Line123"]
[null,null,null,null,null,null,null,null,null,null,null,null,null,null,null,"Line124"]
[null,null,null,null,null,null,null,null,null,null,null,null,null,null,null,"Line125"]
[null,null,null,null,null,null,null,null,null,null,null,null,null,null,null,"Line126"]
[null,null,null,null,null,null,null,null,null,null,null,null,null,null,null,"Line127"]
[null,null,null,null,null,null,null,null,null,null,null,null,null,null,null,"Line128"]
[null,null,null,null,null,null,null,null,null,null,null,null,null,null,null,"Line129"]
[null,null,null,null,null,null,null,null,null,null,null,null,null,null,null,"Line130"]
[null,null,null,null,null,null,null,null,null,null,null,null,null,null,null,"Line131"]
[null,null,null,null,null,null,null,null,null,null,null,null,null,null,null,"Line132"]
[null,null,null,null,null,null,null,null,null,null,null,null,null,null,null,"Line133"]
[null,null,null,null,null,null,null,null,null,null,null,null,null,null,null,"Line134"]
[null,null,null,null,null,null,null,null,null,null,null,null,null,null,null,"Line135"]
[null,null,null,null,null,null,null,null,null,null,null,null,null,null,null,"Line136"]
[null,null,null,null,null,null,null,null,null,null,null,null,null,null,null,"Line137"]
[null,null,null,null,null,null,null,null,null,null,null,null,null,null,null,"Line138"]
[null,null,null,null,null,null,null,null,null,null,null,null,null,null,null,"Line139"]
[null,null,null,null,null,null,null,null,null,null,null,null,null,null,null,"Line140"]
[null,null,null,null,null,null,null,null,null,null,null,null,null,null,null,"Line141"]
[null,null,null,null,null,null,null,null,null,null,null,null,null,null,null,"Line142"]
[null,null,null,null,null,null,null,null,null,null,null,null,null,null,null,"Line143"]
[null,null,null,null,null,null,null,null,null,null,null,null,null,null,null,"Line144"]
[null,null,null,null,null,null,null,null,null,null,null,null,null,null,null,"Line145"]
[null,null,null,null,null,null,null,null,null,null,null,null,null,null,null,"Line146"]
[null,null,null,null,null,null,null,null,null,null,null,null,null,null,null,"Line147"]
[null,null,null,null,null,null,null,null,null,null,null,null,null,null,null,"Line148"]
[null,null,null,null,null,null,null,null,null,null,null,null,null,null,null,"Line149"]
[null,null,null,null,null,null,null,null,null,null,null,null,null,null,null,"Line150"]
[null,null,null,null,null,null,null,null,null,null,null,null,null,null,null,"Line151"]
[null,null,null,null,null,null,null,null,null,null,null,null,null,null,null,"Line152"]
[null,null,null,null,null,null,null,null,null,null,null,null,null,null,null,"Line153"]
[null,null,null,null,null,null,null,null,null,null,null,null,null,null,null,"Line154"]
[null,null,null,null,null,null,null,null,null,null,null,null,null,null,null,"Line155"]
[null,null,null,null,null,null,null,null,null,null,null,null,null,null,null,"Line156"]
[null,null,null,null,null,null,null,null,null,null,null,null,null,null,null,"Line157"]
[null,null,null,null,null,null,null,null,null,null,null,null,null,null,null,"Line158"]
[null,null,null,null,null,null,null,null,null,null,null,null,null,null,null,"Line159"]
[null,null,null,null,null,null,null,null,null,null,null,null,null,null,null,"Line160"]
[null,null,null,null,null,null,null,null,null,null,null,null,null,null,null,"Line161"]
[null,null,null,null,null,null,null,null,null,null,null,null,null,null,null,"Line162"]
[null,null,null,null,null,null,null,null,null,null,null,null,null,null,null,"Line163"]
[null,null,null,null,null,null,null,null,null,null,null,null,null,null,null,"Line164"]
[null,null,null,null,null,null,null,null,null,null,null,null,null,null,null,"Line165"]
[null,null,null,null,null,null,null,null,null,null,null,null,null,null,null,"Line166"]
[null,null,null,null,null,null,null,null,null,null,null,null,null,null,null,"Line167"]
[null,null,null,null,null,null,null,null,null,null,null,null,null,null,null,"Line168"]
[null,null,null,null,null,null,null,null,null,null,null,null,null,null,null,"Line169"]
[null,null,null,null,null,null,null,null,null,null,null,null,null,null,null,"Line170"]
[null,null,null,null,null,null,null,null,null,null,null,null,null,null,null,"Line171"]
[null,null,null,null,null,null,null,null,null,null,null,null,null,null,null,"Line172"]
[null,null,null,null,null,null,null,null,null,null,null,null,null,null,null,"Line173"]
[null,null,null,null,null,null,null,null,null,null,null,null,null,null,null,"Line174"]
[null,null,null,null,null,null,null,null,null,null,null,null,null,null,null,"Line178"]
[null,null,null,null,null,null,null,null,null,null,null,null,null,null,null,"Line181"]
[null,null,null,null,null,null,null,null,null,null,null,null,null,null,null,"Line185"]
[null,null,null,null,null,null,null,null,null,null,null,null,null,null,null,"Line188"]
[null,null,null,null,null,null,null,null,null,null,null,null,null,null,null,"Line191"]
[null,null,null,null,null,null,null,null,null,null,null,null,null,null,null,"Line192"]
[null,null,null,null,null,null,null,null,null,null,null,null,null,null,null,"Line195"]
[null,null,null,null,null,null,null,null,null,null,null,null,null,null,null,"Line199"]
[null,null,null,null,null,null,null,null,null,null,null,null,null,null,null,"Line1102"]
[null,null,null,null,null,null,null,null,null,null,null,null,null,null,null,"Line1105"]
[null,null,null,null,null,null,null,null,null,null,null,null,null,null,null,"Line1109"]
[null,null,null,null,null,null,null,null,null,null,null,null,null,null,null,"Line1112"]
[null,null,null,null,null,null,null,null,null,null,null,null,null,null,null,"Line1115"]
[null,null,null,null,null,null,null,null,null,null,null,null,null,null,null,"Line1116"]
[null,null,null,null,null,null,null,null,null,null,null,null,null,null,null,"Line1119"]
[null,null,null,null,null,null,null,null,null,null,null,null,null,null,null,"Line1123"]
[null,null,null,null,null,null,null,null,null,null,null,null,null,null,null,"Line1126"]
[null,null,null,null,null,null,null,null,null,null,null,null,null,null,null,"Line1129"]
[null,null,null,null,null,null,null,null,null,null,null,null,null,null,null,"Line1133"]
[null,null,null,null,null,null,null,null,null,null,null,null,null,null,null,"Line1135"]
[null,null,null,null,null,null,null,null,null,null,null,null,null,null,null,"Line1138"]
[null,null,null,null,null,null,null,null,null,null,null,null,null,null,null,"Line1141"]
[null,null,null,null,null,null,null,null,null,null,null,null,null,null,null,"Line1144"]
[null,null,null,null,null,null,null,null,null,null,null,null,null,null,null,"Line1148"]
[null,null,null,null,null,null,null,null,null,null,null,null,null,null,null,"Line1151"]
[null,null,null,null,null,null,null,null,null,null,null,null,null,null,null,"Line1154"]
[null,null,null,null,null,null,null,null,null,null,null,null,null,null,null,"Line1158"]
[null,null,null,null,null,null,null,null,null,null,null,null,null,null,null,"Line1161"]
[null,null,null,null,null,null,null,null,null,null,null,null,null,null,null,"Line1162"]
[null,null,null,null,null,null,null,null,null,null,null,null,null,null,null,"Line1165"]
[null,null,null,null,null,null,null,null,null,null,null,null,null,null,null,"Line1168"]
[null,null,null,null,null,null,null,null,null,null,null,null,null,null,null,"Line1172"]
[null,null,null,null,null,null,null,null,null,null,null,null,null,null,null,"Line1175"]
[null,null,null,null,null,null,null,null,null,null,null,null,null,null,null,"Line1178"]
[null,null,null,null,null,null,null,null,null,null,null,null,null,null,null,"Line13"]
[null,null,null,null,null,null,null,null,null,null,null,null,null,null,null,"Line16"]
[null,null,null,null,null,null,null,null,null,null,null,null,null,null,null,"Line17"]
[null,null,null,null,null,null,null,null,null,null,null,null,null,null,null,"Line110"]
[null,null,null,null,null,null,null,null,null,null,null,null,null,null,null,"Line113"]
[null,null,null,null,null,null,null,null,null,null,null,null,null,null,null,"Line117"]
[null,null,null,null,null,null,null,null,null,null,null,null,null,null,null,"Line121"]
[null,null,null,null,null,null,null,null,null,null,null,null,null,null,null,"Line125"]
[null,null,null,null,null,null,null,null,null,null,null,null,null,null,null,"Line128"]
[null,null,null,null,null,null,null,null,null,null,null,null,null,null,null,"Line131"]
[null,null,null,null,null,null,null,null,null,null,null,null,null,null,null,"Line132"]
[null,null,null,null,null,null,null,null,null,null,null,null,null,null,null,"Line135"]
[null,null,null,null,null,null,null,null,null,null,null,null,null,null,null,"Line138"]
[null,null,null,null,null,null,null,null,null,null,null,null,null,null,null,"Line142"]
[null,null,null,null,null,null,null,null,null,null,null,null,null,null,null,"Line145"]
[null,null,null,null,null,null,null,null,null,null,null,null,null,null,null,"Line149"]
[null,null,null,null,null,null,null,null,null,null,null,null,null,null,null,"Line152"]
[null,null,null,null,null,null,null,null,null,null,null,null,null,null,null,"Line155"]
[null,null,null,null,null,null,null,null,null,null,null,null,null,null,null,"Line156"]
[null,null,null,null,null,null,null,null,null,null,null,null,null,null,null,"Line159"]
[null,null,null,null,null,null,null,null,null,null,null,null,null,null,null,"Line163"]
[null,null,null,null,null,null,null,null,null,null,null,null,null,null,null,"Line166"]
[null,null,null,null,null,null,null,null,null,null,null,null,null,null,null,"Line169"]
[null,null,null,null,null,null,null,null,null,null,null,null,null,null,null,"Line173"]
[null,null,null,null,null,null,null,null,null,null,null,null,null,null,null,"Line176"]
[null,null,null,null,null,null,null,null,null,null,null,null,null,null,null,"Line178"]
[null,null,null,null,null,null,null,null,null,null,null,null,null,null,null,"Line181"]
[null,null,null,null,null,null,null,null,null,null,null,null,null,null,null,"Line184"]
[null,null,null,null,null,null,null,null,null,null,null,null,null,null,null,"Line188"]
[null,null,null,null,null,null,null,null,null,null,null,null,null,null,null,"Line191"]
[null,null,null,null,null,null,null,null,null,null,null,null,null,null,null,"Line194"]
[null,null,null,null,null,null,null,null,null,null,null,null,null,null,null,"Line198"]
[null,null,null,null,null,null,null,null,null,null,null,null,null,null,null,"Line1101"]
[null,null,null,null,null,null,null,null,null,null,null,null,null,null,null,"Line1104"]
[null,null,null,null,null,null,null,null,null,null,null,null,null,null,null,"Line1105"]
[null,null,null,null,null,null,null,null,null,null,null,null,null,null,null,"Line1108"]
[null,null,null,null,null,null,null,null,null,null,null,null,null,null,null,"Line1112"]
[null,null,null,null,null,null,null,null,null,null,null,null,null,null,null,"Line1115"]
[null,null,null,null,null,null,null,null,null,null,null,null,null,null,null,"Line1118"]
[null,null,null,null,null,null,null,null,null,null,null,null,null,null,null,"Line1122"]
[null,null,null,null,null,null,null,null,null,null,null,null,null,null,null,"Line1125"]
[null,null,null,null,null,null,null,null,null,null,null,null,null,null,null,"Line1126"]
[null,null,null,null,null,null,null,null,null,null,null,null,null,null,null,"Line1129"]
[null,null,null,null,null,null,null,null,null,null,null,null,null,null,null,"Line1132"]
[null,null,null,null,null,null,null,null,null,null,null,null,null,null,null,"Line1136"]
[null,null,null,null,null,null,null,null,null,null,null,null,null,null,null,"Line1139"]
[null,null,null,null,null,null,null,null,null,null,null,null,null,null,null,"Line1143"]
[null,null,null,null,null,null,null,null,null,null,null,null,null,null,null,"Line1147"]
[null,null,null,null,null,null,null,null,null,null,null,null,null,null,null,"Line1150"]
[null,null,null,null,null,null,null,null,null,null,null,null,null,null,null,"Line1151"]
[null,null,null,null,null,null,null,null,null,null,null,null,null,null,null,"Line1154"]
[null,null,null,null,null,null,null,null,null,null,null,null,null,null,null,"Line1157"]
[null,null,null,null,null,null,null,null,null,null,null,null,null,null,null,"Line1161"]
[null,null,null,null,null,null,null,null,null,null,null,null,null,null,null,"Line1164"]
[null,null,null,null,null,null,null,null,null,null,null,null,null,null,null,"Line1167"]
[null,null,null,null,null,null,null,null,null,null,null,null,null,null,null,"Line1171"]
[null,null,null,null,null,null,null,null,null,null,null,null,null,null,null,"Line1174"]
[null,null,null,null,null,null,null,null,null,null,null,null,null,null,null,"Line1175"]
[null,null,null,null,null,null,null,null,null,null,null,null,null,null,null,"Line1178"]
[null,null,null,null,null,null,null,null,null,null,null,null,null,null,null,"Line124"]
[null,null,null,null,null,null,null,null,null,null,null,null,null,null,null,"Line14"]
[null,null,null,null,null,null,null,null,null,null,null,null,null,null,null,"Line17"]
[null,null,null,null,null,null,null,null,null,null,null,null,null,null,null,"Line111"]
[null,null,null,null,null,null,null,null,null,null,null,null,null,null,null,"Line114"]
[null,null,null,null,null,null,null,null,null,null,null,null,null,null,null,"Line117"]
[null,null,null,null,null,null,null,null,null,null,null,null,null,null,null,"Line118"]
[null,null,null,null,null,null,null,null,null,null,null,null,null,null,null,"Line123"]
[null,null,null,null,null,null,null,null,null,null,null,null,null,null,null,"Line125"]
[null,null,null,null,null,null,null,null,null,null,null,null,null,null,null,"Line129"]
[null,null,null,null,null,null,null,null,null,null,null,null,null,null,null,"Line132"]
[null,null,null,null,null,null,null,null,null,null,null,null,null,null,null,"Line136"]
[null,null,null,null,null,null,null,null,null,null,null,null,null,null,null,"Line139"]
[null,null,null,null,null,null,null,null,null,null,null,null,null,null,null,"Line142"]
[null,null,null,null,null,null,null,null,null,null,null,null,null,null,null,"Line143"]
[null,null,null,null,null,null,null,null,null,null,null,null,null,null,null,"Line146"]
[null,null,null,null,null,null,null,null,null,null,null,null,null,null,null,"Line150"]
[null,null,null,null,null,null,null,null,null,null,null,null,null,null,null,"Line153"]
[null,null,null,null,null,null,null,null,null,null,null,null,null,null,null,"Line156"]
[null,null,null,null,null,null,null,null,null,null,null,null,null,null,null,"Line160"]
[null,null,null,null,null,null,null,null,null,null,null,null,null,null,null,"Line163"]
[null,null,null,null,null,null,null,null,null,null,null,null,null,null,null,"Line166"]
[null,null,null,null,null,null,null,null,null,null,null,null,null,null,null,"Line167"]
[null,null,null,null,null,null,null,null,null,null,null,null,null,null,null,"Line170"]
[null,null,null,null,null,null,null,null,null,null,null,null,null,null,null,"Line174"]
[null,null,null,null,null,null,null,null,null,null,null,null,null,null,null,"Line177"]
[null,null,null,null,null,null,null,null,null,null,null,null,null,null,null,"Line180"]
[null,null,null,null,null,null,null,null,null,null,null,null,null,null,null,"Line184"]
[null,null,null,null,null,null,null,null,null,null,null,null,null,null,null,"Line188"]
[null,null,null,null,null,null,null,null,null,null,null,null,null,null,null,"Line191"]
[null,null,null,null,null,null,null,null,null,null,null,null,null,null,null,"Line192"]
[null,null,null,null,null,null,null,null,null,null,null,null,null,null,null,"Line195"]
[null,null,null,null,null,null,null,null,null,null,null,null,null,null,null,"Line199"]
[null,null,null,null,null,null,null,null,null,null,null,null,null,null,null,"Line1102"]
[null,null,null,null,null,null,null,null,null,null,null,null,null,null,null,"Line1105"]
[null,null,null,null,null,null,null,null,null,null,null,null,null,null,null,"Line1109"]
[null,null,null,null,null,null,null,null,null,null,null,null,null,null,null,"Line1112"]
[null,null,null,null,null,null,null,null,null,null,null,null,null,null,null,"Line1113"]
[null,null,null,null,null,null,null,null,null,null,null,null,null,null,null,"Line1116"]
[null,null,null,null,null,null,null,null,null,null,null,null,null,null,null,"Line1119"]
[null,null,null,null,null,null,null,null,null,null,null,null,null,null,null,"Line1123"]
[null,null,null,null,null,null,null,null,null,null,null,null,null,null,null,"Line1126"]
[null,null,null,null,null,null,null,null,null,null,null,null,null,null,null,"Line1129"]
[null,null,null,null,null,null,null,null,null,null,null,null,null,null,null,"Line1133"]
[null,null,null,null,null,null,null,null,null,null,null,null,null,null,null,"Line1136"]
[null,null,null,null,null,null,null,null,null,null,null,null,null,null,null,"Line1137"]
[null,null,null,null,null,null,null,null,null,null,null,null,null,null,null,"Line1140"]
[null,null,null,null,null,null,null,null,null,null,null,null,null,null,null,"Line1145"]
[null,null,null,null,null,null,null,null,null,null,null,null,null,null,null,"Line1148"]
[null,null,null,null,null,null,null,null,null,null,null,null,null,null,null,"Line1151"]
[null,null,null,null,null,null,null,null,null,null,null,null,null,null,null,"Line1155"]
[null,null,null,null,null,null,null,null,null,null,null,null,null,null,null,"Line1158"]
[null,null,null,null,null,null,null,null,null,null,null,null,null,null,null,"Line1161"]
[null,null,null,null,null,null,null,null,null,null,null,null,null,null,null,"Line1162"]
[null,null,null,null,null,null,null,null,null,null,null,null,null,null,null,"Line1165"]
[null,null,null,null,null,null,null,null,null,null,null,null,null,null,null,"Line1168"]
[null,null,null,null,null,null,null,null,null,null,null,null,null,null,null,"Line1172"]
[null,null,null,null,null,null,null,null,null,null,null,null,null,null,null,"Line1175"]
[null,null,null,null,null,null,null,null,null,null,null,null,null,null,null,"Line126"]
[null,null,null,null,null,null,null,null,null,null,null,null,null,null,null,"Line13"]
[null,null,null,null,null,null,null,null,null,null,null,null,null,null,null,"Line16"]
[null,null,null,null,null,null,null,null,null,null,null,null,null,null,null,"Line17"]
[null,null,null,null,null,null,null,null,null,null,null,null,null,null,null,"Line110"]
[null,null,null,null,null,null,null,null,null,null,null,null,null,null,null,"Line113"]
[null,null,null,null,null,null,null,null,null,null,null,null,null,null,null,"Line117"]
[null,null,null,null,null,null,null,null,null,null,null,null,null,null,null,"Line120"]
[null,null,null,null,null,null,null,null,null,null,null,null,null,null,null,"Line124"]
[null,null,null,null,null,null,null,null,null,null,null,null,null,null,null,"Line127"]
[null,null,null,null,null,null,null,null,null,null,null,null,null,null,null,"Line131"]
[null,null,null,null,null,null,null,null,null,null,null,null,null,null,null,"Line132"]
[null,null,null,null,null,null,null,null,null,null,null,null,null,null,null,"Line135"]
[null,null,null,null,null,null,null,null,null,null,null,null,null,null,null,"Line139"]
[null,null,null,null,null,null,null,null,null,null,null,null,null,null,null,"Line142"]
[null,null,null,null,null,null,null,null,null,null,null,null,null,null,null,"Line145"]
[null,null,null,null,null,null,null,null,null,null,null,null,null,null,null,"Line149"]
[null,null,null,null,null,null,null,null,null,null,null,null,null,null,null,"Line152"]
[null,null,null,null,null,null,null,null,null,null,null,null,null,null,null,"Line155"]
[null,null,null,null,null,null,null,null,null,null,null,null,null,null,null,"Line156"]
[null,null,null,null,null,null,null,null,null,null,null,null,null,null,null,"Line159"]
[null,null,null,null,null,null,null,null,null,null,null,null,null,null,null,"Line163"]
[null,null,null,null,null,null,null,null,null,null,null,null,null,null,null,"Line166"]
[null,null,null,null,null,null,null,null,null,null,null,null,null,null,null,"Line169"]
[null,null,null,null,null,null,null,null,null,null,null,null,null,null,null,"Line173"]
[null,null,null,null,null,null,null,null,null,null,null,null,null,null,null,"Line176"]
[null,null,null,null,null,null,null,null,null,null,null,null,null,null,null,"Line179"]
[null,null,null,null,null,null,null,null,null,null,null,null,null,null,null,"Line180"]
[null,null,null,null,null,null,null,null,null,null,null,null,null,null,null,"Line183"]
[null,null,null,null,null,null,null,null,null,null,null,null,null,null,null,"Line188"]
[null,null,null,null,null,null,null,null,null,null,null,null,null,null,null,"Line191"]
[null,null,null,null,null,null,null,null,null,null,null,null,null,null,null,"Line194"]
[null,null,null,null,null,null,null,null,null,null,null,null,null,null,null,"Line198"]
[null,null,null,null,null,null,null,null,null,null,null,null,null,null,null,"Line1101"]
[null,null,null,null,null,null,null,null,null,null,null,null,null,null,null,"Line1102"]
[null,null,null,null,null,null,null,null,null,null,null,null,null,null,null,"Line1105"]
[null,null,null,null,null,null,null,null,null,null,null,null,null,null,null,"Line1108"]
[null,null,null,null,null,null,null,null,null,null,null,null,null,null,null,"Line1112"]
[null,null,null,null,null,null,null,null,null,null,null,null,null,null,null,"Line1115"]
[null,null,null,null,null,null,null,null,null,null,null,null,null,null,null,"Line1118"]
[null,null,null,null,null,null,null,null,null,null,null,null,null,null,null,"Line1122"]
[null,null,null,null,null,null,null,null,null,null,null,null,null,null,null,"Line1125"]
[null,null,null,null,null,null,null,null,null,null,null,null,null,null,null,"Line1126"]
[null,null,null,null,null,null,null,null,null,null,null,null,null,null,null,"Line1129"]
[null,null,null,null,null,null,null,null,null,null,null,null,null,null,null,"Line1132"]
[null,null,null,null,null,null,null,null,null,null,null,null,null,null,null,"Line1136"]
[null,null,null,null,null,null,null,null,null,null,null,null,null,null,null,"Line1139"]
[null,null,null,null,null,null,null,null,null,null,null,null,null,null,null,"Line1143"]
[null,null,null,null,null,null,null,null,null,null,null,null,null,null,null,"Line1146"]
[null,null,null,null,null,null,null,null,null,null,null,null,null,null,null,"Line1149"]
[null,null,null,null,null,null,null,null,null,null,null,null,null,null,null,"Line1153"]
[null,null,null,null,null,null,null,null,null,null,null,null,null,null,null,"Line1154"]
[null,null,null,null,null,null,null,null,null,null,null,null,null,null,null,"Line1157"]
[null,null,null,null,null,null,null,null,null,null,null,null,null,null,null,"Line1161"]
[null,null,null,null,null,null,null,null,null,null,null,null,null,null,null,"Line1164"]
[null,null,null,null,null,null,null,null,null,null,null,null,null,null,null,"Line1168"]
[null,null,null,null,null,null,null,null,null,null,null,null,null,null,null,"Line1171"]
[null,null,null,null,null,null,null,null,null,null,null,null,null,null,null,"Line1174"]
[null,null,null,null,null,null,null,null,null,null,null,null,null,null,null,"Line1175"]
[null,null,null,null,null,null,null,null,null,null,null,null,null,null,null,"Line1178"]
[null,null,null,null,null,null,null,null,null,null,null,null,null,null,null,"Line130"]
[null,null,null,null,null,null,null,null,null,null,null,null,null,null,null,"Line14"]
[null,null,null,null,null,null,null,null,null,null,null,null,null,null,null,"Line17"]
[null,null,null,null,null,null,null,null,null,null,null,null,null,null,null,"Line111"]
[null,null,null,null,null,null,null,null,null,null,null,null,null,null,null,"Line114"]
[null,null,null,null,null,null,null,null,null,null,null,null,null,null,null,"Line117"]
[null,null,null,null,null,null,null,null,null,null,null,null,null,null,null,"Line118"]
[null,null,null,null,null,null,null,null,null,null,null,null,null,null,null,"Line121"]
[null,null,null,null,null,null,null,null,null,null,null,null,null,null,null,"Line125"]
[null,null,null,null,null,null,null,null,null,null,null,null,null,null,null,"Line128"]
[null,null,null,null,null,null,null,null,null,null,null,null,null,null,null,"Line133"]
[null,null,null,null,null,null,null,null,null,null,null,null,null,null,null,"Line136"]
[null,null,null,null,null,null,null,null,null,null,null,null,null,null,null,"Line139"]
[null,null,null,null,null,null,null,null,null,null,null,null,null,null,null,"Line142"]
[null,null,null,null,null,null,null,null,null,null,null,null,null,null,null,"Line143"]
[null,null,null,null,null,null,null,null,null,null,null,null,null,null,null,"Line146"]
[null,null,null,null,null,null,null,null,null,null,null,null,null,null,null,"Line150"]
[null,null,null,null,null,null,null,null,null,null,null,null,null,null,null,"Line153"]
[null,null,null,null,null,null,null,null,null,null,null,null,null,null,null,"Line156"]
[null,null,null,null,null,null,null,null,null,null,null,null,null,null,null,"Line160"]
[null,null,null,null,null,null,null,null,null,null,null,null,null,null,null,"Line163"]
[null,null,null,null,null,null,null,null,null,null,null,null,null,null,null,"Line166"]
[null,null,null,null,null,null,null,null,null,null,null,null,null,null,null,"Line167"]
[null,null,null,null,null,null,null,null,null,null,null,null,null,null,null,"Line170"]
[null,null,null,null,null,null,null,null,null,null,null,null,null,null,null,"Line174"]
[null,null,null,null,null,null,null,null,null,null,null,null,null,null,null,"Line177"]
[null,null,null,null,null,null,null,null,null,null,null,null,null,null,null,"Line180"]
[null,null,null,null,null,null,null,null,null,null,null,null,null,null,null,"Line184"]
[null,null,null,null,null,null,null,null,null,null,null,null,null,null,null,"Line187"]
[null,null,null,null,null,null,null,null,null,null,null,null,null,null,null,"Line188"]
[null,null,null,null,null,null,null,null,null,null,null,null,null,null,null,"Line194"]
[null,null,null,null,null,null,null,null,null,null,null,null,null,null,null,"Line195"]
[null,null,null,null,null,null,null,null,null,null,null,null,null,null,null,"Line199"]
[null,null,null,null,null,null,null,null,null,null,null,null,null,null,null,"Line1102"]
[null,null,null,null,null,null,null,null,null,null,null,null,null,null,null,"Line1105"]
[null,null,null,null,null,null,null,null,null,null,null,null,null,null,null,"Line1109"]
[null,null,null,null,null,null,null,null,null,null,null,null,null,null,null,"Line1112"]
[null,null,null,null,null,null,null,null,null,null,null,null,null,null,null,"Line1113"]
[null,null,null,null,null,null,null,null,null,null,null,null,null,null,null,"Line1116"]
[null,null,null,null,null,null,null,null,null,null,null,null,null,null,null,"Line1119"]
[null,null,null,null,null,null,null,null,null,null,null,null,null,null,null,"Line1123"]
[null,null,null,null,null,null,null,null,null,null,null,null,null,null,null,"Line1126"]
[null,null,null,null,null,null,null,null,null,null,null,null,null,null,null,"Line1130"]
[null,null,null,null,null,null,null,null,null,null,null,null,null,null,null,"Line1133"]
[null,null,null,null,null,null,null,null,null,null,null,null,null,null,null,"Line1136"]
[null,null,null,null,null,null,null,null,null,null,null,null,null,null,null,"Line1137"]
[null,null,null,null,null,null,null,null,null,null,null,null,null,null,null,"Line1140"]
[null,null,null,null,null,null,null,null,null,null,null,null,null,null,null,"Line1143"]
[null,null,null,null,null,null,null,null,null,null,null,null,null,null,null,"Line1147"]
[null,null,null,null,null,null,null,null,null,null,null,null,null,null,null,"Line1150"]
[null,null,null,null,null,null,null,null,null,null,null,null,null,null,null,"Line1155"]
[null,null,null,null,null,null,null,null,null,null,null,null,null,null,null,"Line1158"]
[null,null,null,null,null,null,null,null,null,null,null,null,null,null,null,"Line1161"]
[null,null,null,null,null,null,null,null,null,null,null,null,null,null,null,"Line1162"]
[null,null,null,null,null,null,null,null,null,null,null,null,null,null,null,"Line1165"]
[null,null,null,null,null,null,null,null,null,null,null,null,null,null,null,"Line1168"]
[null,null,null,null,null,null,null,null,null,null,null,null,null,null,null,"Line1172"]
[null,null,null,null,null,null,null,null,null,null,null,null,null,null,null,"Line1175"]
[null,null,null,null,null,null,null,null,null,null,null,null,null,null,null,"Line132"]
[null,null,null,null,null,null,null,null,null,null,null,null,null,null,null,"Line13"]
[null,null,null,null,null,null,null,null,null,null,null,null,null,null,null,"Line16"]
[null,null,null,null,null,null,null,null,null,null,null,null,null,null,null,"Line17"]
[null,null,null,null,null,null,null,null,null,null,null,null,null,null,null,"Line110"]
[null,null,null,null,null,null,null,null,null,null,null,null,null,null,null,"Line114"]
[null,null,null,null,null,null,null,null,null,null,null,null,null,null,null,"Line117"]
[null,null,null,null,null,null,null,null,null,null,null,null,null,null,null,"Line120"]
[null,null,null,null,null,null,null,null,null,null,null,null,null,null,null,"Line124"]
[null,null,null,null,null,null,null,null,null,null,null,null,null,null,null,"Line127"]
[null,null,null,null,null,null,null,null,null,null,null,null,null,null,null,"Line130"]
[null,null,null,null,null,null,null,null,null,null,null,null,null,null,null,"Line131"]
[null,null,null,null,null,null,null,null,null,null,null,null,null,null,null,"Line137"]
[null,null,null,null,null,null,null,null,null,null,null,null,null,null,null,"Line139"]
[null,null,null,null,null,null,null,null,null,null,null,null,null,null,null,"Line142"]
[null,null,null,null,null,null,null,null,null,null,null,null,null,null,null,"Line145"]
[null,null,null,null,null,null,null,null,null,null,null,null,null,null,null,"Line149"]
[null,null,null,null,null,null,null,null,null,null,null,null,null,null,null,"Line152"]
[null,null,null,null,null,null,null,null,null,null,null,null,null,null,null,"Line153"]
[null,null,null,null,null,null,null,null,null,null,null,null,null,null,null,"Line156"]
[null,null,null,null,null,null,null,null,null,null,null,null,null,null,null,"Line159"]
[null,null,null,null,null,null,null,null,null,null,null,null,null,null,null,"Line163"]
[null,null,null,null,null,null,null,null,null,null,null,null,null,null,null,"Line166"]
[null,null,null,null,null,null,null,null,null,null,null,null,null,null,null,"Line169"]
[null,null,null,null,null,null,null,null,null,null,null,null,null,null,null,"Line173"]
[null,null,null,null,null,null,null,null,null,null,null,null,null,null,null,"Line176"]
[null,null,null,null,null,null,null,null,null,null,null,null,null,null,null,"Line177"]
[null,null,null,null,null,null,null,null,null,null,null,null,null,null,null,"Line180"]
[null,null,null,null,null,null,null,null,null,null,null,null,null,null,null,"Line183"]
[null,null,null,null,null,null,null,null,null,null,null,null,null,null,null,"Line187"]
[null,null,null,null,null,null,null,null,null,null,null,null,null,null,null,"Line190"]
[null,null,null,null,null,null,null,null,null,null,null,null,null,null,null,"Line193"]
[null,null,null,null,null,null,null,null,null,null,null,null,null,null,null,"Line197"]
[null,null,null,null,null,null,null,null,null,null,null,null,null,null,null,"Line198"]
[null,null,null,null,null,null,null,null,null,null,null,null,null,null,null,"Line1102"]
[null,null,null,null,null,null,null,null,null,null,null,null,null,null,null,"Line1105"]
[null,null,null,null,null,null,null,null,null,null,null,null,null,null,null,"Line1108"]
[null,null,null,null,null,null,null,null,null,null,null,null,null,null,null,"Line1112"]
[null,null,null,null,null,null,null,null,null,null,null,null,null,null,null,"Line1115"]
[null,null,null,null,null,null,null,null,null,null,null,null,null,null,null,"Line1119"]
[null,null,null,null,null,null,null,null,null,null,null,null,null,null,null,"Line1122"]
[null,null,null,null,null,null,null,null,null,null,null,null,null,null,null,"Line1125"]
[null,null,null,null,null,null,null,null,null,null,null,null,null,null,null,"Line1126"]
[null,null,null,null,null,null,null,null,null,null,null,null,null,null,null,"Line1129"]
[null,null,null,null,null,null,null,null,null,null,null,null,null,null,null,"Line1132"]
[null,null,null,null,null,null,null,null,null,null,null,null,null,null,null,"Line1136"]
[null,null,null,null,null,null,null,null,null,null,null,null,null,null,null,"Line1139"]
[null,null,null,null,null,null,null,null,null,null,null,null,null,null,null,"Line1143"]
[null,null,null,null,null,null,null,null,null,null,null,null,null,null,null,"Line1146"]
[null,null,null,null,null,null,null,null,null,null,null,null,null,null,null,"Line1149"]
[null,null,null,null,null,null,null,null,null,null,null,null,null,null,null,"Line1150"]
[null,null,null,null,null,null,null,null,null,null,null,null,null,null,null,"Line1153"]
[null,null,null,null,null,null,null,null,null,null,null,null,null,null,null,"Line1156"]
[null,null,null,null,null,null,null,null,null,null,null,null,null,null,null,"Line1159"]
[null,null,null,null,null,null,null,null,null,null,null,null,null,null,null,"Line1164"]
[null,null,null,null,null,null,null,null,null,null,null,null,null,null,null,"Line1168"]
[null,null,null,null,null,null,null,null,null,null,null,null,null,null,null,"Line1171"]
[null,null,null,null,null,null,null,null,null,null,null,null,null,null,null,"Line1174"]
[null,null,null,null,null,null,null,null,null,null,null,null,null,null,null,"Line1175"]
[null,null,null,null,null,null,null,null,null,null,null,null,null,null,null,"Line1178"]
[null,null,null,null,null,null,null,null,null,null,null,null,null,null,null,"Line11"]
[null,null,null,null,null,null,null,null,null,null,null,null,null,null,null,"Line14"]
[null,null,null,null,null,null,null,null,null,null,null,null,null,null,null,"Line17"]
[null,null,null,null,null,null,null,null,null,null,null,null,null,null,null,"Line111"]
[null,null,null,null,null,null,null,null,null,null,null,null,null,null,null,"Line114"]
[null,null,null,null,null,null,null,null,null,null,null,null,null,null,null,"Line117"]
[null,null,null,null,null,null,null,null,null,null,null,null,null,null,null,"Line118"]
[null,null,null,null,null,null,null,null,null,null,null,null,null,null,null,"Line121"]
[null,null,null,null,null,null,null,null,null,null,null,null,null,null,null,"Line125"]
[null,null,null,null,null,null,null,null,null,null,null,null,null,null,null,"Line128"]
[null,null,null,null,null,null,null,null,null,null,null,null,null,null,null,"Line131"]
[null,null,null,null,null,null,null,null,null,null,null,null,null,null,null,"Line135"]
[null,null,null,null,null,null,null,null,null,null,null,null,null,null,null,"Line138"]
[null,null,null,null,null,null,null,null,null,null,null,null,null,null,null,"Line139"]
[null,null,null,null,null,null,null,null,null,null,null,null,null,null,null,"Line143"]
[null,null,null,null,null,null,null,null,null,null,null,null,null,null,null,"Line146"]
[null,null,null,null,null,null,null,null,null,null,null,null,null,null,null,"Line150"]
[null,null,null,null,null,null,null,null,null,null,null,null,null,null,null,"Line153"]
[null,null,null,null,null,null,null,null,null,null,null,null,null,null,null,"Line156"]
[null,null,null,null,null,null,null,null,null,null,null,null,null,null,null,"Line160"]
[null,null,null,null,null,null,null,null,null,null,null,null,null,null,null,"Line163"]
[null,null,null,null,null,null,null,null,null,null,null,null,null,null,null,"Line164"]
[null,null,null,null,null,null,null,null,null,null,null,null,null,null,null,"Line167"]
[null,null,null,null,null,null,null,null,null,null,null,null,null,null,null,"Line170"]
[null,null,null,null,null,null,null,null,null,null,null,null,null,null,null,"Line174"]
[null,null,null,null,null,null,null,null,null,null,null,null,null,null,null,"Line177"]
[null,null,null,null,null,null,null,null,null,null,null,null,null,null,null,"Line180"]
[null,null,null,null,null,null,null,null,null,null,null,null,null,null,null,"Line184"]
[null,null,null,null,null,null,null,null,null,null,null,null,null,null,null,"Line187"]
[null,null,null,null,null,null,null,null,null,null,null,null,null,null,null,"Line188"]
[null,null,null,null,null,null,null,null,null,null,null,null,null,null,null,"Line191"]
[null,null,null,null,null,null,null,null,null,null,null,null,null,null,null,"Line194"]
[null,null,null,null,null,null,null,null,null,null,null,null,null,null,null,"Line198"]
[null,null,null,null,null,null,null,null,null,null,null,null,null,null,null,"Line1100"]
[null,null,null,null,null,null,null,null,null,null,null,null,null,null,null,"Line1106"]
[null,null,null,null,null,null,null,null,null,null,null,null,null,null,null,"Line1109"]
[null,null,null,null,null,null,null,null,null,null,null,null,null,null,null,"Line1112"]
[null,null,null,null,null,null,null,null,null,null,null,null,null,null,null,"Line1113"]
[null,null,null,null,null,null,null,null,null,null,null,null,null,null,null,"Line1116"]
[null,null,null,null,null,null,null,null,null,null,null,null,null,null,null,"Line1119"]
[null,null,null,null,null,null,null,null,null,null,null,null,null,null,null,"Line1123"]
[null,null,null,null,null,null,null,null,null,null,null,null,null,null,null,"Line1126"]
[null,null,null,null,null,null,null,null,null,null,null,null,null,null,null,"Line1130"]
[null,null,null,null,null,null,null,null,null,null,null,null,null,null,null,"Line1133"]
[null,null,null,null,null,null,null,null,null,null,null,null,null,null,null,"Line1136"]
[null,null,null,null,null,null,null,null,null,null,null,null,null,null,null,"Line1137"]
[null,null,null,null,null,null,null,null,null,null,null,null,null,null,null,"Line1140"]
[null,null,null,null,null,null,null,null,null,null,null,null,null,null,null,"Line1144"]
[null,null,null,null,null,null,null,null,null,null,null,null,null,null,null,"Line1147"]
[null,null,null,null,null,null,null,null,null,null,null,null,null,null,null,"Line1150"]
[null,null,null,null,null,null,null,null,null,null,null,null,null,null,null,"Line1154"]
[null,null,null,null,null,null,null,null,null,null,null,null,null,null,null,"Line1157"]
[null,null,null,null,null,null,null,null,null,null,null,null,null,null,null,"Line1160"]
[null,null,null,null,null,null,null,null,null,null,null,null,null,null,null,"Line1161"]
[null,null,null,null,null,null,null,null,null,null,null,null,null,null,null,"Line1165"]
[null,null,null,null,null,null,null,null,null,null,null,null,null,null,null,"Line1169"]
[null,null,null,null,null,null,null,null,null,null,null,null,null,null,null,"Line1172"]
[null,null,null,null,null,null,null,null,null,null,null,null,null,null,null,"Line1175"]
[null,null,null,null,null,null,null,null,null,null,null,null,null,null,null,"Line138"]
[null,null,null,null,null,null,null,null,null,null,null,null,null,null,null,"Line13"]
[null,null,null,null,null,null,null,null,null,null,null,null,null,null,null,"Line16"]
[null,null,null,null,null,null,null,null,null,null,null,null,null,null,null,"Line17"]
[null,null,null,null,null,null,null,null,null,null,null,null,null,null,null,"Line110"]
[null,null,null,null,null,null,null,null,null,null,null,null,null,null,null,"Line114"]
[null,null,null,null,null,null,null,null,null,null,null,null,null,null,null,"Line117"]
[null,null,null,null,null,null,null,null,null,null,null,null,null,null,null,"Line120"]
[null,null,null,null,null,null,null,null,null,null,null,null,null,null,null,"Line124"]
[null,null,null,null,null,null,null,null,null,null,null,null,null,null,null,"Line127"]
[null,null,null,null,null,null,null,null,null,null,null,null,null,null,null,"Line128"]
[null,null,null,null,null,null,null,null,null,null,null,null,null,null,null,"Line131"]
[null,null,null,null,null,null,null,null,null,null,null,null,null,null,null,"Line134"]
[null,null,null,null,null,null,null,null,null,null,null,null,null,null,null,"Line138"]
[null,null,null,null,null,null,null,null,null,null,null,null,null,null,null,"Line141"]
[null,null,null,null,null,null,null,null,null,null,null,null,null,null,null,"Line144"]
[null,null,null,null,null,null,null,null,null,null,null,null,null,null,null,"Line147"]
[null,null,null,null,null,null,null,null,null,null,null,null,null,null,null,"Line152"]
[null,null,null,null,null,null,null,null,null,null,null,null,null,null,null,"Line153"]
[null,null,null,null,null,null,null,null,null,null,null,null,null,null,null,"Line156"]
[null,null,null,null,null,null,null,null,null,null,null,null,null,null,null,"Line159"]
[null,null,null,null,null,null,null,null,null,null,null,null,null,null,null,"Line163"]
[null,null,null,null,null,null,null,null,null,null,null,null,null,null,null,"Line166"]
[null,null,null,null,null,null,null,null,null,null,null,null,null,null,null,"Line169"]
[null,null,null,null,null,null,null,null,null,null,null,null,null,null,null,"Line173"]
[null,null,null,null,null,null,null,null,null,null,null,null,null,null,null,"Line176"]
[null,null,null,null,null,null,null,null,null,null,null,null,null,null,null,"Line177"]
[null,null,null,null,null,null,null,null,null,null,null,null,null,null,null,"Line180"]
[null,null,null,null,null,null,null,null,null,null,null,null,null,null,null,"Line183"]
[null,null,null,null,null,null,null,null,null,null,null,null,null,null,null,"Line187"]
[null,null,null,null,null,null,null,null,null,null,null,null,null,null,null,"Line190"]
[null,null,null,null,null,null,null,null,null,null,null,null,null,null,null,"Line194"]
[null,null,null,null,null,null,null,null,null,null,null,null,null,null,null,"Line197"]
[null,null,null,null,null,null,null,null,null,null,null,null,null,null,null,"Line1100"]
[null,null,null,null,null,null,null,null,null,null,null,null,null,null,null,"Line1101"]
[null,null,null,null,null,null,null,null,null,null,null,null,null,null,null,"Line1104"]
[null,null,null,null,null,null,null,null,null,null,null,null,null,null,null,"Line1108"]
[null,null,null,null,null,null,null,null,null,null,null,null,null,null,null,"Line1112"]
[null,null,null,null,null,null,null,null,null,null,null,null,null,null,null,"Line1115"]
[null,null,null,null,null,null,null,null,null,null,null,null,null,null,null,"Line1119"]
[null,null,null,null,null,null,null,null,null,null,null,null,null,null,null,"Line1122"]
[null,null,null,null,null,null,null,null,null,null,null,null,null,null,null,"Line1125"]
[null,null,null,null,null,null,null,null,null,null,null,null,null,null,null,"Line1126"]
[null,null,null,null,null,null,null,null,null,null,null,null,null,null,null,"Line1129"]
[null,null,null,null,null,null,null,null,null,null,null,null,null,null,null,"Line1133"]
[null,null,null,null,null,null,null,null,null,null,null,null,null,null,null,"Line1136"]
[null,null,null,null,null,null,null,null,null,null,null,null,null,null,null,"Line1139"]
[null,null,null,null,null,null,null,null,null,null,null,null,null,null,null,"Line1143"]
[null,null,null,null,null,null,null,null,null,null,null,null,null,null,null,"Line1146"]
[null,null,null,null,null,null,null,null,null,null,null,null,null,null,null,"Line1149"]
[null,null,null,null,null,null,null,null,null,null,null,null,null,null,null,"Line1150"]
[null,null,null,null,null,null,null,null,null,null,null,null,null,null,null,"Line1153"]
[null,null,null,null,null,null,null,null,null,null,null,null,null,null,null,"Line1157"]
[null,null,null,null,null,null,null,null,null,null,null,null,null,null,null,"Line1160"]
[null,null,null,null,null,null,null,null,null,null,null,null,null,null,null,"Line1163"]
[null,null,null,null,null,null,null,null,null,null,null,null,null,null,null,"Line1167"]
[null,null,null,null,null,null,null,null,null,null,null,null,null,null,null,"Line1169"]
[null,null,null,null,null,null,null,null,null,null,null,null,null,null,null,"Line1174"]
[null,null,null,null,null,null,null,null,null,null,null,null,null,null,null,"Line1175"]
[null,null,null,null,null,null,null,null,null,null,null,null,null,null,null,"Line1178"]
[null,null,null,null,null,null,null,null,null,null,null,null,null,null,null,"Line11"]
[null,null,null,null,null,null,null,null,null,null,null,null,null,null,null,"Line14"]
[null,null,null,null,null,null,null,null,null,null,null,null,null,null,null,"Line17"]
[null,null,null,null,null,null,null,null,null,null,null,null,null,null,null,"Line111"]
[null,null,null,null,null,null,null,null,null,null,null,null,null,null,null,"Line114"]
[null,null,null,null,null,null,null,null,null,null,null,null,null,null,null,"Line115"]
[null,null,null,null,null,null,null,null,null,null,null,null,null,null,null,"Line118"]
[null,null,null,null,null,null,null,null,null,null,null,null,null,null,null,"Line121"]
[null,null,null,null,null,null,null,null,null,null,null,null,null,null,null,"Line125"]
[null,null,null,null,null,null,null,null,null,null,null,null,null,null,null,"Line128"]
[null,null,null,null,null,null,null,null,null,null,null,null,null,null,null,"Line131"]
[null,null,null,null,null,null,null,null,null,null,null,null,null,null,null,"Line135"]
[null,null,null,null,null,null,null,null,null,null,null,null,null,null,null,"Line138"]
[null,null,null,null,null,null,null,null,null,null,null,null,null,null,null,"Line139"]
[null,null,null,null,null,null,null,null,null,null,null,null,null,null,null,"Line142"]
[null,null,null,null,null,null,null,null,null,null,null,null,null,null,null,"Line145"]
[null,null,null,null,null,null,null,null,null,null,null,null,null,null,null,"Line149"]
[null,null,null,null,null,null,null,null,null,null,null,null,null,null,null,"Line153"]
[null,null,null,null,null,null,null,null,null,null,null,null,null,null,null,"Line156"]
[null,null,null,null,null,null,null,null,null,null,null,null,null,null,null,"Line160"]
[null,null,null,null,null,null,null,null,null,null,null,null,null,null,null,"Line163"]
[null,null,null,null,null,null,null,null,null,null,null,null,null,null,null,"Line164"]
[null,null,null,null,null,null,null,null,null,null,null,null,null,null,null,"Line167"]
[null,null,null,null,null,null,null,null,null,null,null,null,null,null,null,"Line170"]
[null,null,null,null,null,null,null,null,null,null,null,null,null,null,null,"Line174"]
[null,null,null,null,null,null,null,null,null,null,null,null,null,null,null,"Line177"]
[null,null,null,null,null,null,null,null,null,null,null,null,null,null,null,"Line181"]
[null,null,null,null,null,null,null,null,null,null,null,null,null,null,null,"Line184"]
[null,null,null,null,null,null,null,null,null,null,null,null,null,null,null,"Line187"]
[null,null,null,null,null,null,null,null,null,null,null,null,null,null,null,"Line188"]
[null,null,null,null,null,null,null,null,null,null,null,null,null,null,null,"Line191"]
[null,null,null,null,null,null,null,null,null,null,null,null,null,null,null,"Line194"]
[null,null,null,null,null,null,null,null,null,null,null,null,null,null,null,"Line198"]
[null,null,null,null,null,null,null,null,null,null,null,null,null,null,null,"Line1101"]
[null,null,null,null,null,null,null,null,null,null,null,null,null,null,null,"Line1105"]
[null,null,null,null,null,null,null,null,null,null,null,null,null,null,null,"Line1108"]
[null,null,null,null,null,null,null,null,null,null,null,null,null,null,null,"Line1110"]
[null,null,null,null,null,null,null,null,null,null,null,null,null,null,null,"Line1113"]
[null,null,null,null,null,null,null,null,null,null,null,null,null,null,null,"Line1116"]
[null,null,null,null,null,null,null,null,null,null,null,null,null,null,null,"Line1120"]
[null,null,null,null,null,null,null,null,null,null,null,null,null,null,null,"Line1123"]
[null,null,null,null,null,null,null,null,null,null,null,null,null,null,null,"Line1126"]
[null,null,null,null,null,null,null,null,null,null,null,null,null,null,null,"Line1130"]
[null,null,null,null,null,null,null,null,null,null,null,null,null,null,null,"Line1133"]
[null,null,null,null,null,null,null,null,null,null,null,null,null,null,null,"Line1136"]
[null,null,null,null,null,null,null,null,null,null,null,null,null,null,null,"Line1137"]
[null,null,null,null,null,null,null,null,null,null,null,null,null,null,null,"Line1140"]
[null,null,null,null,null,null,null,null,null,null,null,null,null,null,null,"Line1144"]
[null,null,null,null,null,null,null,null,null,null,null,null,null,null,null,"Line1147"]
[null,null,null,null,null,null,null,null,null,null,null,null,null,null,null,"Line1150"]
[null,null,null,null,null,null,null,null,null,null,null,null,null,null,null,"Line1154"]
[null,null,null,null,null,null,null,null,null,null,null,null,null,null,null,"Line1157"]
[null,null,null,null,null,null,null,null,null,null,null,null,null,null,null,"Line1160"]
[null,null,null,null,null,null,null,null,null,null,null,null,null,null,null,"Line1161"]
[null,null,null,null,null,null,null,null,null,null,null,null,null,null,null,"Line1164"]
[null,null,null,null,null,null,null,null,null,null,null,null,null,null,null,"Line1168"]
[null,null,null,null,null,null,null,null,null,null,null,null,null,null,null,"Line1171"]
[null,null,null,null,null,null,null,null,null,null,null,null,null,null,null,"Line1175"]
[null,null,null,null,null,null,null,null,null,null,null,null,null,null,null,"Line1165"]
[null,null,null,null,null,null,null,null,null,null,null,null,null,null,null,"Line1168"]
[null,null,null,null,null,null,null,null,null,null,null,null,null,null,null,"Line1169"]
[null,null,null,null,null,null,null,null,null,null,null,null,null,null,null,"Line1172"]
[null,null,null,null,null,null,null,null,null,null,null,null,null,null,null,"Line1175"]
[null,null,null,null,null,null,null,null,null,null,null,null,null,null,null,"Line60"]
[null,null,null,null,null,null,null,null,null,null,null,null,null,null,null,"Line13"]
[null,null,null,null,null,null,null,null,null,null,null,null,null,null,null,"Line16"]
[null,null,null,null,null,null,null,null,null,null,null,null,null,null,null,"Line110"]
[null,null,null,null,null,null,null,null,null,null,null,null,null,null,null,"Line113"]
[null,null,null,null,null,null,null,null,null,null,null,null,null,null,null,"Line114"]
[null,null,null,null,null,null,null,null,null,null,null,null,null,null,null,"Line117"]
[null,null,null,null,null,null,null,null,null,null,null,null,null,null,null,"Line120"]
[null,null,null,null,null,null,null,null,null,null,null,null,null,null,null,"Line124"]
[null,null,null,null,null,null,null,null,null,null,null,null,null,null,null,"Line127"]
[null,null,null,null,null,null,null,null,null,null,null,null,null,null,null,"Line131"]
[null,null,null,null,null,null,null,null,null,null,null,null,null,null,null,"Line134"]
[null,null,null,null,null,null,null,null,null,null,null,null,null,null,null,"Line137"]
[null,null,null,null,null,null,null,null,null,null,null,null,null,null,null,"Line138"]
[null,null,null,null,null,null,null,null,null,null,null,null,null,null,null,"Line143"]
[null,null,null,null,null,null,null,null,null,null,null,null,null,null,null,"Line145"]
[null,null,null,null,null,null,null,null,null,null,null,null,null,null,null,"Line149"]
[null,null,null,null,null,null,null,null,null,null,null,null,null,null,null,"Line152"]
[null,null,null,null,null,null,null,null,null,null,null,null,null,null,null,"Line156"]
[null,null,null,null,null,null,null,null,null,null,null,null,null,null,null,"Line159"]
[null,null,null,null,null,null,null,null,null,null,null,null,null,null,null,"Line162"]
[null,null,null,null,null,null,null,null,null,null,null,null,null,null,null,"Line163"]
[null,null,null,null,null,null,null,null,null,null,null,null,null,null,null,"Line166"]
[null,null,null,null,null,null,null,null,null,null,null,null,null,null,null,"Line169"]
[null,null,null,null,null,null,null,null,null,null,null,null,null,null,null,"Line173"]
[null,null,null,null,null,null,null,null,null,null,null,null,null,null,null,"Line176"]
[null,null,null,null,null,null,null,null,null,null,null,null,null,null,null,"Line180"]
[null,null,null,null,null,null,null,null,null,null,null,null,null,null,null,"Line183"]
[null,null,null,null,null,null,null,null,null,null,null,null,null,null,null,"Line186"]
[null,null,null,null,null,null,null,null,null,null,null,null,null,null,null,"Line187"]
[null,null,null,null,null,null,null,null,null,null,null,null,null,null,null,"Line190"]
[null,null,null,null,null,null,null,null,null,null,null,null,null,null,null,"Line194"]
[null,null,null,null,null,null,null,null,null,null,null,null,null,null,null,"Line197"]
[null,null,null,null,null,null,null,null,null,null,null,null,null,null,null,"Line1100"]
[null,null,null,null,null,null,null,null,null,null,null,null,null,null,null,"Line1104"]
[null,null,null,null,null,null,null,null,null,null,null,null,null,null,null,"Line1108"]
[null,null,null,null,null,null,null,null,null,null,null,null,null,null,null,"Line1111"]
[null,null,null,null,null,null,null,null,null,null,null,null,null,null,null,"Line1112"]
[null,null,null,null,null,null,null,null,null,null,null,null,null,null,null,"Line1115"]
[null,null,null,null,null,null,null,null,null,null,null,null,null,null,null,"Line1119"]
[null,null,null,null,null,null,null,null,null,null,null,null,null,null,null,"Line1122"]
[null,null,null,null,null,null,null,null,null,null,null,null,null,null,null,"Line1125"]
[null,null,null,null,null,null,null,null,null,null,null,null,null,null,null,"Line1129"]
[null,null,null,null,null,null,null,null,null,null,null,null,null,null,null,"Line1132"]
[null,null,null,null,null,null,null,null,null,null,null,null,null,null,null,"Line1135"]
[null,null,null,null,null,null,null,null,null,null,null,null,null,null,null,"Line1136"]
[null,null,null,null,null,null,null,null,null,null,null,null,null,null,null,"Line1139"]
[null,null,null,null,null,null,null,null,null,null,null,null,null,null,null,"Line1143"]
[null,null,null,null,null,null,null,null,null,null,null,null,null,null,null,"Line1146"]
[null,null,null,null,null,null,null,null,null,null,null,null,null,null,null,"Line1149"]
[null,null,null,null,null,null,null,null,null,null,null,null,null,null,null,"Line1153"]
[null,null,null,null,null,null,null,null,null,null,null,null,null,null,null,"Line1156"]
[null,null,null,null,null,null,null,null,null,null,null,null,null,null,null,"Line1157"]
[null,null,null,null,null,null,null,null,null,null,null,null,null,null,null,"Line1160"]
[null,null,null,null,null,null,null,null,null,null,null,null,null,null,null,"Line1165"]
[null,null,null,null,null,null,null,null,null,null,null,null,null,null,null,"Line1168"]
[null,null,null,null,null,null,null,null,null,null,null,null,null,null,null,"Line1171"]
[null,null,null,null,null,null,null,null,null,null,null,null,null,null,null,"Line1174"]
[null,null,null,null,null,null,null,null,null,null,null,null,null,null,null,"Line1178"]
[null,null,null,null,null,null,null,null,null,null,null,null,null,null,null,"Line64"]
[null,null,null,null,null,null,null,null,null,null,null,null,null,null,null,"Line11"]
[null,null,null,null,null,null,null,null,null,null,null,null,null,null,null,"Line14"]
[null,null,null,null,null,null,null,null,null,null,null,null,null,null,null,"Line17"]
[null,null,null,null,null,null,null,null,null,null,null,null,null,null,null,"Line111"]
[null,null,null,null,null,null,null,null,null,null,null,null,null,null,null,"Line114"]
[null,null,null,null,null,null,null,null,null,null,null,null,null,null,null,"Line118"]
[null,null,null,null,null,null,null,null,null,null,null,null,null,null,null,"Line121"]
[null,null,null,null,null,null,null,null,null,null,null,null,null,null,null,"Line124"]
[null,null,null,null,null,null,null,null,null,null,null,null,null,null,null,"Line125"]
[null,null,null,null,null,null,null,null,null,null,null,null,null,null,null,"Line128"]
[null,null,null,null,null,null,null,null,null,null,null,null,null,null,null,"Line131"]
[null,null,null,null,null,null,null,null,null,null,null,null,null,null,null,"Line135"]
[null,null,null,null,null,null,null,null,null,null,null,null,null,null,null,"Line138"]
[null,null,null,null,null,null,null,null,null,null,null,null,null,null,null,"Line142"]
[null,null,null,null,null,null,null,null,null,null,null,null,null,null,null,"Line145"]
[null,null,null,null,null,null,null,null,null,null,null,null,null,null,null,"Line149"]
[null,null,null,null,null,null,null,null,null,null,null,null,null,null,null,"Line150"]
[null,null,null,null,null,null,null,null,null,null,null,null,null,null,null,"Line153"]
[null,null,null,null,null,null,null,null,null,null,null,null,null,null,null,"Line156"]
[null,null,null,null,null,null,null,null,null,null,null,null,null,null,null,"Line160"]
[null,null,null,null,null,null,null,null,null,null,null,null,null,null,null,"Line163"]
[null,null,null,null,null,null,null,null,null,null,null,null,null,null,null,"Line167"]
[null,null,null,null,null,null,null,null,null,null,null,null,null,null,null,"Line170"]
[null,null,null,null,null,null,null,null,null,null,null,null,null,null,null,"Line173"]
[null,null,null,null,null,null,null,null,null,null,null,null,null,null,null,"Line174"]
[null,null,null,null,null,null,null,null,null,null,null,null,null,null,null,"Line177"]
[null,null,null,null,null,null,null,null,null,null,null,null,null,null,null,"Line181"]
[null,null,null,null,null,null,null,null,null,null,null,null,null,null,null,"Line184"]
[null,null,null,null,null,null,null,null,null,null,null,null,null,null,null,"Line187"]
[null,null,null,null,null,null,null,null,null,null,null,null,null,null,null,"Line191"]
[null,null,null,null,null,null,null,null,null,null,null,null,null,null,null,"Line194"]
[null,null,null,null,null,null,null,null,null,null,null,null,null,null,null,"Line197"]
[null,null,null,null,null,null,null,null,null,null,null,null,null,null,null,"Line198"]
[null,null,null,null,null,null,null,null,null,null,null,null,null,null,null,"Line1101"]
[null,null,null,null,null,null,null,null,null,null,null,null,null,null,null,"Line1105"]
[null,null,null,null,null,null,null,null,null,null,null,null,null,null,null,"Line1110"]
[null,null,null,null,null,null,null,null,null,null,null,null,null,null,null,"Line1112"]
[null,null,null,null,null,null,null,null,null,null,null,null,null,null,null,"Line1116"]
[null,null,null,null,null,null,null,null,null,null,null,null,null,null,null,"Line1119"]
[null,null,null,null,null,null,null,null,null,null,null,null,null,null,null,"Line1122"]
[null,null,null,null,null,null,null,null,null,null,null,null,null,null,null,"Line1123"]
[null,null,null,null,null,null,null,null,null,null,null,null,null,null,null,"Line1126"]
[null,null,null,null,null,null,null,null,null,null,null,null,null,null,null,"Line1130"]
[null,null,null,null,null,null,null,null,null,null,null,null,null,null,null,"Line1133"]
[null,null,null,null,null,null,null,null,null,null,null,null,null,null,null,"Line1136"]
[null,null,null,null,null,null,null,null,null,null,null,null,null,null,null,"Line1140"]
[null,null,null,null,null,null,null,null,null,null,null,null,null,null,null,"Line1143"]
[null,null,null,null,null,null,null,null,null,null,null,null,null,null,null,"Line1144"]
[null,null,null,null,null,null,null,null,null,null,null,null,null,null,null,"Line1147"]
[null,null,null,null,null,null,null,null,null,null,null,null,null,null,null,"Line1150"]
[null,null,null,null,null,null,null,null,null,null,null,null,null,null,null,"Line1154"]
[null,null,null,null,null,null,null,null,null,null,null,null,null,null,null,"Line1157"]
[null,null,null,null,null,null,null,null,null,null,null,null,null,null,null,"Line1160"]
[null,null,null,null,null,null,null,null,null,null,null,null,null,null,null,"Line1164"]
[null,null,null,null,null,null,null,null,null,null,null,null,null,null,null,"Line1167"]
[null,null,null,null,null,null,null,null,null,null,null,null,null,null,null,"Line1171"]
[null,null,null,null,null,null,null,null,null,null,null,null,null,null,null,"Line1172"]
[null,null,null,null,null,null,null,null,null,null,null,null,null,null,null,"Line1175"]
[null,null,null,null,null,null,null,null,null,null,null,null,null,null,null,"Line66"]
[null,null,null,null,null,null,null,null,null,null,null,null,null,null,null,"Line13"]
[null,null,null,null,null,null,null,null,null,null,null,null,null,null,null,"Line17"]
[null,null,null,null,null,null,null,null,null,null,null,null,null,null,null,"Line110"]
[null,null,null,null,null,null,null,null,null,null,null,null,null,null,null,"Line113"]
[null,null,null,null,null,null,null,null,null,null,null,null,null,null,null,"Line114"]
[null,null,null,null,null,null,null,null,null,null,null,null,null,null,null,"Line117"]
[null,null,null,null,null,null,null,null,null,null,null,null,null,null,null,"Line120"]
[null,null,null,null,null,null,null,null,null,null,null,null,null,null,null,"Line124"]
[null,null,null,null,null,null,null,null,null,null,null,null,null,null,null,"Line127"]
[null,null,null,null,null,null,null,null,null,null,null,null,null,null,null,"Line131"]
[null,null,null,null,null,null,null,null,null,null,null,null,null,null,null,"Line134"]
[null,null,null,null,null,null,null,null,null,null,null,null,null,null,null,"Line137"]
[null,null,null,null,null,null,null,null,null,null,null,null,null,null,null,"Line138"]
[null,null,null,null,null,null,null,null,null,null,null,null,null,null,null,"Line141"]
[null,null,null,null,null,null,null,null,null,null,null,null,null,null,null,"Line144"]
[null,null,null,null,null,null,null,null,null,null,null,null,null,null,null,"Line148"]
[null,null,null,null,null,null,null,null,null,null,null,null,null,null,null,"Line153"]
[null,null,null,null,null,null,null,null,null,null,null,null,null,null,null,"Line156"]
[null,null,null,null,null,null,null,null,null,null,null,null,null,null,null,"Line159"]
[null,null,null,null,null,null,null,null,null,null,null,null,null,null,null,"Line162"]
[null,null,null,null,null,null,null,null,null,null,null,null,null,null,null,"Line163"]
[null,null,null,null,null,null,null,null,null,null,null,null,null,null,null,"Line166"]
[null,null,null,null,null,null,null,null,null,null,null,null,null,null,null,"Line170"]
[null,null,null,null,null,null,null,null,null,null,null,null,null,null,null,"Line173"]
[null,null,null,null,null,null,null,null,null,null,null,null,null,null,null,"Line176"]
[null,null,null,null,null,null,null,null,null,null,null,null,null,null,null,"Line180"]
[null,null,null,null,null,null,null,null,null,null,null,null,null,null,null,"Line183"]
[null,null,null,null,null,null,null,null,null,null,null,null,null,null,null,"Line186"]
[null,null,null,null,null,null,null,null,null,null,null,null,null,null,null,"Line187"]
[null,null,null,null,null,null,null,null,null,null,null,null,null,null,null,"Line190"]
[null,null,null,null,null,null,null,null,null,null,null,null,null,null,null,"Line194"]
[null,null,null,null,null,null,null,null,null,null,null,null,null,null,null,"Line197"]
[null,null,null,null,null,null,null,null,null,null,null,null,null,null,null,"Line1100"]
[null,null,null,null,null,null,null,null,null,null,null,null,null,null,null,"Line1104"]
[null,null,null,null,null,null,null,null,null,null,null,null,null,null,null,"Line1107"]
[null,null,null,null,null,null,null,null,null,null,null,null,null,null,null,"Line1108"]
[null,null,null,null,null,null,null,null,null,null,null,null,null,null,null,"Line1114"]
[null,null,null,null,null,null,null,null,null,null,null,null,null,null,null,"Line1115"]
[null,null,null,null,null,null,null,null,null,null,null,null,null,null,null,"Line1119"]
[null,null,null,null,null,null,null,null,null,null,null,null,null,null,null,"Line1122"]
[null,null,null,null,null,null,null,null,null,null,null,null,null,null,null,"Line1125"]
[null,null,null,null,null,null,null,null,null,null,null,null,null,null,null,"Line1129"]
[null,null,null,null,null,null,null,null,null,null,null,null,null,null,null,"Line1132"]
[null,null,null,null,null,null,null,null,null,null,null,null,null,null,null,"Line1133"]
[null,null,null,null,null,null,null,null,null,null,null,null,null,null,null,"Line1136"]
[null,null,null,null,null,null,null,null,null,null,null,null,null,null,null,"Line1139"]
[null,null,null,null,null,null,null,null,null,null,null,null,null,null,null,"Line1143"]
[null,null,null,null,null,null,null,null,null,null,null,null,null,null,null,"Line1146"]
[null,null,null,null,null,null,null,null,null,null,null,null,null,null,null,"Line1149"]
[null,null,null,null,null,null,null,null,null,null,null,null,null,null,null,"Line1153"]
[null,null,null,null,null,null,null,null,null,null,null,null,null,null,null,"Line1156"]
[null,null,null,null,null,null,null,null,null,null,null,null,null,null,null,"Line1157"]
[null,null,null,null,null,null,null,null,null,null,null,null,null,null,null,"Line1160"]
[null,null,null,null,null,null,null,null,null,null,null,null,null,null,null,"Line1163"]
[null,null,null,null,null,null,null,null,null,null,null,null,null,null,null,"Line1167"]
[null,null,null,null,null,null,null,null,null,null,null,null,null,null,null,"Line1170"]
[null,null,null,null,null,null,null,null,null,null,null,null,null,null,null,"Line1175"]
[null,null,null,null,null,null,null,null,null,null,null,null,null,null,null,"Line1178"]
[null,null,null,null,null,null,null,null,null,null,null,null,null,null,null,"Line70"]
[null,null,null,null,null,null,null,null,null,null,null,null,null,null,null,"Line11"]
[null,null,null,null,null,null,null,null,null,null,null,null,null,null,null,"Line14"]
[null,null,null,null,null,null,null,null,null,null,null,null,null,null,null,"Line17"]
[null,null,null,null,null,null,null,null,null,null,null,null,null,null,null,"Line111"]
[null,null,null,null,null,null,null,null,null,null,null,null,null,null,null,"Line114"]
[null,null,null,null,null,null,null,null,null,null,null,null,null,null,null,"Line118"]
[null,null,null,null,null,null,null,null,null,null,null,null,null,null,null,"Line121"]
[null,null,null,null,null,null,null,null,null,null,null,null,null,null,null,"Line124"]
[null,null,null,null,null,null,null,null,null,null,null,null,null,null,null,"Line125"]
[null,null,null,null,null,null,null,null,null,null,null,null,null,null,null,"Line128"]
[null,null,null,null,null,null,null,null,null,null,null,null,null,null,null,"Line131"]
[null,null,null,null,null,null,null,null,null,null,null,null,null,null,null,"Line135"]
[null,null,null,null,null,null,null,null,null,null,null,null,null,null,null,"Line138"]
[null,null,null,null,null,null,null,null,null,null,null,null,null,null,null,"Line142"]
[null,null,null,null,null,null,null,null,null,null,null,null,null,null,null,"Line145"]
[null,null,null,null,null,null,null,null,null,null,null,null,null,null,null,"Line148"]
[null,null,null,null,null,null,null,null,null,null,null,null,null,null,null,"Line149"]
[null,null,null,null,null,null,null,null,null,null,null,null,null,null,null,"Line152"]
[null,null,null,null,null,null,null,null,null,null,null,null,null,null,null,"Line155"]
[null,null,null,null,null,null,null,null,null,null,null,null,null,null,null,"Line160"]
[null,null,null,null,null,null,null,null,null,null,null,null,null,null,null,"Line163"]
[null,null,null,null,null,null,null,null,null,null,null,null,null,null,null,"Line167"]
[null,null,null,null,null,null,null,null,null,null,null,null,null,null,null,"Line170"]
[null,null,null,null,null,null,null,null,null,null,null,null,null,null,null,"Line173"]
[null,null,null,null,null,null,null,null,null,null,null,null,null,null,null,"Line174"]
[null,null,null,null,null,null,null,null,null,null,null,null,null,null,null,"Line177"]
[null,null,null,null,null,null,null,null,null,null,null,null,null,null,null,"Line181"]
[null,null,null,null,null,null,null,null,null,null,null,null,null,null,null,"Line184"]
[null,null,null,null,null,null,null,null,null,null,null,null,null,null,null,"Line187"]
[null,null,null,null,null,null,null,null,null,null,null,null,null,null,null,"Line191"]
[null,null,null,null,null,null,null,null,null,null,null,null,null,null,null,"Line194"]
[null,null,null,null,null,null,null,null,null,null,null,null,null,null,null,"Line195"]
[null,null,null,null,null,null,null,null,null,null,null,null,null,null,null,"Line198"]
[null,null,null,null,null,null,null,null,null,null,null,null,null,null,null,"Line1101"]
[null,null,null,null,null,null,null,null,null,null,null,null,null,null,null,"Line1105"]
[null,null,null,null,null,null,null,null,null,null,null,null,null,null,null,"Line1108"]
[null,null,null,null,null,null,null,null,null,null,null,null,null,null,null,"Line1111"]
[null,null,null,null,null,null,null,null,null,null,null,null,null,null,null,"Line1115"]
[null,null,null,null,null,null,null,null,null,null,null,null,null,null,null,"Line1116"]
[null,null,null,null,null,null,null,null,null,null,null,null,null,null,null,"Line1120"]
[null,null,null,null,null,null,null,null,null,null,null,null,null,null,null,"Line1123"]
[null,null,null,null,null,null,null,null,null,null,null,null,null,null,null,"Line1126"]
[null,null,null,null,null,null,null,null,null,null,null,null,null,null,null,"Line1130"]
[null,null,null,null,null,null,null,null,null,null,null,null,null,null,null,"Line1133"]
[null,null,null,null,null,null,null,null,null,null,null,null,null,null,null,"Line1136"]
[null,null,null,null,null,null,null,null,null,null,null,null,null,null,null,"Line1140"]
[null,null,null,null,null,null,null,null,null,null,null,null,null,null,null,"Line1143"]
[null,null,null,null,null,null,null,null,null,null,null,null,null,null,null,"Line1144"]
[null,null,null,null,null,null,null,null,null,null,null,null,null,null,null,"Line1147"]
[null,null,null,null,null,null,null,null,null,null,null,null,null,null,null,"Line1150"]
[null,null,null,null,null,null,null,null,null,null,null,null,null,null,null,"Line1154"]
[null,null,null,null,null,null,null,null,null,null,null,null,null,null,null,"Line1157"]
[null,null,null,null,null,null,null,null,null,null,null,null,null,null,null,"Line1161"]
[null,null,null,null,null,null,null,null,null,null,null,null,null,null,null,"Line1164"]
[null,null,null,null,null,null,null,null,null,null,null,null,null,null,null,"Line1167"]
[null,null,null,null,null,null,null,null,null,null,null,null,null,null,null,"Line1168"]
[null,null,null,null,null,null,null,null,null,null,null,null,null,null,null,"Line1171"]
[null,null,null,null,null,null,null,null,null,null,null,null,null,null,null,"Line1174"]
[null,null,null,null,null,null,null,null,null,null,null,null,null,null,null,"Line1177"]
[null,null,null,null,null,null,null,null,null,null,null,null,null,null,null,"Line13"]
[null,null,null,null,null,null,null,null,null,null,null,null,null,null,null,"Line17"]
[null,null,null,null,null,null,null,null,null,null,null,null,null,null,null,"Line110"]
[null,null,null,null,null,null,null,null,null,null,null,null,null,null,null,"Line113"]
[null,null,null,null,null,null,null,null,null,null,null,null,null,null,null,"Line114"]
[null,null,null,null,null,null,null,null,null,null,null,null,null,null,null,"Line117"]
[null,null,null,null,null,null,null,null,null,null,null,null,null,null,null,"Line121"]
[null,null,null,null,null,null,null,null,null,null,null,null,null,null,null,"Line124"]
[null,null,null,null,null,null,null,null,null,null,null,null,null,null,null,"Line127"]
[null,null,null,null,null,null,null,null,null,null,null,null,null,null,null,"Line131"]
[null,null,null,null,null,null,null,null,null,null,null,null,null,null,null,"Line134"]
[null,null,null,null,null,null,null,null,null,null,null,null,null,null,null,"Line137"]
[null,null,null,null,null,null,null,null,null,null,null,null,null,null,null,"Line138"]
[null,null,null,null,null,null,null,null,null,null,null,null,null,null,null,"Line141"]
[null,null,null,null,null,null,null,null,null,null,null,null,null,null,null,"Line145"]
[null,null,null,null,null,null,null,null,null,null,null,null,null,null,null,"Line148"]
[null,null,null,null,null,null,null,null,null,null,null,null,null,null,null,"Line151"]
[null,null,null,null,null,null,null,null,null,null,null,null,null,null,null,"Line155"]
[null,null,null,null,null,null,null,null,null,null,null,null,null,null,null,"Line158"]
[null,null,null,null,null,null,null,null,null,null,null,null,null,null,null,"Line159"]
[null,null,null,null,null,null,null,null,null,null,null,null,null,null,null,"Line163"]
[null,null,null,null,null,null,null,null,null,null,null,null,null,null,null,"Line166"]
[null,null,null,null,null,null,null,null,null,null,null,null,null,null,null,"Line170"]
[null,null,null,null,null,null,null,null,null,null,null,null,null,null,null,"Line173"]
[null,null,null,null,null,null,null,null,null,null,null,null,null,null,null,"Line176"]
[null,null,null,null,null,null,null,null,null,null,null,null,null,null,null,"Line180"]
[null,null,null,null,null,null,null,null,null,null,null,null,null,null,null,"Line183"]
[null,null,null,null,null,null,null,null,null,null,null,null,null,null,null,"Line184"]
[null,null,null,null,null,null,null,null,null,null,null,null,null,null,null,"Line187"]
[null,null,null,null,null,null,null,null,null,null,null,null,null,null,null,"Line190"]
[null,null,null,null,null,null,null,null,null,null,null,null,null,null,null,"Line194"]
[null,null,null,null,null,null,null,null,null,null,null,null,null,null,null,"Line197"]
[null,null,null,null,null,null,null,null,null,null,null,null,null,null,null,"Line1100"]
[null,null,null,null,null,null,null,null,null,null,null,null,null,null,null,"Line1104"]
[null,null,null,null,null,null,null,null,null,null,null,null,null,null,null,"Line1107"]
[null,null,null,null,null,null,null,null,null,null,null,null,null,null,null,"Line1108"]
[null,null,null,null,null,null,null,null,null,null,null,null,null,null,null,"Line1111"]
[null,null,null,null,null,null,null,null,null,null,null,null,null,null,null,"Line1114"]
[null,null,null,null,null,null,null,null,null,null,null,null,null,null,null,"Line1118"]
[null,null,null,null,null,null,null,null,null,null,null,null,null,null,null,"Line1120"]
[null,null,null,null,null,null,null,null,null,null,null,null,null,null,null,"Line1125"]
[null,null,null,null,null,null,null,null,null,null,null,null,null,null,null,"Line1129"]
[null,null,null,null,null,null,null,null,null,null,null,null,null,null,null,"Line1132"]
[null,null,null,null,null,null,null,null,null,null,null,null,null,null,null,"Line1133"]
[null,null,null,null,null,null,null,null,null,null,null,null,null,null,null,"Line1136"]
[null,null,null,null,null,null,null,null,null,null,null,null,null,null,null,"Line1139"]
[null,null,null,null,null,null,null,null,null,null,null,null,null,null,null,"Line1143"]
[null,null,null,null,null,null,null,null,null,null,null,null,null,null,null,"Line1146"]
[null,null,null,null,null,null,null,null,null,null,null,null,null,null,null,"Line1150"]
[null,null,null,null,null,null,null,null,null,null,null,null,null,null,null,"Line1153"]
[null,null,null,null,null,null,null,null,null,null,null,null,null,null,null,"Line1156"]
[null,null,null,null,null,null,null,null,null,null,null,null,null,null,null,"Line1157"]
[null,null,null,null,null,null,null,null,null,null,null,null,null,null,null,"Line1160"]
[null,null,null,null,null,null,null,null,null,null,null,null,null,null,null,"Line1163"]
[null,null,null,null,null,null,null,null,null,null,null,null,null,null,null,"Line1167"]
[null,null,null,null,null,null,null,null,null,null,null,null,null,null,null,"Line1170"]
[null,null,null,null,null,null,null,null,null,null,null,null,null,null,null,"Line1174"]
[null,null,null,null,null,null,null,null,null,null,null,null,null,null,null,"Line1177"]
[null,null,null,null,null,null,null,null,null,null,null,null,null,null,null,"Line75"]
[null,null,null,null,null,null,null,null,null,null,null,null,null,null,null,"Line76"]
[null,null,null,null,null,null,null,null,null,null,null,null,null,null,null,"Line14"]
[null,null,null,null,null,null,null,null,null,null,null,null,null,null,null,"Line18"]
[null,null,null,null,null,null,null,null,null,null,null,null,null,null,null,"Line111"]
[null,null,null,null,null,null,null,null,null,null,null,null,null,null,null,"Line114"]
[null,null,null,null,null,null,null,null,null,null,null,null,null,null,null,"Line118"]
[null,null,null,null,null,null,null,null,null,null,null,null,null,null,null,"Line121"]
[null,null,null,null,null,null,null,null,null,null,null,null,null,null,null,"Line124"]
[null,null,null,null,null,null,null,null,null,null,null,null,null,null,null,"Line125"]
[null,null,null,null,null,null,null,null,null,null,null,null,null,null,null,"Line128"]
[null,null,null,null,null,null,null,null,null,null,null,null,null,null,null,"Line132"]
[null,null,null,null,null,null,null,null,null,null,null,null,null,null,null,"Line135"]
[null,null,null,null,null,null,null,null,null,null,null,null,null,null,null,"Line138"]
[null,null,null,null,null,null,null,null,null,null,null,null,null,null,null,"Line142"]
[null,null,null,null,null,null,null,null,null,null,null,null,null,null,null,"Line145"]
[null,null,null,null,null,null,null,null,null,null,null,null,null,null,null,"Line148"]
[null,null,null,null,null,null,null,null,null,null,null,null,null,null,null,"Line149"]
[null,null,null,null,null,null,null,null,null,null,null,null,null,null,null,"Line152"]
[null,null,null,null,null,null,null,null,null,null,null,null,null,null,null,"Line156"]
[null,null,null,null,null,null,null,null,null,null,null,null,null,null,null,"Line159"]
[null,null,null,null,null,null,null,null,null,null,null,null,null,null,null,"Line162"]
[null,null,null,null,null,null,null,null,null,null,null,null,null,null,null,"Line165"]
[null,null,null,null,null,null,null,null,null,null,null,null,null,null,null,"Line170"]
[null,null,null,null,null,null,null,null,null,null,null,null,null,null,null,"Line171"]
[null,null,null,null,null,null,null,null,null,null,null,null,null,null,null,"Line174"]
[null,null,null,null,null,null,null,null,null,null,null,null,null,null,null,"Line177"]
[null,null,null,null,null,null,null,null,null,null,null,null,null,null,null,"Line181"]
[null,null,null,null,null,null,null,null,null,null,null,null,null,null,null,"Line184"]
[null,null,null,null,null,null,null,null,null,null,null,null,null,null,null,"Line187"]
[null,null,null,null,null,null,null,null,null,null,null,null,null,null,null,"Line191"]
[null,null,null,null,null,null,null,null,null,null,null,null,null,null,null,"Line194"]
[null,null,null,null,null,null,null,null,null,null,null,null,null,null,null,"Line195"]
[null,null,null,null,null,null,null,null,null,null,null,null,null,null,null,"Line198"]
[null,null,null,null,null,null,null,null,null,null,null,null,null,null,null,"Line1101"]
[null,null,null,null,null,null,null,null,null,null,null,null,null,null,null,"Line1105"]
[null,null,null,null,null,null,null,null,null,null,null,null,null,null,null,"Line1108"]
[null,null,null,null,null,null,null,null,null,null,null,null,null,null,null,"Line1111"]
[null,null,null,null,null,null,null,null,null,null,null,null,null,null,null,"Line1115"]
[null,null,null,null,null,null,null,null,null,null,null,null,null,null,null,"Line1118"]
[null,null,null,null,null,null,null,null,null,null,null,null,null,null,null,"Line1119"]
[null,null,null,null,null,null,null,null,null,null,null,null,null,null,null,"Line1122"]
[null,null,null,null,null,null,null,null,null,null,null,null,null,null,null,"Line1126"]
[null,null,null,null,null,null,null,null,null,null,null,null,null,null,null,"Line1130"]
[null,null,null,null,null,null,null,null,null,null,null,null,null,null,null,"Line1133"]
[null,null,null,null,null,null,null,null,null,null,null,null,null,null,null,"Line1137"]
[null,null,null,null,null,null,null,null,null,null,null,null,null,null,null,"Line1140"]
[null,null,null,null,null,null,null,null,null,null,null,null,null,null,null,"Line1143"]
[null,null,null,null,null,null,null,null,null,null,null,null,null,null,null,"Line1144"]
[null,null,null,null,null,null,null,null,null,null,null,null,null,null,null,"Line1147"]
[null,null,null,null,null,null,null,null,null,null,null,null,null,null,null,"Line1150"]
[null,null,null,null,null,null,null,null,null,null,null,null,null,null,null,"Line1154"]
[null,null,null,null,null,null,null,null,null,null,null,null,null,null,null,"Line1157"]
[null,null,null,null,null,null,null,null,null,null,null,null,null,null,null,"Line1161"]
[null,null,null,null,null,null,null,null,null,null,null,null,null,null,null,"Line1164"]
[null,null,null,null,null,null,null,null,null,null,null,null,null,null,null,"Line1167"]
[null,null,null,null,null,null,null,null,null,null,null,null,null,null,null,"Line1168"]
[null,null,null,null,null,null,null,null,null,null,null,null,null,null,null,"Line1171"]
[null,null,null,null,null,null,null,null,null,null,null,null,null,null,null,"Line1175"]
[null,null,null,null,null,null,null,null,null,null,null,null,null,null,null,"Line1178"]
[null,null,null,null,null,null,null,null,null,null,null,null,null,null,null,"Line12"]
[null,null,null,null,null,null,null,null,null,null,null,null,null,null,null,"Line16"]
[null,null,null,null,null,null,null,null,null,null,null,null,null,null,null,"Line18"]
[null,null,null,null,null,null,null,null,null,null,null,null,null,null,null,"Line113"]
[null,null,null,null,null,null,null,null,null,null,null,null,null,null,null,"Line114"]
[null,null,null,null,null,null,null,null,null,null,null,null,null,null,null,"Line117"]
[null,null,null,null,null,null,null,null,null,null,null,null,null,null,null,"Line121"]
[null,null,null,null,null,null,null,null,null,null,null,null,null,null,null,"Line124"]
[null,null,null,null,null,null,null,null,null,null,null,null,null,null,null,"Line127"]
[null,null,null,null,null,null,null,null,null,null,null,null,null,null,null,"Line131"]
[null,null,null,null,null,null,null,null,null,null,null,null,null,null,null,"Line134"]
[null,null,null,null,null,null,null,null,null,null,null,null,null,null,null,"Line137"]
[null,null,null,null,null,null,null,null,null,null,null,null,null,null,null,"Line138"]
[null,null,null,null,null,null,null,null,null,null,null,null,null,null,null,"Line141"]
[null,null,null,null,null,null,null,null,null,null,null,null,null,null,null,"Line145"]
[null,null,null,null,null,null,null,null,null,null,null,null,null,null,null,"Line148"]
[null,null,null,null,null,null,null,null,null,null,null,null,null,null,null,"Line151"]
[null,null,null,null,null,null,null,null,null,null,null,null,null,null,null,"Line155"]
[null,null,null,null,null,null,null,null,null,null,null,null,null,null,null,"Line158"]
[null,null,null,null,null,null,null,null,null,null,null,null,null,null,null,"Line159"]
[null,null,null,null,null,null,null,null,null,null,null,null,null,null,null,"Line162"]
[null,null,null,null,null,null,null,null,null,null,null,null,null,null,null,"Line165"]
[null,null,null,null,null,null,null,null,null,null,null,null,null,null,null,"Line169"]
[null,null,null,null,null,null,null,null,null,null,null,null,null,null,null,"Line173"]
[null,null,null,null,null,null,null,null,null,null,null,null,null,null,null,"Line176"]
[null,null,null,null,null,null,null,null,null,null,null,null,null,null,null,"Line180"]
[null,null,null,null,null,null,null,null,null,null,null,null,null,null,null,"Line183"]
[null,null,null,null,null,null,null,null,null,null,null,null,null,null,null,"Line184"]
[null,null,null,null,null,null,null,null,null,null,null,null,null,null,null,"Line187"]
[null,null,null,null,null,null,null,null,null,null,null,null,null,null,null,"Line190"]
[null,null,null,null,null,null,null,null,null,null,null,null,null,null,null,"Line194"]
[null,null,null,null,null,null,null,null,null,null,null,null,null,null,null,"Line197"]
[null,null,null,null,null,null,null,null,null,null,null,null,null,null,null,"Line1101"]
[null,null,null,null,null,null,null,null,null,null,null,null,null,null,null,"Line1104"]
[null,null,null,null,null,null,null,null,null,null,null,null,null,null,null,"Line1107"]
[null,null,null,null,null,null,null,null,null,null,null,null,null,null,null,"Line1108"]
[null,null,null,null,null,null,null,null,null,null,null,null,null,null,null,"Line1111"]
[null,null,null,null,null,null,null,null,null,null,null,null,null,null,null,"Line1114"]
[null,null,null,null,null,null,null,null,null,null,null,null,null,null,null,"Line1118"]
[null,null,null,null,null,null,null,null,null,null,null,null,null,null,null,"Line1121"]
[null,null,null,null,null,null,null,null,null,null,null,null,null,null,null,"Line1125"]
[null,null,null,null,null,null,null,null,null,null,null,null,null,null,null,"Line1128"]
[null,null,null,null,null,null,null,null,null,null,null,null,null,null,null,"Line1131"]
[null,null,null,null,null,null,null,null,null,null,null,null,null,null,null,"Line1134"]
[null,null,null,null,null,null,null,null,null,null,null,null,null,null,null,"Line1136"]
[null,null,null,null,null,null,null,null,null,null,null,null,null,null,null,"Line1139"]
[null,null,null,null,null,null,null,null,null,null,null,null,null,null,null,"Line1143"]
[null,null,null,null,null,null,null,null,null,null,null,null,null,null,null,"Line1146"]
[null,null,null,null,null,null,null,null,null,null,null,null,null,null,null,"Line1150"]
[null,null,null,null,null,null,null,null,null,null,null,null,null,null,null,"Line1153"]
[null,null,null,null,null,null,null,null,null,null,null,null,null,null,null,"Line1156"]
[null,null,null,null,null,null,null,null,null,null,null,null,null,null,null,"Line1157"]
[null,null,null,null,null,null,null,null,null,null,null,null,null,null,null,"Line1160"]
[null,null,null,null,null,null,null,null,null,null,null,null,null,null,null,"Line1164"]
[null,null,null,null,null,null,null,null,null,null,null,null,null,null,null,"Line1167"]
[null,null,null,null,null,null,null,null,null,null,null,null,null,null,null,"Line1170"]
[null,null,null,null,null,null,null,null,null,null,null,null,null,null,null,"Line1174"]
[null,null,null,null,null,null,null,null,null,null,null,null,null,null,null,"Line1177"]
[null,null,null,null,null,null,null,null,null,null,null,null,null,null,null,"Line81"]
[null,null,null,null,null,null,null,null,null,null,null,null,null,null,null,"Line82"]
[null,null,null,null,null,null,null,null,null,null,null,null,null,null,null,"Line13"]
[null,null,null,null,null,null,null,null,null,null,null,null,null,null,null,"Line17"]
[null,null,null,null,null,null,null,null,null,null,null,null,null,null,null,"Line110"]
[null,null,null,null,null,null,null,null,null,null,null,null,null,null,null,"Line114"]
[null,null,null,null,null,null,null,null,null,null,null,null,null,null,null,"Line118"]
[null,null,null,null,null,null,null,null,null,null,null,null,null,null,null,"Line121"]
[null,null,null,null,null,null,null,null,null,null,null,null,null,null,null,"Line124"]
[null,null,null,null,null,null,null,null,null,null,null,null,null,null,null,"Line125"]
[null,null,null,null,null,null,null,null,null,null,null,null,null,null,null,"Line128"]
[null,null,null,null,null,null,null,null,null,null,null,null,null,null,null,"Line132"]
[null,null,null,null,null,null,null,null,null,null,null,null,null,null,null,"Line135"]
[null,null,null,null,null,null,null,null,null,null,null,null,null,null,null,"Line138"]
[null,null,null,null,null,null,null,null,null,null,null,null,null,null,null,"Line142"]
[null,null,null,null,null,null,null,null,null,null,null,null,null,null,null,"Line145"]
[null,null,null,null,null,null,null,null,null,null,null,null,null,null,null,"Line146"]
[null,null,null,null,null,null,null,null,null,null,null,null,null,null,null,"Line149"]
[null,null,null,null,null,null,null,null,null,null,null,null,null,null,null,"Line152"]
[null,null,null,null,null,null,null,null,null,null,null,null,null,null,null,"Line156"]
[null,null,null,null,null,null,null,null,null,null,null,null,null,null,null,"Line159"]
[null,null,null,null,null,null,null,null,null,null,null,null,null,null,null,"Line162"]
[null,null,null,null,null,null,null,null,null,null,null,null,null,null,null,"Line166"]
[null,null,null,null,null,null,null,null,null,null,null,null,null,null,null,"Line169"]
[null,null,null,null,null,null,null,null,null,null,null,null,null,null,null,"Line170"]
[null,null,null,null,null,null,null,null,null,null,null,null,null,null,null,"Line175"]
[null,null,null,null,null,null,null,null,null,null,null,null,null,null,null,"Line177"]
[null,null,null,null,null,null,null,null,null,null,null,null,null,null,null,"Line181"]
[null,null,null,null,null,null,null,null,null,null,null,null,null,null,null,"Line184"]
[null,null,null,null,null,null,null,null,null,null,null,null,null,null,null,"Line188"]
[null,null,null,null,null,null,null,null,null,null,null,null,null,null,null,"Line191"]
[null,null,null,null,null,null,null,null,null,null,null,null,null,null,null,"Line194"]
[null,null,null,null,null,null,null,null,null,null,null,null,null,null,null,"Line195"]
[null,null,null,null,null,null,null,null,null,null,null,null,null,null,null,"Line198"]
[null,null,null,null,null,null,null,null,null,null,null,null,null,null,null,"Line1101"]
[null,null,null,null,null,null,null,null,null,null,null,null,null,null,null,"Line1105"]
[null,null,null,null,null,null,null,null,null,null,null,null,null,null,null,"Line1108"]
[null,null,null,null,null,null,null,null,null,null,null,null,null,null,null,"Line1112"]
[null,null,null,null,null,null,null,null,null,null,null,null,null,null,null,"Line1115"]
[null,null,null,null,null,null,null,null,null,null,null,null,null,null,null,"Line1118"]
[null,null,null,null,null,null,null,null,null,null,null,null,null,null,null,"Line1119"]
[null,null,null,null,null,null,null,null,null,null,null,null,null,null,null,"Line1122"]
[null,null,null,null,null,null,null,null,null,null,null,null,null,null,null,"Line1125"]
[null,null,null,null,null,null,null,null,null,null,null,null,null,null,null,"Line1129"]
[null,null,null,null,null,null,null,null,null,null,null,null,null,null,null,"Line1132"]
[null,null,null,null,null,null,null,null,null,null,null,null,null,null,null,"Line1136"]
[null,null,null,null,null,null,null,null,null,null,null,null,null,null,null,"Line1140"]
[null,null,null,null,null,null,null,null,null,null,null,null,null,null,null,"Line1143"]
[null,null,null,null,null,null,null,null,null,null,null,null,null,null,null,"Line1144"]
[null,null,null,null,null,null,null,null,null,null,null,null,null,null,null,"Line1147"]
[null,null,null,null,null,null,null,null,null,null,null,null,null,null,null,"Line1151"]
[null,null,null,null,null,null,null,null,null,null,null,null,null,null,null,"Line1154"]
[null,null,null,null,null,null,null,null,null,null,null,null,null,null,null,"Line1157"]
[null,null,null,null,null,null,null,null,null,null,null,null,null,null,null,"Line1161"]
[null,null,null,null,null,null,null,null,null,null,null,null,null,null,null,"Line1164"]
[null,null,null,null,null,null,null,null,null,null,null,null,null,null,null,"Line1167"]
[null,null,null,null,null,null,null,null,null,null,null,null,null,null,null,"Line1168"]
[null,null,null,null,null,null,null,null,null,null,null,null,null,null,null,"Line1171"]
[null,null,null,null,null,null,null,null,null,null,null,null,null,null,null,"Line1175"]
[null,null,null,null,null,null,null,null,null,null,null,null,null,null,null,"Line1178"]
[null,null,null,null,null,null,null,null,null,null,null,null,null,null,null,"Line12"]
[null,null,null,null,null,null,null,null,null,null,null,null,null,null,null,"Line16"]
[null,null,null,null,null,null,null,null,null,null,null,null,null,null,null,"Line19"]
[null,null,null,null,null,null,null,null,null,null,null,null,null,null,null,"Line110"]
[null,null,null,null,null,null,null,null,null,null,null,null,null,null,null,"Line113"]
[null,null,null,null,null,null,null,null,null,null,null,null,null,null,null,"Line118"]
[null,null,null,null,null,null,null,null,null,null,null,null,null,null,null,"Line121"]
[null,null,null,null,null,null,null,null,null,null,null,null,null,null,null,"Line124"]
[null,null,null,null,null,null,null,null,null,null,null,null,null,null,null,"Line127"]
[null,null,null,null,null,null,null,null,null,null,null,null,null,null,null,"Line131"]
[null,null,null,null,null,null,null,null,null,null,null,null,null,null,null,"Line134"]
[null,null,null,null,null,null,null,null,null,null,null,null,null,null,null,"Line135"]
[null,null,null,null,null,null,null,null,null,null,null,null,null,null,null,"Line138"]
[null,null,null,null,null,null,null,null,null,null,null,null,null,null,null,"Line141"]
[null,null,null,null,null,null,null,null,null,null,null,null,null,null,null,"Line145"]
[null,null,null,null,null,null,null,null,null,null,null,null,null,null,null,"Line148"]
[null,null,null,null,null,null,null,null,null,null,null,null,null,null,null,"Line151"]
[null,null,null,null,null,null,null,null,null,null,null,null,null,null,null,"Line155"]
[null,null,null,null,null,null,null,null,null,null,null,null,null,null,null,"Line158"]
[null,null,null,null,null,null,null,null,null,null,null,null,null,null,null,"Line159"]
[null,null,null,null,null,null,null,null,null,null,null,null,null,null,null,"Line162"]
[null,null,null,null,null,null,null,null,null,null,null,null,null,null,null,"Line165"]
[null,null,null,null,null,null,null,null,null,null,null,null,null,null,null,"Line169"]
[null,null,null,null,null,null,null,null,null,null,null,null,null,null,null,"Line172"]
[null,null,null,null,null,null,null,null,null,null,null,null,null,null,null,"Line176"]
[null,null,null,null,null,null,null,null,null,null,null,null,null,null,null,"Line179"]
[null,null,null,null,null,null,null,null,null,null,null,null,null,null,null,"Line183"]
[null,null,null,null,null,null,null,null,null,null,null,null,null,null,null,"Line184"]
[null,null,null,null,null,null,null,null,null,null,null,null,null,null,null,"Line187"]
[null,null,null,null,null,null,null,null,null,null,null,null,null,null,null,"Line190"]
[null,null,null,null,null,null,null,null,null,null,null,null,null,null,null,"Line194"]
[null,null,null,null,null,null,null,null,null,null,null,null,null,null,null,"Line197"]
[null,null,null,null,null,null,null,null,null,null,null,null,null,null,null,"Line1101"]
[null,null,null,null,null,null,null,null,null,null,null,null,null,null,null,"Line1104"]
[null,null,null,null,null,null,null,null,null,null,null,null,null,null,null,"Line1107"]
[null,null,null,null,null,null,null,null,null,null,null,null,null,null,null,"Line1108"]
[null,null,null,null,null,null,null,null,null,null,null,null,null,null,null,"Line1111"]
[null,null,null,null,null,null,null,null,null,null,null,null,null,null,null,"Line1114"]
[null,null,null,null,null,null,null,null,null,null,null,null,null,null,null,"Line1118"]
[null,null,null,null,null,null,null,null,null,null,null,null,null,null,null,"Line1121"]
[null,null,null,null,null,null,null,null,null,null,null,null,null,null,null,"Line1125"]
[null,null,null,null,null,null,null,null,null,null,null,null,null,null,null,"Line1128"]
[null,null,null,null,null,null,null,null,null,null,null,null,null,null,null,"Line1131"]
[null,null,null,null,null,null,null,null,null,null,null,null,null,null,null,"Line1132"]
[null,null,null,null,null,null,null,null,null,null,null,null,null,null,null,"Line1135"]
[null,null,null,null,null,null,null,null,null,null,null,null,null,null,null,"Line1139"]
[null,null,null,null,null,null,null,null,null,null,null,null,null,null,null,"Line1144"]
[null,null,null,null,null,null,null,null,null,null,null,null,null,null,null,"Line1146"]
[null,null,null,null,null,null,null,null,null,null,null,null,null,null,null,"Line1150"]
[null,null,null,null,null,null,null,null,null,null,null,null,null,null,null,"Line1153"]
[null,null,null,null,null,null,null,null,null,null,null,null,null,null,null,"Line1156"]
[null,null,null,null,null,null,null,null,null,null,null,null,null,null,null,"Line1157"]
[null,null,null,null,null,null,null,null,null,null,null,null,null,null,null,"Line1160"]
[null,null,null,null,null,null,null,null,null,null,null,null,null,null,null,"Line1164"]
[null,null,null,null,null,null,null,null,null,null,null,null,null,null,null,"Line1167"]
[null,null,null,null,null,null,null,null,null,null,null,null,null,null,null,"Line1170"]
[null,null,null,null,null,null,null,null,null,null,null,null,null,null,null,"Line1174"]
[null,null,null,null,null,null,null,null,null,null,null,null,null,null,null,"Line1177"]
[null,null,null,null,null,null,null,null,null,null,null,null,null,null,null,"Line1178"]
[null,null,null,null,null,null,null,null,null,null,null,null,null,null,null,"Line88"]
[null,null,null,null,null,null,null,null,null,null,null,null,null,null,null,"Line13"]
[null,null,null,null,null,null,null,null,null,null,null,null,null,null,null,"Line17"]
[null,null,null,null,null,null,null,null,null,null,null,null,null,null,null,"Line110"]
[null,null,null,null,null,null,null,null,null,null,null,null,null,null,null,"Line113"]
[null,null,null,null,null,null,null,null,null,null,null,null,null,null,null,"Line117"]
[null,null,null,null,null,null,null,null,null,null,null,null,null,null,null,"Line120"]
[null,null,null,null,null,null,null,null,null,null,null,null,null,null,null,"Line124"]
[null,null,null,null,null,null,null,null,null,null,null,null,null,null,null,"Line125"]
[null,null,null,null,null,null,null,null,null,null,null,null,null,null,null,"Line128"]
[null,null,null,null,null,null,null,null,null,null,null,null,null,null,null,"Line132"]
[null,null,null,null,null,null,null,null,null,null,null,null,null,null,null,"Line135"]
[null,null,null,null,null,null,null,null,null,null,null,null,null,null,null,"Line138"]
[null,null,null,null,null,null,null,null,null,null,null,null,null,null,null,"Line142"]
[null,null,null,null,null,null,null,null,null,null,null,null,null,null,null,"Line145"]
[null,null,null,null,null,null,null,null,null,null,null,null,null,null,null,"Line146"]
[null,null,null,null,null,null,null,null,null,null,null,null,null,null,null,"Line149"]
[null,null,null,null,null,null,null,null,null,null,null,null,null,null,null,"Line152"]
[null,null,null,null,null,null,null,null,null,null,null,null,null,null,null,"Line156"]
[null,null,null,null,null,null,null,null,null,null,null,null,null,null,null,"Line159"]
[null,null,null,null,null,null,null,null,null,null,null,null,null,null,null,"Line163"]
[null,null,null,null,null,null,null,null,null,null,null,null,null,null,null,"Line166"]
[null,null,null,null,null,null,null,null,null,null,null,null,null,null,null,"Line169"]
[null,null,null,null,null,null,null,null,null,null,null,null,null,null,null,"Line170"]
[null,null,null,null,null,null,null,null,null,null,null,null,null,null,null,"Line173"]
[null,null,null,null,null,null,null,null,null,null,null,null,null,null,null,"Line176"]
[null,null,null,null,null,null,null,null,null,null,null,null,null,null,null,"Line180"]
[null,null,null,null,null,null,null,null,null,null,null,null,null,null,null,"Line185"]
[null,null,null,null,null,null,null,null,null,null,null,null,null,null,null,"Line188"]
[null,null,null,null,null,null,null,null,null,null,null,null,null,null,null,"Line191"]
[null,null,null,null,null,null,null,null,null,null,null,null,null,null,null,"Line194"]
[null,null,null,null,null,null,null,null,null,null,null,null,null,null,null,"Line195"]
[null,null,null,null,null,null,null,null,null,null,null,null,null,null,null,"Line198"]
[null,null,null,null,null,null,null,null,null,null,null,null,null,null,null,"Line1101"]
[null,null,null,null,null,null,null,null,null,null,null,null,null,null,null,"Line1105"]
[null,null,null,null,null,null,null,null,null,null,null,null,null,null,null,"Line1108"]
[null,null,null,null,null,null,null,null,null,null,null,null,null,null,null,"Line1112"]
[null,null,null,null,null,null,null,null,null,null,null,null,null,null,null,"Line1115"]
[null,null,null,null,null,null,null,null,null,null,null,null,null,null,null,"Line1118"]
[null,null,null,null,null,null,null,null,null,null,null,null,null,null,null,"Line1119"]
[null,null,null,null,null,null,null,null,null,null,null,null,null,null,null,"Line1122"]
[null,null,null,null,null,null,null,null,null,null,null,null,null,null,null,"Line1126"]
[null,null,null,null,null,null,null,null,null,null,null,null,null,null,null,"Line1129"]
[null,null,null,null,null,null,null,null,null,null,null,null,null,null,null,"Line1132"]
[null,null,null,null,null,null,null,null,null,null,null,null,null,null,null,"Line1136"]
[null,null,null,null,null,null,null,null,null,null,null,null,null,null,null,"Line1139"]
[null,null,null,null,null,null,null,null,null,null,null,null,null,null,null,"Line1142"]
[null,null,null,null,null,null,null,null,null,null,null,null,null,null,null,"Line1146"]
[null,null,null,null,null,null,null,null,null,null,null,null,null,null,null,"Line1147"]
[null,null,null,null,null,null,null,null,null,null,null,null,null,null,null,"Line1151"]
[null,null,null,null,null,null,null,null,null,null,null,null,null,null,null,"Line1154"]
[null,null,null,null,null,null,null,null,null,null,null,null,null,null,null,"Line1157"]
[null,null,null,null,null,null,null,null,null,null,null,null,null,null,null,"Line1161"]
[null,null,null,null,null,null,null,null,null,null,null,null,null,null,null,"Line1164"]
[null,null,null,null,null,null,null,null,null,null,null,null,null,null,null,"Line1165"]
[null,null,null,null,null,null,null,null,null,null,null,null,null,null,null,"Line1168"]
[null,null,null,null,null,null,null,null,null,null,null,null,null,null,null,"Line1171"]
[null,null,null,null,null,null,null,null,null,null,null,null,null,null,null,"Line1175"]
[null,null,null,null,null,null,null,null,null,null,null,null,null,null,null,"Line1178"]
[null,null,null,null,null,null,null,null,null,null,null,null,null,null,null,"Line12"]
[null,null,null,null,null,null,null,null,null,null,null,null,null,null,null,"Line16"]
[null,null,null,null,null,null,null,null,null,null,null,null,null,null,null,"Line19"]
[null,null,null,null,null,null,null,null,null,null,null,null,null,null,null,"Line110"]
[null,null,null,null,null,null,null,null,null,null,null,null,null,null,null,"Line113"]
[null,null,null,null,null,null,null,null,null,null,null,null,null,null,null,"Line116"]
[null,null,null,null,null,null,null,null,null,null,null,null,null,null,null,"Line120"]
[null,null,null,null,null,null,null,null,null,null,null,null,null,null,null,"Line123"]
[null,null,null,null,null,null,null,null,null,null,null,null,null,null,null,"Line126"]
[null,null,null,null,null,null,null,null,null,null,null,null,null,null,null,"Line128"]
[null,null,null,null,null,null,null,null,null,null,null,null,null,null,null,"Line134"]
[null,null,null,null,null,null,null,null,null,null,null,null,null,null,null,"Line135"]
[null,null,null,null,null,null,null,null,null,null,null,null,null,null,null,"Line138"]
[null,null,null,null,null,null,null,null,null,null,null,null,null,null,null,"Line141"]
[null,null,null,null,null,null,null,null,null,null,null,null,null,null,null,"Line145"]
[null,null,null,null,null,null,null,null,null,null,null,null,null,null,null,"Line148"]
[null,null,null,null,null,null,null,null,null,null,null,null,null,null,null,"Line152"]
[null,null,null,null,null,null,null,null,null,null,null,null,null,null,null,"Line155"]
[null,null,null,null,null,null,null,null,null,null,null,null,null,null,null,"Line158"]
[null,null,null,null,null,null,null,null,null,null,null,null,null,null,null,"Line159"]
[null,null,null,null,null,null,null,null,null,null,null,null,null,null,null,"Line162"]
[null,null,null,null,null,null,null,null,null,null,null,null,null,null,null,"Line165"]
[null,null,null,null,null,null,null,null,null,null,null,null,null,null,null,"Line169"]
[null,null,null,null,null,null,null,null,null,null,null,null,null,null,null,"Line172"]
[null,null,null,null,null,null,null,null,null,null,null,null,null,null,null,"Line176"]
[null,null,null,null,null,null,null,null,null,null,null,null,null,null,null,"Line179"]
[null,null,null,null,null,null,null,null,null,null,null,null,null,null,null,"Line182"]
[null,null,null,null,null,null,null,null,null,null,null,null,null,null,null,"Line183"]
[null,null,null,null,null,null,null,null,null,null,null,null,null,null,null,"Line186"]
[null,null,null,null,null,null,null,null,null,null,null,null,null,null,null,"Line189"]
[null,null,null,null,null,null,null,null,null,null,null,null,null,null,null,"Line194"]
[null,null,null,null,null,null,null,null,null,null,null,null,null,null,null,"Line197"]
[null,null,null,null,null,null,null,null,null,null,null,null,null,null,null,"Line1101"]
[null,null,null,null,null,null,null,null,null,null,null,null,null,null,null,"Line1104"]
[null,null,null,null,null,null,null,null,null,null,null,null,null,null,null,"Line1107"]
[null,null,null,null,null,null,null,null,null,null,null,null,null,null,null,"Line1108"]
[null,null,null,null,null,null,null,null,null,null,null,null,null,null,null,"Line1111"]
[null,null,null,null,null,null,null,null,null,null,null,null,null,null,null,"Line1115"]
[null,null,null,null,null,null,null,null,null,null,null,null,null,null,null,"Line1118"]
[null,null,null,null,null,null,null,null,null,null,null,null,null,null,null,"Line1121"]
[null,null,null,null,null,null,null,null,null,null,null,null,null,null,null,"Line1125"]
[null,null,null,null,null,null,null,null,null,null,null,null,null,null,null,"Line1128"]
[null,null,null,null,null,null,null,null,null,null,null,null,null,null,null,"Line1131"]
[null,null,null,null,null,null,null,null,null,null,null,null,null,null,null,"Line1132"]
[null,null,null,null,null,null,null,null,null,null,null,null,null,null,null,"Line1135"]
[null,null,null,null,null,null,null,null,null,null,null,null,null,null,null,"Line1139"]
[null,null,null,null,null,null,null,null,null,null,null,null,null,null,null,"Line1142"]
[null,null,null,null,null,null,null,null,null,null,null,null,null,null,null,"Line1145"]
[null,null,null,null,null,null,null,null,null,null,null,null,null,null,null,"Line1149"]
[null,null,null,null,null,null,null,null,null,null,null,null,null,null,null,"Line1150"]
[null,null,null,null,null,null,null,null,null,null,null,null,null,null,null,"Line1154"]
[null,null,null,null,null,null,null,null,null,null,null,null,null,null,null,"Line1157"]
[null,null,null,null,null,null,null,null,null,null,null,null,null,null,null,"Line1160"]
[null,null,null,null,null,null,null,null,null,null,null,null,null,null,null,"Line1164"]
[null,null,null,null,null,null,null,null,null,null,null,null,null,null,null,"Line1167"]
[null,null,null,null,null,null,null,null,null,null,null,null,null,null,null,"Line1170"]
[null,null,null,null,null,null,null,null,null,null,null,null,null,null,null,"Line1174"]
[null,null,null,null,null,null,null,null,null,null,null,null,null,null,null,"Line1177"]
[null,null,null,null,null,null,null,null,null,null,null,null,null,null,null,"Line1178"]
[null,null,null,null,null,null,null,null,null,null,null,null,null,null,null,"Line94"]
[null,null,null,null,null,null,null,null,null,null,null,null,null,null,null,"Line13"]
[null,null,null,null,null,null,null,null,null,null,null,null,null,null,null,"Line17"]
[null,null,null,null,null,null,null,null,null,null,null,null,null,null,null,"Line110"]
[null,null,null,null,null,null,null,null,null,null,null,null,null,null,null,"Line113"]
[null,null,null,null,null,null,null,null,null,null,null,null,null,null,null,"Line117"]
[null,null,null,null,null,null,null,null,null,null,null,null,null,null,null,"Line120"]
[null,null,null,null,null,null,null,null,null,null,null,null,null,null,null,"Line121"]
[null,null,null,null,null,null,null,null,null,null,null,null,null,null,null,"Line124"]
[null,null,null,null,null,null,null,null,null,null,null,null,null,null,null,"Line127"]
[null,null,null,null,null,null,null,null,null,null,null,null,null,null,null,"Line130"]
[null,null,null,null,null,null,null,null,null,null,null,null,null,null,null,"Line135"]
[null,null,null,null,null,null,null,null,null,null,null,null,null,null,null,"Line139"]
[null,null,null,null,null,null,null,null,null,null,null,null,null,null,null,"Line142"]
[null,null,null,null,null,null,null,null,null,null,null,null,null,null,null,"Line145"]
[null,null,null,null,null,null,null,null,null,null,null,null,null,null,null,"Line146"]
[null,null,null,null,null,null,null,null,null,null,null,null,null,null,null,"Line149"]
[null,null,null,null,null,null,null,null,null,null,null,null,null,null,null,"Line152"]
[null,null,null,null,null,null,null,null,null,null,null,null,null,null,null,"Line156"]
[null,null,null,null,null,null,null,null,null,null,null,null,null,null,null,"Line159"]
[null,null,null,null,null,null,null,null,null,null,null,null,null,null,null,"Line163"]
[null,null,null,null,null,null,null,null,null,null,null,null,null,null,null,"Line166"]
[null,null,null,null,null,null,null,null,null,null,null,null,null,null,null,"Line169"]
[null,null,null,null,null,null,null,null,null,null,null,null,null,null,null,"Line170"]
[null,null,null,null,null,null,null,null,null,null,null,null,null,null,null,"Line173"]
[null,null,null,null,null,null,null,null,null,null,null,null,null,null,null,"Line177"]
[null,null,null,null,null,null,null,null,null,null,null,null,null,null,null,"Line180"]
[null,null,null,null,null,null,null,null,null,null,null,null,null,null,null,"Line183"]
[null,null,null,null,null,null,null,null,null,null,null,null,null,null,null,"Line187"]
[null,null,null,null,null,null,null,null,null,null,null,null,null,null,null,"Line190"]
[null,null,null,null,null,null,null,null,null,null,null,null,null,null,null,"Line191"]
[null,null,null,null,null,null,null,null,null,null,null,null,null,null,null,"Line195"]
[null,null,null,null,null,null,null,null,null,null,null,null,null,null,null,"Line198"]
[null,null,null,null,null,null,null,null,null,null,null,null,null,null,null,"Line1102"]
[null,null,null,null,null,null,null,null,null,null,null,null,null,null,null,"Line1105"]
[null,null,null,null,null,null,null,null,null,null,null,null,null,null,null,"Line1108"]
[null,null,null,null,null,null,null,null,null,null,null,null,null,null,null,"Line1112"]
[null,null,null,null,null,null,null,null,null,null,null,null,null,null,null,"Line1115"]
[null,null,null,null,null,null,null,null,null,null,null,null,null,null,null,"Line1118"]
[null,null,null,null,null,null,null,null,null,null,null,null,null,null,null,"Line1119"]
[null,null,null,null,null,null,null,null,null,null,null,null,null,null,null,"Line1122"]
[null,null,null,null,null,null,null,null,null,null,null,null,null,null,null,"Line1126"]
[null,null,null,null,null,null,null,null,null,null,null,null,null,null,null,"Line1129"]
[null,null,null,null,null,null,null,null,null,null,null,null,null,null,null,"Line1132"]
[null,null,null,null,null,null,null,null,null,null,null,null,null,null,null,"Line1136"]
[null,null,null,null,null,null,null,null,null,null,null,null,null,null,null,"Line1139"]
[null,null,null,null,null,null,null,null,null,null,null,null,null,null,null,"Line1140"]
[null,null,null,null,null,null,null,null,null,null,null,null,null,null,null,"Line1143"]
[null,null,null,null,null,null,null,null,null,null,null,null,null,null,null,"Line1146"]
[null,null,null,null,null,null,null,null,null,null,null,null,null,null,null,"Line1150"]
[null,null,null,null,null,null,null,null,null,null,null,null,null,null,null,"Line1153"]
[null,null,null,null,null,null,null,null,null,null,null,null,null,null,null,"Line1156"]
[null,null,null,null,null,null,null,null,null,null,null,null,null,null,null,"Line1161"]
[null,null,null,null,null,null,null,null,null,null,null,null,null,null,null,"Line1164"]
[null,null,null,null,null,null,null,null,null,null,null,null,null,null,null,"Line1165"]
[null,null,null,null,null,null,null,null,null,null,null,null,null,null,null,"Line1168"]
[null,null,null,null,null,null,null,null,null,null,null,null,null,null,null,"Line1171"]
[null,null,null,null,null,null,null,null,null,null,null,null,null,null,null,"Line1175"]
[null,null,null,null,null,null,null,null,null,null,null,null,null,null,null,"Line1178"]
[null,null,null,null,null,null,null,null,null,null,null,null,null,null,null,"Line12"]
[null,null,null,null,null,null,null,null,null,null,null,null,null,null,null,"Line16"]
[null,null,null,null,null,null,null,null,null,null,null,null,null,null,null,"Line19"]
[null,null,null,null,null,null,null,null,null,null,null,null,null,null,null,"Line110"]
[null,null,null,null,null,null,null,null,null,null,null,null,null,null,null,"Line113"]
[null,null,null,null,null,null,null,null,null,null,null,null,null,null,null,"Line116"]
[null,null,null,null,null,null,null,null,null,null,null,null,null,null,null,"Line120"]
[null,null,null,null,null,null,null,null,null,null,null,null,null,null,null,"Line123"]
[null,null,null,null,null,null,null,null,null,null,null,null,null,null,null,"Line127"]
[null,null,null,null,null,null,null,null,null,null,null,null,null,null,null,"Line130"]
[null,null,null,null,null,null,null,null,null,null,null,null,null,null,null,"Line133"]
[null,null,null,null,null,null,null,null,null,null,null,null,null,null,null,"Line134"]
[null,null,null,null,null,null,null,null,null,null,null,null,null,null,null,"Line138"]
[null,null,null,null,null,null,null,null,null,null,null,null,null,null,null,"Line141"]
[null,null,null,null,null,null,null,null,null,null,null,null,null,null,null,"Line145"]
[null,null,null,null,null,null,null,null,null,null,null,null,null,null,null,"Line148"]
[null,null,null,null,null,null,null,null,null,null,null,null,null,null,null,"Line152"]
[null,null,null,null,null,null,null,null,null,null,null,null,null,null,null,"Line155"]
[null,null,null,null,null,null,null,null,null,null,null,null,null,null,null,"Line158"]
[null,null,null,null,null,null,null,null,null,null,null,null,null,null,null,"Line159"]
[null,null,null,null,null,null,null,null,null,null,null,null,null,null,null,"Line162"]
[null,null,null,null,null,null,null,null,null,null,null,null,null,null,null,"Line166"]
[null,null,null,null,null,null,null,null,null,null,null,null,null,null,null,"Line169"]
[null,null,null,null,null,null,null,null,null,null,null,null,null,null,null,"Line172"]
[null,null,null,null,null,null,null,null,null,null,null,null,null,null,null,"Line176"]
[null,null,null,null,null,null,null,null,null,null,null,null,null,null,null,"Line179"]
[null,null,null,null,null,null,null,null,null,null,null,null,null,null,null,"Line182"]
[null,null,null,null,null,null,null,null,null,null,null,null,null,null,null,"Line183"]
[null,null,null,null,null,null,null,null,null,null,null,null,null,null,null,"Line186"]
[null,null,null,null,null,null,null,null,null,null,null,null,null,null,null,"Line190"]
[null,null,null,null,null,null,null,null,null,null,null,null,null,null,null,"Line193"]
[null,null,null,null,null,null,null,null,null,null,null,null,null,null,null,"Line196"]
[null,null,null,null,null,null,null,null,null,null,null,null,null,null,null,"Line199"]
[null,null,null,null,null,null,null,null,null,null,null,null,null,null,null,"Line1104"]
[null,null,null,null,null,null,null,null,null,null,null,null,null,null,null,"Line1107"]
[null,null,null,null,null,null,null,null,null,null,null,null,null,null,null,"Line1108"]
[null,null,null,null,null,null,null,null,null,null,null,null,null,null,null,"Line1111"]
[null,null,null,null,null,null,null,null,null,null,null,null,null,null,null,"Line1115"]
[null,null,null,null,null,null,null,null,null,null,null,null,null,null,null,"Line1118"]
[null,null,null,null,null,null,null,null,null,null,null,null,null,null,null,"Line1121"]
[null,null,null,null,null,null,null,null,null,null,null,null,null,null,null,"Line1125"]
[null,null,null,null,null,null,null,null,null,null,null,null,null,null,null,"Line1128"]
[null,null,null,null,null,null,null,null,null,null,null,null,null,null,null,"Line1129"]
[null,null,null,null,null,null,null,null,null,null,null,null,null,null,null,"Line1132"]
[null,null,null,null,null,null,null,null,null,null,null,null,null,null,null,"Line1135"]
[null,null,null,null,null,null,null,null,null,null,null,null,null,null,null,"Line1139"]
[null,null,null,null,null,null,null,null,null,null,null,null,null,null,null,"Line1142"]
[null,null,null,null,null,null,null,null,null,null,null,null,null,null,null,"Line1145"]
[null,null,null,null,null,null,null,null,null,null,null,null,null,null,null,"Line1149"]
[null,null,null,null,null,null,null,null,null,null,null,null,null,null,null,"Line1152"]
[null,null,null,null,null,null,null,null,null,null,null,null,null,null,null,"Line1153"]
[null,null,null,null,null,null,null,null,null,null,null,null,null,null,null,"Line1156"]
[null,null,null,null,null,null,null,null,null,null,null,null,null,null,null,"Line1160"]
[null,null,null,null,null,null,null,null,null,null,null,null,null,null,null,"Line1164"]
[null,null,null,null,null,null,null,null,null,null,null,null,null,null,null,"Line1167"]
[null,null,null,null,null,null,null,null,null,null,null,null,null,null,null,"Line1171"]
[null,null,null,null,null,null,null,null,null,null,null,null,null,null,null,"Line1174"]
[null,null,null,null,null,null,null,null,null,null,null,null,null,null,null,"Line1177"]
[null,null,null,null,null,null,null,null,null,null,null,null,null,null,null,"Line1178"]
[null,null,null,null,null,null,null,null,null,null,null,null,null,null,null,"Line100"]
[null,null,null,null,null,null,null,null,null,null,null,null,null,null,null,"Line13"]
[null,null,null,null,null,null,null,null,null,null,null,null,null,null,null,"Line17"]
[null,null,null,null,null,null,null,null,null,null,null,null,null,null,null,"Line110"]
[null,null,null,null,null,null,null,null,null,null,null,null,null,null,null,"Line114"]
[null,null,null,null,null,null,null,null,null,null,null,null,null,null,null,"Line117"]
[null,null,null,null,null,null,null,null,null,null,null,null,null,null,null,"Line120"]
[null,null,null,null,null,null,null,null,null,null,null,null,null,null,null,"Line121"]
[null,null,null,null,null,null,null,null,null,null,null,null,null,null,null,"Line124"]
[null,null,null,null,null,null,null,null,null,null,null,null,null,null,null,"Line127"]
[null,null,null,null,null,null,null,null,null,null,null,null,null,null,null,"Line131"]
[null,null,null,null,null,null,null,null,null,null,null,null,null,null,null,"Line134"]
[null,null,null,null,null,null,null,null,null,null,null,null,null,null,null,"Line138"]
[null,null,null,null,null,null,null,null,null,null,null,null,null,null,null,"Line140"]
[null,null,null,null,null,null,null,null,null,null,null,null,null,null,null,"Line145"]
[null,null,null,null,null,null,null,null,null,null,null,null,null,null,null,"Line146"]
[null,null,null,null,null,null,null,null,null,null,null,null,null,null,null,"Line149"]
[null,null,null,null,null,null,null,null,null,null,null,null,null,null,null,"Line153"]
[null,null,null,null,null,null,null,null,null,null,null,null,null,null,null,"Line156"]
[null,null,null,null,null,null,null,null,null,null,null,null,null,null,null,"Line159"]
[null,null,null,null,null,null,null,null,null,null,null,null,null,null,null,"Line163"]
[null,null,null,null,null,null,null,null,null,null,null,null,null,null,null,"Line166"]
[null,null,null,null,null,null,null,null,null,null,null,null,null,null,null,"Line169"]
[null,null,null,null,null,null,null,null,null,null,null,null,null,null,null,"Line170"]
[null,null,null,null,null,null,null,null,null,null,null,null,null,null,null,"Line173"]
[null,null,null,null,null,null,null,null,null,null,null,null,null,null,null,"Line177"]
[null,null,null,null,null,null,null,null,null,null,null,null,null,null,null,"Line180"]
[null,null,null,null,null,null,null,null,null,null,null,null,null,null,null,"Line183"]
[null,null,null,null,null,null,null,null,null,null,null,null,null,null,null,"Line187"]
[null,null,null,null,null,null,null,null,null,null,null,null,null,null,null,"Line190"]
[null,null,null,null,null,null,null,null,null,null,null,null,null,null,null,"Line193"]
[null,null,null,null,null,null,null,null,null,null,null,null,null,null,null,"Line194"]
[null,null,null,null,null,null,null,null,null,null,null,null,null,null,null,"Line197"]
[null,null,null,null,null,null,null,null,null,null,null,null,null,null,null,"Line1101"]
[null,null,null,null,null,null,null,null,null,null,null,null,null,null,null,"Line1105"]
[null,null,null,null,null,null,null,null,null,null,null,null,null,null,null,"Line1108"]
[null,null,null,null,null,null,null,null,null,null,null,null,null,null,null,"Line1112"]
[null,null,null,null,null,null,null,null,null,null,null,null,null,null,null,"Line1115"]
[null,null,null,null,null,null,null,null,null,null,null,null,null,null,null,"Line1116"]
[null,null,null,null,null,null,null,null,null,null,null,null,null,null,null,"Line1119"]
[null,null,null,null,null,null,null,null,null,null,null,null,null,null,null,"Line1122"]
[null,null,null,null,null,null,null,null,null,null,null,null,null,null,null,"Line1126"]
[null,null,null,null,null,null,null,null,null,null,null,null,null,null,null,"Line1129"]
[null,null,null,null,null,null,null,null,null,null,null,null,null,null,null,"Line1132"]
[null,null,null,null,null,null,null,null,null,null,null,null,null,null,null,"Line1136"]
[null,null,null,null,null,null,null,null,null,null,null,null,null,null,null,"Line1139"]
[null,null,null,null,null,null,null,null,null,null,null,null,null,null,null,"Line1140"]
[null,null,null,null,null,null,null,null,null,null,null,null,null,null,null,"Line1143"]
[null,null,null,null,null,null,null,null,null,null,null,null,null,null,null,"Line1146"]
[null,null,null,null,null,null,null,null,null,null,null,null,null,null,null,"Line1150"]
[null,null,null,null,null,null,null,null,null,null,null,null,null,null,null,"Line1153"]
[null,null,null,null,null,null,null,null,null,null,null,null,null,null,null,"Line1157"]
[null,null,null,null,null,null,null,null,null,null,null,null,null,null,null,"Line1160"]
[null,null,null,null,null,null,null,null,null,null,null,null,null,null,null,"Line1163"]
[null,null,null,null,null,null,null,null,null,null,null,null,null,null,null,"Line1166"]
[null,null,null,null,null,null,null,null,null,null,null,null,null,null,null,"Line1168"]
[null,null,null,null,null,null,null,null,null,null,null,null,null,null,null,"Line1171"]
[null,null,null,null,null,null,null,null,null,null,null,null,null,null,null,"Line1175"]
[null,null,null,null,null,null,null,null,null,null,null,null,null,null,null,"Line1178"]
[null,null,null,null,null,null,null,null,null,null,null,null,null,null,null,"Line13"]
[null,null,null,null,null,null,null,null,null,null,null,null,null,null,null,"Line16"]
[null,null,null,null,null,null,null,null,null,null,null,null,null,null,null,"Line19"]
[null,null,null,null,null,null,null,null,null,null,null,null,null,null,null,"Line110"]
[null,null,null,null,null,null,null,null,null,null,null,null,null,null,null,"Line113"]
[null,null,null,null,null,null,null,null,null,null,null,null,null,null,null,"Line116"]
[null,null,null,null,null,null,null,null,null,null,null,null,null,null,null,"Line120"]
[null,null,null,null,null,null,null,null,null,null,null,null,null,null,null,"Line123"]
[null,null,null,null,null,null,null,null,null,null,null,null,null,null,null,"Line127"]
[null,null,null,null,null,null,null,null,null,null,null,null,null,null,null,"Line130"]
[null,null,null,null,null,null,null,null,null,null,null,null,null,null,null,"Line133"]
[null,null,null,null,null,null,null,null,null,null,null,null,null,null,null,"Line134"]
[null,null,null,null,null,null,null,null,null,null,null,null,null,null,null,"Line137"]
[null,null,null,null,null,null,null,null,null,null,null,null,null,null,null,"Line141"]
[null,null,null,null,null,null,null,null,null,null,null,null,null,null,null,"Line144"]
[null,null,null,null,null,null,null,null,null,null,null,null,null,null,null,"Line148"]
[null,null,null,null,null,null,null,null,null,null,null,null,null,null,null,"Line152"]
[null,null,null,null,null,null,null,null,null,null,null,null,null,null,null,"Line155"]
[null,null,null,null,null,null,null,null,null,null,null,null,null,null,null,"Line158"]
[null,null,null,null,null,null,null,null,null,null,null,null,null,null,null,"Line159"]
[null,null,null,null,null,null,null,null,null,null,null,null,null,null,null,"Line162"]
[null,null,null,null,null,null,null,null,null,null,null,null,null,null,null,"Line166"]
[null,null,null,null,null,null,null,null,null,null,null,null,null,null,null,"Line169"]
[null,null,null,null,null,null,null,null,null,null,null,null,null,null,null,"Line172"]
[null,null,null,null,null,null,null,null,null,null,null,null,null,null,null,"Line176"]
[null,null,null,null,null,null,null,null,null,null,null,null,null,null,null,"Line179"]
[null,null,null,null,null,null,null,null,null,null,null,null,null,null,null,"Line180"]
[null,null,null,null,null,null,null,null,null,null,null,null,null,null,null,"Line183"]
[null,null,null,null,null,null,null,null,null,null,null,null,null,null,null,"Line186"]
[null,null,null,null,null,null,null,null,null,null,null,null,null,null,null,"Line190"]
[null,null,null,null,null,null,null,null,null,null,null,null,null,null,null,"Line193"]
[null,null,null,null,null,null,null,null,null,null,null,null,null,null,null,"Line196"]
[null,null,null,null,null,null,null,null,null,null,null,null,null,null,null,"Line1100"]
[null,null,null,null,null,null,null,null,null,null,null,null,null,null,null,"Line1103"]
[null,null,null,null,null,null,null,null,null,null,null,null,null,null,null,"Line1104"]
[null,null,null,null,null,null,null,null,null,null,null,null,null,null,null,"Line1109"]
[null,null,null,null,null,null,null,null,null,null,null,null,null,null,null,"Line1111"]
[null,null,null,null,null,null,null,null,null,null,null,null,null,null,null,"Line1115"]
[null,null,null,null,null,null,null,null,null,null,null,null,null,null,null,"Line1118"]
[null,null,null,null,null,null,null,null,null,null,null,null,null,null,null,"Line1121"]
[null,null,null,null,null,null,null,null,null,null,null,null,null,null,null,"Line1125"]
[null,null,null,null,null,null,null,null,null,null,null,null,null,null,null,"Line1128"]
[null,null,null,null,null,null,null,null,null,null,null,null,null,null,null,"Line1129"]
[null,null,null,null,null,null,null,null,null,null,null,null,null,null,null,"Line1132"]
[null,null,null,null,null,null,null,null,null,null,null,null,null,null,null,"Line1135"]
[null,null,null,null,null,null,null,null,null,null,null,null,null,null,null,"Line1139"]
[null,null,null,null,null,null,null,null,null,null,null,null,null,null,null,"Line1142"]
[null,null,null,null,null,null,null,null,null,null,null,null,null,null,null,"Line1146"]
[null,null,null,null,null,null,null,null,null,null,null,null,null,null,null,"Line1149"]
[null,null,null,null,null,null,null,null,null,null,null,null,null,null,null,"Line1152"]
[null,null,null,null,null,null,null,null,null,null,null,null,null,null,null,"Line1153"]
[null,null,null,null,null,null,null,null,null,null,null,null,null,null,null,"Line1156"]
[null,null,null,null,null,null,null,null,null,null,null,null,null,null,null,"Line1159"]
[null,null,null,null,null,null,null,null,null,null,null,null,null,null,null,"Line1163"]
[null,null,null,null,null,null,null,null,null,null,null,null,null,null,null,"Line1166"]
[null,null,null,null,null,null,null,null,null,null,null,null,null,null,null,"Line1170"]
[null,null,null,null,null,null,null,null,null,null,null,null,null,null,null,"Line1174"]
[null,null,null,null,null,null,null,null,null,null,null,null,null,null,null,"Line1177"]
[null,null,null,null,null,null,null,null,null,null,null,null,null,null,null,"Line1178"]
[null,null,null,null,null,null,null,null,null,null,null,null,null,null,null,"Line106"]
[null,null,null,null,null,null,null,null,null,null,null,null,null,null,null,"Line13"]
[null,null,null,null,null,null,null,null,null,null,null,null,null,null,null,"Line17"]
[null,null,null,null,null,null,null,null,null,null,null,null,null,null,null,"Line110"]
[null,null,null,null,null,null,null,null,null,null,null,null,null,null,null,"Line114"]
[null,null,null,null,null,null,null,null,null,null,null,null,null,null,null,"Line117"]
[null,null,null,null,null,null,null,null,null,null,null,null,null,null,null,"Line120"]
[null,null,null,null,null,null,null,null,null,null,null,null,null,null,null,"Line121"]
[null,null,null,null,null,null,null,null,null,null,null,null,null,null,null,"Line124"]
[null,null,null,null,null,null,null,null,null,null,null,null,null,null,null,"Line128"]
[null,null,null,null,null,null,null,null,null,null,null,null,null,null,null,"Line131"]
[null,null,null,null,null,null,null,null,null,null,null,null,null,null,null,"Line134"]
[null,null,null,null,null,null,null,null,null,null,null,null,null,null,null,"Line138"]
[null,null,null,null,null,null,null,null,null,null,null,null,null,null,null,"Line141"]
[null,null,null,null,null,null,null,null,null,null,null,null,null,null,null,"Line144"]
[null,null,null,null,null,null,null,null,null,null,null,null,null,null,null,"Line145"]
[null,null,null,null,null,null,null,null,null,null,null,null,null,null,null,"Line148"]
[null,null,null,null,null,null,null,null,null,null,null,null,null,null,null,"Line154"]
[null,null,null,null,null,null,null,null,null,null,null,null,null,null,null,"Line156"]
[null,null,null,null,null,null,null,null,null,null,null,null,null,null,null,"Line159"]
[null,null,null,null,null,null,null,null,null,null,null,null,null,null,null,"Line163"]
[null,null,null,null,null,null,null,null,null,null,null,null,null,null,null,"Line166"]
[null,null,null,null,null,null,null,null,null,null,null,null,null,null,null,"Line167"]
[null,null,null,null,null,null,null,null,null,null,null,null,null,null,null,"Line170"]
[null,null,null,null,null,null,null,null,null,null,null,null,null,null,null,"Line173"]
[null,null,null,null,null,null,null,null,null,null,null,null,null,null,null,"Line177"]
[null,null,null,null,null,null,null,null,null,null,null,null,null,null,null,"Line180"]
[null,null,null,null,null,null,null,null,null,null,null,null,null,null,null,"Line183"]
[null,null,null,null,null,null,null,null,null,null,null,null,null,null,null,"Line187"]
[null,null,null,null,null,null,null,null,null,null,null,null,null,null,null,"Line190"]
[null,null,null,null,null,null,null,null,null,null,null,null,null,null,null,"Line191"]
[null,null,null,null,null,null,null,null,null,null,null,null,null,null,null,"Line194"]
[null,null,null,null,null,null,null,null,null,null,null,null,null,null,null,"Line197"]
[null,null,null,null,null,null,null,null,null,null,null,null,null,null,null,"Line1101"]
[null,null,null,null,null,null,null,null,null,null,null,null,null,null,null,"Line1104"]
[null,null,null,null,null,null,null,null,null,null,null,null,null,null,null,"Line1107"]
[null,null,null,null,null,null,null,null,null,null,null,null,null,null,null,"Line1111"]
[null,null,null,null,null,null,null,null,null,null,null,null,null,null,null,"Line1115"]
[null,null,null,null,null,null,null,null,null,null,null,null,null,null,null,"Line1116"]
[null,null,null,null,null,null,null,null,null,null,null,null,null,null,null,"Line1119"]
[null,null,null,null,null,null,null,null,null,null,null,null,null,null,null,"Line1122"]
[null,null,null,null,null,null,null,null,null,null,null,null,null,null,null,"Line1126"]
[null,null,null,null,null,null,null,null,null,null,null,null,null,null,null,"Line1129"]
[null,null,null,null,null,null,null,null,null,null,null,null,null,null,null,"Line1133"]
[null,null,null,null,null,null,null,null,null,null,null,null,null,null,null,"Line1136"]
[null,null,null,null,null,null,null,null,null,null,null,null,null,null,null,"Line1139"]
[null,null,null,null,null,null,null,null,null,null,null,null,null,null,null,"Line1140"]
[null,null,null,null,null,null,null,null,null,null,null,null,null,null,null,"Line1143"]
[null,null,null,null,null,null,null,null,null,null,null,null,null,null,null,"Line1146"]
[null,null,null,null,null,null,null,null,null,null,null,null,null,null,null,"Line1150"]
[null,null,null,null,null,null,null,null,null,null,null,null,null,null,null,"Line1153"]
[null,null,null,null,null,null,null,null,null,null,null,null,null,null,null,"Line1157"]
[null,null,null,null,null,null,null,null,null,null,null,null,null,null,null,"Line1160"]
[null,null,null,null,null,null,null,null,null,null,null,null,null,null,null,"Line1163"]
[null,null,null,null,null,null,null,null,null,null,null,null,null,null,null,"Line1164"]
[null,null,null,null,null,null,null,null,null,null,null,null,null,null,null,"Line1167"]
[null,null,null,null,null,null,null,null,null,null,null,null,null,null,null,"Line1170"]
[null,null,null,null,null,null,null,null,null,null,null,null,null,null,null,"Line1176"]
[null,null,null,null,null,null,null,null,null,null,null,null,null,null,null,"Line1178"]
[null,null,null,null,null,null,null,null,null,null,null,null,null,null,null,"Line13"]
[null,null,null,null,null,null,null,null,null,null,null,null,null,null,null,"Line16"]
[null,null,null,null,null,null,null,null,null,null,null,null,null,null,null,"Line19"]
[null,null,null,null,null,null,null,null,null,null,null,null,null,null,null,"Line110"]
[null,null,null,null,null,null,null,null,null,null,null,null,null,null,null,"Line113"]
[null,null,null,null,null,null,null,null,null,null,null,null,null,null,null,"Line117"]
[null,null,null,null,null,null,null,null,null,null,null,null,null,null,null,"Line120"]
[null,null,null,null,null,null,null,null,null,null,null,null,null,null,null,"Line123"]
[null,null,null,null,null,null,null,null,null,null,null,null,null,null,null,"Line127"]
[null,null,null,null,null,null,null,null,null,null,null,null,null,null,null,"Line130"]
[null,null,null,null,null,null,null,null,null,null,null,null,null,null,null,"Line133"]
[null,null,null,null,null,null,null,null,null,null,null,null,null,null,null,"Line134"]
[null,null,null,null,null,null,null,null,null,null,null,null,null,null,null,"Line137"]
[null,null,null,null,null,null,null,null,null,null,null,null,null,null,null,"Line141"]
[null,null,null,null,null,null,null,null,null,null,null,null,null,null,null,"Line144"]
[null,null,null,null,null,null,null,null,null,null,null,null,null,null,null,"Line147"]
[null,null,null,null,null,null,null,null,null,null,null,null,null,null,null,"Line151"]
[null,null,null,null,null,null,null,null,null,null,null,null,null,null,null,"Line154"]
[null,null,null,null,null,null,null,null,null,null,null,null,null,null,null,"Line158"]
[null,null,null,null,null,null,null,null,null,null,null,null,null,null,null,"Line159"]
[null,null,null,null,null,null,null,null,null,null,null,null,null,null,null,"Line162"]
[null,null,null,null,null,null,null,null,null,null,null,null,null,null,null,"Line166"]
[null,null,null,null,null,null,null,null,null,null,null,null,null,null,null,"Line169"]
[null,null,null,null,null,null,null,null,null,null,null,null,null,null,null,"Line172"]
[null,null,null,null,null,null,null,null,null,null,null,null,null,null,null,"Line176"]
[null,null,null,null,null,null,null,null,null,null,null,null,null,null,null,"Line179"]
[null,null,null,null,null,null,null,null,null,null,null,null,null,null,null,"Line180"]
[null,null,null,null,null,null,null,null,null,null,null,null,null,null,null,"Line183"]
[null,null,null,null,null,null,null,null,null,null,null,null,null,null,null,"Line186"]
[null,null,null,null,null,null,null,null,null,null,null,null,null,null,null,"Line190"]
[null,null,null,null,null,null,null,null,null,null,null,null,null,null,null,"Line193"]
[null,null,null,null,null,null,null,null,null,null,null,null,null,null,null,"Line196"]
[null,null,null,null,null,null,null,null,null,null,null,null,null,null,null,"Line1100"]
[null,null,null,null,null,null,null,null,null,null,null,null,null,null,null,"Line1103"]
[null,null,null,null,null,null,null,null,null,null,null,null,null,null,null,"Line1104"]
[null,null,null,null,null,null,null,null,null,null,null,null,null,null,null,"Line1107"]
[null,null,null,null,null,null,null,null,null,null,null,null,null,null,null,"Line1110"]
[null,null,null,null,null,null,null,null,null,null,null,null,null,null,null,"Line1114"]
[null,null,null,null,null,null,null,null,null,null,null,null,null,null,null,"Line1119"]
[null,null,null,null,null,null,null,null,null,null,null,null,null,null,null,"Line1122"]
[null,null,null,null,null,null,null,null,null,null,null,null,null,null,null,"Line1125"]
[null,null,null,null,null,null,null,null,null,null,null,null,null,null,null,"Line1128"]
[null,null,null,null,null,null,null,null,null,null,null,null,null,null,null,"Line1129"]
[null,null,null,null,null,null,null,null,null,null,null,null,null,null,null,"Line1132"]
[null,null,null,null,null,null,null,null,null,null,null,null,null,null,null,"Line1135"]
[null,null,null,null,null,null,null,null,null,null,null,null,null,null,null,"Line1139"]
[null,null,null,null,null,null,null,null,null,null,null,null,null,null,null,"Line1142"]
[null,null,null,null,null,null,null,null,null,null,null,null,null,null,null,"Line1146"]
[null,null,null,null,null,null,null,null,null,null,null,null,null,null,null,"Line1149"]
[null,null,null,null,null,null,null,null,null,null,null,null,null,null,null,"Line1152"]
[null,null,null,null,null,null,null,null,null,null,null,null,null,null,null,"Line1153"]
[null,null,null,null,null,null,null,null,null,null,null,null,null,null,null,"Line1156"]
[null,null,null,null,null,null,null,null,null,null,null,null,null,null,null,"Line1160"]
[null,null,null,null,null,null,null,null,null,null,null,null,null,null,null,"Line1163"]
[null,null,null,null,null,null,null,null,null,null,null,null,null,null,null,"Line1166"]
[null,null,null,null,null,null,null,null,null,null,null,null,null,null,null,"Line1170"]
[null,null,null,null,null,null,null,null,null,null,null,null,null,null,null,"Line1173"]
[null,null,null,null,null,null,null,null,null,null,null,null,null,null,null,"Line1176"]
[null,null,null,null,null,null,null,null,null,null,null,null,null,null,null,"Line1177"]
[null,null,null,null,null,null,null,null,null,null,null,null,null,null,null,"Line111"]
[null,null,null,null,null,null,null,null,null,null,null,null,null,null,null,"Line14"]
[null,null,null,null,null,null,null,null,null,null,null,null,null,null,null,"Line17"]
[null,null,null,null,null,null,null,null,null,null,null,null,null,null,null,"Line110"]
[null,null,null,null,null,null,null,null,null,null,null,null,null,null,null,"Line114"]
[null,null,null,null,null,null,null,null,null,null,null,null,null,null,null,"Line117"]
[null,null,null,null,null,null,null,null,null,null,null,null,null,null,null,"Line120"]
[null,null,null,null,null,null,null,null,null,null,null,null,null,null,null,"Line121"]
[null,null,null,null,null,null,null,null,null,null,null,null,null,null,null,"Line124"]
[null,null,null,null,null,null,null,null,null,null,null,null,null,null,null,"Line128"]
[null,null,null,null,null,null,null,null,null,null,null,null,null,null,null,"Line131"]
[null,null,null,null,null,null,null,null,null,null,null,null,null,null,null,"Line134"]
[null,null,null,null,null,null,null,null,null,null,null,null,null,null,null,"Line138"]
[null,null,null,null,null,null,null,null,null,null,null,null,null,null,null,"Line141"]
[null,null,null,null,null,null,null,null,null,null,null,null,null,null,null,"Line142"]
[null,null,null,null,null,null,null,null,null,null,null,null,null,null,null,"Line145"]
[null,null,null,null,null,null,null,null,null,null,null,null,null,null,null,"Line148"]
[null,null,null,null,null,null,null,null,null,null,null,null,null,null,null,"Line152"]
[null,null,null,null,null,null,null,null,null,null,null,null,null,null,null,"Line155"]
[null,null,null,null,null,null,null,null,null,null,null,null,null,null,null,"Line158"]
[null,null,null,null,null,null,null,null,null,null,null,null,null,null,null,"Line160"]
[null,null,null,null,null,null,null,null,null,null,null,null,null,null,null,"Line166"]
[null,null,null,null,null,null,null,null,null,null,null,null,null,null,null,"Line167"]
[null,null,null,null,null,null,null,null,null,null,null,null,null,null,null,"Line170"]
[null,null,null,null,null,null,null,null,null,null,null,null,null,null,null,"Line173"]
[null,null,null,null,null,null,null,null,null,null,null,null,null,null,null,"Line177"]
[null,null,null,null,null,null,null,null,null,null,null,null,null,null,null,"Line180"]
[null,null,null,null,null,null,null,null,null,null,null,null,null,null,null,"Line183"]
[null,null,null,null,null,null,null,null,null,null,null,null,null,null,null,"Line187"]
[null,null,null,null,null,null,null,null,null,null,null,null,null,null,null,"Line190"]
[null,null,null,null,null,null,null,null,null,null,null,null,null,null,null,"Line191"]
[null,null,null,null,null,null,null,null,null,null,null,null,null,null,null,"Line194"]
[null,null,null,null,null,null,null,null,null,null,null,null,null,null,null,"Line197"]
[null,null,null,null,null,null,null,null,null,null,null,null,null,null,null,"Line1101"]
[null,null,null,null,null,null,null,null,null,null,null,null,null,null,null,"Line1104"]
[null,null,null,null,null,null,null,null,null,null,null,null,null,null,null,"Line1108"]
[null,null,null,null,null,null,null,null,null,null,null,null,null,null,null,"Line1111"]
[null,null,null,null,null,null,null,null,null,null,null,null,null,null,null,"Line1114"]
[null,null,null,null,null,null,null,null,null,null,null,null,null,null,null,"Line1115"]
[null,null,null,null,null,null,null,null,null,null,null,null,null,null,null,"Line1118"]
[null,null,null,null,null,null,null,null,null,null,null,null,null,null,null,"Line1121"]
[null,null,null,null,null,null,null,null,null,null,null,null,null,null,null,"Line1126"]
[null,null,null,null,null,null,null,null,null,null,null,null,null,null,null,"Line1129"]
[null,null,null,null,null,null,null,null,null,null,null,null,null,null,null,"Line1133"]
[null,null,null,null,null,null,null,null,null,null,null,null,null,null,null,"Line1136"]
[null,null,null,null,null,null,null,null,null,null,null,null,null,null,null,"Line1139"]
[null,null,null,null,null,null,null,null,null,null,null,null,null,null,null,"Line1140"]
[null,null,null,null,null,null,null,null,null,null,null,null,null,null,null,"Line1143"]
[null,null,null,null,null,null,null,null,null,null,null,null,null,null,null,"Line1147"]
[null,null,null,null,null,null,null,null,null,null,null,null,null,null,null,"Line1150"]
[null,null,null,null,null,null,null,null,null,null,null,null,null,null,null,"Line1153"]
[null,null,null,null,null,null,null,null,null,null,null,null,null,null,null,"Line1157"]
[null,null,null,null,null,null,null,null,null,null,null,null,null,null,null,"Line1160"]
[null,null,null,null,null,null,null,null,null,null,null,null,null,null,null,"Line1163"]
[null,null,null,null,null,null,null,null,null,null,null,null,null,null,null,"Line1164"]
[null,null,null,null,null,null,null,null,null,null,null,null,null,null,null,"Line1167"]
[null,null,null,null,null,null,null,null,null,null,null,null,null,null,null,"Line1171"]
[null,null,null,null,null,null,null,null,null,null,null,null,null,null,null,"Line1174"]
[null,null,null,null,null,null,null,null,null,null,null,null,null,null,null,"Line1177"]
[null,null,null,null,null,null,null,null,null,null,null,null,null,null,null,"Line12"]
[null,null,null,null,null,null,null,null,null,null,null,null,null,null,null,"Line13"]
[null,null,null,null,null,null,null,null,null,null,null,null,null,null,null,"Line19"]
[null,null,null,null,null,null,null,null,null,null,null,null,null,null,null,"Line110"]
[null,null,null,null,null,null,null,null,null,null,null,null,null,null,null,"Line113"]
[null,null,null,null,null,null,null,null,null,null,null,null,null,null,null,"Line117"]
[null,null,null,null,null,null,null,null,null,null,null,null,null,null,null,"Line120"]
[null,null,null,null,null,null,null,null,null,null,null,null,null,null,null,"Line123"]
[null,null,null,null,null,null,null,null,null,null,null,null,null,null,null,"Line127"]
[null,null,null,null,null,null,null,null,null,null,null,null,null,null,null,"Line130"]
[null,null,null,null,null,null,null,null,null,null,null,null,null,null,null,"Line131"]
[null,null,null,null,null,null,null,null,null,null,null,null,null,null,null,"Line134"]
[null,null,null,null,null,null,null,null,null,null,null,null,null,null,null,"Line137"]
[null,null,null,null,null,null,null,null,null,null,null,null,null,null,null,"Line141"]
[null,null,null,null,null,null,null,null,null,null,null,null,null,null,null,"Line144"]
[null,null,null,null,null,null,null,null,null,null,null,null,null,null,null,"Line147"]
[null,null,null,null,null,null,null,null,null,null,null,null,null,null,null,"Line151"]
[null,null,null,null,null,null,null,null,null,null,null,null,null,null,null,"Line154"]
[null,null,null,null,null,null,null,null,null,null,null,null,null,null,null,"Line155"]
[null,null,null,null,null,null,null,null,null,null,null,null,null,null,null,"Line158"]
[null,null,null,null,null,null,null,null,null,null,null,null,null,null,null,"Line161"]
[null,null,null,null,null,null,null,null,null,null,null,null,null,null,null,"Line164"]
[null,null,null,null,null,null,null,null,null,null,null,null,null,null,null,"Line169"]
[null,null,null,null,null,null,null,null,null,null,null,null,null,null,null,"Line172"]
[null,null,null,null,null,null,null,null,null,null,null,null,null,null,null,"Line176"]
[null,null,null,null,null,null,null,null,null,null,null,null,null,null,null,"Line179"]
[null,null,null,null,null,null,null,null,null,null,null,null,null,null,null,"Line180"]
[null,null,null,null,null,null,null,null,null,null,null,null,null,null,null,"Line183"]
[null,null,null,null,null,null,null,null,null,null,null,null,null,null,null,"Line186"]
[null,null,null,null,null,null,null,null,null,null,null,null,null,null,null,"Line190"]
[null,null,null,null,null,null,null,null,null,null,null,null,null,null,null,"Line193"]
[null,null,null,null,null,null,null,null,null,null,null,null,null,null,null,"Line197"]
[null,null,null,null,null,null,null,null,null,null,null,null,null,null,null,"Line1100"]
[null,null,null,null,null,null,null,null,null,null,null,null,null,null,null,"Line1103"]
[null,null,null,null,null,null,null,null,null,null,null,null,null,null,null,"Line1104"]
[null,null,null,null,null,null,null,null,null,null,null,null,null,null,null,"Line1107"]
[null,null,null,null,null,null,null,null,null,null,null,null,null,null,null,"Line1110"]
[null,null,null,null,null,null,null,null,null,null,null,null,null,null,null,"Line1114"]
[null,null,null,null,null,null,null,null,null,null,null,null,null,null,null,"Line1117"]
[null,null,null,null,null,null,null,null,null,null,null,null,null,null,null,"Line1121"]
[null,null,null,null,null,null,null,null,null,null,null,null,null,null,null,"Line1124"]
[null,null,null,null,null,null,null,null,null,null,null,null,null,null,null,"Line1127"]
[null,null,null,null,null,null,null,null,null,null,null,null,null,null,null,"Line1129"]
[null,null,null,null,null,null,null,null,null,null,null,null,null,null,null,"Line1132"]
[null,null,null,null,null,null,null,null,null,null,null,null,null,null,null,"Line1136"]
[null,null,null,null,null,null,null,null,null,null,null,null,null,null,null,"Line1139"]
[null,null,null,null,null,null,null,null,null,null,null,null,null,null,null,"Line1142"]
[null,null,null,null,null,null,null,null,null,null,null,null,null,null,null,"Line1146"]
[null,null,null,null,null,null,null,null,null,null,null,null,null,null,null,"Line1149"]
[null,null,null,null,null,null,null,null,null,null,null,null,null,null,null,"Line1152"]
[null,null,null,null,null,null,null,null,null,null,null,null,null,null,null,"Line1153"]
[null,null,null,null,null,null,null,null,null,null,null,null,null,null,null,"Line1156"]
[null,null,null,null,null,null,null,null,null,null,null,null,null,null,null,"Line1160"]
[null,null,null,null,null,null,null,null,null,null,null,null,null,null,null,"Line1163"]
[null,null,null,null,null,null,null,null,null,null,null,null,null,null,null,"Line1166"]
[null,null,null,null,null,null,null,null,null,null,null,null,null,null,null,"Line1170"]
[null,null,null,null,null,null,null,null,null,null,null,null,null,null,null,"Line1173"]
[null,null,null,null,null,null,null,null,null,null,null,null,null,null,null,"Line1176"]
[null,null,null,null,null,null,null,null,null,null,null,null,null,null,null,"Line1177"]
[null,null,null,null,null,null,null,null,null,null,null,null,null,null,null,"Line117"]
[null,null,null,null,null,null,null,null,null,null,null,null,null,null,null,"Line13"]
[null,null,null,null,null,null,null,null,null,null,null,null,null,null,null,"Line16"]
[null,null,null,null,null,null,null,null,null,null,null,null,null,null,null,"Line19"]
[null,null,null,null,null,null,null,null,null,null,null,null,null,null,null,"Line114"]
[null,null,null,null,null,null,null,null,null,null,null,null,null,null,null,"Line117"]
[null,null,null,null,null,null,null,null,null,null,null,null,null,null,null,"Line118"]
[null,null,null,null,null,null,null,null,null,null,null,null,null,null,null,"Line121"]
[null,null,null,null,null,null,null,null,null,null,null,null,null,null,null,"Line124"]
[null,null,null,null,null,null,null,null,null,null,null,null,null,null,null,"Line128"]
[null,null,null,null,null,null,null,null,null,null,null,null,null,null,null,"Line131"]
[null,null,null,null,null,null,null,null,null,null,null,null,null,null,null,"Line134"]
[null,null,null,null,null,null,null,null,null,null,null,null,null,null,null,"Line138"]
[null,null,null,null,null,null,null,null,null,null,null,null,null,null,null,"Line141"]
[null,null,null,null,null,null,null,null,null,null,null,null,null,null,null,"Line142"]
[null,null,null,null,null,null,null,null,null,null,null,null,null,null,null,"Line145"]
[null,null,null,null,null,null,null,null,null,null,null,null,null,null,null,"Line148"]
[null,null,null,null,null,null,null,null,null,null,null,null,null,null,null,"Line152"]
[null,null,null,null,null,null,null,null,null,null,null,null,null,null,null,"Line155"]
[null,null,null,null,null,null,null,null,null,null,null,null,null,null,null,"Line159"]
[null,null,null,null,null,null,null,null,null,null,null,null,null,null,null,"Line162"]
[null,null,null,null,null,null,null,null,null,null,null,null,null,null,null,"Line165"]
[null,null,null,null,null,null,null,null,null,null,null,null,null,null,null,"Line166"]
[null,null,null,null,null,null,null,null,null,null,null,null,null,null,null,"Line170"]
[null,null,null,null,null,null,null,null,null,null,null,null,null,null,null,"Line173"]
[null,null,null,null,null,null,null,null,null,null,null,null,null,null,null,"Line177"]
[null,null,null,null,null,null,null,null,null,null,null,null,null,null,null,"Line180"]
[null,null,null,null,null,null,null,null,null,null,null,null,null,null,null,"Line184"]
[null,null,null,null,null,null,null,null,null,null,null,null,null,null,null,"Line187"]
[null,null,null,null,null,null,null,null,null,null,null,null,null,null,null,"Line190"]
[null,null,null,null,null,null,null,null,null,null,null,null,null,null,null,"Line191"]
[null,null,null,null,null,null,null,null,null,null,null,null,null,null,null,"Line194"]
[null,null,null,null,null,null,null,null,null,null,null,null,null,null,null,"Line197"]
[null,null,null,null,null,null,null,null,null,null,null,null,null,null,null,"Line1101"]
[null,null,null,null,null,null,null,null,null,null,null,null,null,null,null,"Line1104"]
[null,null,null,null,null,null,null,null,null,null,null,null,null,null,null,"Line1108"]
[null,null,null,null,null,null,null,null,null,null,null,null,null,null,null,"Line1111"]
[null,null,null,null,null,null,null,null,null,null,null,null,null,null,null,"Line1114"]
[null,null,null,null,null,null,null,null,null,null,null,null,null,null,null,"Line1115"]
[null,null,null,null,null,null,null,null,null,null,null,null,null,null,null,"Line1118"]
[null,null,null,null,null,null,null,null,null,null,null,null,null,null,null,"Line1122"]
[null,null,null,null,null,null,null,null,null,null,null,null,null,null,null,"Line1125"]
[null,null,null,null,null,null,null,null,null,null,null,null,null,null,null,"Line1128"]
[null,null,null,null,null,null,null,null,null,null,null,null,null,null,null,"Line1131"]
[null,null,null,null,null,null,null,null,null,null,null,null,null,null,null,"Line1136"]
[null,null,null,null,null,null,null,null,null,null,null,null,null,null,null,"Line1139"]
[null,null,null,null,null,null,null,null,null,null,null,null,null,null,null,"Line1140"]
[null,null,null,null,null,null,null,null,null,null,null,null,null,null,null,"Line1143"]
[null,null,null,null,null,null,null,null,null,null,null,null,null,null,null,"Line1147"]
[null,null,null,null,null,null,null,null,null,null,null,null,null,null,null,"Line1150"]
[null,null,null,null,null,null,null,null,null,null,null,null,null,null,null,"Line1153"]
[null,null,null,null,null,null,null,null,null,null,null,null,null,null,null,"Line1157"]
[null,null,null,null,null,null,null,null,null,null,null,null,null,null,null,"Line1160"]
[null,null,null,null,null,null,null,null,null,null,null,null,null,null,null,"Line1163"]
[null,null,null,null,null,null,null,null,null,null,null,null,null,null,null,"Line1164"]
[null,null,null,null,null,null,null,null,null,null,null,null,null,null,null,"Line1167"]
[null,null,null,null,null,null,null,null,null,null,null,null,null,null,null,"Line1171"]
[null,null,null,null,null,null,null,null,null,null,null,null,null,null,null,"Line1174"]
[null,null,null,null,null,null,null,null,null,null,null,null,null,null,null,"Line1177"]
[null,null,null,null,null,null,null,null,null,null,null,null,null,null,null,"Line12"]
[null,null,null,null,null,null,null,null,null,null,null,null,null,null,null,"Line15"]
[null,null,null,null,null,null,null,null,null,null,null,null,null,null,null,"Line16"]
[null,null,null,null,null,null,null,null,null,null,null,null,null,null,null,"Line19"]
[null,null,null,null,null,null,null,null,null,null,null,null,null,null,null,"Line113"]
[null,null,null,null,null,null,null,null,null,null,null,null,null,null,null,"Line117"]
[null,null,null,null,null,null,null,null,null,null,null,null,null,null,null,"Line120"]
[null,null,null,null,null,null,null,null,null,null,null,null,null,null,null,"Line123"]
[null,null,null,null,null,null,null,null,null,null,null,null,null,null,null,"Line127"]
[null,null,null,null,null,null,null,null,null,null,null,null,null,null,null,"Line130"]
[null,null,null,null,null,null,null,null,null,null,null,null,null,null,null,"Line131"]
[null,null,null,null,null,null,null,null,null,null,null,null,null,null,null,"Line134"]
[null,null,null,null,null,null,null,null,null,null,null,null,null,null,null,"Line137"]
[null,null,null,null,null,null,null,null,null,null,null,null,null,null,null,"Line141"]
[null,null,null,null,null,null,null,null,null,null,null,null,null,null,null,"Line144"]
[null,null,null,null,null,null,null,null,null,null,null,null,null,null,null,"Line148"]
[null,null,null,null,null,null,null,null,null,null,null,null,null,null,null,"Line151"]
[null,null,null,null,null,null,null,null,null,null,null,null,null,null,null,"Line154"]
[null,null,null,null,null,null,null,null,null,null,null,null,null,null,null,"Line155"]
[null,null,null,null,null,null,null,null,null,null,null,null,null,null,null,"Line158"]
[null,null,null,null,null,null,null,null,null,null,null,null,null,null,null,"Line161"]
[null,null,null,null,null,null,null,null,null,null,null,null,null,null,null,"Line165"]
[null,null,null,null,null,null,null,null,null,null,null,null,null,null,null,"Line168"]
[null,null,null,null,null,null,null,null,null,null,null,null,null,null,null,"Line172"]
[null,null,null,null,null,null,null,null,null,null,null,null,null,null,null,"Line175"]
[null,null,null,null,null,null,null,null,null,null,null,null,null,null,null,"Line178"]
[null,null,null,null,null,null,null,null,null,null,null,null,null,null,null,"Line180"]
[null,null,null,null,null,null,null,null,null,null,null,null,null,null,null,"Line183"]
[null,null,null,null,null,null,null,null,null,null,null,null,null,null,null,"Line186"]
[null,null,null,null,null,null,null,null,null,null,null,null,null,null,null,"Line190"]
[null,null,null,null,null,null,null,null,null,null,null,null,null,null,null,"Line193"]
[null,null,null,null,null,null,null,null,null,null,null,null,null,null,null,"Line197"]
[null,null,null,null,null,null,null,null,null,null,null,null,null,null,null,"Line1100"]
[null,null,null,null,null,null,null,null,null,null,null,null,null,null,null,"Line1103"]
[null,null,null,null,null,null,null,null,null,null,null,null,null,null,null,"Line1104"]
[null,null,null,null,null,null,null,null,null,null,null,null,null,null,null,"Line1107"]
[null,null,null,null,null,null,null,null,null,null,null,null,null,null,null,"Line1111"]
[null,null,null,null,null,null,null,null,null,null,null,null,null,null,null,"Line1114"]
[null,null,null,null,null,null,null,null,null,null,null,null,null,null,null,"Line1117"]
[null,null,null,null,null,null,null,null,null,null,null,null,null,null,null,"Line1121"]
[null,null,null,null,null,null,null,null,null,null,null,null,null,null,null,"Line1124"]
[null,null,null,null,null,null,null,null,null,null,null,null,null,null,null,"Line1127"]
[null,null,null,null,null,null,null,null,null,null,null,null,null,null,null,"Line1128"]
[null,null,null,null,null,null,null,null,null,null,null,null,null,null,null,"Line1131"]
[null,null,null,null,null,null,null,null,null,null,null,null,null,null,null,"Line1135"]
[null,null,null,null,null,null,null,null,null,null,null,null,null,null,null,"Line1139"]
[null,null,null,null,null,null,null,null,null,null,null,null,null,null,null,"Line1142"]
[null,null,null,null,null,null,null,null,null,null,null,null,null,null,null,"Line1146"]
[null,null,null,null,null,null,null,null,null,null,null,null,null,null,null,"Line1149"]
[null,null,null,null,null,null,null,null,null,null,null,null,null,null,null,"Line1150"]
[null,null,null,null,null,null,null,null,null,null,null,null,null,null,null,"Line1153"]
[null,null,null,null,null,null,null,null,null,null,null,null,null,null,null,"Line1156"]
[null,null,null,null,null,null,null,null,null,null,null,null,null,null,null,"Line1160"]
[null,null,null,null,null,null,null,null,null,null,null,null,null,null,null,"Line1163"]
[null,null,null,null,null,null,null,null,null,null,null,null,null,null,null,"Line1166"]
[null,null,null,null,null,null,null,null,null,null,null,null,null,null,null,"Line1170"]
[null,null,null,null,null,null,null,null,null,null,null,null,null,null,null,"Line1173"]
[null,null,null,null,null,null,null,null,null,null,null,null,null,null,null,"Line1174"]
[null,null,null,null,null,null,null,null,null,null,null,null,null,null,null,"Line1177"]
[null,null,null,null,null,null,null,null,null,null,null,null,null,null,null,"Line123"]
[null,null,null,null,null,null,null,null,null,null,null,null,null,null,null,"Line13"]
[null,null,null,null,null,null,null,null,null,null,null,null,null,null,null,"Line16"]
[null,null,null,null,null,null,null,null,null,null,null,null,null,null,null,"Line19"]
[null,null,null,null,null,null,null,null,null,null,null,null,null,null,null,"Line113"]
[null,null,null,null,null,null,null,null,null,null,null,null,null,null,null,"Line116"]
[null,null,null,null,null,null,null,null,null,null,null,null,null,null,null,"Line119"]
[null,null,null,null,null,null,null,null,null,null,null,null,null,null,null,"Line121"]
[null,null,null,null,null,null,null,null,null,null,null,null,null,null,null,"Line124"]
[null,null,null,null,null,null,null,null,null,null,null,null,null,null,null,"Line128"]
[null,null,null,null,null,null,null,null,null,null,null,null,null,null,null,"Line131"]
[null,null,null,null,null,null,null,null,null,null,null,null,null,null,null,"Line135"]
[null,null,null,null,null,null,null,null,null,null,null,null,null,null,null,"Line138"]
[null,null,null,null,null,null,null,null,null,null,null,null,null,null,null,"Line141"]
[null,null,null,null,null,null,null,null,null,null,null,null,null,null,null,"Line142"]
[null,null,null,null,null,null,null,null,null,null,null,null,null,null,null,"Line145"]
[null,null,null,null,null,null,null,null,null,null,null,null,null,null,null,"Line148"]
[null,null,null,null,null,null,null,null,null,null,null,null,null,null,null,"Line152"]
[null,null,null,null,null,null,null,null,null,null,null,null,null,null,null,"Line155"]
[null,null,null,null,null,null,null,null,null,null,null,null,null,null,null,"Line159"]
[null,null,null,null,null,null,null,null,null,null,null,null,null,null,null,"Line162"]
[null,null,null,null,null,null,null,null,null,null,null,null,null,null,null,"Line165"]
[null,null,null,null,null,null,null,null,null,null,null,null,null,null,null,"Line166"]
[null,null,null,null,null,null,null,null,null,null,null,null,null,null,null,"Line169"]
[null,null,null,null,null,null,null,null,null,null,null,null,null,null,null,"Line172"]
[null,null,null,null,null,null,null,null,null,null,null,null,null,null,null,"Line176"]
[null,null,null,null,null,null,null,null,null,null,null,null,null,null,null,"Line180"]
[null,null,null,null,null,null,null,null,null,null,null,null,null,null,null,"Line184"]
[null,null,null,null,null,null,null,null,null,null,null,null,null,null,null,"Line187"]
[null,null,null,null,null,null,null,null,null,null,null,null,null,null,null,"Line190"]
[null,null,null,null,null,null,null,null,null,null,null,null,null,null,null,"Line191"]
[null,null,null,null,null,null,null,null,null,null,null,null,null,null,null,"Line194"]
[null,null,null,null,null,null,null,null,null,null,null,null,null,null,null,"Line198"]
[null,null,null,null,null,null,null,null,null,null,null,null,null,null,null,"Line1101"]
[null,null,null,null,null,null,null,null,null,null,null,null,null,null,null,"Line1104"]
[null,null,null,null,null,null,null,null,null,null,null,null,null,null,null,"Line1108"]
[null,null,null,null,null,null,null,null,null,null,null,null,null,null,null,"Line1111"]
[null,null,null,null,null,null,null,null,null,null,null,null,null,null,null,"Line1114"]
[null,null,null,null,null,null,null,null,null,null,null,null,null,null,null,"Line1115"]
[null,null,null,null,null,null,null,null,null,null,null,null,null,null,null,"Line1118"]
[null,null,null,null,null,null,null,null,null,null,null,null,null,null,null,"Line1122"]
[null,null,null,null,null,null,null,null,null,null,null,null,null,null,null,"Line1125"]
[null,null,null,null,null,null,null,null,null,null,null,null,null,null,null,"Line1128"]
[null,null,null,null,null,null,null,null,null,null,null,null,null,null,null,"Line1132"]
[null,null,null,null,null,null,null,null,null,null,null,null,null,null,null,"Line1135"]
[null,null,null,null,null,null,null,null,null,null,null,null,null,null,null,"Line1136"]
[null,null,null,null,null,null,null,null,null,null,null,null,null,null,null,"Line1141"]
[null,null,null,null,null,null,null,null,null,null,null,null,null,null,null,"Line1143"]
[null,null,null,null,null,null,null,null,null,null,null,null,null,null,null,"Line1147"]
[null,null,null,null,null,null,null,null,null,null,null,null,null,null,null,"Line1150"]
[null,null,null,null,null,null,null,null,null,null,null,null,null,null,null,"Line1153"]
[null,null,null,null,null,null,null,null,null,null,null,null,null,null,null,"Line1157"]
[null,null,null,null,null,null,null,null,null,null,null,null,null,null,null,"Line1160"]
[null,null,null,null,null,null,null,null,null,null,null,null,null,null,null,"Line1161"]
[null,null,null,null,null,null,null,null,null,null,null,null,null,null,null,"Line1164"]
[null,null,null,null,null,null,null,null,null,null,null,null,null,null,null,"Line1167"]
[null,null,null,null,null,null,null,null,null,null,null,null,null,null,null,"Line1171"]
[null,null,null,null,null,null,null,null,null,null,null,null,null,null,null,"Line1174"]
[null,null,null,null,null,null,null,null,null,null,null,null,null,null,null,"Line1177"]
[null,null,null,null,null,null,null,null,null,null,null,null,null,null,null,"Line12"]
[null,null,null,null,null,null,null,null,null,null,null,null,null,null,null,"Line15"]
[null,null,null,null,null,null,null,null,null,null,null,null,null,null,null,"Line16"]
[null,null,null,null,null,null,null,null,null,null,null,null,null,null,null,"Line19"]
[null,null,null,null,null,null,null,null,null,null,null,null,null,null,null,"Line112"]
[null,null,null,null,null,null,null,null,null,null,null,null,null,null,null,"Line116"]
[null,null,null,null,null,null,null,null,null,null,null,null,null,null,null,"Line119"]
[null,null,null,null,null,null,null,null,null,null,null,null,null,null,null,"Line123"]
[null,null,null,null,null,null,null,null,null,null,null,null,null,null,null,"Line127"]
[null,null,null,null,null,null,null,null,null,null,null,null,null,null,null,"Line130"]
[null,null,null,null,null,null,null,null,null,null,null,null,null,null,null,"Line131"]
[null,null,null,null,null,null,null,null,null,null,null,null,null,null,null,"Line134"]
[null,null,null,null,null,null,null,null,null,null,null,null,null,null,null,"Line137"]
[null,null,null,null,null,null,null,null,null,null,null,null,null,null,null,"Line141"]
[null,null,null,null,null,null,null,null,null,null,null,null,null,null,null,"Line144"]
[null,null,null,null,null,null,null,null,null,null,null,null,null,null,null,"Line148"]
[null,null,null,null,null,null,null,null,null,null,null,null,null,null,null,"Line151"]
[null,null,null,null,null,null,null,null,null,null,null,null,null,null,null,"Line154"]
[null,null,null,null,null,null,null,null,null,null,null,null,null,null,null,"Line155"]
[null,null,null,null,null,null,null,null,null,null,null,null,null,null,null,"Line158"]
[null,null,null,null,null,null,null,null,null,null,null,null,null,null,null,"Line161"]
[null,null,null,null,null,null,null,null,null,null,null,null,null,null,null,"Line165"]
[null,null,null,null,null,null,null,null,null,null,null,null,null,null,null,"Line168"]
[null,null,null,null,null,null,null,null,null,null,null,null,null,null,null,"Line172"]
[null,null,null,null,null,null,null,null,null,null,null,null,null,null,null,"Line175"]
[null,null,null,null,null,null,null,null,null,null,null,null,null,null,null,"Line178"]
[null,null,null,null,null,null,null,null,null,null,null,null,null,null,null,"Line179"]
[null,null,null,null,null,null,null,null,null,null,null,null,null,null,null,"Line182"]
[null,null,null,null,null,null,null,null,null,null,null,null,null,null,null,"Line188"]
[null,null,null,null,null,null,null,null,null,null,null,null,null,null,null,"Line190"]
[null,null,null,null,null,null,null,null,null,null,null,null,null,null,null,"Line193"]
[null,null,null,null,null,null,null,null,null,null,null,null,null,null,null,"Line197"]
[null,null,null,null,null,null,null,null,null,null,null,null,null,null,null,"Line1100"]
[null,null,null,null,null,null,null,null,null,null,null,null,null,null,null,"Line1103"]
[null,null,null,null,null,null,null,null,null,null,null,null,null,null,null,"Line1104"]
[null,null,null,null,null,null,null,null,null,null,null,null,null,null,null,"Line1107"]
[null,null,null,null,null,null,null,null,null,null,null,null,null,null,null,"Line1111"]
[null,null,null,null,null,null,null,null,null,null,null,null,null,null,null,"Line1114"]
[null,null,null,null,null,null,null,null,null,null,null,null,null,null,null,"Line1117"]
[null,null,null,null,null,null,null,null,null,null,null,null,null,null,null,"Line1121"]
[null,null,null,null,null,null,null,null,null,null,null,null,null,null,null,"Line1124"]
[null,null,null,null,null,null,null,null,null,null,null,null,null,null,null,"Line1125"]
[null,null,null,null,null,null,null,null,null,null,null,null,null,null,null,"Line1128"]
[null,null,null,null,null,null,null,null,null,null,null,null,null,null,null,"Line1131"]
[null,null,null,null,null,null,null,null,null,null,null,null,null,null,null,"Line1135"]
[null,null,null,null,null,null,null,null,null,null,null,null,null,null,null,"Line1138"]
[null,null,null,null,null,null,null,null,null,null,null,null,null,null,null,"Line1141"]
[null,null,null,null,null,null,null,null,null,null,null,null,null,null,null,"Line1145"]
[null,null,null,null,null,null,null,null,null,null,null,null,null,null,null,"Line1149"]
[null,null,null,null,null,null,null,null,null,null,null,null,null,null,null,"Line1150"]
[null,null,null,null,null,null,null,null,null,null,null,null,null,null,null,"Line1153"]
[null,null,null,null,null,null,null,null,null,null,null,null,null,null,null,"Line1156"]
[null,null,null,null,null,null,null,null,null,null,null,null,null,null,null,"Line1160"]
[null,null,null,null,null,null,null,null,null,null,null,null,null,null,null,"Line1163"]
[null,null,null,null,null,null,null,null,null,null,null,null,null,null,null,"Line1166"]
[null,null,null,null,null,null,null,null,null,null,null,null,null,null,null,"Line1170"]
[null,null,null,null,null,null,null,null,null,null,null,null,null,null,null,"Line1173"]
[null,null,null,null,null,null,null,null,null,null,null,null,null,null,null,"Line1174"]
[null,null,null,null,null,null,null,null,null,null,null,null,null,null,null,"Line1177"]
[null,null,null,null,null,null,null,null,null,null,null,null,null,null,null,"Line129"]
[null,null,null,null,null,null,null,null,null,null,null,null,null,null,null,"Line13"]
[null,null,null,null,null,null,null,null,null,null,null,null,null,null,null,"Line16"]
[null,null,null,null,null,null,null,null,null,null,null,null,null,null,null,"Line110"]
[null,null,null,null,null,null,null,null,null,null,null,null,null,null,null,"Line113"]
[null,null,null,null,null,null,null,null,null,null,null,null,null,null,null,"Line116"]
[null,null,null,null,null,null,null,null,null,null,null,null,null,null,null,"Line117"]
[null,null,null,null,null,null,null,null,null,null,null,null,null,null,null,"Line120"]
[null,null,null,null,null,null,null,null,null,null,null,null,null,null,null,"Line123"]
[null,null,null,null,null,null,null,null,null,null,null,null,null,null,null,"Line129"]
[null,null,null,null,null,null,null,null,null,null,null,null,null,null,null,"Line131"]
[null,null,null,null,null,null,null,null,null,null,null,null,null,null,null,"Line135"]
[null,null,null,null,null,null,null,null,null,null,null,null,null,null,null,"Line138"]
[null,null,null,null,null,null,null,null,null,null,null,null,null,null,null,"Line141"]
[null,null,null,null,null,null,null,null,null,null,null,null,null,null,null,"Line142"]
[null,null,null,null,null,null,null,null,null,null,null,null,null,null,null,"Line145"]
[null,null,null,null,null,null,null,null,null,null,null,null,null,null,null,"Line149"]
[null,null,null,null,null,null,null,null,null,null,null,null,null,null,null,"Line152"]
[null,null,null,null,null,null,null,null,null,null,null,null,null,null,null,"Line155"]
[null,null,null,null,null,null,null,null,null,null,null,null,null,null,null,"Line159"]
[null,null,null,null,null,null,null,null,null,null,null,null,null,null,null,"Line162"]
[null,null,null,null,null,null,null,null,null,null,null,null,null,null,null,"Line165"]
[null,null,null,null,null,null,null,null,null,null,null,null,null,null,null,"Line166"]
[null,null,null,null,null,null,null,null,null,null,null,null,null,null,null,"Line169"]
[null,null,null,null,null,null,null,null,null,null,null,null,null,null,null,"Line173"]
[null,null,null,null,null,null,null,null,null,null,null,null,null,null,null,"Line176"]
[null,null,null,null,null,null,null,null,null,null,null,null,null,null,null,"Line179"]
[null,null,null,null,null,null,null,null,null,null,null,null,null,null,null,"Line183"]
[null,null,null,null,null,null,null,null,null,null,null,null,null,null,null,"Line186"]
[null,null,null,null,null,null,null,null,null,null,null,null,null,null,null,"Line190"]
[null,null,null,null,null,null,null,null,null,null,null,null,null,null,null,"Line191"]
[null,null,null,null,null,null,null,null,null,null,null,null,null,null,null,"Line194"]
[null,null,null,null,null,null,null,null,null,null,null,null,null,null,null,"Line198"]
[null,null,null,null,null,null,null,null,null,null,null,null,null,null,null,"Line1101"]
[null,null,null,null,null,null,null,null,null,null,null,null,null,null,null,"Line1104"]
[null,null,null,null,null,null,null,null,null,null,null,null,null,null,null,"Line1108"]
[null,null,null,null,null,null,null,null,null,null,null,null,null,null,null,"Line1111"]
[null,null,null,null,null,null,null,null,null,null,null,null,null,null,null,"Line1112"]
[null,null,null,null,null,null,null,null,null,null,null,null,null,null,null,"Line1115"]
[null,null,null,null,null,null,null,null,null,null,null,null,null,null,null,"Line1118"]
[null,null,null,null,null,null,null,null,null,null,null,null,null,null,null,"Line1122"]
[null,null,null,null,null,null,null,null,null,null,null,null,null,null,null,"Line1125"]
[null,null,null,null,null,null,null,null,null,null,null,null,null,null,null,"Line1128"]
[null,null,null,null,null,null,null,null,null,null,null,null,null,null,null,"Line1132"]
[null,null,null,null,null,null,null,null,null,null,null,null,null,null,null,"Line1135"]
[null,null,null,null,null,null,null,null,null,null,null,null,null,null,null,"Line1136"]
[null,null,null,null,null,null,null,null,null,null,null,null,null,null,null,"Line1139"]
[null,null,null,null,null,null,null,null,null,null,null,null,null,null,null,"Line1142"]
[null,null,null,null,null,null,null,null,null,null,null,null,null,null,null,"Line1146"]
[null,null,null,null,null,null,null,null,null,null,null,null,null,null,null,"Line1149"]
[null,null,null,null,null,null,null,null,null,null,null,null,null,null,null,"Line1151"]
[null,null,null,null,null,null,null,null,null,null,null,null,null,null,null,"Line1157"]
[null,null,null,null,null,null,null,null,null,null,null,null,null,null,null,"Line1160"]
[null,null,null,null,null,null,null,null,null,null,null,null,null,null,null,"Line1161"]
[null,null,null,null,null,null,null,null,null,null,null,null,null,null,null,"Line1164"]
[null,null,null,null,null,null,null,null,null,null,null,null,null,null,null,"Line1167"]
[null,null,null,null,null,null,null,null,null,null,null,null,null,null,null,"Line1171"]
[null,null,null,null,null,null,null,null,null,null,null,null,null,null,null,"Line1174"]
[null,null,null,null,null,null,null,null,null,null,null,null,null,null,null,"Line1178"]
[null,null,null,null,null,null,null,null,null,null,null,null,null,null,null,"Line12"]
[null,null,null,null,null,null,null,null,null,null,null,null,null,null,null,"Line15"]
[null,null,null,null,null,null,null,null,null,null,null,null,null,null,null,"Line16"]
[null,null,null,null,null,null,null,null,null,null,null,null,null,null,null,"Line19"]
[null,null,null,null,null,null,null,null,null,null,null,null,null,null,null,"Line112"]
[null,null,null,null,null,null,null,null,null,null,null,null,null,null,null,"Line116"]
[null,null,null,null,null,null,null,null,null,null,null,null,null,null,null,"Line119"]
[null,null,null,null,null,null,null,null,null,null,null,null,null,null,null,"Line123"]
[null,null,null,null,null,null,null,null,null,null,null,null,null,null,null,"Line126"]
[null,null,null,null,null,null,null,null,null,null,null,null,null,null,null,"Line129"]
[null,null,null,null,null,null,null,null,null,null,null,null,null,null,null,"Line130"]
[null,null,null,null,null,null,null,null,null,null,null,null,null,null,null,"Line133"]
[null,null,null,null,null,null,null,null,null,null,null,null,null,null,null,"Line138"]
[null,null,null,null,null,null,null,null,null,null,null,null,null,null,null,"Line141"]
[null,null,null,null,null,null,null,null,null,null,null,null,null,null,null,"Line144"]
[null,null,null,null,null,null,null,null,null,null,null,null,null,null,null,"Line148"]
[null,null,null,null,null,null,null,null,null,null,null,null,null,null,null,"Line151"]
[null,null,null,null,null,null,null,null,null,null,null,null,null,null,null,"Line154"]
[null,null,null,null,null,null,null,null,null,null,null,null,null,null,null,"Line155"]
[null,null,null,null,null,null,null,null,null,null,null,null,null,null,null,"Line158"]
[null,null,null,null,null,null,null,null,null,null,null,null,null,null,null,"Line162"]
[null,null,null,null,null,null,null,null,null,null,null,null,null,null,null,"Line165"]
[null,null,null,null,null,null,null,null,null,null,null,null,null,null,null,"Line168"]
[null,null,null,null,null,null,null,null,null,null,null,null,null,null,null,"Line172"]
[null,null,null,null,null,null,null,null,null,null,null,null,null,null,null,"Line175"]
[null,null,null,null,null,null,null,null,null,null,null,null,null,null,null,"Line178"]
[null,null,null,null,null,null,null,null,null,null,null,null,null,null,null,"Line179"]
[null,null,null,null,null,null,null,null,null,null,null,null,null,null,null,"Line182"]
[null,null,null,null,null,null,null,null,null,null,null,null,null,null,null,"Line186"]
[null,null,null,null,null,null,null,null,null,null,null,null,null,null,null,"Line189"]
[null,null,null,null,null,null,null,null,null,null,null,null,null,null,null,"Line192"]
[null,null,null,null,null,null,null,null,null,null,null,null,null,null,null,"Line194"]
[null,null,null,null,null,null,null,null,null,null,null,null,null,null,null,"Line1100"]
[null,null,null,null,null,null,null,null,null,null,null,null,null,null,null,"Line1101"]
[null,null,null,null,null,null,null,null,null,null,null,null,null,null,null,"Line1104"]
[null,null,null,null,null,null,null,null,null,null,null,null,null,null,null,"Line1107"]
[null,null,null,null,null,null,null,null,null,null,null,null,null,null,null,"Line1111"]
[null,null,null,null,null,null,null,null,null,null,null,null,null,null,null,"Line1114"]
[null,null,null,null,null,null,null,null,null,null,null,null,null,null,null,"Line1117"]
[null,null,null,null,null,null,null,null,null,null,null,null,null,null,null,"Line1121"]
[null,null,null,null,null,null,null,null,null,null,null,null,null,null,null,"Line1124"]
[null,null,null,null,null,null,null,null,null,null,null,null,null,null,null,"Line1125"]
[null,null,null,null,null,null,null,null,null,null,null,null,null,null,null,"Line1128"]
[null,null,null,null,null,null,null,null,null,null,null,null,null,null,null,"Line1131"]
[null,null,null,null,null,null,null,null,null,null,null,null,null,null,null,"Line1135"]
[null,null,null,null,null,null,null,null,null,null,null,null,null,null,null,"Line1138"]
[null,null,null,null,null,null,null,null,null,null,null,null,null,null,null,"Line1142"]
[null,null,null,null,null,null,null,null,null,null,null,null,null,null,null,"Line1145"]
[null,null,null,null,null,null,null,null,null,null,null,null,null,null,null,"Line1148"]
[null,null,null,null,null,null,null,null,null,null,null,null,null,null,null,"Line1149"]
[null,null,null,null,null,null,null,null,null,null,null,null,null,null,null,"Line1152"]
[null,null,null,null,null,null,null,null,null,null,null,null,null,null,null,"Line1155"]
[null,null,null,null,null,null,null,null,null,null,null,null,null,null,null,"Line1160"]
[null,null,null,null,null,null,null,null,null,null,null,null,null,null,null,"Line1163"]
[null,null,null,null,null,null,null,null,null,null,null,null,null,null,null,"Line1167"]
[null,null,null,null,null,null,null,null,null,null,null,null,null,null,null,"Line1170"]
[null,null,null,null,null,null,null,null,null,null,null,null,null,null,null,"Line1173"]
[null,null,null,null,null,null,null,null,null,null,null,null,null,null,null,"Line1174"]
[null,null,null,null,null,null,null,null,null,null,null,null,null,null,null,"Line1177"]
[null,null,null,null,null,null,null,null,null,null,null,null,null,null,null,"Line135"]
[null,null,null,null,null,null,null,null,null,null,null,null,null,null,null,"Line13"]
[null,null,null,null,null,null,null,null,null,null,null,null,null,null,null,"Line16"]
[null,null,null,null,null,null,null,null,null,null,null,null,null,null,null,"Line110"]
[null,null,null,null,null,null,null,null,null,null,null,null,null,null,null,"Line113"]
[null,null,null,null,null,null,null,null,null,null,null,null,null,null,null,"Line116"]
[null,null,null,null,null,null,null,null,null,null,null,null,null,null,null,"Line117"]
[null,null,null,null,null,null,null,null,null,null,null,null,null,null,null,"Line120"]
[null,null,null,null,null,null,null,null,null,null,null,null,null,null,null,"Line124"]
[null,null,null,null,null,null,null,null,null,null,null,null,null,null,null,"Line127"]
[null,null,null,null,null,null,null,null,null,null,null,null,null,null,null,"Line130"]
[null,null,null,null,null,null,null,null,null,null,null,null,null,null,null,"Line134"]
[null,null,null,null,null,null,null,null,null,null,null,null,null,null,null,"Line135"]
[null,null,null,null,null,null,null,null,null,null,null,null,null,null,null,"Line139"]
[null,null,null,null,null,null,null,null,null,null,null,null,null,null,null,"Line140"]
[null,null,null,null,null,null,null,null,null,null,null,null,null,null,null,"Line141"]
[null,null,null,null,null,null,null,null,null,null,null,null,null,null,null,"Line142"]
[null,null,null,null,null,null,null,null,null,null,null,null,null,null,null,"Line143"]
[null,null,null,null,null,null,null,null,null,null,null,null,null,null,null,"Line144"]
[null,null,null,null,null,null,null,null,null,null,null,null,null,null,null,"Line145"]
[null,null,null,null,null,null,null,null,null,null,null,null,null,null,null,"Line146"]
[null,null,null,null,null,null,null,null,null,null,null,null,null,null,null,"Line147"]
[null,null,null,null,null,null,null,null,null,null,null,null,null,null,null,"Line148"]
[null,null,null,null,null,null,null,null,null,null,null,null,null,null,null,"Line149"]
[null,null,null,null,null,null,null,null,null,null,null,null,null,null,null,"Line150"]
[null,null,null,null,null,null,null,null,null,null,null,null,null,null,null,"Line151"]
[null,null,null,null,null,null,null,null,null,null,null,null,null,null,null,"Line152"]
[null,null,null,null,null,null,null,null,null,null,null,null,null,null,null,"Line153"]
[null,null,null,null,null,null,null,null,null,null,null,null,null,null,null,"Line154"]
[null,null,null,null,null,null,null,null,null,null,null,null,null,null,null,"Line155"]
[null,null,null,null,null,null,null,null,null,null,null,null,null,null,null,"Line156"]
[null,null,null,null,null,null,null,null,null,null,null,null,null,null,null,"Line157"]
[null,null,null,null,null,null,null,null,null,null,null,null,null,null,null,"Line158"]
[null,null,null,null,null,null,null,null,null,null,null,null,null,null,null,"Line159"]
[null,null,null,null,null,null,null,null,null,null,null,null,null,null,null,"Line160"]
[null,null,null,null,null,null,null,null,null,null,null,null,null,null,null,"Line161"]
[null,null,null,null,null,null,null,null,null,null,null,null,null,null,null,"Line162"]
[null,null,null,null,null,null,null,null,null,null,null,null,null,null,null,"Line163"]
[null,null,null,null,null,null,null,null,null,null,null,null,null,null,null,"Line164"]
[null,null,null,null,null,null,null,null,null,null,null,null,null,null,null,"Line165"]
[null,null,null,null,null,null,null,null,null,null,null,null,null,null,null,"Line166"]
[null,null,null,null,null,null,null,null,null,null,null,null,null,null,null,"Line167"]
[null,null,null,null,null,null,null,null,null,null,null,null,null,null,null,"Line168"]
[null,null,null,null,null,null,null,null,null,null,null,null,null,null,null,"Line169"]
[null,null,null,null,null,null,null,null,null,null,null,null,null,null,null,"Line170"]
[null,null,null,null,null,null,null,null,null,null,null,null,null,null,null,"Line171"]
[null,null,null,null,null,null,null,null,null,null,null,null,null,null,null,"Line172"]
[null,null,null,null,null,null,null,null,null,null,null,null,null,null,null,"Line173"]
[null,null,null,null,null,null,null,null,null,null,null,null,null,null,null,"Line174"]
[null,null,null,null,null,null,null,null,null,null,null,null,null,null,null,"Line175"]
[null,null,null,null,null,null,null,null,null,null,null,null,null,null,null,"Line176"]
[null,null,null,null,null,null,null,null,null,null,null,null,null,null,null,"Line177"]
[null,null,null,null,null,null,null,null,null,null,null,null,null,null,null,"Line178"]
[null,null,null,null,null,null,null,null,null,null,null,null,null,null,null,"Line179"]
[null,null,null,null,null,null,null,null,null,null,null,null,null,null,null,"Line180"]
[null,null,null,null,null,null,null,null,null,null,null,null,null,null,null,"Line181"]
[null,null,null,null,null,null,null,null,null,null,null,null,null,null,null,"Line182"]
[null,null,null,null,null,null,null,null,null,null,null,null,null,null,null,"Line183"]
[null,null,null,null,null,null,null,null,null,null,null,null,null,null,null,"Line184"]
[null,null,null,null,null,null,null,null,null,null,null,null,null,null,null,"Line185"]
[null,null,null,null,null,null,null,null,null,null,null,null,null,null,null,"Line186"]
[null,null,null,null,null,null,null,null,null,null,null,null,null,null,null,"Line187"]
[null,null,null,null,null,null,null,null,null,null,null,null,null,null,null,"Line188"]
[null,null,null,null,null,null,null,null,null,null,null,null,null,null,null,"Line189"]
[null,null,null,null,null,null,null,null,null,null,null,null,null,null,null,"Line190"]
[null,null,null,null,null,null,null,null,null,null,null,null,null,null,null,"Line191"]
[null,null,null,null,null,null,null,null,null,null,null,null,null,null,null,"Line192"]
[null,null,null,null,null,null,null,null,null,null,null,null,null,null,null,"Line193"]
[null,null,null,null,null,null,null,null,null,null,null,null,null,null,null,"Line194"]
[null,null,null,null,null,null,null,null,null,null,null,null,null,null,null,"Line195"]
[null,null,null,null,null,null,null,null,null,null,null,null,null,null,null,"Line196"]
[null,null,null,null,null,null,null,null,null,null,null,null,null,null,null,"Line197"]
[null,null,null,null,null,null,null,null,null,null,null,null,null,null,null,"Line198"]
[null,null,null,null,null,null,null,null,null,null,null,null,null,null,null,"Line199"]
[null,null,null,null,null,null,null,null,null,null,null,null,null,null,null,"Line1100"]
[null,null,null,null,null,null,null,null,null,null,null,null,null,null,null,"Line1101"]
[null,null,null,null,null,null,null,null,null,null,null,null,null,null,null,"Line1102"]
[null,null,null,null,null,null,null,null,null,null,null,null,null,null,null,"Line1103"]
[null,null,null,null,null,null,null,null,null,null,null,null,null,null,null,"Line1104"]
[null,null,null,null,null,null,null,null,null,null,null,null,null,null,null,"Line1105"]
[null,null,null,null,null,null,null,null,null,null,null,null,null,null,null,"Line1106"]
[null,null,null,null,null,null,null,null,null,null,null,null,null,null,null,"Line1107"]
[null,null,null,null,null,null,null,null,null,null,null,null,null,null,null,"Line1108"]
[null,null,null,null,null,null,null,null,null,null,null,null,null,null,null,"Line1109"]
[null,null,null,null,null,null,null,null,null,null,null,null,null,null,null,"Line1110"]
[null,null,null,null,null,null,null,null,null,null,null,null,null,null,null,"Line1111"]
[null,null,null,null,null,null,null,null,null,null,null,null,null,null,null,"Line1112"]
[null,null,null,null,null,null,null,null,null,null,null,null,null,null,null,"Line1113"]
[null,null,null,null,null,null,null,null,null,null,null,null,null,null,null,"Line1114"]
[null,null,null,null,null,null,null,null,null,null,null,null,null,null,null,"Line1115"]
[null,null,null,null,null,null,null,null,null,null,null,null,null,null,null,"Line1116"]
[null,null,null,null,null,null,null,null,null,null,null,null,null,null,null,"Line1117"]
[null,null,null,null,null,null,null,null,null,null,null,null,null,null,null,"Line1118"]
[null,null,null,null,null,null,null,null,null,null,null,null,null,null,null,"Line1119"]
[null,null,null,null,null,null,null,null,null,null,null,null,null,null,null,"Line1120"]
[null,null,null,null,null,null,null,null,null,null,null,null,null,null,null,"Line1121"]
[null,null,null,null,null,null,null,null,null,null,null,null,null,null,null,"Line1122"]
[null,null,null,null,null,null,null,null,null,null,null,null,null,null,null,"Line1123"]
[null,null,null,null,null,null,null,null,null,null,null,null,null,null,null,"Line1124"]
[null,null,null,null,null,null,null,null,null,null,null,null,null,null,null,"Line1125"]
[null,null,null,null,null,null,null,null,null,null,null,null,null,null,null,"Line1126"]
[null,null,null,null,null,null,null,null,null,null,null,null,null,null,null,"Line1127"]
[null,null,null,null,null,null,null,null,null,null,null,null,null,null,null,"Line1128"]
[null,null,null,null,null,null,null,null,null,null,null,null,null,null,null,"Line1129"]
[null,null,null,null,null,null,null,null,null,null,null,null,null,null,null,"Line1130"]
[null,null,null,null,null,null,null,null,null,null,null,null,null,null,null,"Line1131"]
[null,null,null,null,null,null,null,null,null,null,null,null,null,null,null,"Line1132"]
[null,null,null,null,null,null,null,null,null,null,null,null,null,null,null,"Line1133"]
[null,null,null,null,null,null,null,null,null,null,null,null,null,null,null,"Line1134"]
[null,null,null,null,null,null,null,null,null,null,null,null,null,null,null,"Line1135"]
[null,null,null,null,null,null,null,null,null,null,null,null,null,null,null,"Line1136"]
[null,null,null,null,null,null,null,null,null,null,null,null,null,null,null,"Line1137"]
[null,null,null,null,null,null,null,null,null,null,null,null,null,null,null,"Line1138"]
[null,null,null,null,null,null,null,null,null,null,null,null,null,null,null,"Line1139"]
[null,null,null,null,null,null,null,null,null,null,null,null,null,null,null,"Line1140"]
[null,null,null,null,null,null,null,null,null,null,null,null,null,null,null,"Line1141"]
[null,null,null,null,null,null,null,null,null,null,null,null,null,null,null,"Line1142"]
[null,null,null,null,null,null,null,null,null,null,null,null,null,null,null,"Line1143"]
[null,null,null,null,null,null,null,null,null,null,null,null,null,null,null,"Line1144"]
[null,null,null,null,null,null,null,null,null,null,null,null,null,null,null,"Line1145"]
[null,null,null,null,null,null,null,null,null,null,null,null,null,null,null,"Line1146"]
[null,null,null,null,null,null,null,null,null,null,null,null,null,null,null,"Line1147"]
[null,null,null,null,null,null,null,null,null,null,null,null,null,null,null,"Line1148"]
[null,null,null,null,null,null,null,null,null,null,null,null,null,null,null,"Line1149"]
[null,null,null,null,null,null,null,null,null,null,null,null,null,null,null,"Line1150"]
[null,null,null,null,null,null,null,null,null,null,null,null,null,null,null,"Line1151"]
[null,null,null,null,null,null,null,null,null,null,null,null,null,null,null,"Line1152"]
[null,null,null,null,null,null,null,null,null,null,null,null,null,null,null,"Line1153"]
[null,null,null,null,null,null,null,null,null,null,null,null,null,null,null,"Line1154"]
[null,null,null,null,null,null,null,null,null,null,null,null,null,null,null,"Line1155"]
[null,null,null,null,null,null,null,null,null,null,null,null,null,null,null,"Line1156"]
[null,null,null,null,null,null,null,null,null,null,null,null,null,null,null,"Line1157"]
[null,null,null,null,null,null,null,null,null,null,null,null,null,null,null,"Line1158"]
[null,null,null,null,null,null,null,null,null,null,null,null,null,null,null,"Line1159"]
[null,null,null,null,null,null,null,null,null,null,null,null,null,null,null,"Line1160"]
[null,null,null,null,null,null,null,null,null,null,null,null,null,null,null,"Line1161"]
[null,null,null,null,null,null,null,null,null,null,null,null,null,null,null,"Line1162"]
[null,null,null,null,null,null,null,null,null,null,null,null,null,null,null,"Line1163"]
[null,null,null,null,null,null,null,null,null,null,null,null,null,null,null,"Line1164"]
[null,null,null,null,null,null,null,null,null,null,null,null,null,null,null,"Line1165"]
[null,null,null,null,null,null,null,null,null,null,null,null,null,null,null,"Line1166"]
[null,null,null,null,null,null,null,null,null,null,null,null,null,null,null,"Line1167"]
[null,null,null,null,null,null,null,null,null,null,null,null,null,null,null,"Line1168"]
[null,null,null,null,null,null,null,null,null,null,null,null,null,null,null,"Line1169"]
[null,null,null,null,null,null,null,null,null,null,null,null,null,null,null,"Line1170"]
[null,null,null,null,null,null,null,null,null,null,null,null,null,null,null,"Line1171"]
[null,null,null,null,null,null,null,null,null,null,null,null,null,null,null,"Line1172"]
[null,null,null,null,null,null,null,null,null,null,null,null,null,null,null,"Line1173"]
[null,null,null,null,null,null,null,null,null,null,null,null,null,null,null,"Line1174"]
[null,null,null,null,null,null,null,null,null,null,null,null,null,null,null,"Line1175"]
[null,null,null,null,null,null,null,null,null,null,null,null,null,null,null,"Line1176"]
[null,null,null,null,null,null,null,null,null,null,null,null,null,null,null,"Line1177"]
[null,null,null,null,null,null,null,null,null,null,null,null,null,null,null,"Line1178"]
[null,null,null,null,null,null,null,null,null,null,null,null,null,null,null,"Line138"]
[null,null,null,null,null,null,null,null,null,null,null,null,null,null,null,"Line11"]
[null,null,null,null,null,null,null,null,null,null,null,null,null,null,null,"Line12"]
[null,null,null,null,null,null,null,null,null,null,null,null,null,null,null,"Line13"]
[null,null,null,null,null,null,null,null,null,null,null,null,null,null,null,"Line14"]
[null,null,null,null,null,null,null,null,null,null,null,null,null,null,null,"Line15"]
[null,null,null,null,null,null,null,null,null,null,null,null,null,null,null,"Line16"]
[null,null,null,null,null,null,null,null,null,null,null,null,null,null,null,"Line17"]
[null,null,null,null,null,null,null,null,null,null,null,null,null,null,null,"Line18"]
[null,null,null,null,null,null,null,null,null,null,null,null,null,null,null,"Line19"]
[null,null,null,null,null,null,null,null,null,null,null,null,null,null,null,"Line110"]
[null,null,null,null,null,null,null,null,null,null,null,null,null,null,null,"Line111"]
[null,null,null,null,null,null,null,null,null,null,null,null,null,null,null,"Line112"]
[null,null,null,null,null,null,null,null,null,null,null,null,null,null,null,"Line113"]
[null,null,null,null,null,null,null,null,null,null,null,null,null,null,null,"Line114"]
[null,null,null,null,null,null,null,null,null,null,null,null,null,null,null,"Line115"]
[null,null,null,null,null,null,null,null,null,null,null,null,null,null,null,"Line116"]
[null,null,null,null,null,null,null,null,null,null,null,null,null,null,null,"Line117"]
[null,null,null,null,null,null,null,null,null,null,null,null,null,null,null,"Line118"]
[null,null,null,null,null,null,null,null,null,null,null,null,null,null,null,"Line119"]
[null,null,null,null,null,null,null,null,null,null,null,null,null,null,null,"Line120"]
[null,null,null,null,null,null,null,null,null,null,null,null,null,null,null,"Line121"]
[null,null,null,null,null,null,null,null,null,null,null,null,null,null,null,"Line122"]
[null,null,null,null,null,null,null,null,null,null,null,null,null,null,null,"Line123"]
[null,null,null,null,null,null,null,null,null,null,null,null,null,null,null,"Line124"]
[null,null,null,null,null,null,null,null,null,null,null,null,null,null,null,"Line125"]
[null,null,null,null,null,null,null,null,null,null,null,null,null,null,null,"Line126"]
[null,null,null,null,null,null,null,null,null,null,null,null,null,null,null,"Line127"]
[null,null,null,null,null,null,null,null,null,null,null,null,null,null,null,"Line128"]
[null,null,null,null,null,null,null,null,null,null,null,null,null,null,null,"Line129"]
[null,null,null,null,null,null,null,null,null,null,null,null,null,null,null,"Line130"]
[null,null,null,null,null,null,null,null,null,null,null,null,null,null,null,"Line131"]
[null,null,null,null,null,null,null,null,null,null,null,null,null,null,null,"Line132"]
[null,null,null,null,null,null,null,null,null,null,null,null,null,null,null,"Line133"]
[null,null,null,null,null,null,null,null,null,null,null,null,null,null,null,"Line134"]
[null,null,null,null,null,null,null,null,null,null,null,null,null,null,null,"Line135"]
[null,null,null,null,null,null,null,null,null,null,null,null,null,null,null,"Line136"]
[null,null,null,null,null,null,null,null,null,null,null,null,null,null,null,"Line137"]
[null,null,null,null,null,null,null,null,null,null,null,null,null,null,null,"Line138"]
[null,null,null,null,null,null,null,null,null,null,null,null,null,null,null,"Line139"]
[null,null,null,null,null,null,null,null,null,null,null,null,null,null,null,"Line140"]
[null,null,null,null,null,null,null,null,null,null,null,null,null,null,null,"Line141"]
[null,null,null,null,null,null,null,null,null,null,null,null,null,null,null,"Line142"]
[null,null,null,null,null,null,null,null,null,null,null,null,null,null,null,"Line143"]
[null,null,null,null,null,null,null,null,null,null,null,null,null,null,null,"Line144"]
[null,null,null,null,null,null,null,null,null,null,null,null,null,null,null,"Line145"]
[null,null,null,null,null,null,null,null,null,null,null,null,null,null,null,"Line146"]
[null,null,null,null,null,null,null,null,null,null,null,null,null,null,null,"Line147"]
[null,null,null,null,null,null,null,null,null,null,null,null,null,null,null,"Line148"]
[null,null,null,null,null,null,null,null,null,null,null,null,null,null,null,"Line149"]
[null,null,null,null,null,null,null,null,null,null,null,null,null,null,null,"Line150"]
[null,null,null,null,null,null,null,null,null,null,null,null,null,null,null,"Line151"]
[null,null,null,null,null,null,null,null,null,null,null,null,null,null,null,"Line152"]
[null,null,null,null,null,null,null,null,null,null,null,null,null,null,null,"Line153"]
[null,null,null,null,null,null,null,null,null,null,null,null,null,null,null,"Line154"]
[null,null,null,null,null,null,null,null,null,null,null,null,null,null,null,"Line155"]
[null,null,null,null,null,null,null,null,null,null,null,null,null,null,null,"Line156"]
[null,null,null,null,null,null,null,null,null,null,null,null,null,null,null,"Line157"]
[null,null,null,null,null,null,null,null,null,null,null,null,null,null,null,"Line158"]
[null,null,null,null,null,null,null,null,null,null,null,null,null,null,null,"Line159"]
[null,null,null,null,null,null,null,null,null,null,null,null,null,null,null,"Line160"]
[null,null,null,null,null,null,null,null,null,null,null,null,null,null,null,"Line161"]
[null,null,null,null,null,null,null,null,null,null,null,null,null,null,null,"Line162"]
[null,null,null,null,null,null,null,null,null,null,null,null,null,null,null,"Line163"]
[null,null,null,null,null,null,null,null,null,null,null,null,null,null,null,"Line164"]
[null,null,null,null,null,null,null,null,null,null,null,null,null,null,null,"Line165"]
[null,null,null,null,null,null,null,null,null,null,null,null,null,null,null,"Line166"]
[null,null,null,null,null,null,null,null,null,null,null,null,null,null,null,"Line167"]
[null,null,null,null,null,null,null,null,null,null,null,null,null,null,null,"Line168"]
[null,null,null,null,null,null,null,null,null,null,null,null,null,null,null,"Line169"]
[null,null,null,null,null,null,null,null,null,null,null,null,null,null,null,"Line170"]
[null,null,null,null,null,null,null,null,null,null,null,null,null,null,null,"Line171"]
[null,null,null,null,null,null,null,null,null,null,null,null,null,null,null,"Line172"]
[null,null,null,null,null,null,null,null,null,null,null,null,null,null,null,"Line173"]
[null,null,null,null,null,null,null,null,null,null,null,null,null,null,null,"Line174"]
[null,null,null,null,null,null,null,null,null,null,null,null,null,null,null,"Line175"]
[null,null,null,null,null,null,null,null,null,null,null,null,null,null,null,"Line176"]
[null,null,null,null,null,null,null,null,null,null,null,null,null,null,null,"Line177"]
[null,null,null,null,null,null,null,null,null,null,null,null,null,null,null,"Line178"]
[null,null,null,null,null,null,null,null,null,null,null,null,null,null,null,"Line179"]
[null,null,null,null,null,null,null,null,null,null,null,null,null,null,null,"Line180"]
[null,null,null,null,null,null,null,null,null,null,null,null,null,null,null,"Line181"]
[null,null,null,null,null,null,null,null,null,null,null,null,null,null,null,"Line182"]
[null,null,null,null,null,null,null,null,null,null,null,null,null,null,null,"Line183"]
[null,null,null,null,null,null,null,null,null,null,null,null,null,null,null,"Line184"]
[null,null,null,null,null,null,null,null,null,null,null,null,null,null,null,"Line185"]
[null,null,null,null,null,null,null,null,null,null,null,null,null,null,null,"Line186"]
[null,null,null,null,null,null,null,null,null,null,null,null,null,null,null,"Line187"]
[null,null,null,null,null,null,null,null,null,null,null,null,null,null,null,"Line188"]
[null,null,null,null,null,null,null,null,null,null,null,null,null,null,null,"Line189"]
[null,null,null,null,null,null,null,null,null,null,null,null,null,null,null,"Line190"]
[null,null,null,null,null,null,null,null,null,null,null,null,null,null,null,"Line191"]
[null,null,null,null,null,null,null,null,null,null,null,null,null,null,null,"Line192"]
[null,null,null,null,null,null,null,null,null,null,null,null,null,null,null,"Line193"]
[null,null,null,null,null,null,null,null,null,null,null,null,null,null,null,"Line194"]
[null,null,null,null,null,null,null,null,null,null,null,null,null,null,null,"Line195"]
[null,null,null,null,null,null,null,null,null,null,null,null,null,null,null,"Line196"]
[null,null,null,null,null,null,null,null,null,null,null,null,null,null,null,"Line197"]
[null,null,null,null,null,null,null,null,null,null,null,null,null,null,null,"Line198"]
[null,null,null,null,null,null,null,null,null,null,null,null,null,null,null,"Line199"]
[null,null,null,null,null,null,null,null,null,null,null,null,null,null,null,"Line1100"]
[null,null,null,null,null,null,null,null,null,null,null,null,null,null,null,"Line1101"]
[null,null,null,null,null,null,null,null,null,null,null,null,null,null,null,"Line1102"]
[null,null,null,null,null,null,null,null,null,null,null,null,null,null,null,"Line1103"]
[null,null,null,null,null,null,null,null,null,null,null,null,null,null,null,"Line1104"]
[null,null,null,null,null,null,null,null,null,null,null,null,null,null,null,"Line1105"]
[null,null,null,null,null,null,null,null,null,null,null,null,null,null,null,"Line1106"]
[null,null,null,null,null,null,null,null,null,null,null,null,null,null,null,"Line1107"]
[null,null,null,null,null,null,null,null,null,null,null,null,null,null,null,"Line1108"]
[null,null,null,null,null,null,null,null,null,null,null,null,null,null,null,"Line1109"]
[null,null,null,null,null,null,null,null,null,null,null,null,null,null,null,"Line1110"]
[null,null,null,null,null,null,null,null,null,null,null,null,null,null,null,"Line1111"]
[null,null,null,null,null,null,null,null,null,null,null,null,null,null,null,"Line1112"]
[null,null,null,null,null,null,null,null,null,null,null,null,null,null,null,"Line1113"]
[null,null,null,null,null,null,null,null,null,null,null,null,null,null,null,"Line1114"]
[null,null,null,null,null,null,null,null,null,null,null,null,null,null,null,"Line1115"]
[null,null,null,null,null,null,null,null,null,null,null,null,null,null,null,"Line1116"]
[null,null,null,null,null,null,null,null,null,null,null,null,null,null,null,"Line1117"]
[null,null,null,null,null,null,null,null,null,null,null,null,null,null,null,"Line1118"]
[null,null,null,null,null,null,null,null,null,null,null,null,null,null,null,"Line1119"]
[null,null,null,null,null,null,null,null,null,null,null,null,null,null,null,"Line1120"]
[null,null,null,null,null,null,null,null,null,null,null,null,null,null,null,"Line1121"]
[null,null,null,null,null,null,null,null,null,null,null,null,null,null,null,"Line1122"]
[null,null,null,null,null,null,null,null,null,null,null,null,null,null,null,"Line1123"]
[null,null,null,null,null,null,null,null,null,null,null,null,null,null,null,"Line1124"]
[null,null,null,null,null,null,null,null,null,null,null,null,null,null,null,"Line1125"]
[null,null,null,null,null,null,null,null,null,null,null,null,null,null,null,"Line1126"]
[null,null,null,null,null,null,null,null,null,null,null,null,null,null,null,"Line1127"]
[null,null,null,null,null,null,null,null,null,null,null,null,null,null,null,"Line1128"]
[null,null,null,null,null,null,null,null,null,null,null,null,null,null,null,"Line1129"]
[null,null,null,null,null,null,null,null,null,null,null,null,null,null,null,"Line1130"]
[null,null,null,null,null,null,null,null,null,null,null,null,null,null,null,"Line1131"]
[null,null,null,null,null,null,null,null,null,null,null,null,null,null,null,"Line1132"]
[null,null,null,null,null,null,null,null,null,null,null,null,null,null,null,"Line1133"]
[null,null,null,null,null,null,null,null,null,null,null,null,null,null,null,"Line1134"]
[null,null,null,null,null,null,null,null,null,null,null,null,null,null,null,"Line1135"]
[null,null,null,null,null,null,null,null,null,null,null,null,null,null,null,"Line1136"]
[null,null,null,null,null,null,null,null,null,null,null,null,null,null,null,"Line1137"]
[null,null,null,null,null,null,null,null,null,null,null,null,null,null,null,"Line1138"]
[null,null,null,null,null,null,null,null,null,null,null,null,null,null,null,"Line1139"]
[null,null,null,null,null,null,null,null,null,null,null,null,null,null,null,"Line1140"]
[null,null,null,null,null,null,null,null,null,null,null,null,null,null,null,"Line1141"]
[null,null,null,null,null,null,null,null,null,null,null,null,null,null,null,"Line1142"]
[null,null,null,null,null,null,null,null,null,null,null,null,null,null,null,"Line1143"]
[null,null,null,null,null,null,null,null,null,null,null,null,null,null,null,"Line1144"]
[null,null,null,null,null,null,null,null,null,null,null,null,null,null,null,"Line1145"]
[null,null,null,null,null,null,null,null,null,null,null,null,null,null,null,"Line1146"]
[null,null,null,null,null,null,null,null,null,null,null,null,null,null,null,"Line1147"]
[null,null,null,null,null,null,null,null,null,null,null,null,null,null,null,"Line1148"]
[null,null,null,null,null,null,null,null,null,null,null,null,null,null,null,"Line1149"]
[null,null,null,null,null,null,null,null,null,null,null,null,null,null,null,"Line1150"]
[null,null,null,null,null,null,null,null,null,null,null,null,null,null,null,"Line1151"]
[null,null,null,null,null,null,null,null,null,null,null,null,null,null,null,"Line1152"]
[null,null,null,null,null,null,null,null,null,null,null,null,null,null,null,"Line1153"]
[null,null,null,null,null,null,null,null,null,null,null,null,null,null,null,"Line1154"]
[null,null,null,null,null,null,null,null,null,null,null,null,null,null,null,"Line1155"]
[null,null,null,null,null,null,null,null,null,null,null,null,null,null,null,"Line1156"]
[null,null,null,null,null,null,null,null,null,null,null,null,null,null,null,"Line1157"]
[null,null,null,null,null,null,null,null,null,null,null,null,null,null,null,"Line1158"]
[null,null,null,null,null,null,null,null,null,null,null,null,null,null,null,"Line1159"]
[null,null,null,null,null,null,null,null,null,null,null,null,null,null,null,"Line1160"]
[null,null,null,null,null,null,null,null,null,null,null,null,null,null,null,"Line1161"]
[null,null,null,null,null,null,null,null,null,null,null,null,null,null,null,"Line1162"]
[null,null,null,null,null,null,null,null,null,null,null,null,null,null,null,"Line1163"]
[null,null,null,null,null,null,null,null,null,null,null,null,null,null,null,"Line1164"]
[null,null,null,null,null,null,null,null,null,null,null,null,null,null,null,"Line1165"]
[null,null,null,null,null,null,null,null,null,null,null,null,null,null,null,"Line1166"]
[null,null,null,null,null,null,null,null,null,null,null,null,null,null,null,"Line1167"]
[null,null,null,null,null,null,null,null,null,null,null,null,null,null,null,"Line1168"]
[null,null,null,null,null,null,null,null,null,null,null,null,null,null,null,"Line1169"]
[null,null,null,null,null,null,null,null,null,null,null,null,null,null,null,"Line1170"]
[null,null,null,null,null,null,null,null,null,null,null,null,null,null,null,"Line1171"]
[null,null,null,null,null,null,null,null,null,null,null,null,null,null,null,"Line1172"]
[null,null,null,null,null,null,null,null,null,null,null,null,null,null,null,"Line1173"]
[null,null,null,null,null,null,null,null,null,null,null,null,null,null,null,"Line1174"]
[null,null,null,null,null,null,null,null,null,null,null,null,null,null,null,"Line1175"]
[null,null,null,null,null,null,null,null,null,null,null,null,null,null,null,"Line1176"]
[null,null,null,null,null,null,null,null,null,null,null,null,null,null,null,"Line1177"]
[null,null,null,null,null,null,null,null,null,null,null,null,null,null,null,"Line1178"]
[null,null,null,null,null,null,null,null,null,null,null,null,null,null,null,"Line140"]
[null,null,null,null,null,null,null,null,null,null,null,null,null,null,null,"Line141"]
[null,null,null,null,null,null,null,null,null,null,null,null,null,null,null,"Line142"]
[null,null,null,null,null,null,null,null,null,null,null,null,null,null,null,"Line11"]
[null,null,null,null,null,null,null,null,null,null,null,null,null,null,null,"Line12"]
[null,null,null,null,null,null,null,null,null,null,null,null,null,null,null,"Line13"]
[null,null,null,null,null,null,null,null,null,null,null,null,null,null,null,"Line14"]
[null,null,null,null,null,null,null,null,null,null,null,null,null,null,null,"Line15"]
[null,null,null,null,null,null,null,null,null,null,null,null,null,null,null,"Line16"]
[null,null,null,null,null,null,null,null,null,null,null,null,null,null,null,"Line17"]
[null,null,null,null,null,null,null,null,null,null,null,null,null,null,null,"Line18"]
[null,null,null,null,null,null,null,null,null,null,null,null,null,null,null,"Line19"]
[null,null,null,null,null,null,null,null,null,null,null,null,null,null,null,"Line110"]
[null,null,null,null,null,null,null,null,null,null,null,null,null,null,null,"Line111"]
[null,null,null,null,null,null,null,null,null,null,null,null,null,null,null,"Line112"]
[null,null,null,null,null,null,null,null,null,null,null,null,null,null,null,"Line113"]
[null,null,null,null,null,null,null,null,null,null,null,null,null,null,null,"Line114"]
[null,null,null,null,null,null,null,null,null,null,null,null,null,null,null,"Line115"]
[null,null,null,null,null,null,null,null,null,null,null,null,null,null,null,"Line116"]
[null,null,null,null,null,null,null,null,null,null,null,null,null,null,null,"Line117"]
[null,null,null,null,null,null,null,null,null,null,null,null,null,null,null,"Line118"]
[null,null,null,null,null,null,null,null,null,null,null,null,null,null,null,"Line119"]
[null,null,null,null,null,null,null,null,null,null,null,null,null,null,null,"Line120"]
[null,null,null,null,null,null,null,null,null,null,null,null,null,null,null,"Line121"]
[null,null,null,null,null,null,null,null,null,null,null,null,null,null,null,"Line122"]
[null,null,null,null,null,null,null,null,null,null,null,null,null,null,null,"Line123"]
[null,null,null,null,null,null,null,null,null,null,null,null,null,null,null,"Line124"]
[null,null,null,null,null,null,null,null,null,null,null,null,null,null,null,"Line125"]
[null,null,null,null,null,null,null,null,null,null,null,null,null,null,null,"Line126"]
[null,null,null,null,null,null,null,null,null,null,null,null,null,null,null,"Line127"]
[null,null,null,null,null,null,null,null,null,null,null,null,null,null,null,"Line128"]
[null,null,null,null,null,null,null,null,null,null,null,null,null,null,null,"Line129"]
[null,null,null,null,null,null,null,null,null,null,null,null,null,null,null,"Line130"]
[null,null,null,null,null,null,null,null,null,null,null,null,null,null,null,"Line131"]
[null,null,null,null,null,null,null,null,null,null,null,null,null,null,null,"Line132"]
[null,null,null,null,null,null,null,null,null,null,null,null,null,null,null,"Line133"]
[null,null,null,null,null,null,null,null,null,null,null,null,null,null,null,"Line134"]
[null,null,null,null,null,null,null,null,null,null,null,null,null,null,null,"Line135"]
[null,null,null,null,null,null,null,null,null,null,null,null,null,null,null,"Line136"]
[null,null,null,null,null,null,null,null,null,null,null,null,null,null,null,"Line137"]
[null,null,null,null,null,null,null,null,null,null,null,null,null,null,null,"Line138"]
[null,null,null,null,null,null,null,null,null,null,null,null,null,null,null,"Line139"]
[null,null,null,null,null,null,null,null,null,null,null,null,null,null,null,"Line140"]
[null,null,null,null,null,null,null,null,null,null,null,null,null,null,null,"Line141"]
[null,null,null,null,null,null,null,null,null,null,null,null,null,null,null,"Line142"]
[null,null,null,null,null,null,null,null,null,null,null,null,null,null,null,"Line143"]
[null,null,null,null,null,null,null,null,null,null,null,null,null,null,null,"Line144"]
[null,null,null,null,null,null,null,null,null,null,null,null,null,null,null,"Line145"]
[null,null,null,null,null,null,null,null,null,null,null,null,null,null,null,"Line146"]
[null,null,null,null,null,null,null,null,null,null,null,null,null,null,null,"Line147"]
[null,null,null,null,null,null,null,null,null,null,null,null,null,null,null,"Line148"]
[null,null,null,null,null,null,null,null,null,null,null,null,null,null,null,"Line149"]
[null,null,null,null,null,null,null,null,null,null,null,null,null,null,null,"Line150"]
[null,null,null,null,null,null,null,null,null,null,null,null,null,null,null,"Line151"]
[null,null,null,null,null,null,null,null,null,null,null,null,null,null,null,"Line152"]
[null,null,null,null,null,null,null,null,null,null,null,null,null,null,null,"Line153"]
[null,null,null,null,null,null,null,null,null,null,null,null,null,null,null,"Line154"]
[null,null,null,null,null,null,null,null,null,null,null,null,null,null,null,"Line155"]
[null,null,null,null,null,null,null,null,null,null,null,null,null,null,null,"Line156"]
[null,null,null,null,null,null,null,null,null,null,null,null,null,null,null,"Line157"]
[null,null,null,null,null,null,null,null,null,null,null,null,null,null,null,"Line158"]
[null,null,null,null,null,null,null,null,null,null,null,null,null,null,null,"Line159"]
[null,null,null,null,null,null,null,null,null,null,null,null,null,null,null,"Line160"]
[null,null,null,null,null,null,null,null,null,null,null,null,null,null,null,"Line161"]
[null,null,null,null,null,null,null,null,null,null,null,null,null,null,null,"Line162"]
[null,null,null,null,null,null,null,null,null,null,null,null,null,null,null,"Line163"]
[null,null,null,null,null,null,null,null,null,null,null,null,null,null,null,"Line164"]
[null,null,null,null,null,null,null,null,null,null,null,null,null,null,null,"Line165"]
[null,null,null,null,null,null,null,null,null,null,null,null,null,null,null,"Line166"]
[null,null,null,null,null,null,null,null,null,null,null,null,null,null,null,"Line167"]
[null,null,null,null,null,null,null,null,null,null,null,null,null,null,null,"Line168"]
[null,null,null,null,null,null,null,null,null,null,null,null,null,null,null,"Line169"]
[null,null,null,null,null,null,null,null,null,null,null,null,null,null,null,"Line170"]
[null,null,null,null,null,null,null,null,null,null,null,null,null,null,null,"Line171"]
[null,null,null,null,null,null,null,null,null,null,null,null,null,null,null,"Line172"]
[null,null,null,null,null,null,null,null,null,null,null,null,null,null,null,"Line173"]
[null,null,null,null,null,null,null,null,null,null,null,null,null,null,null,"Line174"]
[null,null,null,null,null,null,null,null,null,null,null,null,null,null,null,"Line175"]
[null,null,null,null,null,null,null,null,null,null,null,null,null,null,null,"Line176"]
[null,null,null,null,null,null,null,null,null,null,null,null,null,null,null,"Line177"]
[null,null,null,null,null,null,null,null,null,null,null,null,null,null,null,"Line178"]
[null,null,null,null,null,null,null,null,null,null,null,null,null,null,null,"Line179"]
[null,null,null,null,null,null,null,null,null,null,null,null,null,null,null,"Line180"]
[null,null,null,null,null,null,null,null,null,null,null,null,null,null,null,"Line181"]
[null,null,null,null,null,null,null,null,null,null,null,null,null,null,null,"Line182"]
[null,null,null,null,null,null,null,null,null,null,null,null,null,null,null,"Line183"]
[null,null,null,null,null,null,null,null,null,null,null,null,null,null,null,"Line184"]
[null,null,null,null,null,null,null,null,null,null,null,null,null,null,null,"Line185"]
[null,null,null,null,null,null,null,null,null,null,null,null,null,null,null,"Line186"]
[null,null,null,null,null,null,null,null,null,null,null,null,null,null,null,"Line187"]
[null,null,null,null,null,null,null,null,null,null,null,null,null,null,null,"Line188"]
[null,null,null,null,null,null,null,null,null,null,null,null,null,null,null,"Line189"]
[null,null,null,null,null,null,null,null,null,null,null,null,null,null,null,"Line190"]
[null,null,null,null,null,null,null,null,null,null,null,null,null,null,null,"Line191"]
[null,null,null,null,null,null,null,null,null,null,null,null,null,null,null,"Line192"]
[null,null,null,null,null,null,null,null,null,null,null,null,null,null,null,"Line193"]
[null,null,null,null,null,null,null,null,null,null,null,null,null,null,null,"Line194"]
[null,null,null,null,null,null,null,null,null,null,null,null,null,null,null,"Line195"]
[null,null,null,null,null,null,null,null,null,null,null,null,null,null,null,"Line196"]
[null,null,null,null,null,null,null,null,null,null,null,null,null,null,null,"Line197"]
[null,null,null,null,null,null,null,null,null,null,null,null,null,null,null,"Line198"]
[null,null,null,null,null,null,null,null,null,null,null,null,null,null,null,"Line199"]
[null,null,null,null,null,null,null,null,null,null,null,null,null,null,null,"Line1100"]
[null,null,null,null,null,null,null,null,null,null,null,null,null,null,null,"Line1101"]
[null,null,null,null,null,null,null,null,null,null,null,null,null,null,null,"Line1102"]
[null,null,null,null,null,null,null,null,null,null,null,null,null,null,null,"Line1103"]
[null,null,null,null,null,null,null,null,null,null,null,null,null,null,null,"Line1104"]
[null,null,null,null,null,null,null,null,null,null,null,null,null,null,null,"Line1105"]
[null,null,null,null,null,null,null,null,null,null,null,null,null,null,null,"Line1106"]
[null,null,null,null,null,null,null,null,null,null,null,null,null,null,null,"Line1107"]
[null,null,null,null,null,null,null,null,null,null,null,null,null,null,null,"Line1108"]
[null,null,null,null,null,null,null,null,null,null,null,null,null,null,null,"Line1109"]
[null,null,null,null,null,null,null,null,null,null,null,null,null,null,null,"Line1110"]
[null,null,null,null,null,null,null,null,null,null,null,null,null,null,null,"Line1111"]
[null,null,null,null,null,null,null,null,null,null,null,null,null,null,null,"Line1112"]
[null,null,null,null,null,null,null,null,null,null,null,null,null,null,null,"Line1113"]
[null,null,null,null,null,null,null,null,null,null,null,null,null,null,null,"Line1114"]
[null,null,null,null,null,null,null,null,null,null,null,null,null,null,null,"Line1115"]
[null,null,null,null,null,null,null,null,null,null,null,null,null,null,null,"Line1116"]
[null,null,null,null,null,null,null,null,null,null,null,null,null,null,null,"Line1117"]
[null,null,null,null,null,null,null,null,null,null,null,null,null,null,null,"Line1118"]
[null,null,null,null,null,null,null,null,null,null,null,null,null,null,null,"Line1119"]
[null,null,null,null,null,null,null,null,null,null,null,null,null,null,null,"Line1120"]
[null,null,null,null,null,null,null,null,null,null,null,null,null,null,null,"Line1121"]
[null,null,null,null,null,null,null,null,null,null,null,null,null,null,null,"Line1122"]
[null,null,null,null,null,null,null,null,null,null,null,null,null,null,null,"Line1123"]
[null,null,null,null,null,null,null,null,null,null,null,null,null,null,null,"Line1124"]
[null,null,null,null,null,null,null,null,null,null,null,null,null,null,null,"Line1125"]
[null,null,null,null,null,null,null,null,null,null,null,null,null,null,null,"Line1126"]
[null,null,null,null,null,null,null,null,null,null,null,null,null,null,null,"Line1127"]
[null,null,null,null,null,null,null,null,null,null,null,null,null,null,null,"Line1128"]
[null,null,null,null,null,null,null,null,null,null,null,null,null,null,null,"Line1129"]
[null,null,null,null,null,null,null,null,null,null,null,null,null,null,null,"Line1130"]
[null,null,null,null,null,null,null,null,null,null,null,null,null,null,null,"Line1131"]
[null,null,null,null,null,null,null,null,null,null,null,null,null,null,null,"Line1132"]
[null,null,null,null,null,null,null,null,null,null,null,null,null,null,null,"Line1133"]
[null,null,null,null,null,null,null,null,null,null,null,null,null,null,null,"Line1134"]
[null,null,null,null,null,null,null,null,null,null,null,null,null,null,null,"Line1135"]
[null,null,null,null,null,null,null,null,null,null,null,null,null,null,null,"Line1136"]
[null,null,null,null,null,null,null,null,null,null,null,null,null,null,null,"Line1137"]
[null,null,null,null,null,null,null,null,null,null,null,null,null,null,null,"Line1138"]
[null,null,null,null,null,null,null,null,null,null,null,null,null,null,null,"Line1139"]
[null,null,null,null,null,null,null,null,null,null,null,null,null,null,null,"Line1140"]
[null,null,null,null,null,null,null,null,null,null,null,null,null,null,null,"Line1141"]
[null,null,null,null,null,null,null,null,null,null,null,null,null,null,null,"Line1142"]
[null,null,null,null,null,null,null,null,null,null,null,null,null,null,null,"Line1143"]
[null,null,null,null,null,null,null,null,null,null,null,null,null,null,null,"Line1144"]
[null,null,null,null,null,null,null,null,null,null,null,null,null,null,null,"Line1145"]
[null,null,null,null,null,null,null,null,null,null,null,null,null,null,null,"Line1146"]
[null,null,null,null,null,null,null,null,null,null,null,null,null,null,null,"Line1147"]
[null,null,null,null,null,null,null,null,null,null,null,null,null,null,null,"Line1148"]
[null,null,null,null,null,null,null,null,null,null,null,null,null,null,null,"Line1149"]
[null,null,null,null,null,null,null,null,null,null,null,null,null,null,null,"Line1150"]
[null,null,null,null,null,null,null,null,null,null,null,null,null,null,null,"Line1151"]
[null,null,null,null,null,null,null,null,null,null,null,null,null,null,null,"Line1152"]
[null,null,null,null,null,null,null,null,null,null,null,null,null,null,null,"Line1153"]
[null,null,null,null,null,null,null,null,null,null,null,null,null,null,null,"Line1154"]
[null,null,null,null,null,null,null,null,null,null,null,null,null,null,null,"Line1155"]
[null,null,null,null,null,null,null,null,null,null,null,null,null,null,null,"Line1156"]
[null,null,null,null,null,null,null,null,null,null,null,null,null,null,null,"Line1157"]
[null,null,null,null,null,null,null,null,null,null,null,null,null,null,null,"Line1158"]
[null,null,null,null,null,null,null,null,null,null,null,null,null,null,null,"Line1159"]
[null,null,null,null,null,null,null,null,null,null,null,null,null,null,null,"Line1160"]
[null,null,null,null,null,null,null,null,null,null,null,null,null,null,null,"Line1161"]
[null,null,null,null,null,null,null,null,null,null,null,null,null,null,null,"Line1162"]
[null,null,null,null,null,null,null,null,null,null,null,null,null,null,null,"Line1163"]
[null,null,null,null,null,null,null,null,null,null,null,null,null,null,null,"Line1164"]
[null,null,null,null,null,null,null,null,null,null,null,null,null,null,null,"Line1165"]
[null,null,null,null,null,null,null,null,null,null,null,null,null,null,null,"Line1166"]
[null,null,null,null,null,null,null,null,null,null,null,null,null,null,null,"Line1167"]
[null,null,null,null,null,null,null,null,null,null,null,null,null,null,null,"Line1168"]
[null,null,null,null,null,null,null,null,null,null,null,null,null,null,null,"Line1169"]
[null,null,null,null,null,null,null,null,null,null,null,null,null,null,null,"Line1170"]
[null,null,null,null,null,null,null,null,null,null,null,null,null,null,null,"Line1171"]
[null,null,null,null,null,null,null,null,null,null,null,null,null,null,null,"Line1172"]
[null,null,null,null,null,null,null,null,null,null,null,null,null,null,null,"Line1173"]
[null,null,null,null,null,null,null,null,null,null,null,null,null,null,null,"Line1174"]
[null,null,null,null,null,null,null,null,null,null,null,null,null,null,null,"Line1175"]
[null,null,null,null,null,null,null,null,null,null,null,null,null,null,null,"Line1176"]
[null,null,null,null,null,null,null,null,null,null,null,null,null,null,null,"Line1177"]
[null,null,null,null,null,null,null,null,null,null,null,null,null,null,null,"Line1178"]

{"sheet":"手作り画像を保存","index":14,"n_rows":145,"n_cols":101,"rows_kept":145,"cut":false,"hidden":true,"merged":[[0,0,0,18],[164,0,165,0],[166,0,167,0],[168,0,169,0],[2,0,3,0],[4,0,5,0],[6,0,7,0],[8,0,9,0],[152,0,153,0],[154,0,155,0],[156,0,157,0],[158,0,159,0],[160,0,161,0],[162,0,163,0],[140,0,141,0],[142,0,143,0],[144,0,145,0],[146,0,147,0],[148,0,149,0],[150,0,151,0],[128,0,129,0],[130,0,131,0],[132,0,133,0],[134,0,135,0],[136,0,137,0],[138,0,139,0],[126,0,127,0],[104,0,105,0],[106,0,107,0],[108,0,109,0],[110,0,111,0],[112,0,113,0],[114,0,115,0],[116,0,117,0],[118,0,119,0],[120,0,121,0],[122,0,123,0],[124,0,125,0],[64,0,65,0],[66,0,67,0],[68,0,69,0],[70,0,71,0],[72,0,73,0],[74,0,75,0],[76,0,77,0],[102,0,103,0],[80,0,81,0],[82,0,83,0],[84,0,85,0],[86,0,87,0],[88,0,89,0],[90,0,91,0],[92,0,93,0],[94,0,95,0],[96,0,97,0],[98,0,99,0],[100,0,101,0],[170,0,171,0],[172,0,173,0],[174,0,175,0],[176,0,177,0],[178,0,179,0],[1,1,1,24],[54,0,55,0],[32,0,33,0],[34,0,35,0],[36,0,37,0],[38,0,39,0],[40,0,41,0],[42,0,43,0],[44,0,45,0],[46,0,47,0],[48,0,49,0],[50,0,51,0],[52,0,53,0],[30,0,31,17],[78,0,79,0],[56,0,57,0],[58,0,59,0],[60,0,61,0],[62,0,63,0],[190,0,191,0],[192,0,193,0],[194,0,195,0],[196,0,197,0],[198,0,199,0],[180,0,181,0],[182,0,183,0],[184,0,185,0],[186,0,187,0],[188,0,189,0],[210,0,211,0],[212,0,213,0],[214,0,215,0],[216,0,217,0],[218,0,219,0],[200,0,201,0],[202,0,203,0],[204,0,205,0],[206,0,207,0],[208,0,209,0],[220,0,221,0],[222,0,223,0],[224,0,225,0],[226,0,227,0],[228,0,229,0],[230,0,231,0],[232,0,233,0],[234,0,235,0],[236,0,237,0],[238,0,239,0],[240,0,241,0],[242,0,243,0],[244,0,245,0],[246,0,247,0],[248,0,249,0],[250,0,251,0],[252,0,253,0],[254,0,255,0],[256,0,257,0],[258,0,259,0],[260,0,261,0],[262,0,263,0],[264,0,265,0],[266,0,267,0],[268,0,269,0],[270,0,271,0],[272,0,273,0],[274,0,275,0],[276,0,277,0],[278,0,279,0],[280,0,281,0],[282,0,283,0],[284,0,285,0],[286,0,287,0],[288,0,289,0],[290,0,291,0],[310,0,311,0],[312,0,313,0],[314,0,315,0],[292,0,293,0],[294,0,295,0],[296,0,297,0],[298,0,299,0],[300,0,301,0],[302,0,303,0],[304,0,305,0],[306,0,307,0],[308,0,309,0]]}
["　　　　　”絵　し　ば　い”　で使用する図形をここに保存します。倉庫みたいなものです。オートシェイプで作成した図形、外部から挿入した図形などです。"]
[null,"下図の図形は”演出”と”特別図形”で制御されているものです。"]
["無題","hanabi_a","hanabi_b","蟹","金魚","金魚２","金魚４","子供１","子供２"]
[]
["体操","体操１","体操２","体操３","体操４","体操５","体操６","体操７","体操８","体操９","体操１０","体操１１","体操１２","体操１３","体操１４","体操１５","体操１６","体操１７","体操１８","体操１９","体操２０","体操２１"]
[]
["猫","猫１","猫２","猫３","猫４","猫５","猫６","猫７","猫８","猫９","猫１０","猫１１","猫１２","猫１３","猫１４","猫１５","猫１６","猫１７","猫１８","猫１９","猫２０","猫２１","猫２２","猫２３","猫２４","猫２５","猫２６","猫２７","猫２８","猫２９","猫３０","猫３１","猫３２","猫３３","猫３４","猫３５","猫３６","猫３７","猫３８","猫３９","猫４０","猫４１"]
[]
["そんなの","そんなの１","そんなの２","そんなの３","そんなの４","そんなの５","そんなの６","そんなの７","そんなの８","そんなの９","そんなの１０","そんなの１１","そんなの１２","そんなの１３","そんなの１４","そんなの１５","そんなの１６","そんなの１７","そんなの１８","そんなの１９","そんなの２０","そんなの２１","そんなの２２","そんなの２３","そんなの２４"]
[]
[null,"変形1","変形2","変形3","変形4","変形5","変形6","変形7","変形8","変形9","変形10","変形11","変形12","変形13","変形14","変形15","変形16","変形17","変形18","変形19","変形20","変形21","変形22","変形23","変形24","変形25","変形26","変形27","変形28","変形29","変形30","変形31","変形32","変形33","変形34","変形35","変形36","変形37","変形38","変形39","変形40"]
["文字変形"]
[]
[]
[]
[]
[]
[]
[]
[]
[]
[]
[]
[]
[]
[]
[]
[]
[]
[]
["以下に示すピクチュアーは外部から取り入れたピクチュアーです。図形、または背景として利用できます　使用方法はここから利用したい図形をコピーして目的のシートに貼り付けます。　貼り付け後、移動図形、絵しばいの周りの対象図形として利用できます。また、ここにピクチュアを追加することもできます。保存する場合はなるべく、図形名を変更してから保存して下さい。その方が管理しやすいです。"]
[]
["ねずみ","ねずみ１","ねずみ２","ねずみ３","ねずみ４","ねずみ５","ねずみ６","ねずみ７","ねずみ８","ねずみ９","ねずみ１０","ねずみ１１","ねずみ１２","ねずみ１３","ねずみ１４","ねずみ１５","ねずみ１６"]
[]
["うし","うし１","うし２","うし３","うし４","うし５","うし７","うし８","うし９","うし１０","うし１１"]
[]
["とら","とら１","とら２","とら３","とら４","とら５","とら６","とら７"]
[]
["うさぎ","うさぎ１","うさぎ２","うさぎ３","うさぎ４","うさぎ５"]
[]
["たつ","たつ１","たつ２","たつ３","たつ４","たつ５","たつ６","たつ７","たつ８"]
[]
["へび","へび１","へび２","へび３","へび４"]
[]
["うま","うま１","うま２","うま３","うま４","うま５","うま６","うま７"]
[]
["ひつじ","ひつじ１","ひつじ２","ひつじ３","ひつじ４"]
[]
["さる","さる１","さる２","さる３","さる４","さる５"]
[]
["とり","とり１","とり２","とり３","とり４","とり５","とり６","とり７","とり８","とり９","とり１０","とり１１","とり１２","とり１３","とり１４","とり１５","とり１６","とり１７","とり１８","とり１９","とり２０","とり２１","とり２２","とり２３","とり２４","とり２５","とり２６","とり２７","とり２８","とり２９","とり３０","とり３１","とり３２","とり３３","とり３４","とり３５","とり３６","とり３７","とり３８","とり３９","とり４０","とり４１","とり４２","とり４３","とり４４","とり４５","とり４６","とり４７","とり４８","とり４９","とり５０"]
[]
["いぬ","いぬ１","いぬ２","いぬ３","いぬ４"]
[]
["いのしし","いのしし１","いのしし２","いのしし３","いのしし４","いのしし５"]
[]
["たこ","たこ１","たこ２","たこ３","たこ４","たこ５"]
[]
["さかな","さかな１","さかな２","さかな３","さかな４","さかな５","さかな６","さかな７","さかな８","さかな９","さかな１０","さかな１１","さかな１２","さかな１３","さかな１４","さかな１５","さかな１６","さかな１７","さかな１８","さかな１９","さかな２０","さかな２１","さかな２２","さかな２３","さかな２４","さかな２５","さかな２６","さかな２７","さかな２８","さかな２９","さかな３０","さかな３１","さかな３２","さかな３３","さかな３４","さかな３５","さかな３６","さかな３７","さかな３８","さかな３９","さかな４０","さかな４１","さかな４２","さかな４３","さかな４４","さかな４５","さかな４６","さかな４７","さかな４８","さかな４９","さかな５０","さかな５１","さかな５２","さかな５３","さかな５４","さかな５５","さかな５６","さかな５７","さかな５８","さかな５９","さかな６０","さかな６１","さかな６２","さかな６３","さかな６４","さかな６５","さかな６６","さかな６７","さかな６８","さかな６９","さかな７０","さかな７１","さかな７２","さかな７３","さかな７４","さかな７５","さかな７６","さかな７７","さかな７８","さかな７９","さかな８０","さかな８１","さかな８２","さかな８３","さかな８４","さかな８５","さかな８６","さかな８７","さかな８８","さかな８９","さかな９０","さかな９１","さかな９２","さかな９３","さかな９４","さかな９５","さかな９６","さかな９７","さかな９８","さかな９９","さかな１００"]
[]
["こんちゅう","こんちゅう１","こんちゅう２","こんちゅう３","こんちゅう４","こんちゅう５","こんちゅう６","こんちゅう７","こんちゅう８","こんちゅう９","こんちゅう１０","こんちゅう１１","こんちゅう１２","こんちゅう１３","こんちゅう１４","こんちゅう１５","こんちゅう１６","こんちゅう１７","こんちゅう１８","こんちゅう１９","こんちゅう２０","こんちゅう２１","こんちゅう２２","こんちゅう２３","こんちゅう２４","こんちゅう２５","こんちゅう２６","こんちゅう２７","こんちゅう２８","こんちゅう２９","こんちゅう３０","こんちゅう３１","こんちゅう３２","こんちゅう３３","こんちゅう３４","こんちゅう３５","こんちゅう３６","こんちゅう３７","こんちゅう３８","こんちゅう３９","こんちゅう４０","こんちゅう４１","こんちゅう４２","こんちゅう４３","こんちゅう４４","こんちゅう４５","こんちゅう４６","こんちゅう４７","こんちゅう４８","こんちゅう４９","こんちゅう５０"]
[]
["くだもの","くだもの１","くだもの２","くだもの３","くだもの４","くだもの５","くだもの６","くだもの７","くだもの８","くだもの９","くだもの１０","くだもの１１","くだもの１２","くだもの１３","くだもの１４","くだもの１５"]
[]
["やさい","やさい１","やさい２","やさい３","やさい４","やさい５","やさい６","やさい７","やさい８","やさい９","やさい１０","やさい１１","やさい１２","やさい１３","やさい１４","やさい１５","やさい１６"]
[]
["なつはな","なつはな１","なつはな２","なつはな３","なつはな４","なつはな５","なつはな６","なつはな７","なつはな８","なつはな９","なつはな１０","なつはな１１","なつはな１２","なつはな１３","なつはな１４","なつはな１５","なつはな１６","なつはな１７","なつはな１８","なつはな１９","なつはな２０"]
[]
["はるばな","はるばな１","はるばな２","はるばな３","はるばな４","はるばな５","はるばな６","はるばな７","はるばな８","はるばな９","はるばな１０","はるばな１１","はるばな１２","はるばな１３","はるばな１４","はるばな１５","はるばな１６","はるばな１７","はるばな１８","はるばな１９","はるばな２０","はるばな２１","はるばな２２","はるばな２３","はるばな２４","はるばな２５","はるばな２６","はるばな２７","はるばな２８","はるばな２９","はるばな３０","はるばな３１","はるばな３２","はるばな３３","はるばな３４","はるばな３５","はるばな３６","はるばな３７","はるばな３８","はるばな３９"]
[]
["おしばな","おしばな１","おしばな２","おしばな３","おしばな４","おしばな５","おしばな６","おしばな７","おしばな８","おしばな９","おしばな１０","おしばな１１"]
[]
["はな","はな１","はな２","はな３","はな４","はな５","はな６","はな７","はな８","はな９","はな１０","はな１１","はな１２","はな１３","はな１４","はな１５","はな１６","はな１７","はな１８","はな１９","はな２０","はな２１","はな２２","はな２３","はな２４","はな２５","はな２６","はな２７","はな２８","はな２９","はな３０","はな３１","はな３２","はな３３","はな３４","はな３５","はな３６","はな３７","はな３８","はな３９","はな４０","はな４１","はな４２","はな４３","はな４４","はな４５","はな４６","はな４７","はな４８","はな４９","はな５０","はな５１","はな５２","はな５３","はな５４","はな５５","はな５６","はな５７","はな５８","はな５９","はな６０","はな６１","はな６２","はな６３","はな６４","はな６５"]
[]
["しょくぶつ","しょくぶつ１","しょくぶつ２","しょくぶつ３","しょくぶつ４","しょくぶつ５","しょくぶつ６","しょくぶつ７","しょくぶつ８","しょくぶつ９","しょくぶつ１０","しょくぶつ１１","しょくぶつ１２","しょくぶつ１３","しょくぶつ１４","しょくぶつ１５","しょくぶつ１６","しょくぶつ１７","しょくぶつ１８"]
[]
["なつやすみ","なつやすみ１","なつやすみ２","なつやすみ３","なつやすみ４","なつやすみ５","なつやすみ６","なつやすみ７","なつやすみ８"]
[]
["なつ","なつ１","なつ２","なつ３","なつ４","なつ５","なつ６","なつ７","なつ８","なつ９","なつ１０","なつ１１","なつ１２","なつ１３","なつ１４","なつ１５","なつ１６","なつ１７","なつ１８","なつ１９","なつ２０","なつ２１","なつ２２"]
[]
["どうぶつ","どうぶつ１","どうぶつ２","どうぶつ３","どうぶつ４","どうぶつ５","どうぶつ６","どうぶつ７","どうぶつ８","どうぶつ９","どうぶつ１０","どうぶつ１１","どうぶつ１２","どうぶつ１３","どうぶつ１４","どうぶつ１５","どうぶつ１６","どうぶつ１７","どうぶつ１８","どうぶつ１９","どうぶつ２０","どうぶつ２１"]
[]
["しょうくじ","しょくじ１","しょくじ２","しょくじ３","しょくじ４","しょくじ５","しょくじ６","しょくじ７","しょくじ８","しょくじ９","しょくじ１０","しょくじ１１","しょくじ１２","しょくじ１３","しょくじ１４","しょくじ１５","しょくじ１６","しょくじ１７","しょくじ１８","しょくじ１９"]
[]
["しょうがつ","しょうがつ１","しょうがつ２","しょうがつ３","しょうがつ４","しょうがつ５","しょうがつ６","しょうがつ７","しょうがつ８","しょうがつ９","しょうがつ１０","しょうがつ１１","しょうがつ１２","しょうがつ１３","しょうがつ１４","しょうがつ１５"]
[]
["クリスマス","クリスマス１","クリスマス２","クリスマス３","クリスマス４","クリスマス５","クリスマス６","クリスマス７","クリスマス８","クリスマス９","クリスマス１０","クリスマス１１","クリスマス１２","クリスマス１３","クリスマス１４","クリスマス１５","クリスマス１６","クリスマス１７","クリスマス１８","クリスマス１９","クリスマス２０","クリスマス２１","クリスマス２２","クリスマス２３","クリスマス２４","クリスマス２５","クリスマス２６","クリスマス２７","クリスマス２８","クリスマス２９","クリスマス３０","クリスマス３１","クリスマス３２","クリスマス３３","クリスマス３４","クリスマス３５","クリスマス３６","クリスマス３７","クリスマス３８","クリスマス３９","クリスマス４０","クリスマス４１","クリスマス４２","クリスマス４３","クリスマス４４","クリスマス４５"]
[]
["たんじょうび","たんじょうび１","たんじょうび２","たんじょうび３","たんじょうび４","たんじょうび５","たんじょうび６","たんじょうび７","たんじょうび８","たんじょうび９","たんじょうび１０","たんじょうび１１","たんじょうび１２","たんじょうび１３","たんじょうび１４","たんじょうび１５","たんじょうび１６","たんじょうび１７","たんじょうび１８","たんじょうび１９","たんじょうび２０","たんじょうび２１","たんじょうび２２","たんじょうび２３","たんじょうび２４","たんじょうび２５","たんじょうび２６","たんじょうび２７"]
[]
["けっこん","けっこん１","けっこん２","けっこん３","けっこん４","けっこん５","けっこん６","けっこん７","けっこん８","けっこん９","けっこん１０","けっこん１１","けっこん１２","けっこん１３","けっこん１４","けっこん１５","けっこん１６","けっこん１７","けっこん１８","けっこん１９","けっこん２０","けっこん２１","けっこん２２","けっこん２３","けっこん２４","けっこん２５","けっこん２６","けっこん２７","けっこん２８","けっこん２９","けっこん３０","けっこん３１","けっこん３２","けっこん３３","けっこん３４","けっこん３５","けっこん３６","けっこん３７","けっこん３８","けっこん３９","けっこん４０","けっこん４１","けっこん４２","けっこん４３"]
[]
["ひっこし","ひっこし１","ひっこし２","ひっこし３","ひっこし４","ひっこし５","ひっこし６","ひっこし７","ひっこし８","ひっこし９","ひっこし１０","ひっこし１１","ひっこし１２","ひっこし１３","ひっこし１４","ひっこし１５","ひっこし１６","ひっこし１７","ひっこし１８","ひっこし１９","ひっこし２０","ひっこし２１","ひっこし２２","ひっこし２３","ひっこし２４","ひっこし２５","ひっこし２６","ひっこし２７","ひっこし２８","ひっこし２９","ひっこし３０","ひっこし３１","ひっこし３２","ひっこし３３","ひっこし３４"]
[]
["しゅっさん","しゅっさん１","しゅっさん２","しゅっさん３","しゅっさん４","しゅっさん５","しゅっさん６","しゅっさん７","しゅっさん８","しゅっさん９","しゅっさん１０","しゅっさん１１","しゅっさん１２","しゅっさん１３","しゅっさん１４","しゅっさん１５","しゅっさん１６","しゅっさん１７","しゅっさん１８","しゅっさん１９","しゅっさん２０","しゅっさん２１","しゅっさん２２","しゅっさん２３","しゅっさん２４","しゅっさん２５","しゅっさん２６","しゅっさん２７","しゅっさん２８","しゅっさん２９","しゅっさん３０","しゅっさん３１","しゅっさん３２","しゅっさん３３","しゅっさん３４","しゅっさん３５","しゅっさん３６","しゅっさん３７","しゅっさん３８","しゅっさん３９","しゅっさん４０","しゅっさん４１","しゅっさん４２","しゅっさん４３","しゅっさん４４"]
[]
[753,"７５３＿１","７５３＿２","７５３＿３","７５３＿４","７５３＿５","７５３＿６","７５３＿７"]
[]
["ひなまつり","ひなまつり１","ひなまつり２","ひなまつり３","ひなまつり４","ひなまつり５","ひなまつり６"]
[]
["こどものひ","こどものひ１","こどものひ２","こどものひ３","こどものひ４","こどものひ５","こどものひ６"]
[]
["バレンタイン","バレンタイン１","バレンタイン２","バレンタイン３","バレンタイン４","バレンタイン５","バレンタイン６","バレンタイン７"]
[]
["ぶんぼうぐ","ぶんぼうぐ１","ぶんぼうぐ２","ぶんぼうぐ３","ぶんぼうぐ４","ぶんぼうぐ５","ぶんぼうぐ６","ぶんぼうぐ７","ぶんぼうぐ８","ぶんぼうぐ９","ぶんぼうぐ１０","ぶんぼうぐ１１","ぶんぼうぐ１２","ぶんぼうぐ１３","ぶんぼうぐ１４","ぶんぼうぐ１５","ぶんぼうぐ１６"]
[]
["がっこう","がっこう１","がっこう２","がっこう３","がっこう４","がっこう５","がっこう６","がっこう７","がっこう８","がっこう９","がっこう１０","がっこう１１","がっこう１２","がっこう１３","がっこう１４","がっこう１５","がっこう１６","がっこう１７","がっこう１８","がっこう１９","がっこう２０","がっこう２１","がっこう２２","がっこう２３","がっこう２４","がっこう２５","がっこう２６","がっこう２７"]
[]
["卒業入学","卒業入学１","卒業入学２","卒業入学３","卒業入学４","卒業入学５","卒業入学６","卒業入学７","卒業入学８","卒業入学９","卒業入学１０","卒業入学１１","卒業入学１２"]
[]
["けいろう","けいろう１","けいろう２","けいろう３","けいろう４","けいろう５","けいろう６","けいろう７","けいろう８","けいろう９","けいろう１０","けいろう１１","けいろう１２","けいろう１３","けいろう１４","けいろう１５","けいろう１６","けいろう１７","けいろう１８"]
[]
["せつぶん","せつぶん１","せつぶん２","せつぶん３","せつぶん４"]
[]
["たなばた","たなばた１","たなばた２","たなばた３","たなばた４"]
[]
["うんどうかい","うんどうかい１","うんどうかい２","うんどうかい３","うんどうかい４","うんどうかい５","うんどうかい６","うんどうかい７","うんどうかい８","うんどうかい９"]
[]
["パーテイ","パーテイ１","パーテイ２","パーテイ３","パーテイ４","パーテイ５","パーテイ６","パーテイ７","パーテイ８","パーテイ９","パーテイ１０","パーテイ１１","パーテイ１２","パーテイ１３","パーテイ１４","パーテイ１５","パーテイ１６","パーテイ１７","パーテイ１８","パーテイ１９","パーテイ２０","パーテイ２１","パーテイ２２","パーテイ２３","パーテイ２４"]
[]
["ビジネス","ビジネス１","ビジネス２","ビジネス３","ビジネス４","ビジネス５","ビジネス６","ビジネス７","ビジネス８","ビジネス９","ビジネス１０","ビジネス１１","ビジネス１２","ビジネス１３","ビジネス１４","ビジネス１５","ビジネス１６","ビジネス１７","ビジネス１８","ビジネス１９","ビジネス２０","ビジネス２１","ビジネス２２","ビジネス２３","ビジネス２４","ビジネス２５","ビジネス２６","ビジネス２７","ビジネス２８","ビジネス２９","ビジネス３０","ビジネス３１","ビジネス３２"]
[]
["えもじ","えもじ１","えもじ２","えもじ３","えもじ４","えもじ５","えもじ６","えもじ７","えもじ８","えもじ９","えもじ１０","えもじ１１","えもじ１２","えもじ１３","えもじ１４","えもじ１５","えもじ１６","えもじ１７","えもじ１８","えもじ１９","えもじ２０","えもじ２１","えもじ２２","えもじ２３","えもじ２４"]
[]
["あき","あき１","あき２","あき３","あき４","あき５","あき６","あき７","あき８","あき９","あき１０","あき１１","あき１２","あき１３","あき１４","あき１５","あき１６","あき１７","あき１８","あき１９","あき２０","あき２１","あき２２","あき２３","あき２４","あき２５","あき２６","あき２７","あき２８","あき２９","あき３０","あき３１","あき３２","あき３３","あき３４","あき３５","あき３６"]
[]
["じんぶつ","じんぶつ１","じんぶつ２","じんぶつ３","じんぶつ４","じんぶつ５","じんぶつ６","じんぶつ７","じんぶつ８","じんぶつ９","じんぶつ１０","じんぶつ１１","じんぶつ１２","じんぶつ１３","じんぶつ１４","じんぶつ１５","じんぶつ１６","じんぶつ１７","じんぶつ１８","じんぶつ１９","じんぶつ２０"]
[]
["たび","たび１","たび２","たび３","たび４","たび５","たび６","たび７","たび８","たび９","たび１０","たび１１","たび１２","たび１３","たび１４","たび１５","たび１６","たび１７","たび１８","たび１９","たび２０","たび２１","たび２２","たび２３","たび２４","たび２５","たび２６","たび２７","たび２８","たび２９","たび３０","たび３１","たび３２","たび３３"]
[]
["まちなみ","まちなみ１","まちなみ２","まちなみ３","まちなみ４","まちなみ５","まちなみ６","まちなみ７","まちなみ８","まちなみ９","まちなみ１０","まちなみ１１","まちなみ１２","まちなみ１３","まちなみ１４"]
[]
["スポーツ","スポーツ１","スポーツ２","スポーツ３","スポーツ４","スポーツ５","スポーツ６","スポーツ７","スポーツ８","スポーツ９","スポーツ１０","スポーツ１１","スポーツ１２","スポーツ１３","スポーツ１４","スポーツ１５","スポーツ１６","スポーツ１７","スポーツ１８","スポーツ１９","スポーツ２０","スポーツ２１","スポーツ２２"]
[]
["がっき","がっき１","がっき２","がっき３","がっき４","がっき５","がっき６","がっき７","がっき８","がっき９","がっき１０","がっき１１"]
[]
["もよう","もよう１","もよう２","もよう３","もよう４","もよう５","もよう６","もよう７","もよう８","もよう９"]
[]
["そのた","そのた１","そのた２","そのた３","そのた４","そのた５","そのた６","そのた７","そのた８","そのた９"]
[]
["水草","水草１","水草２","水草３","水草４","水草５","水草６","水草７","水草８","水草９","水草１０","水草１１","水草１２","水草１３","水草１４","水草１５","水草１６","水草１７","水草１８","水草１９"]
[]
["車","車１","車２","車３","車４","車５","車６","車７","車８","車９","車１０","車１１","車１２","車１３","車１４","車１５"]
[]
["電車","電車１","電車２","電車３","電車４","電車５","電車６","電車７","電車８","電車９","電車１０","電車１１","電車１２","電車１３","電車１４","電車１５"]